Workbook

Sheet Stavba
C2: Položkový rozpočet stavby | H2: Datum:
C5: Stavba : | D5: 3395 | E5: Kanalizace a ČOV Benešov u Semil_I.Etapa
C7: Objednatel : | D7: Vodohospodářské sdružení Turnov | H7: IČO : | I7: 49295934
D8: Antonína Dvořáka 287 | H8: DIČ : | I8: CZ49295934
C9: 51101 | D9: Turnov
C11: Zhotovitel : | D11: . | H11: IČO :
H12: DIČ :
C14: Za zhotovitele : | H14: Za objednatele :
C16: _______________ | H16: _______________
J18: Rozpočtové náklady
B19: Základ pro DPH | D19: 12 | E19: % | I19: =ROUND(G38,0) -> 0
B20: DPH | D20: =SazbaDPH1 -> 12 | E20: % | I20: =ROUND(I19*D20/100,0) -> 0
B21: Základ pro DPH | D21: 21 | E21: % | I21: =ROUND(H38,0) -> 2000000
B22: DPH | D22: =SazbaDPH2 -> 21 | E22: % | I22: =ROUND(I21*D21/100,0) -> 420000
B23: Cena celkem za stavbu | I23: =SUM(I19:I22) -> 2420000
B26: Rekapitulace stavebních objektů a provozních souborů
B28: Číslo a název objektu / provozního souboru | F28: Cena celkem | G28: =CONCATENATE("Základ DPH ",SazbaDPH1," %") -> Základ DPH 12 % | H28: =CONCATENATE("Základ DPH ",SazbaDPH2," %") -> Základ DPH 21 % | I28: DPH celkem | J28: %
B29: 01 | C29: Kanalizace | F29: =G29+H29+I29 -> 0 | G29: 0 | H29: =SUM(H43:H50) -> 0 | I29: =(G29*SazbaDPH1)/100+(H29*SazbaDPH2)/100 -> 0 | J29: =IF(CelkemObjekty=0,"",F29/CelkemObjekty*100) -> 0
B30: 02 | C30: Čerpací stanice | F30: =G30+H30+I30 -> 0 | G30: 0 | H30: =SUM(H51:H54) -> 0 | I30: 0 | J30: 0
B31: 03 | C31: Výtlačný řad | F31: 0 | G31: 0 | H31: =SUM(H55) -> 0 | I31: 0 | J31: 0
B32: 05 | C32: Přeložky vodovodu | F32: 0 | G32: 0 | H32: =SUM(H56:H59) -> 0 | I32: 0 | J32: 0
B33: 06 | C33: Kanalizační odbočky | F33: 0 | G33: 0 | H33: =SUM(H60) -> 0 | I33: 0 | J33: 0
B34: 07 | C34: Přeložky dešťové kanalizace | F34: 0 | G34: 0 | H34: =SUM(H61:H62) -> 0 | I34: 0 | J34: 0
B35: 08 | C35: Komunikace a chodníky | F35: 0 | G35: 0 | H35: =SUM(H63) -> 0 | I35: 0 | J35: 0
B36: OaVNS | C36: Ostatní a vedlejší náklady stavby | F36: 0 | G36: 0 | H36: =SUM(OaVNS!G30) -> 0 | I36: 0 | J36: 0
B37: PR | C37: Povinná rezerva | F37: 2420000 | G37: 0 | H37: 2000000 | I37: 420000 | J37: 100
B38: Celkem za stavbu | F38: =SUM(F29:F37) -> 2420000 | G38: =SUM(G29:G37) -> 0 | H38: =SUM(H29:H37) -> 2000000 | I38: =SUM(I29:I37) -> 420000 | J38: =IF(CelkemObjekty=0,"",F38/CelkemObjekty*100) -> 100
B40: Rekapitulace stavebních rozpočtů
B42: Číslo objektu | C42: Číslo a název rozpočtu | F42: Cena celkem | G42: =CONCATENATE("Základ DPH ",SazbaDPH1," %") -> Základ DPH 12 % | H42: =CONCATENATE("Základ DPH ",SazbaDPH2," %") -> Základ DPH 21 % | I42: DPH celkem | J42: %
B43: 01 | C43: 01.01 Stoka "A" km 0,000 - 0,179.1 | F43: =G43+H43+I43 -> 0 | G43: 0 | H43: =SUM('01 01.01 KL'!C23) -> 0 | I43: =(G43*SazbaDPH1)/100+(H43*SazbaDPH2)/100 -> 0 | J43: =IF(CelkemObjekty=0,"",F43/CelkemObjekty*100) -> 0
B44: 01 | C44: 01.02 Stoka "A.1" km 0,000 - 0,532.3 | F44: =G44+H44+I44 -> 0 | G44: 0 | H44: =SUM('01 01.02 KL'!C23) -> 0 | I44: 0 | J44: 0
B45: 01 | C45: 01.03 Stoka "A.1.1" km 0,000 - 0,216.9 | F45: 0 | G45: 0 | H45: =SUM('01 01.03 KL'!C23) -> 0 | I45: 0 | J45: 0
B46: 01 | C46: 01.10 Stoka "B" km 0,000 - 0,145.7 | F46: 0 | G46: 0 | H46: =SUM('01 01.10 KL'!C23) -> 0 | I46: 0 | J46: 0
B47: 01 | C47: 01.11 Stoka "B.1" km 0,000 - 0,120.9 | F47: 0 | G47: 0 | H47: =SUM('01 01.11 KL'!C23) -> 0 | I47: 0 | J47: 0
B48: 01 | C48: 01.32 Stoka "H" km 0,000 - 0,060.3 | F48: 0 | G48: 0 | H48: =SUM('01 01.32 KL'!C23) -> 0 | I48: 0 | J48: 0
B49: 01 | C49: 01.33 Stoka "I" km 0,000 - 0,027.8 | F49: 0 | G49: 0 | H49: =SUM('01 01.33 KL'!C23) -> 0 | I49: 0 | J49: 0
B50: 01 | C50: 01.34 Stoka "J" km 0,000 - 0,085.5 | F50: 0 | G50: 0 | H50: =SUM('01 01.34 KL'!C23) -> 0 | I50: 0 | J50: 0
B51: 02 | C51: 02.01.1 Čerpací stanice "A"_Stavební část | F51: 0 | G51: 0 | H51: =SUM('02 02.01.1 KL'!C23) -> 0 | I51: 0 | J51: 0
B52: 02 | C52: 02.01.2 Čerpací stanice "A"_Strojní část | F52: 0 | G52: 0 | H52: =SUM('02 02.01.2 KL'!C23) -> 0 | I52: 0 | J52: 0
B53: 02 | C53: 02.01.3 Čerpací stanice "A"_Elektroinstalace a přípojka NN | F53: 0 | G53: 0 | H53: =SUM('02 02.01.3 KL'!C23) -> 0 | I53: 0 | J53: 0
B54: 02 | C54: 02.03 Bezpečnostní přepad | F54: 0 | G54: 0 | H54: =SUM('02 02.03 KL'!C23) -> 0 | I54: 0 | J54: 0
B55: 03 | C55: 03.01 Výtlačný řad "A" km 0,000 - 1,038.7 | F55: 0 | G55: 0 | H55: =SUM('03 03.01 KL'!C23) -> 0 | I55: 0 | J55: 0
B56: 05 | C56: 05.01 Přeložky vodovodu "V1, V3 a V4" | F56: 0 | G56: 0 | H56: =SUM('05 05.01 KL'!C23) -> 0 | I56: 0 | J56: 0
B57: 05 | C57: 05.02 Vodovod "V2" a přeložka vodovodu "V2" | F57: 0 | G57: 0 | H57: =SUM('05 05.02 KL'!C23) -> 0 | I57: 0 | J57: 0
B58: 05 | C58: 05.03 Vodovodní přípojka pro ČS | F58: 0 | G58: 0 | H58: =SUM('05 05.03 KL'!C23) -> 0 | I58: 0 | J58: 0
B59: 05 | C59: 05.04 Vodovodní přípojky u V1 až V4 | F59: 0 | G59: 0 | H59: =SUM('05 05.04 KL'!C23) -> 0 | I59: 0 | J59: 0
B60: 06 | C60: 06 Kanalizační odbočky | F60: 0 | G60: 0 | H60: =SUM('06 06 KL'!C23) -> 0 | I60: 0 | J60: 0
B61: 07 | C61: 07.01 Přeložka dešťové kanalizace - Stoka "A1" | F61: 0 | G61: 0 | H61: =SUM('07 07.01 KL'!C23) -> 0 | I61: 0 | J61: 0
B62: 07 | C62: 07.02 Přeložka dešťové kanalizace - Stoka "A1.1" | F62: 0 | G62: 0 | H62: =SUM('07 07.02 KL'!C23) -> 0 | I62: 0 | J62: 0
B63: 08 | C63: 08.01 Oprava komunikací a chodníků | F63: 0 | G63: 0 | H63: =SUM('08 08.01 KL'!C23) -> 0 | I63: 0 | J63: 0
B64: Celkem za stavbu | F64: =SUM(F43:F63) -> 0 | G64: =SUM(G43:G63) -> 0 | H64: =SUM(H43:H63) -> 0 | I64: =SUM(I43:I63) -> 0 | J64: =IF(CelkemObjekty=0,"",F64/CelkemObjekty*100) -> 0

Sheet 01 01.01 KL
A1: POLOŽKOVÝ ROZPOČET
A2: Rozpočet | C2: 01.01 | D2: Stoka "A" km 0,000 - 0,179.1 | F2: JKSO | G2: 827.21.A3
A4: Objekt | F4: SKP
A5: 01 | C5: Kanalizace | F5: Měrná jednotka | G5: m
A6: Stavba | F6: Počet jednotek | G6: 0
A7: 3395 | C7: Kanalizace a ČOV Benešov u Semil | F7: Náklady na m.j. | G7: =IF(G6=0,,ROUND((F30+F32)/G6,1)) -> 0
A8: Projektant | C8: Vodohospodářský rozvoj a výstavba a.s. | F8: Typ rozpočtu
A9: Zpracovatel projektu
A10: Objednatel | C10: Vodohospodářské sdružení Turnov
A11: Dodavatel | C11: . | F11: Zakázkové číslo
A12: Rozpočtoval | F12: Počet listů
A13: ROZPOČTOVÉ NÁKLADY
A14: Základní rozpočtové náklady
B15: HSV celkem | C15: ='01 01.01 Rek'!E14 -> 0
A16: Z | B16: PSV celkem | C16: ='01 01.01 Rek'!F14 -> 0
A17: R | B17: M práce celkem | C17: ='01 01.01 Rek'!H14 -> 0
A18: N | B18: M dodávky celkem | C18: ='01 01.01 Rek'!G14 -> 0
A19: ZRN celkem | C19: =SUM(C15:C18) -> 0
A21: HZS | C21: ='01 01.01 Rek'!I14 -> 0
A22: ZRN+HZS | C22: =C19+C21 -> 0
A23: ZRN+ost.náklady+HZS | C23: =C22+G23 -> 0
A24: Vypracoval | D24: Za zhotovitele | F24: Za objednatele
A25: Jméno : | D25: Jméno : | F25: Jméno :
A26: Datum : | D26: Datum : | F26: Datum :
A28: Podpis : | D28: Podpis: | F28: Podpis:
A30: Základ pro DPH | C30: 21 | D30: % | F30: =C23-F32 -> 0
A31: DPH | C31: =C30 -> 21 | D31: % | F31: =ROUND(PRODUCT(F30,C31/100),0) -> 0
A32: Základ pro DPH | C32: 0 | D32: % | F32: 0
A33: DPH | C33: =C32 -> 0 | D33: % | F33: =ROUND(PRODUCT(F32,C33/100),0) -> 0
A34: CENA ZA OBJEKT CELKEM | F34: =ROUND(SUM(F30:F33),0) -> 0
A36: Poznámka :

Sheet 01 01.01 Rek
A1: Stavba : | C1: 3395 Kanalizace a ČOV Benešov u Semil | G1: Rozpočet : | H1: 01.01
A2: Objekt : | C2: 01 Kanalizace | G2: Stoka "A" km 0,000 - 0,179.1
A4: REKAPITULACE STAVEBNÍCH DÍLŮ
B6: Stavební díl | E6: HSV | F6: PSV | G6: Dodávka | H6: Montáž | I6: HZS
A7: ='01 01.01 Pol'!B7 -> 1 | B7: ='01 01.01 Pol'!C7 -> Zemní práce | E7: ='01 01.01 Pol'!BA92 -> 0 | F7: ='01 01.01 Pol'!BB92 -> 0 | G7: ='01 01.01 Pol'!BC92 -> 0 | H7: ='01 01.01 Pol'!BD92 -> 0 | I7: ='01 01.01 Pol'!BE92 -> 0
A8: ='01 01.01 Pol'!B93 -> 21 | B8: ='01 01.01 Pol'!C93 -> Úprava podloží a základ.spáry | E8: ='01 01.01 Pol'!BA97 -> 0 | F8: ='01 01.01 Pol'!BB97 -> 0 | G8: ='01 01.01 Pol'!BC97 -> 0 | H8: ='01 01.01 Pol'!BD97 -> 0 | I8: ='01 01.01 Pol'!BE97 -> 0
A9: ='01 01.01 Pol'!B98 -> 45 | B9: ='01 01.01 Pol'!C98 -> Podkladní a vedlejší konstrukce | E9: ='01 01.01 Pol'!BA123 -> 0 | F9: ='01 01.01 Pol'!BB123 -> 0 | G9: ='01 01.01 Pol'!BC123 -> 0 | H9: ='01 01.01 Pol'!BD123 -> 0 | I9: ='01 01.01 Pol'!BE123 -> 0
A10: ='01 01.01 Pol'!B124 -> 5 | B10: ='01 01.01 Pol'!C124 -> Komunikace | E10: ='01 01.01 Pol'!BA128 -> 0 | F10: ='01 01.01 Pol'!BB128 -> 0 | G10: ='01 01.01 Pol'!BC128 -> 0 | H10: ='01 01.01 Pol'!BD128 -> 0 | I10: ='01 01.01 Pol'!BE128 -> 0
A11: ='01 01.01 Pol'!B129 -> 8 | B11: ='01 01.01 Pol'!C129 -> Trubní vedení | E11: ='01 01.01 Pol'!BA257 -> 0 | F11: ='01 01.01 Pol'!BB257 -> 0 | G11: ='01 01.01 Pol'!BC257 -> 0 | H11: ='01 01.01 Pol'!BD257 -> 0 | I11: ='01 01.01 Pol'!BE257 -> 0
A12: ='01 01.01 Pol'!B258 -> 93 | B12: ='01 01.01 Pol'!C258 -> Dokončovací práce inženýrských staveb | E12: ='01 01.01 Pol'!BA274 -> 0 | F12: ='01 01.01 Pol'!BB274 -> 0 | G12: ='01 01.01 Pol'!BC274 -> 0 | H12: ='01 01.01 Pol'!BD274 -> 0 | I12: ='01 01.01 Pol'!BE274 -> 0
A13: ='01 01.01 Pol'!B275 -> 99 | B13: ='01 01.01 Pol'!C275 -> Staveništní přesun hmot | E13: ='01 01.01 Pol'!BA278 -> 0 | F13: ='01 01.01 Pol'!BB278 -> 0 | G13: ='01 01.01 Pol'!BC278 -> 0 | H13: ='01 01.01 Pol'!BD278 -> 0 | I13: ='01 01.01 Pol'!BE278 -> 0
B14: CELKEM OBJEKT | E14: =SUM(E7:E13) -> 0 | F14: =SUM(F7:F13) -> 0 | G14: =SUM(G7:G13) -> 0 | H14: =SUM(H7:H13) -> 0 | I14: =SUM(I7:I13) -> 0

Sheet 01 01.01 Pol
A1: Položkový rozpočet
A3: Stavba : | C3: 3395 Kanalizace a ČOV Benešov u Semil | E3: Rozpočet: | F3: ='01 01.01 Rek'!H1 -> 01.01
A4: Objekt : | C4: 01 Kanalizace | E4: ='01 01.01 Rek'!G2 -> Stoka "A" km 0,000 - 0,179.1
A6: P.č. | B6: Číslo položky | C6: Název položky | D6: MJ | E6: množství | F6: cena / MJ | G6: celkem (Kč) | H6: Jednotková hmotnost | I6: Celková hmotnost | J6: Jednotková dem.hmot. | K6: Celková dem.hmot.
A7: Díl: | B7: 1 | C7: Zemní práce | O7: 1
A8: 1 | B8: 115101201RRX | C8: Přečerpávání nebo převedení splašků a dešť. vod | D8: h | E8: 240 | G8: =E8*F8 -> 0 | H8: 0 | I8: =E8*H8 -> 0 | J8: 0 | K8: =E8*J8 -> 0 | O8: 2 | AA8: 1 | AB8: 1 | AC8: 1 | AZ8: 1 | BA8: =IF(AZ8=1,G8,0) -> 0 | BB8: =IF(AZ8=2,G8,0) -> 0 | BC8: =IF(AZ8=3,G8,0) -> 0 | BD8: =IF(AZ8=4,G8,0) -> 0 | BE8: =IF(AZ8=5,G8,0) -> 0 | CA8: 1 | CB8: 1
C9: Převedení a čerpání splašků nebo dešťových vod dle zvolené technologie zhotovitele stavby. | L9: Převedení a čerpání splašků nebo dešťových vod dle zvolené technologie zhotovitele stavby. | O9: 3
C10: (Množství bude určeno na stavbě dle skutečnosti) | L10: (Množství bude určeno na stavbě dle skutečnosti) | O10: 3
A11: 2 | B11: 130001101RRX | C11: Příplatek za ztížené hloubení v blízkosti vedení | D11: m3 | E11: 135.1466 | G11: =E11*F11 -> 0 | H11: 0 | I11: =E11*H11 -> 0 | J11: 0 | K11: =E11*J11 -> 0 | O11: 2 | AA11: 1 | AB11: 1 | AC11: 1 | AZ11: 1 | BA11: =IF(AZ11=1,G11,0) -> 0 | BB11: =IF(AZ11=2,G11,0) -> 0 | BC11: =IF(AZ11=3,G11,0) -> 0 | BD11: =IF(AZ11=4,G11,0) -> 0 | BE11: =IF(AZ11=5,G11,0) -> 0 | CA11: 1 | CB11: 1
C12: Včetně případných nutných dokopávem a ručního výkopu podél sousedících inženýrských sítí. | L12: Včetně případných nutných dokopávem a ručního výkopu podél sousedících inženýrských sítí. | O12: 3
C13: Součástí položky je i dočasné zajištění inženýrských sítí v prostoru výkopů (potrubí, kabely a pod.) | L13: Součástí položky je i dočasné zajištění inženýrských sítí v prostoru výkopů (potrubí, kabely a pod.) | O13: 3
C14: Stoka "A" KT DN400: | E14: 0 | M14: Stoka "A" KT DN400:
C15: Výkopy: | E15: 0 | M15: Výkopy:
C16: v hornině tř. 3 - 5 - 22%:614,3026*0,22 | E16: 135.1466 | M16: v hornině tř. 3 - 5 - 22%:614,3026*0,22
A17: 3 | B17: 132201212R00 | C17: Hloubení rýh š.do 200 cm hor.3 do 1000m3,STROJNĚ | D17: m3 | E17: 368.5816 | G17: =E17*F17 -> 0 | H17: 0 | I17: =E17*H17 -> 0 | J17: 0 | K17: =E17*J17 -> 0 | O17: 2 | AA17: 1 | AB17: 1 | AC17: 1 | AZ17: 1 | BA17: =IF(AZ17=1,G17,0) -> 0 | BB17: =IF(AZ17=2,G17,0) -> 0 | BC17: =IF(AZ17=3,G17,0) -> 0 | BD17: =IF(AZ17=4,G17,0) -> 0 | BE17: =IF(AZ17=5,G17,0) -> 0 | CA17: 1 | CB17: 1
C18: Položka obsahuje hloubení rýh traktorbagrem, naložení výkopku na dopravní prostředek pro svislé, nebo vodorovné přemístění, popř. přemístění výkopku do 3 m (po povrchu území), případné zajištění rypadel polštáři, udržování pracoviště a ochranu výkopiště proti stékání srážkové vody z okolního terénu i s jejím odvodněním, nebo odvedením, přesekání a odstranění kořenů ve výkopišti, odstranění napadávek, urovnání dna výkopu. | L18: Položka obsahuje hloubení rýh traktorbagrem, naložení výkopku na dopravní prostředek pro svislé, nebo vodorovné přemístění, popř. přemístění výkopku do 3 m (po povrchu území), případné zajištění rypadel polštáři, udržování pracoviště a ochranu výkopiště proti stékání srážkové vody z okolního terénu i s jejím odvodněním, nebo odvedením, přesekání a odstranění kořenů ve výkopišti, odstranění napadávek, urovnání dna výkopu. | O18: 3
C19: Stoka "A" KT DN400: | E19: 0 | M19: Stoka "A" KT DN400:
C20: Výkopy: | E20: 0 | M20: Výkopy:
C21: Začátek provozního součtu | E21: 0 | M21: Začátek provozního součtu
C22: ČS - ŠA-0:7,60*1,30*(2,85+3,63)/2 | E22: 32.0112 | M22: ČS - ŠA-0:7,60*1,30*(2,85+3,63)/2
C23: ŠA-0 - ŠA-3:(79,40-7,60)*1,30*(3,63+2,99)/2 | E23: 308.9554 | M23: ŠA-0 - ŠA-3:(79,40-7,60)*1,30*(3,63+2,99)/2
C24: ŠA-3 - ŠA-5:(179,10-76,40)*1,30*(2,99+2,74)/2 | E24: 382.5061 | M24: ŠA-3 - ŠA-5:(179,10-76,40)*1,30*(2,99+2,74)/2
C25: Prohloubení pro RŠ:1,60*1,60*0,20*5 | E25: 2.56 | M25: Prohloubení pro RŠ:1,60*1,60*0,20*5
C26: Rozšíření pro RŠ:1,60*(1,60-1,30)*12,26 | E26: 5.8848 | M26: Rozšíření pro RŠ:1,60*(1,60-1,30)*12,26
C27: Odpočet objemu konstrukce komunikace:-(179,10*1,30+1,60*(1,60-1,30)*5)*0,50 | E27: -117.615 | M27: Odpočet objemu konstrukce komunikace:-(179,10*1,30+1,60*(1,60-1,30)*5)*0,50
C28: Konec provozního součtu | E28: 614.3025 | M28: Konec provozního součtu
C29: v hornině tř. 3 - 60%:614,3026*0,6 | E29: 368.5816 | M29: v hornině tř. 3 - 60%:614,3026*0,6
A30: 4 | B30: 132201219R00 | C30: Přípl.za lepivost,hloubení rýh 200cm,hor.3,STROJNĚ | D30: m3 | E30: 184.2908 | G30: =E30*F30 -> 0 | H30: 0 | I30: =E30*H30 -> 0 | J30: 0 | K30: =E30*J30 -> 0 | O30: 2 | AA30: 1 | AB30: 1 | AC30: 1 | AZ30: 1 | BA30: =IF(AZ30=1,G30,0) -> 0 | BB30: =IF(AZ30=2,G30,0) -> 0 | BC30: =IF(AZ30=3,G30,0) -> 0 | BD30: =IF(AZ30=4,G30,0) -> 0 | BE30: =IF(AZ30=5,G30,0) -> 0 | CA30: 1 | CB30: 1
C31: Stoka "A" KT DN400: | E31: 0 | M31: Stoka "A" KT DN400:
C32: Výkopy: | E32: 0 | M32: Výkopy:
C33: v hornině tř. 3 - 60%:614,3026*0,6*0,5 | E33: 184.2908 | M33: v hornině tř. 3 - 60%:614,3026*0,6*0,5
A34: 5 | B34: 132301212R00 | C34: Hloubení rýh š.do 200 cm hor.4 do 1000 m3, STROJNĚ | D34: m3 | E34: 184.2908 | G34: =E34*F34 -> 0 | H34: 0 | I34: =E34*H34 -> 0 | J34: 0 | K34: =E34*J34 -> 0 | O34: 2 | AA34: 1 | AB34: 1 | AC34: 1 | AZ34: 1 | BA34: =IF(AZ34=1,G34,0) -> 0 | BB34: =IF(AZ34=2,G34,0) -> 0 | BC34: =IF(AZ34=3,G34,0) -> 0 | BD34: =IF(AZ34=4,G34,0) -> 0 | BE34: =IF(AZ34=5,G34,0) -> 0 | CA34: 1 | CB34: 1
C35: Položka obsahuje hloubení rýh traktorbagrem, naložení výkopku na dopravní prostředek pro svislé, nebo vodorovné přemístění, popř. přemístění výkopku do 3 m (po povrchu území), případné zajištění rypadel polštáři, udržování pracoviště a ochranu výkopiště proti stékání srážkové vody z okolního terénu i s jejím odvodněním, nebo odvedením, přesekání a odstranění kořenů ve výkopišti, odstranění napadávek, urovnání dna výkopu. | L35: Položka obsahuje hloubení rýh traktorbagrem, naložení výkopku na dopravní prostředek pro svislé, nebo vodorovné přemístění, popř. přemístění výkopku do 3 m (po povrchu území), případné zajištění rypadel polštáři, udržování pracoviště a ochranu výkopiště proti stékání srážkové vody z okolního terénu i s jejím odvodněním, nebo odvedením, přesekání a odstranění kořenů ve výkopišti, odstranění napadávek, urovnání dna výkopu. | O35: 3
C36: Stoka "A" KT DN400: | E36: 0 | M36: Stoka "A" KT DN400:
C37: Výkopy: | E37: 0 | M37: Výkopy:
C38: v hornině tř. 4 - 30%:614,3026*0,3 | E38: 184.2908 | M38: v hornině tř. 4 - 30%:614,3026*0,3
A39: 6 | B39: 132301219R00 | C39: Přípl.za lepivost,hloubení rýh 200cm,hor.4,STROJNĚ | D39: m3 | E39: 92.1454 | G39: =E39*F39 -> 0 | H39: 0 | I39: =E39*H39 -> 0 | J39: 0 | K39: =E39*J39 -> 0 | O39: 2 | AA39: 1 | AB39: 1 | AC39: 1 | AZ39: 1 | BA39: =IF(AZ39=1,G39,0) -> 0 | BB39: =IF(AZ39=2,G39,0) -> 0 | BC39: =IF(AZ39=3,G39,0) -> 0 | BD39: =IF(AZ39=4,G39,0) -> 0 | BE39: =IF(AZ39=5,G39,0) -> 0 | CA39: 1 | CB39: 1
C40: Stoka "A" KT DN400: | E40: 0 | M40: Stoka "A" KT DN400:
C41: Výkopy: | E41: 0 | M41: Výkopy:
C42: v hornině tř. 4 - 30%:614,3026*0,3*0,5 | E42: 92.1454 | M42: v hornině tř. 4 - 30%:614,3026*0,3*0,5
A43: 7 | B43: 132401211RRX | C43: Hloubení rýh šířky do 200 cm v hor.5 STROJNĚ včetně případného dolamování ve vrstvě do 0,5 m | D43: m3 | E43: 61.4303 | G43: =E43*F43 -> 0 | H43: 0.01041 | I43: =E43*H43 -> 0.639489423 | J43: 0 | K43: =E43*J43 -> 0 | O43: 2 | AA43: 1 | AB43: 1 | AC43: 1 | AZ43: 1 | BA43: =IF(AZ43=1,G43,0) -> 0 | BB43: =IF(AZ43=2,G43,0) -> 0 | BC43: =IF(AZ43=3,G43,0) -> 0 | BD43: =IF(AZ43=4,G43,0) -> 0 | BE43: =IF(AZ43=5,G43,0) -> 0 | CA43: 1 | CB43: 1
C44: Položka obsahuje hloubení rýh traktorbagrem, naložení výkopku na dopravní prostředek pro svislé, nebo vodorovné přemístění, popř. přemístění výkopku do 3 m (po povrchu území), případné zajištění rypadel polštáři, udržování pracoviště a ochranu výkopiště proti stékání srážkové vody z okolního terénu i s jejím odvodněním, nebo odvedením, přesekání a odstranění kořenů ve výkopišti, odstranění napadávek, urovnání dna výkopu.včetně případného dolamování ve vrstvě do 0,5 m | L44: Položka obsahuje hloubení rýh traktorbagrem, naložení výkopku na dopravní prostředek pro svislé, nebo vodorovné přemístění, popř. přemístění výkopku do 3 m (po povrchu území), případné zajištění rypadel polštáři, udržování pracoviště a ochranu výkopiště proti stékání srážkové vody z okolního terénu i s jejím odvodněním, nebo odvedením, přesekání a odstranění kořenů ve výkopišti, odstranění napadávek, urovnání dna výkopu.včetně případného dolamování ve vrstvě do 0,5 m | O44: 3
C45: Stoka "A" KT DN400: | E45: 0 | M45: Stoka "A" KT DN400:
C46: Výkopy: | E46: 0 | M46: Výkopy:
C47: v hornině tř. 5 - 10%:614,3026*0,1 | E47: 61.4303 | M47: v hornině tř. 5 - 10%:614,3026*0,1
A48: 8 | B48: 151101102R00 | C48: Pažení a rozepření stěn rýh - příložné - hl.do 4 m | D48: m2 | E48: 1113.035 | G48: =E48*F48 -> 0 | H48: 0.00086 | I48: =E48*H48 -> 0.9572101 | J48: 0 | K48: =E48*J48 -> 0 | O48: 2 | AA48: 1 | AB48: 1 | AC48: 1 | AZ48: 1 | BA48: =IF(AZ48=1,G48,0) -> 0 | BB48: =IF(AZ48=2,G48,0) -> 0 | BC48: =IF(AZ48=3,G48,0) -> 0 | BD48: =IF(AZ48=4,G48,0) -> 0 | BE48: =IF(AZ48=5,G48,0) -> 0 | CA48: 1 | CB48: 1
C49: Stoka "A" KT DN400: | E49: 0 | M49: Stoka "A" KT DN400:
C50: Výkopy: | E50: 0 | M50: Výkopy:
C51: ČS - ŠA-0:7,60*(2,85+3,63)/2*2 | E51: 49.248 | M51: ČS - ŠA-0:7,60*(2,85+3,63)/2*2
C52: ŠA-0 - ŠA-3:(79,40-7,60)*(3,63+2,99)/2*2 | E52: 475.316 | M52: ŠA-0 - ŠA-3:(79,40-7,60)*(3,63+2,99)/2*2
C53: ŠA-3 - ŠA-5:(179,10-76,40)*(2,99+2,74)/2*2 | E53: 588.471 | M53: ŠA-3 - ŠA-5:(179,10-76,40)*(2,99+2,74)/2*2
A54: 9 | B54: 151101112R00 | C54: Odstranění pažení stěn rýh - příložné - hl. do 4 m | D54: m2 | E54: 1113.035 | G54: =E54*F54 -> 0 | H54: 0 | I54: =E54*H54 -> 0 | J54: 0 | K54: =E54*J54 -> 0 | O54: 2 | AA54: 1 | AB54: 1 | AC54: 1 | AZ54: 1 | BA54: =IF(AZ54=1,G54,0) -> 0 | BB54: =IF(AZ54=2,G54,0) -> 0 | BC54: =IF(AZ54=3,G54,0) -> 0 | BD54: =IF(AZ54=4,G54,0) -> 0 | BE54: =IF(AZ54=5,G54,0) -> 0 | CA54: 1 | CB54: 1
C55: Stoka "A" KT DN400: | E55: 0 | M55: Stoka "A" KT DN400:
C56: Výkopy: | E56: 0 | M56: Výkopy:
C57: ČS - ŠA-0:7,60*(2,85+3,63)/2*2 | E57: 49.248 | M57: ČS - ŠA-0:7,60*(2,85+3,63)/2*2
C58: ŠA-0 - ŠA-3:(79,40-7,60)*(3,63+2,99)/2*2 | E58: 475.316 | M58: ŠA-0 - ŠA-3:(79,40-7,60)*(3,63+2,99)/2*2
C59: ŠA-3 - ŠA-5:(179,10-76,40)*(2,99+2,74)/2*2 | E59: 588.471 | M59: ŠA-3 - ŠA-5:(179,10-76,40)*(2,99+2,74)/2*2
A60: 10 | B60: 162701105RSZ | C60: Vodorovné přemístění výkopku z hor.1-7 na skládku zhotovitele | D60: m3 | E60: 614.3026 | G60: =E60*F60 -> 0 | H60: 0 | I60: =E60*H60 -> 0 | J60: 0 | K60: =E60*J60 -> 0 | O60: 2 | AA60: 1 | AB60: 1 | AC60: 1 | AZ60: 1 | BA60: =IF(AZ60=1,G60,0) -> 0 | BB60: =IF(AZ60=2,G60,0) -> 0 | BC60: =IF(AZ60=3,G60,0) -> 0 | BD60: =IF(AZ60=4,G60,0) -> 0 | BE60: =IF(AZ60=5,G60,0) -> 0 | CA60: 1 | CB60: 1
C61: Stoka "A" KT DN400: | E61: 0 | M61: Stoka "A" KT DN400:
C62: Výkopy: | E62: 0 | M62: Výkopy:
C63: v hornině tř. 3 - 5:614,3026 | E63: 614.3026 | M63: v hornině tř. 3 - 5:614,3026
A64: 11 | B64: 174101101R00 | C64: Zásyp jam, rýh, šachet se zhutněním | D64: m3 | E64: 380.1018 | G64: =E64*F64 -> 0 | H64: 0 | I64: =E64*H64 -> 0 | J64: 0 | K64: =E64*J64 -> 0 | O64: 2 | AA64: 1 | AB64: 1 | AC64: 1 | AZ64: 1 | BA64: =IF(AZ64=1,G64,0) -> 0 | BB64: =IF(AZ64=2,G64,0) -> 0 | BC64: =IF(AZ64=3,G64,0) -> 0 | BD64: =IF(AZ64=4,G64,0) -> 0 | BE64: =IF(AZ64=5,G64,0) -> 0 | CA64: 1 | CB64: 1
C65: Položka obsahuje strojní přemístění materiálu pro zásyp ze vzdálenosti do 10 m od okraje zásypu. | L65: Položka obsahuje strojní přemístění materiálu pro zásyp ze vzdálenosti do 10 m od okraje zásypu. | O65: 3
O66: 3
C67: Stoka "A" KT DN400: | E67: 0 | M67: Stoka "A" KT DN400:
C68: Zásypy ŠD fr. 0-63 mm:380,1018 | E68: 380.1018 | M68: Zásypy ŠD fr. 0-63 mm:380,1018
C69: Začátek provozního součtu | E69: 0 | M69: Začátek provozního součtu
C70: Výkopy: | E70: 0 | M70: Výkopy:
C71: v hornině tř. 3 - 5:614,3026 | E71: 614.3026 | M71: v hornině tř. 3 - 5:614,3026
C72: Odpočet objemu lože, potrubí a obsypů:-179,10*1,2168 | E72: -217.9289 | M72: Odpočet objemu lože, potrubí a obsypů:-179,10*1,2168
C73: Odpočet objemu RŠ:-16,2719 | E73: -16.2719 | M73: Odpočet objemu RŠ:-16,2719
C74: Konec provozního součtu | E74: 380.1018 | M74: Konec provozního součtu
A75: 12 | B75: 175101101R00 | C75: Obsyp potrubí bez prohození sypaniny | D75: m3 | E75: 149.7276 | G75: =E75*F75 -> 0 | H75: 0 | I75: =E75*H75 -> 0 | J75: 0 | K75: =E75*J75 -> 0 | O75: 2 | AA75: 1 | AB75: 1 | AC75: 1 | AZ75: 1 | BA75: =IF(AZ75=1,G75,0) -> 0 | BB75: =IF(AZ75=2,G75,0) -> 0 | BC75: =IF(AZ75=3,G75,0) -> 0 | BD75: =IF(AZ75=4,G75,0) -> 0 | BE75: =IF(AZ75=5,G75,0) -> 0 | CA75: 1 | CB75: 1
C76: Stoka "A" KT DN400:179,10*0,836 | E76: 149.7276 | M76: Stoka "A" KT DN400:179,10*0,836
A77: 13 | B77: 199000002R00 | C77: Poplatek za skládku horniny 1- 7 č. dle katal. odpadů 17 05 04 | D77: m3 | E77: 614.3026 | G77: =E77*F77 -> 0 | H77: 0 | I77: =E77*H77 -> 0 | J77: 0 | K77: =E77*J77 -> 0 | O77: 2 | AA77: 1 | AB77: 1 | AC77: 1 | AZ77: 1 | BA77: =IF(AZ77=1,G77,0) -> 0 | BB77: =IF(AZ77=2,G77,0) -> 0 | BC77: =IF(AZ77=3,G77,0) -> 0 | BD77: =IF(AZ77=4,G77,0) -> 0 | BE77: =IF(AZ77=5,G77,0) -> 0 | CA77: 1 | CB77: 1
C78: Stoka "A" KT DN400: | E78: 0 | M78: Stoka "A" KT DN400:
C79: Výkopy: | E79: 0 | M79: Výkopy:
C80: v hornině tř. 3 - 5:614,3026 | E80: 614.3026 | M80: v hornině tř. 3 - 5:614,3026
A81: 14 | B81: 58337308.R | C81: Štěrkopísek frakce 0-2 tř.B | D81: t | E81: 298.3667 | G81: =E81*F81 -> 0 | H81: 1 | I81: =E81*H81 -> 298.3667 | K81: =E81*J81 -> 0 | O81: 2 | AA81: 3 | AB81: 1 | AC81: 58337308.R | AZ81: 1 | BA81: =IF(AZ81=1,G81,0) -> 0 | BB81: =IF(AZ81=2,G81,0) -> 0 | BC81: =IF(AZ81=3,G81,0) -> 0 | BD81: =IF(AZ81=4,G81,0) -> 0 | BE81: =IF(AZ81=5,G81,0) -> 0 | CA81: 3 | CB81: 1
C82: Stoka "A" KT DN400:179,10*0,836*1,973*1,01 | E82: 298.3667 | M82: Stoka "A" KT DN400:179,10*0,836*1,973*1,01
A83: 15 | B83: 58344197R | C83: Štěrkodrtě frakce 0-63 A | D83: t | E83: 719.05 | G83: =E83*F83 -> 0 | H83: 1 | I83: =E83*H83 -> 719.05 | K83: =E83*J83 -> 0 | O83: 2 | AA83: 3 | AB83: 1 | AC83: 58344197R | AZ83: 1 | BA83: =IF(AZ83=1,G83,0) -> 0 | BB83: =IF(AZ83=2,G83,0) -> 0 | BC83: =IF(AZ83=3,G83,0) -> 0 | BD83: =IF(AZ83=4,G83,0) -> 0 | BE83: =IF(AZ83=5,G83,0) -> 0 | CA83: 3 | CB83: 1
C84: Stoka "A" KT DN400: | E84: 0 | M84: Stoka "A" KT DN400:
C85: Zásypy ŠD fr. 0-63 mm:380,1018*1,873*1,01 | E85: 719.05 | M85: Zásypy ŠD fr. 0-63 mm:380,1018*1,873*1,01
C86: Začátek provozního součtu | E86: 0 | M86: Začátek provozního součtu
C87: Výkopy: | E87: 0 | M87: Výkopy:
C88: v hornině tř. 3 - 5:614,3026 | E88: 614.3026 | M88: v hornině tř. 3 - 5:614,3026
C89: Odpočet objemu lože, potrubí a obsypů:-179,10*1,2168 | E89: -217.9289 | M89: Odpočet objemu lože, potrubí a obsypů:-179,10*1,2168
C90: Odpočet objemu RŠ:-16,2719 | E90: -16.2719 | M90: Odpočet objemu RŠ:-16,2719
C91: Konec provozního součtu | E91: 380.1018 | M91: Konec provozního součtu
B92: Celkem za | C92: 1 Zemní práce | G92: =SUM(G7:G91) -> 0 | I92: =SUM(I7:I91) -> 1019.0134 | K92: =SUM(K7:K91) -> 0 | O92: 4 | BA92: =SUM(BA7:BA91) -> 0 | BB92: =SUM(BB7:BB91) -> 0 | BC92: =SUM(BC7:BC91) -> 0 | BD92: =SUM(BD7:BD91) -> 0 | BE92: =SUM(BE7:BE91) -> 0
A93: Díl: | B93: 21 | C93: Úprava podloží a základ.spáry | O93: 1
A94: 16 | B94: 212810010RAC | C94: Trativody z PVC drenážních flexibilních trubek lože štěrkopísek a obsyp kamenivo, trubky d 100 mm | D94: m | E94: 179.1 | G94: =E94*F94 -> 0 | H94: 0.43651 | I94: =E94*H94 -> 78.178941 | J94: 0 | K94: =E94*J94 -> 0 | O94: 2 | AA94: 1 | AB94: 1 | AC94: 1 | AZ94: 1 | BA94: =IF(AZ94=1,G94,0) -> 0 | BB94: =IF(AZ94=2,G94,0) -> 0 | BC94: =IF(AZ94=3,G94,0) -> 0 | BD94: =IF(AZ94=4,G94,0) -> 0 | BE94: =IF(AZ94=5,G94,0) -> 0 | CA94: 1 | CB94: 1
C95: Stoka "A" KT DN400: | E95: 0 | M95: Stoka "A" KT DN400:
C96: Drenáž DN100:179,10 | E96: 179.1 | M96: Drenáž DN100:179,10
B97: Celkem za | C97: 21 Úprava podloží a základ.spáry | G97: =SUM(G93:G96) -> 0 | I97: =SUM(I93:I96) -> 78.178941 | K97: =SUM(K93:K96) -> 0 | O97: 4 | BA97: =SUM(BA93:BA96) -> 0 | BB97: =SUM(BB93:BB96) -> 0 | BC97: =SUM(BC93:BC96) -> 0 | BD97: =SUM(BD93:BD96) -> 0 | BE97: =SUM(BE93:BE96) -> 0
A98: Díl: | B98: 45 | C98: Podkladní a vedlejší konstrukce | O98: 1
A99: 17 | B99: 452112111R00 | C99: Osazení beton. prstenců pod poklopy,výšky do100 mm | D99: kus | E99: 6 | G99: =E99*F99 -> 0 | H99: 0.0066 | I99: =E99*H99 -> 0.0396 | J99: 0 | K99: =E99*J99 -> 0 | O99: 2 | AA99: 1 | AB99: 1 | AC99: 1 | AZ99: 1 | BA99: =IF(AZ99=1,G99,0) -> 0 | BB99: =IF(AZ99=2,G99,0) -> 0 | BC99: =IF(AZ99=3,G99,0) -> 0 | BD99: =IF(AZ99=4,G99,0) -> 0 | BE99: =IF(AZ99=5,G99,0) -> 0 | CA99: 1 | CB99: 1
C100: Volba položky se řídí výškou prstence nebo rámu. V položkách nejsou zakalkulovány náklady na dodávku betonových výrobků; | L100: Volba položky se řídí výškou prstence nebo rámu. V položkách nejsou zakalkulovány náklady na dodávku betonových výrobků; | O100: 3
C101: Stoka "A" KT DN400: | E101: 0 | M101: Stoka "A" KT DN400:
C102: VP H40:1 | E102: 1 | M102: VP H40:1
C103: VP H60:2 | E103: 2 | M103: VP H60:2
C104: VP H80:3 | E104: 3 | M104: VP H80:3
A105: 18 | B105: 452112121R00 | C105: Osazení beton. prstenců pod poklopy,výšky do200 mm | D105: kus | E105: 6 | G105: =E105*F105 -> 0 | H105: 0.0066 | I105: =E105*H105 -> 0.0396 | J105: 0 | K105: =E105*J105 -> 0 | O105: 2 | AA105: 1 | AB105: 1 | AC105: 1 | AZ105: 1 | BA105: =IF(AZ105=1,G105,0) -> 0 | BB105: =IF(AZ105=2,G105,0) -> 0 | BC105: =IF(AZ105=3,G105,0) -> 0 | BD105: =IF(AZ105=4,G105,0) -> 0 | BE105: =IF(AZ105=5,G105,0) -> 0 | CA105: 1 | CB105: 1
C106: Stoka "A" KT DN400: | E106: 0 | M106: Stoka "A" KT DN400:
C107: VP H120:6 | E107: 6 | M107: VP H120:6
A108: 19 | B108: 452312131R00 | C108: Sedlové lože pod potrubí z betonu C 12/15 | D108: m3 | E108: 60.5358 | G108: =E108*F108 -> 0 | H108: 2.5 | I108: =E108*H108 -> 151.3395 | J108: 0 | K108: =E108*J108 -> 0 | O108: 2 | AA108: 1 | AB108: 1 | AC108: 1 | AZ108: 1 | BA108: =IF(AZ108=1,G108,0) -> 0 | BB108: =IF(AZ108=2,G108,0) -> 0 | BC108: =IF(AZ108=3,G108,0) -> 0 | BD108: =IF(AZ108=4,G108,0) -> 0 | BE108: =IF(AZ108=5,G108,0) -> 0 | CA108: 1 | CB108: 1
C109: Položka je určena pro práce v otevřeném výkopu | L109: Položka je určena pro práce v otevřeném výkopu | O109: 3
C110: Stoka "A" KT DN400:179,10*0,338 | E110: 60.5358 | M110: Stoka "A" KT DN400:179,10*0,338
A111: 20 | B111: 59224346.A.R | C111: Prstenec vyrovn šachetní TBW-Q.1 63/4 | D111: kus | E111: 1.01 | G111: =E111*F111 -> 0 | H111: 0.028 | I111: =E111*H111 -> 0.02828 | K111: =E111*J111 -> 0 | O111: 2 | AA111: 3 | AB111: 1 | AC111: 59224346.A.R | AZ111: 1 | BA111: =IF(AZ111=1,G111,0) -> 0 | BB111: =IF(AZ111=2,G111,0) -> 0 | BC111: =IF(AZ111=3,G111,0) -> 0 | BD111: =IF(AZ111=4,G111,0) -> 0 | BE111: =IF(AZ111=5,G111,0) -> 0 | CA111: 3 | CB111: 1
C112: Stoka "A" KT DN400: | E112: 0 | M112: Stoka "A" KT DN400:
C113: VP H40:1*1,01 | E113: 1.01 | M113: VP H40:1*1,01
A114: 21 | B114: 59224347.A.R | C114: Prstenec vyrovn šachetní TBW-Q.1 63/6 | D114: kus | E114: 2.02 | G114: =E114*F114 -> 0 | H114: 0.04 | I114: =E114*H114 -> 0.0808 | K114: =E114*J114 -> 0 | O114: 2 | AA114: 3 | AB114: 1 | AC114: 59224347.A.R | AZ114: 1 | BA114: =IF(AZ114=1,G114,0) -> 0 | BB114: =IF(AZ114=2,G114,0) -> 0 | BC114: =IF(AZ114=3,G114,0) -> 0 | BD114: =IF(AZ114=4,G114,0) -> 0 | BE114: =IF(AZ114=5,G114,0) -> 0 | CA114: 3 | CB114: 1
C115: Stoka "A" KT DN400: | E115: 0 | M115: Stoka "A" KT DN400:
C116: VP H60:2*1,01 | E116: 2.02 | M116: VP H60:2*1,01
A117: 22 | B117: 59224348.A.R | C117: Prstenec vyrovn šachetní TBW-Q.1 63/8 | D117: kus | E117: 3.03 | G117: =E117*F117 -> 0 | H117: 0.054 | I117: =E117*H117 -> 0.16362 | K117: =E117*J117 -> 0 | O117: 2 | AA117: 3 | AB117: 1 | AC117: 59224348.A.R | AZ117: 1 | BA117: =IF(AZ117=1,G117,0) -> 0 | BB117: =IF(AZ117=2,G117,0) -> 0 | BC117: =IF(AZ117=3,G117,0) -> 0 | BD117: =IF(AZ117=4,G117,0) -> 0 | BE117: =IF(AZ117=5,G117,0) -> 0 | CA117: 3 | CB117: 1
C118: Stoka "A" KT DN400: | E118: 0 | M118: Stoka "A" KT DN400:
C119: VP H80:3*1,01 | E119: 3.03 | M119: VP H80:3*1,01
A120: 23 | B120: 59224350.A.R | C120: Prstenec vyrovn šachetní TBW-Q.1 63/12 | D120: kus | E120: 6.06 | G120: =E120*F120 -> 0 | H120: 0.081 | I120: =E120*H120 -> 0.49086 | K120: =E120*J120 -> 0 | O120: 2 | AA120: 3 | AB120: 1 | AC120: 59224350.A.R | AZ120: 1 | BA120: =IF(AZ120=1,G120,0) -> 0 | BB120: =IF(AZ120=2,G120,0) -> 0 | BC120: =IF(AZ120=3,G120,0) -> 0 | BD120: =IF(AZ120=4,G120,0) -> 0 | BE120: =IF(AZ120=5,G120,0) -> 0 | CA120: 3 | CB120: 1
C121: Stoka "A" KT DN400: | E121: 0 | M121: Stoka "A" KT DN400:
C122: VP H120:6*1,01 | E122: 6.06 | M122: VP H120:6*1,01
B123: Celkem za | C123: 45 Podkladní a vedlejší konstrukce | G123: =SUM(G98:G122) -> 0 | I123: =SUM(I98:I122) -> 152.18226 | K123: =SUM(K98:K122) -> 0 | O123: 4 | BA123: =SUM(BA98:BA122) -> 0 | BB123: =SUM(BB98:BB122) -> 0 | BC123: =SUM(BC98:BC122) -> 0 | BD123: =SUM(BD98:BD122) -> 0 | BE123: =SUM(BE98:BE122) -> 0
A124: Díl: | B124: 5 | C124: Komunikace | O124: 1
A125: 24 | B125: 572701119RRX | C125: Provizorní zásyp rýh kam. hrubě drceným nebo recyk s následným odstraněním a odvozem | D125: m3 | E125: 117.615 | G125: =E125*F125 -> 0 | H125: 1.4805 | I125: =E125*H125 -> 174.1290075 | J125: 0 | K125: =E125*J125 -> 0 | O125: 2 | AA125: 1 | AB125: 1 | AC125: 1 | AZ125: 1 | BA125: =IF(AZ125=1,G125,0) -> 0 | BB125: =IF(AZ125=2,G125,0) -> 0 | BC125: =IF(AZ125=3,G125,0) -> 0 | BD125: =IF(AZ125=4,G125,0) -> 0 | BE125: =IF(AZ125=5,G125,0) -> 0 | CA125: 1 | CB125: 1
C126: Stoka "A" KT DN400: | E126: 0 | M126: Stoka "A" KT DN400:
C127: Objem konstrukce komunikace:(179,10*1,30+1,60*(1,60-1,30)*5)*0,50 | E127: 117.615 | M127: Objem konstrukce komunikace:(179,10*1,30+1,60*(1,60-1,30)*5)*0,50
B128: Celkem za | C128: 5 Komunikace | G128: =SUM(G124:G127) -> 0 | I128: =SUM(I124:I127) -> 174.1290075 | K128: =SUM(K124:K127) -> 0 | O128: 4 | BA128: =SUM(BA124:BA127) -> 0 | BB128: =SUM(BB124:BB127) -> 0 | BC128: =SUM(BC124:BC127) -> 0 | BD128: =SUM(BD124:BD127) -> 0 | BE128: =SUM(BE124:BE127) -> 0
A129: Díl: | B129: 8 | C129: Trubní vedení | O129: 1
A130: 25 | B130: 831392121R00 | C130: Montáž trub kameninových, pryž. kroužek, DN 400 | D130: m | E130: 175.35 | G130: =E130*F130 -> 0 | H130: 6e-05 | I130: =E130*H130 -> 0.010521 | J130: 0 | K130: =E130*J130 -> 0 | O130: 2 | AA130: 1 | AB130: 1 | AC130: 1 | AZ130: 1 | BA130: =IF(AZ130=1,G130,0) -> 0 | BB130: =IF(AZ130=2,G130,0) -> 0 | BC130: =IF(AZ130=3,G130,0) -> 0 | BD130: =IF(AZ130=4,G130,0) -> 0 | BE130: =IF(AZ130=5,G130,0) -> 0 | CA130: 1 | CB130: 1
C131: Položka je určena pro montáž potrubí z trub kameninových s polyuretanovým spojem v otevřeném výkopu ve sklonu do 20 % včetně případné potřeby krácení trub. | L131: Položka je určena pro montáž potrubí z trub kameninových s polyuretanovým spojem v otevřeném výkopu ve sklonu do 20 % včetně případné potřeby krácení trub. | O131: 3
C132: Stoka "A" KT DN400:179,10 | E132: 179.1 | M132: Stoka "A" KT DN400:179,10
C133: Odpočet - Odbočka DN400/200:-0,75*5 | E133: -3.75 | M133: Odpočet - Odbočka DN400/200:-0,75*5
A134: 26 | B134: 837391221R00 | C134: Montáž tvarov. kamenin. odboč. pryž. krouž. DN 400 | D134: kus | E134: 5 | G134: =E134*F134 -> 0 | H134: 8e-05 | I134: =E134*H134 -> 0.0004 | J134: 0 | K134: =E134*J134 -> 0 | O134: 2 | AA134: 1 | AB134: 1 | AC134: 1 | AZ134: 1 | BA134: =IF(AZ134=1,G134,0) -> 0 | BB134: =IF(AZ134=2,G134,0) -> 0 | BC134: =IF(AZ134=3,G134,0) -> 0 | BD134: =IF(AZ134=4,G134,0) -> 0 | BE134: =IF(AZ134=5,G134,0) -> 0 | CA134: 1 | CB134: 1
C135: Položka je určena pro montáž kameninových tvarovek odbočných těsněných pryžovými nebo polyuretanovými spoji na potrubí z trub kameninových v otevřeném výkopu. | L135: Položka je určena pro montáž kameninových tvarovek odbočných těsněných pryžovými nebo polyuretanovými spoji na potrubí z trub kameninových v otevřeném výkopu. | O135: 3
C136: Stoka "A" KT DN400: | E136: 0 | M136: Stoka "A" KT DN400:
C137: Odbočka DN400/200:5 | E137: 5 | M137: Odbočka DN400/200:5
A138: 27 | B138: 892601154R00 | C138: Čištění kanalizační stoky do DN 500, nad 100 m | D138: m | E138: 179.1 | G138: =E138*F138 -> 0 | H138: 0 | I138: =E138*H138 -> 0 | J138: 0 | K138: =E138*J138 -> 0 | O138: 2 | AA138: 1 | AB138: 0 | AC138: 0 | AZ138: 1 | BA138: =IF(AZ138=1,G138,0) -> 0 | BB138: =IF(AZ138=2,G138,0) -> 0 | BC138: =IF(AZ138=3,G138,0) -> 0 | BD138: =IF(AZ138=4,G138,0) -> 0 | BE138: =IF(AZ138=5,G138,0) -> 0 | CA138: 1 | CB138: 0
C139: V položce je zakalkulováno: | L139: V položce je zakalkulováno: | O139: 3
C140: a) otevření a uzavření revizních šachet a čisticích kusů | L140: a) otevření a uzavření revizních šachet a čisticích kusů | O140: 3
C141: b) natažení vysokotlakých hadic k místu odkud se bude kanalizace čistit | L141: b) natažení vysokotlakých hadic k místu odkud se bude kanalizace čistit | O141: 3
C142: c) vyčištění potrubí tlakovou vodou nebo motorovým pérem. | L142: c) vyčištění potrubí tlakovou vodou nebo motorovým pérem. | O142: 3
C143: Stoka "A" KT DN400:179,10 | E143: 179.1 | M143: Stoka "A" KT DN400:179,10
A144: 28 | B144: 892855115R00 | C144: Kontrola kanalizace TV kamerou do 500 m | D144: m | E144: 358.2 | G144: =E144*F144 -> 0 | H144: 0 | I144: =E144*H144 -> 0 | J144: 0 | K144: =E144*J144 -> 0 | O144: 2 | AA144: 1 | AB144: 1 | AC144: 1 | AZ144: 1 | BA144: =IF(AZ144=1,G144,0) -> 0 | BB144: =IF(AZ144=2,G144,0) -> 0 | BC144: =IF(AZ144=3,G144,0) -> 0 | BD144: =IF(AZ144=4,G144,0) -> 0 | BE144: =IF(AZ144=5,G144,0) -> 0 | CA144: 1 | CB144: 1
C145: Provedení kaberové prohlídky včetně dodání elektronického záznamu na CD zadavateli a tištěné dokumentace průběhu kamerové prohlídky | L145: Provedení kaberové prohlídky včetně dodání elektronického záznamu na CD zadavateli a tištěné dokumentace průběhu kamerové prohlídky | O145: 3
C146: Stoka "A" KT DN400:179,10*2 | E146: 358.2 | M146: Stoka "A" KT DN400:179,10*2
A147: 29 | B147: 894421111RT1 | C147: Osazení betonových dílců šachet skruže rovné, na kroužek, do 0,5 t | D147: kus | E147: 4 | G147: =E147*F147 -> 0 | H147: 0 | I147: =E147*H147 -> 0 | J147: 0 | K147: =E147*J147 -> 0 | O147: 2 | AA147: 1 | AB147: 1 | AC147: 1 | AZ147: 1 | BA147: =IF(AZ147=1,G147,0) -> 0 | BB147: =IF(AZ147=2,G147,0) -> 0 | BC147: =IF(AZ147=3,G147,0) -> 0 | BD147: =IF(AZ147=4,G147,0) -> 0 | BE147: =IF(AZ147=5,G147,0) -> 0 | CA147: 1 | CB147: 1
C148: Položka je určena pro osazení betonových dílců šachet dle DIN 4034, skruže rovné na kroužek, hmotnost do 0,5 t. | L148: Položka je určena pro osazení betonových dílců šachet dle DIN 4034, skruže rovné na kroužek, hmotnost do 0,5 t. | O148: 3
C149: V položce nejsou zakalkulovány náklady na dodání betonových dílců; dílce se oceňují ve specifikaci. | L149: V položce nejsou zakalkulovány náklady na dodání betonových dílců; dílce se oceňují ve specifikaci. | O149: 3
C150: Stoka "A" KT DN400: | E150: 0 | M150: Stoka "A" KT DN400:
C151: Skruž H250:2 | E151: 2 | M151: Skruž H250:2
C152: Skruž H500:2 | E152: 2 | M152: Skruž H500:2
A153: 30 | B153: 894421112RT1 | C153: Osazení betonových dílců šachet skruže rovné, na kroužek, do 1,4 t | D153: kus | E153: 8 | G153: =E153*F153 -> 0 | H153: 0 | I153: =E153*H153 -> 0 | J153: 0 | K153: =E153*J153 -> 0 | O153: 2 | AA153: 1 | AB153: 1 | AC153: 1 | AZ153: 1 | BA153: =IF(AZ153=1,G153,0) -> 0 | BB153: =IF(AZ153=2,G153,0) -> 0 | BC153: =IF(AZ153=3,G153,0) -> 0 | BD153: =IF(AZ153=4,G153,0) -> 0 | BE153: =IF(AZ153=5,G153,0) -> 0 | CA153: 1 | CB153: 1
C154: Položka je určena pro osazení betonových dílců šachet dle DIN 4034, skruže rovné na kroužek, hmotnost přes 0,5 do 1,4 t. | L154: Položka je určena pro osazení betonových dílců šachet dle DIN 4034, skruže rovné na kroužek, hmotnost přes 0,5 do 1,4 t. | O154: 3
C155: V položce nejsou zakalkulovány náklady na dodání betonových dílců; dílce se oceňují ve specifikaci. | L155: V položce nejsou zakalkulovány náklady na dodání betonových dílců; dílce se oceňují ve specifikaci. | O155: 3
C156: Stoka "A" KT DN400: | E156: 0 | M156: Stoka "A" KT DN400:
C157: Skruž H1000:8 | E157: 8 | M157: Skruž H1000:8
A158: 31 | B158: 894422111RT1 | C158: Osazení betonových dílců šachet skruže přechodové, na kroužek | D158: kus | E158: 7 | G158: =E158*F158 -> 0 | H158: 0 | I158: =E158*H158 -> 0 | J158: 0 | K158: =E158*J158 -> 0 | O158: 2 | AA158: 1 | AB158: 1 | AC158: 1 | AZ158: 1 | BA158: =IF(AZ158=1,G158,0) -> 0 | BB158: =IF(AZ158=2,G158,0) -> 0 | BC158: =IF(AZ158=3,G158,0) -> 0 | BD158: =IF(AZ158=4,G158,0) -> 0 | BE158: =IF(AZ158=5,G158,0) -> 0 | CA158: 1 | CB158: 1
C159: Položka je určena pro osazení betonových dílců šachet dle DIN 4034, skruže přechodové, zákrytové, kónusy,... na kroužek. | L159: Položka je určena pro osazení betonových dílců šachet dle DIN 4034, skruže přechodové, zákrytové, kónusy,... na kroužek. | O159: 3
C160: Stoka "A" KT DN400: | E160: 0 | M160: Stoka "A" KT DN400:
C161: Kónus H580:6 | E161: 6 | M161: Kónus H580:6
C162: ZD H170:1 | E162: 1 | M162: ZD H170:1
A163: 32 | B163: 894423111RT1 | C163: Osazení betonových dílců šachet do 2,0 t šachtová dna, na kroužek, do 2,0 t | D163: kus | E163: 6 | G163: =E163*F163 -> 0 | H163: 0 | I163: =E163*H163 -> 0 | J163: 0 | K163: =E163*J163 -> 0 | O163: 2 | AA163: 1 | AB163: 1 | AC163: 1 | AZ163: 1 | BA163: =IF(AZ163=1,G163,0) -> 0 | BB163: =IF(AZ163=2,G163,0) -> 0 | BC163: =IF(AZ163=3,G163,0) -> 0 | BD163: =IF(AZ163=4,G163,0) -> 0 | BE163: =IF(AZ163=5,G163,0) -> 0 | CA163: 1 | CB163: 1
C164: Položka je určena pro osazení betonových dílců šachet dle DIN 4034, šachtová dna na kroužek, hmotnost do 2,0 t. | L164: Položka je určena pro osazení betonových dílců šachet dle DIN 4034, šachtová dna na kroužek, hmotnost do 2,0 t. | O164: 3
C165: V položce nejsou zakalkulovány náklady na dodání betonových dílců; | L165: V položce nejsou zakalkulovány náklady na dodání betonových dílců; | O165: 3
C166: Součástí položky je i podbetonování šachtového dna betonem C12/15 v min. tl. 10 cm. | L166: Součástí položky je i podbetonování šachtového dna betonem C12/15 v min. tl. 10 cm. | O166: 3
C167: Stoka "A" KT DN400: | E167: 0 | M167: Stoka "A" KT DN400:
C168: ŠD H575:1 | E168: 1 | M168: ŠD H575:1
C169: ŠD H675:5 | E169: 5 | M169: ŠD H675:5
A170: 33 | B170: 894423112RT1 | C170: Osazení betonových dílců šachet do 3,0 t šachtová dna, na kroužek, do 3,0 t | D170: kus | E170: 1 | G170: =E170*F170 -> 0 | H170: 0 | I170: =E170*H170 -> 0 | J170: 0 | K170: =E170*J170 -> 0 | O170: 2 | AA170: 1 | AB170: 1 | AC170: 1 | AZ170: 1 | BA170: =IF(AZ170=1,G170,0) -> 0 | BB170: =IF(AZ170=2,G170,0) -> 0 | BC170: =IF(AZ170=3,G170,0) -> 0 | BD170: =IF(AZ170=4,G170,0) -> 0 | BE170: =IF(AZ170=5,G170,0) -> 0 | CA170: 1 | CB170: 1
C171: Položka je určena pro osazení betonových dílců šachet dle DIN 4034, šachtová dna na kroužek, hmotnost do 2,0 t. | L171: Položka je určena pro osazení betonových dílců šachet dle DIN 4034, šachtová dna na kroužek, hmotnost do 2,0 t. | O171: 3
C172: V položce nejsou zakalkulovány náklady na dodání betonových dílců; | L172: V položce nejsou zakalkulovány náklady na dodání betonových dílců; | O172: 3
C173: Součástí položky je i podbetonování šachtového dna betonem C12/15 v min. tl. 10 cm. | L173: Součástí položky je i podbetonování šachtového dna betonem C12/15 v min. tl. 10 cm. | O173: 3
C174: Stoka "A" KT DN400: | E174: 0 | M174: Stoka "A" KT DN400:
C175: ŠD H1130:1 | E175: 1 | M175: ŠD H1130:1
A176: 34 | B176: 899102111R00 | C176: Osazení poklopu s rámem do 100 kg | D176: kus | E176: 7 | G176: =E176*F176 -> 0 | H176: 0.00702 | I176: =E176*H176 -> 0.04914 | J176: 0 | K176: =E176*J176 -> 0 | O176: 2 | AA176: 1 | AB176: 1 | AC176: 1 | AZ176: 1 | BA176: =IF(AZ176=1,G176,0) -> 0 | BB176: =IF(AZ176=2,G176,0) -> 0 | BC176: =IF(AZ176=3,G176,0) -> 0 | BD176: =IF(AZ176=4,G176,0) -> 0 | BE176: =IF(AZ176=5,G176,0) -> 0 | CA176: 1 | CB176: 1
C177: Osazení provizorních poklopů během realizace stavby (nefakturovaný materiál zhotovitele) | L177: Osazení provizorních poklopů během realizace stavby (nefakturovaný materiál zhotovitele) | O177: 3
A178: 35 | B178: 899711122R00 | C178: Fólie výstražná z PVC šedá, šířka 30 cm | D178: m | E178: 179.1 | G178: =E178*F178 -> 0 | H178: 0 | I178: =E178*H178 -> 0 | J178: 0 | K178: =E178*J178 -> 0 | O178: 2 | AA178: 1 | AB178: 1 | AC178: 1 | AZ178: 1 | BA178: =IF(AZ178=1,G178,0) -> 0 | BB178: =IF(AZ178=2,G178,0) -> 0 | BC178: =IF(AZ178=3,G178,0) -> 0 | BD178: =IF(AZ178=4,G178,0) -> 0 | BE178: =IF(AZ178=5,G178,0) -> 0 | CA178: 1 | CB178: 1
C179: Stoka "A" KT DN400:179,10 | E179: 179.1 | M179: Stoka "A" KT DN400:179,10
A180: 36 | B180: 592243541.R | C180: Deska zákrytová TZK-Q.1 100-63/17 | D180: kus | E180: 1.01 | G180: =E180*F180 -> 0 | H180: 0.43 | I180: =E180*H180 -> 0.4343 | K180: =E180*J180 -> 0 | O180: 2 | AA180: 3 | AB180: 1 | AC180: 592243541.R | AZ180: 1 | BA180: =IF(AZ180=1,G180,0) -> 0 | BB180: =IF(AZ180=2,G180,0) -> 0 | BC180: =IF(AZ180=3,G180,0) -> 0 | BD180: =IF(AZ180=4,G180,0) -> 0 | BE180: =IF(AZ180=5,G180,0) -> 0 | CA180: 3 | CB180: 1
C181: Stoka "A" KT DN400: | E181: 0 | M181: Stoka "A" KT DN400:
C182: ZD H170:1*1,01 | E182: 1.01 | M182: ZD H170:1*1,01
A183: 37 | B183: 592243543.R | C183: Kónus šachetní TBR-Q.1 100x63/58/12 KPS | D183: kus | E183: 6.06 | G183: =E183*F183 -> 0 | H183: 0.585 | I183: =E183*H183 -> 3.5451 | K183: =E183*J183 -> 0 | O183: 2 | AA183: 3 | AB183: 1 | AC183: 592243543.R | AZ183: 1 | BA183: =IF(AZ183=1,G183,0) -> 0 | BB183: =IF(AZ183=2,G183,0) -> 0 | BC183: =IF(AZ183=3,G183,0) -> 0 | BD183: =IF(AZ183=4,G183,0) -> 0 | BE183: =IF(AZ183=5,G183,0) -> 0 | CA183: 3 | CB183: 1
C184: Stoka "A" KT DN400: | E184: 0 | M184: Stoka "A" KT DN400:
C185: Kónus H580:6*1,01 | E185: 6.06 | M185: Kónus H580:6*1,01
A186: 38 | B186: 59224358.A.R | C186: Skruž šachetní TBS-Q.1 100/25/12 PS | D186: kus | E186: 2.02 | G186: =E186*F186 -> 0 | H186: 0.25 | I186: =E186*H186 -> 0.505 | K186: =E186*J186 -> 0 | O186: 2 | AA186: 3 | AB186: 1 | AC186: 59224358.A.R | AZ186: 1 | BA186: =IF(AZ186=1,G186,0) -> 0 | BB186: =IF(AZ186=2,G186,0) -> 0 | BC186: =IF(AZ186=3,G186,0) -> 0 | BD186: =IF(AZ186=4,G186,0) -> 0 | BE186: =IF(AZ186=5,G186,0) -> 0 | CA186: 3 | CB186: 1
C187: Stoka "A" KT DN400: | E187: 0 | M187: Stoka "A" KT DN400:
C188: Skruž H250:2*1,01 | E188: 2.02 | M188: Skruž H250:2*1,01
A189: 39 | B189: 59224361.A.R | C189: Skruž šachetní TBS-Q.1 100/50/12 PS | D189: kus | E189: 2.02 | G189: =E189*F189 -> 0 | H189: 0.5 | I189: =E189*H189 -> 1.01 | K189: =E189*J189 -> 0 | O189: 2 | AA189: 3 | AB189: 1 | AC189: 59224361.A.R | AZ189: 1 | BA189: =IF(AZ189=1,G189,0) -> 0 | BB189: =IF(AZ189=2,G189,0) -> 0 | BC189: =IF(AZ189=3,G189,0) -> 0 | BD189: =IF(AZ189=4,G189,0) -> 0 | BE189: =IF(AZ189=5,G189,0) -> 0 | CA189: 3 | CB189: 1
C190: Stoka "A" KT DN400: | E190: 0 | M190: Stoka "A" KT DN400:
C191: Skruž H500:2*1,01 | E191: 2.02 | M191: Skruž H500:2*1,01
A192: 40 | B192: 59224364.A.R | C192: Skruž šachetní TBS-Q.1 100/100/12 PS | D192: kus | E192: 8.08 | G192: =E192*F192 -> 0 | H192: 1 | I192: =E192*H192 -> 8.08 | K192: =E192*J192 -> 0 | O192: 2 | AA192: 3 | AB192: 1 | AC192: 59224364.A.R | AZ192: 1 | BA192: =IF(AZ192=1,G192,0) -> 0 | BB192: =IF(AZ192=2,G192,0) -> 0 | BC192: =IF(AZ192=3,G192,0) -> 0 | BD192: =IF(AZ192=4,G192,0) -> 0 | BE192: =IF(AZ192=5,G192,0) -> 0 | CA192: 3 | CB192: 1
C193: Stoka "A" KT DN400: | E193: 0 | M193: Stoka "A" KT DN400:
C194: Skruž H1000:8*1,01 | E194: 8.08 | M194: Skruž H1000:8*1,01
A195: 41 | B195: 59224371.A.R | C195: Dno šachetní TBZ-Q.1 100/58 KOM V20 včetně kynety dle PD | D195: kus | E195: 1.01 | G195: =E195*F195 -> 0 | H195: 1.27 | I195: =E195*H195 -> 1.2827 | K195: =E195*J195 -> 0 | O195: 2 | AA195: 3 | AB195: 1 | AC195: 59224371.A.R | AZ195: 1 | BA195: =IF(AZ195=1,G195,0) -> 0 | BB195: =IF(AZ195=2,G195,0) -> 0 | BC195: =IF(AZ195=3,G195,0) -> 0 | BD195: =IF(AZ195=4,G195,0) -> 0 | BE195: =IF(AZ195=5,G195,0) -> 0 | CA195: 3 | CB195: 1
C196: Stoka "A" KT DN400: | E196: 0 | M196: Stoka "A" KT DN400:
C197: ŠD H575:1*1,01 | E197: 1.01 | M197: ŠD H575:1*1,01
A198: 42 | B198: 59224373.A.R | C198: Dno šachetní TBZ-Q.1 100/68 KOM V30 včetně kynety dle PD | D198: kus | E198: 5.05 | G198: =E198*F198 -> 0 | H198: 1.45 | I198: =E198*H198 -> 7.3225 | K198: =E198*J198 -> 0 | O198: 2 | AA198: 3 | AB198: 1 | AC198: 59224373.A.R | AZ198: 1 | BA198: =IF(AZ198=1,G198,0) -> 0 | BB198: =IF(AZ198=2,G198,0) -> 0 | BC198: =IF(AZ198=3,G198,0) -> 0 | BD198: =IF(AZ198=4,G198,0) -> 0 | BE198: =IF(AZ198=5,G198,0) -> 0 | CA198: 3 | CB198: 1
C199: Stoka "A" KT DN400: | E199: 0 | M199: Stoka "A" KT DN400:
C200: ŠD H675:5*1,01 | E200: 5.05 | M200: ŠD H675:5*1,01
A201: 43 | B201: 59224377.A.R | C201: Dno šachetní TBZ-Q.1 100/108 KOM V80 včetně kynety dle PD | D201: kus | E201: 1.01 | G201: =E201*F201 -> 0 | H201: 2.59 | I201: =E201*H201 -> 2.6159 | K201: =E201*J201 -> 0 | O201: 2 | AA201: 3 | AB201: 1 | AC201: 59224377.A.R | AZ201: 1 | BA201: =IF(AZ201=1,G201,0) -> 0 | BB201: =IF(AZ201=2,G201,0) -> 0 | BC201: =IF(AZ201=3,G201,0) -> 0 | BD201: =IF(AZ201=4,G201,0) -> 0 | BE201: =IF(AZ201=5,G201,0) -> 0 | CA201: 3 | CB201: 1
C202: Stoka "A" KT DN400: | E202: 0 | M202: Stoka "A" KT DN400:
... 76 more rows

Sheet 01 01.02 KL
A1: POLOŽKOVÝ ROZPOČET
A2: Rozpočet | C2: 01.02 | D2: Stoka "A.1" km 0,000 - 0,532.3 | F2: JKSO | G2: 827.21.A3
A4: Objekt | F4: SKP
A5: 01 | C5: Kanalizace | F5: Měrná jednotka | G5: m
A6: Stavba | F6: Počet jednotek | G6: 0
A7: 3395 | C7: Kanalizace a ČOV Benešov u Semil | F7: Náklady na m.j. | G7: =IF(G6=0,,ROUND((F30+F32)/G6,1)) -> 0
A8: Projektant | C8: Vodohospodářský rozvoj a výstavba a.s. | F8: Typ rozpočtu
A9: Zpracovatel projektu
A10: Objednatel | C10: Vodohospodářské sdružení Turnov
A11: Dodavatel | C11: . | F11: Zakázkové číslo
A12: Rozpočtoval | F12: Počet listů
A13: ROZPOČTOVÉ NÁKLADY
A14: Základní rozpočtové náklady
B15: HSV celkem | C15: ='01 01.02 Rek'!E14 -> 0
A16: Z | B16: PSV celkem | C16: ='01 01.02 Rek'!F14 -> 0
A17: R | B17: M práce celkem | C17: ='01 01.02 Rek'!H14 -> 0
A18: N | B18: M dodávky celkem | C18: ='01 01.02 Rek'!G14 -> 0
A19: ZRN celkem | C19: =SUM(C15:C18) -> 0
A21: HZS | C21: ='01 01.02 Rek'!I14 -> 0
A22: ZRN+HZS | C22: =C19+C21 -> 0
A23: ZRN+ost.náklady+HZS | C23: =C22+G23 -> 0
A24: Vypracoval | D24: Za zhotovitele | F24: Za objednatele
A25: Jméno : | D25: Jméno : | F25: Jméno :
A26: Datum : | D26: Datum : | F26: Datum :
A28: Podpis : | D28: Podpis: | F28: Podpis:
A30: Základ pro DPH | C30: 21 | D30: % | F30: =C23-F32 -> 0
A31: DPH | C31: =C30 -> 21 | D31: % | F31: =ROUND(PRODUCT(F30,C31/100),0) -> 0
A32: Základ pro DPH | C32: 0 | D32: % | F32: 0
A33: DPH | C33: =C32 -> 0 | D33: % | F33: =ROUND(PRODUCT(F32,C33/100),0) -> 0
A34: CENA ZA OBJEKT CELKEM | F34: =ROUND(SUM(F30:F33),0) -> 0
A36: Poznámka :

Sheet 01 01.02 Rek
A1: Stavba : | C1: 3395 Kanalizace a ČOV Benešov u Semil | G1: Rozpočet : | H1: 01.02
A2: Objekt : | C2: 01 Kanalizace | G2: Stoka "A.1" km 0,000 - 0,532.3
A4: REKAPITULACE STAVEBNÍCH DÍLŮ
B6: Stavební díl | E6: HSV | F6: PSV | G6: Dodávka | H6: Montáž | I6: HZS
A7: ='01 01.02 Pol'!B7 -> 1 | B7: ='01 01.02 Pol'!C7 -> Zemní práce | E7: ='01 01.02 Pol'!BA114 -> 0 | F7: ='01 01.02 Pol'!BB114 -> 0 | G7: ='01 01.02 Pol'!BC114 -> 0 | H7: ='01 01.02 Pol'!BD114 -> 0 | I7: ='01 01.02 Pol'!BE114 -> 0
A8: ='01 01.02 Pol'!B115 -> 21 | B8: ='01 01.02 Pol'!C115 -> Úprava podloží a základ.spáry | E8: ='01 01.02 Pol'!BA119 -> 0 | F8: ='01 01.02 Pol'!BB119 -> 0 | G8: ='01 01.02 Pol'!BC119 -> 0 | H8: ='01 01.02 Pol'!BD119 -> 0 | I8: ='01 01.02 Pol'!BE119 -> 0
A9: ='01 01.02 Pol'!B120 -> 45 | B9: ='01 01.02 Pol'!C120 -> Podkladní a vedlejší konstrukce | E9: ='01 01.02 Pol'!BA153 -> 0 | F9: ='01 01.02 Pol'!BB153 -> 0 | G9: ='01 01.02 Pol'!BC153 -> 0 | H9: ='01 01.02 Pol'!BD153 -> 0 | I9: ='01 01.02 Pol'!BE153 -> 0
A10: ='01 01.02 Pol'!B154 -> 5 | B10: ='01 01.02 Pol'!C154 -> Komunikace | E10: ='01 01.02 Pol'!BA159 -> 0 | F10: ='01 01.02 Pol'!BB159 -> 0 | G10: ='01 01.02 Pol'!BC159 -> 0 | H10: ='01 01.02 Pol'!BD159 -> 0 | I10: ='01 01.02 Pol'!BE159 -> 0
A11: ='01 01.02 Pol'!B160 -> 8 | B11: ='01 01.02 Pol'!C160 -> Trubní vedení | E11: ='01 01.02 Pol'!BA299 -> 0 | F11: ='01 01.02 Pol'!BB299 -> 0 | G11: ='01 01.02 Pol'!BC299 -> 0 | H11: ='01 01.02 Pol'!BD299 -> 0 | I11: ='01 01.02 Pol'!BE299 -> 0
A12: ='01 01.02 Pol'!B300 -> 93 | B12: ='01 01.02 Pol'!C300 -> Dokončovací práce inženýrských staveb | E12: ='01 01.02 Pol'!BA316 -> 0 | F12: ='01 01.02 Pol'!BB316 -> 0 | G12: ='01 01.02 Pol'!BC316 -> 0 | H12: ='01 01.02 Pol'!BD316 -> 0 | I12: ='01 01.02 Pol'!BE316 -> 0
A13: ='01 01.02 Pol'!B317 -> 99 | B13: ='01 01.02 Pol'!C317 -> Staveništní přesun hmot | E13: ='01 01.02 Pol'!BA320 -> 0 | F13: ='01 01.02 Pol'!BB320 -> 0 | G13: ='01 01.02 Pol'!BC320 -> 0 | H13: ='01 01.02 Pol'!BD320 -> 0 | I13: ='01 01.02 Pol'!BE320 -> 0
B14: CELKEM OBJEKT | E14: =SUM(E7:E13) -> 0 | F14: =SUM(F7:F13) -> 0 | G14: =SUM(G7:G13) -> 0 | H14: =SUM(H7:H13) -> 0 | I14: =SUM(I7:I13) -> 0

Sheet 01 01.02 Pol
A1: Položkový rozpočet
A3: Stavba : | C3: 3395 Kanalizace a ČOV Benešov u Semil | E3: Rozpočet: | F3: ='01 01.02 Rek'!H1 -> 01.02
A4: Objekt : | C4: 01 Kanalizace | E4: ='01 01.02 Rek'!G2 -> Stoka "A.1" km 0,000 - 0,532.3
A6: P.č. | B6: Číslo položky | C6: Název položky | D6: MJ | E6: množství | F6: cena / MJ | G6: celkem (Kč) | H6: Jednotková hmotnost | I6: Celková hmotnost | J6: Jednotková dem.hmot. | K6: Celková dem.hmot.
A7: Díl: | B7: 1 | C7: Zemní práce | O7: 1
A8: 1 | B8: 115101201RRX | C8: Přečerpávání nebo převedení splašků a dešť. vod | D8: h | E8: 520 | G8: =E8*F8 -> 0 | H8: 0 | I8: =E8*H8 -> 0 | J8: 0 | K8: =E8*J8 -> 0 | O8: 2 | AA8: 1 | AB8: 1 | AC8: 1 | AZ8: 1 | BA8: =IF(AZ8=1,G8,0) -> 0 | BB8: =IF(AZ8=2,G8,0) -> 0 | BC8: =IF(AZ8=3,G8,0) -> 0 | BD8: =IF(AZ8=4,G8,0) -> 0 | BE8: =IF(AZ8=5,G8,0) -> 0 | CA8: 1 | CB8: 1
C9: Převedení a čerpání splašků nebo dešťových vod dle zvolené technologie zhotovitele stavby. | L9: Převedení a čerpání splašků nebo dešťových vod dle zvolené technologie zhotovitele stavby. | O9: 3
C10: (Množství bude určeno na stavbě dle skutečnosti) | L10: (Množství bude určeno na stavbě dle skutečnosti) | O10: 3
A11: 2 | B11: 130001101RRX | C11: Příplatek za ztížené hloubení v blízkosti vedení | D11: m3 | E11: 188.4844 | G11: =E11*F11 -> 0 | H11: 0 | I11: =E11*H11 -> 0 | J11: 0 | K11: =E11*J11 -> 0 | O11: 2 | AA11: 1 | AB11: 1 | AC11: 1 | AZ11: 1 | BA11: =IF(AZ11=1,G11,0) -> 0 | BB11: =IF(AZ11=2,G11,0) -> 0 | BC11: =IF(AZ11=3,G11,0) -> 0 | BD11: =IF(AZ11=4,G11,0) -> 0 | BE11: =IF(AZ11=5,G11,0) -> 0 | CA11: 1 | CB11: 1
C12: Včetně případných nutných dokopávem a ručního výkopu podél sousedících inženýrských sítí. | L12: Včetně případných nutných dokopávem a ručního výkopu podél sousedících inženýrských sítí. | O12: 3
C13: Součástí položky je i dočasné zajištění inženýrských sítí v prostoru výkopů (potrubí, kabely a pod.) | L13: Součástí položky je i dočasné zajištění inženýrských sítí v prostoru výkopů (potrubí, kabely a pod.) | O13: 3
C14: Stoka "A.1" KT DN300 a PVC DN315: | E14: 0 | M14: Stoka "A.1" KT DN300 a PVC DN315:
C15: Výkopy: | E15: 0 | M15: Výkopy:
C16: V hornině tř. 3 - 5 - 20%:942,4218*0,2 | E16: 188.4844 | M16: V hornině tř. 3 - 5 - 20%:942,4218*0,2
A17: 3 | B17: 132201212R00 | C17: Hloubení rýh š.do 200 cm hor.3 do 1000m3,STROJNĚ | D17: m3 | E17: 565.4531 | G17: =E17*F17 -> 0 | H17: 0 | I17: =E17*H17 -> 0 | J17: 0 | K17: =E17*J17 -> 0 | O17: 2 | AA17: 1 | AB17: 1 | AC17: 1 | AZ17: 1 | BA17: =IF(AZ17=1,G17,0) -> 0 | BB17: =IF(AZ17=2,G17,0) -> 0 | BC17: =IF(AZ17=3,G17,0) -> 0 | BD17: =IF(AZ17=4,G17,0) -> 0 | BE17: =IF(AZ17=5,G17,0) -> 0 | CA17: 1 | CB17: 1
C18: Položka obsahuje hloubení rýh traktorbagrem, naložení výkopku na dopravní prostředek pro svislé, nebo vodorovné přemístění, popř. přemístění výkopku do 3 m (po povrchu území), případné zajištění rypadel polštáři, udržování pracoviště a ochranu výkopiště proti stékání srážkové vody z okolního terénu i s jejím odvodněním, nebo odvedením, přesekání a odstranění kořenů ve výkopišti, odstranění napadávek, urovnání dna výkopu. | L18: Položka obsahuje hloubení rýh traktorbagrem, naložení výkopku na dopravní prostředek pro svislé, nebo vodorovné přemístění, popř. přemístění výkopku do 3 m (po povrchu území), případné zajištění rypadel polštáři, udržování pracoviště a ochranu výkopiště proti stékání srážkové vody z okolního terénu i s jejím odvodněním, nebo odvedením, přesekání a odstranění kořenů ve výkopišti, odstranění napadávek, urovnání dna výkopu. | O18: 3
C19: Stoka "A.1" KT DN300 a PVC DN315: | E19: 0 | M19: Stoka "A.1" KT DN300 a PVC DN315:
C20: Výkopy: | E20: 0 | M20: Výkopy:
C21: Začátek provozního součtu | E21: 0 | M21: Začátek provozního součtu
C22: ŠA-5 - ŠA.1-1:24,40*1,10*(2,75+1,90)/2 | E22: 62.403 | M22: ŠA-5 - ŠA.1-1:24,40*1,10*(2,75+1,90)/2
C23: ŠA.1-1 - ŠA.1-7:(169,70-24,40)*1,10*(1,90+2,21)/2 | E23: 328.4506 | M23: ŠA.1-1 - ŠA.1-7:(169,70-24,40)*1,10*(1,90+2,21)/2
C24: ŠA.1-7 - ŠA.1-8:(189,90-169,70)*1,10*(2,21+2,56)/2 | E24: 52.9947 | M24: ŠA.1-7 - ŠA.1-8:(189,90-169,70)*1,10*(2,21+2,56)/2
C25: ŠA.1-8 - ŠA.1-10:(260,20-189,90)*1,10*(1,40+1,60)/2 | E25: 115.995 | M25: ŠA.1-8 - ŠA.1-10:(260,20-189,90)*1,10*(1,40+1,60)/2
C26: ŠA.1-10 - ŠA.1-11:(266,20-260,20)*1,10*(1,60+4,11)/2 | E26: 18.843 | M26: ŠA.1-10 - ŠA.1-11:(266,20-260,20)*1,10*(1,60+4,11)/2
C27: ŠA.1-11 - ŠA.1-21:(532,30-266,20)*1,1*(1,90+1,90)/2 | E27: 556.149 | M27: ŠA.1-11 - ŠA.1-21:(532,30-266,20)*1,1*(1,90+1,90)/2
C28: Prohloubení pro RŠ:1,60*1,60*0,20*21 | E28: 10.752 | M28: Prohloubení pro RŠ:1,60*1,60*0,20*21
C29: Rozšíření pro RŠ:1,60*(1,60-1,10)*33,16 | E29: 26.528 | M29: Rozšíření pro RŠ:1,60*(1,60-1,10)*33,16
C30: Odpočet objemu konstrukce komunikace:-(245,80*1,10+(1,60*(1,60-1,10)*10))*0,45 | E30: -125.271 | M30: Odpočet objemu konstrukce komunikace:-(245,80*1,10+(1,60*(1,60-1,10)*10))*0,45
C31: -((532,30-245,80)*1,10+1,60*(1,60-1,10*11))*0,35 | E31: -104.4225 | M31: -((532,30-245,80)*1,10+1,60*(1,60-1,10*11))*0,35
C32: Konec provozního součtu | E32: 942.4218 | M32: Konec provozního součtu
C33: V hornině tř. 3 - 60%:942,4218*0,6 | E33: 565.4531 | M33: V hornině tř. 3 - 60%:942,4218*0,6
A34: 4 | B34: 132201219R00 | C34: Přípl.za lepivost,hloubení rýh 200cm,hor.3,STROJNĚ | D34: m3 | E34: 282.7265 | G34: =E34*F34 -> 0 | H34: 0 | I34: =E34*H34 -> 0 | J34: 0 | K34: =E34*J34 -> 0 | O34: 2 | AA34: 1 | AB34: 1 | AC34: 1 | AZ34: 1 | BA34: =IF(AZ34=1,G34,0) -> 0 | BB34: =IF(AZ34=2,G34,0) -> 0 | BC34: =IF(AZ34=3,G34,0) -> 0 | BD34: =IF(AZ34=4,G34,0) -> 0 | BE34: =IF(AZ34=5,G34,0) -> 0 | CA34: 1 | CB34: 1
C35: Stoka "A.1" KT DN300 a PVC DN315: | E35: 0 | M35: Stoka "A.1" KT DN300 a PVC DN315:
C36: Výkopy: | E36: 0 | M36: Výkopy:
C37: V hornině tř. 3 - 60%:942,4218*0,6*0,5 | E37: 282.7265 | M37: V hornině tř. 3 - 60%:942,4218*0,6*0,5
A38: 5 | B38: 132301212R00 | C38: Hloubení rýh š.do 200 cm hor.4 do 1000 m3, STROJNĚ | D38: m3 | E38: 282.7265 | G38: =E38*F38 -> 0 | H38: 0 | I38: =E38*H38 -> 0 | J38: 0 | K38: =E38*J38 -> 0 | O38: 2 | AA38: 1 | AB38: 1 | AC38: 1 | AZ38: 1 | BA38: =IF(AZ38=1,G38,0) -> 0 | BB38: =IF(AZ38=2,G38,0) -> 0 | BC38: =IF(AZ38=3,G38,0) -> 0 | BD38: =IF(AZ38=4,G38,0) -> 0 | BE38: =IF(AZ38=5,G38,0) -> 0 | CA38: 1 | CB38: 1
C39: Položka obsahuje hloubení rýh traktorbagrem, naložení výkopku na dopravní prostředek pro svislé, nebo vodorovné přemístění, popř. přemístění výkopku do 3 m (po povrchu území), případné zajištění rypadel polštáři, udržování pracoviště a ochranu výkopiště proti stékání srážkové vody z okolního terénu i s jejím odvodněním, nebo odvedením, přesekání a odstranění kořenů ve výkopišti, odstranění napadávek, urovnání dna výkopu. | L39: Položka obsahuje hloubení rýh traktorbagrem, naložení výkopku na dopravní prostředek pro svislé, nebo vodorovné přemístění, popř. přemístění výkopku do 3 m (po povrchu území), případné zajištění rypadel polštáři, udržování pracoviště a ochranu výkopiště proti stékání srážkové vody z okolního terénu i s jejím odvodněním, nebo odvedením, přesekání a odstranění kořenů ve výkopišti, odstranění napadávek, urovnání dna výkopu. | O39: 3
C40: Stoka "A.1" KT DN300 a PVC DN315: | E40: 0 | M40: Stoka "A.1" KT DN300 a PVC DN315:
C41: Výkopy: | E41: 0 | M41: Výkopy:
C42: V hornině tř. 4 - 30%:942,4218*0,3 | E42: 282.7265 | M42: V hornině tř. 4 - 30%:942,4218*0,3
A43: 6 | B43: 132301219R00 | C43: Přípl.za lepivost,hloubení rýh 200cm,hor.4,STROJNĚ | D43: m3 | E43: 141.3633 | G43: =E43*F43 -> 0 | H43: 0 | I43: =E43*H43 -> 0 | J43: 0 | K43: =E43*J43 -> 0 | O43: 2 | AA43: 1 | AB43: 1 | AC43: 1 | AZ43: 1 | BA43: =IF(AZ43=1,G43,0) -> 0 | BB43: =IF(AZ43=2,G43,0) -> 0 | BC43: =IF(AZ43=3,G43,0) -> 0 | BD43: =IF(AZ43=4,G43,0) -> 0 | BE43: =IF(AZ43=5,G43,0) -> 0 | CA43: 1 | CB43: 1
C44: Stoka "A.1" KT DN300 a PVC DN315: | E44: 0 | M44: Stoka "A.1" KT DN300 a PVC DN315:
C45: Výkopy: | E45: 0 | M45: Výkopy:
C46: V hornině tř. 4 - 30%:942,4218*0,3*0,5 | E46: 141.3633 | M46: V hornině tř. 4 - 30%:942,4218*0,3*0,5
A47: 7 | B47: 132401211RRX | C47: Hloubení rýh šířky do 200 cm v hor.5 STROJNĚ včetně případného dolamování ve vrstvě do 0,5 m | D47: m3 | E47: 94.2422 | G47: =E47*F47 -> 0 | H47: 0.01041 | I47: =E47*H47 -> 0.981061302 | J47: 0 | K47: =E47*J47 -> 0 | O47: 2 | AA47: 1 | AB47: 1 | AC47: 1 | AZ47: 1 | BA47: =IF(AZ47=1,G47,0) -> 0 | BB47: =IF(AZ47=2,G47,0) -> 0 | BC47: =IF(AZ47=3,G47,0) -> 0 | BD47: =IF(AZ47=4,G47,0) -> 0 | BE47: =IF(AZ47=5,G47,0) -> 0 | CA47: 1 | CB47: 1
C48: Položka obsahuje hloubení rýh traktorbagrem, naložení výkopku na dopravní prostředek pro svislé, nebo vodorovné přemístění, popř. přemístění výkopku do 3 m (po povrchu území), případné zajištění rypadel polštáři, udržování pracoviště a ochranu výkopiště proti stékání srážkové vody z okolního terénu i s jejím odvodněním, nebo odvedením, přesekání a odstranění kořenů ve výkopišti, odstranění napadávek, urovnání dna výkopu.včetně případného dolamování ve vrstvě do 0,5 m | L48: Položka obsahuje hloubení rýh traktorbagrem, naložení výkopku na dopravní prostředek pro svislé, nebo vodorovné přemístění, popř. přemístění výkopku do 3 m (po povrchu území), případné zajištění rypadel polštáři, udržování pracoviště a ochranu výkopiště proti stékání srážkové vody z okolního terénu i s jejím odvodněním, nebo odvedením, přesekání a odstranění kořenů ve výkopišti, odstranění napadávek, urovnání dna výkopu.včetně případného dolamování ve vrstvě do 0,5 m | O48: 3
C49: Stoka "A.1" KT DN300 a PVC DN315: | E49: 0 | M49: Stoka "A.1" KT DN300 a PVC DN315:
C50: Výkopy: | E50: 0 | M50: Výkopy:
C51: V hornině tř. 5 - 10%:942,4218*0,1 | E51: 94.2422 | M51: V hornině tř. 5 - 10%:942,4218*0,1
A52: 8 | B52: 151101101R00 | C52: Pažení a rozepření stěn rýh - příložné - hl.do 2 m | D52: m2 | E52: 1915.617 | G52: =E52*F52 -> 0 | H52: 0.00099 | I52: =E52*H52 -> 1.89646083 | J52: 0 | K52: =E52*J52 -> 0 | O52: 2 | AA52: 1 | AB52: 1 | AC52: 1 | AZ52: 1 | BA52: =IF(AZ52=1,G52,0) -> 0 | BB52: =IF(AZ52=2,G52,0) -> 0 | BC52: =IF(AZ52=3,G52,0) -> 0 | BD52: =IF(AZ52=4,G52,0) -> 0 | BE52: =IF(AZ52=5,G52,0) -> 0 | CA52: 1 | CB52: 1
C53: Stoka "A.1" KT DN300 a PVC DN315: | E53: 0 | M53: Stoka "A.1" KT DN300 a PVC DN315:
C54: Výkopy: | E54: 0 | M54: Výkopy:
C55: ŠA.1-1 - ŠA.1-7:(169,70-24,40)*(1,90+2,21)/2*2 | E55: 597.183 | M55: ŠA.1-1 - ŠA.1-7:(169,70-24,40)*(1,90+2,21)/2*2
C56: ŠA.1-7 - ŠA.1-8:(189,90-169,70)*(2,21+2,56)/2*2 | E56: 96.354 | M56: ŠA.1-7 - ŠA.1-8:(189,90-169,70)*(2,21+2,56)/2*2
C57: ŠA.1-8 - ŠA.1-10:(260,20-189,90)*(1,40+1,60)/2*2 | E57: 210.9 | M57: ŠA.1-8 - ŠA.1-10:(260,20-189,90)*(1,40+1,60)/2*2
C58: ŠA.1-11 - ŠA.1-21:(532,30-266,20)*(1,90+1,90)/2*2 | E58: 1011.18 | M58: ŠA.1-11 - ŠA.1-21:(532,30-266,20)*(1,90+1,90)/2*2
A59: 9 | B59: 151101102R00 | C59: Pažení a rozepření stěn rýh - příložné - hl.do 4 m | D59: m2 | E59: 147.72 | G59: =E59*F59 -> 0 | H59: 0.00086 | I59: =E59*H59 -> 0.1270392 | J59: 0 | K59: =E59*J59 -> 0 | O59: 2 | AA59: 1 | AB59: 1 | AC59: 1 | AZ59: 1 | BA59: =IF(AZ59=1,G59,0) -> 0 | BB59: =IF(AZ59=2,G59,0) -> 0 | BC59: =IF(AZ59=3,G59,0) -> 0 | BD59: =IF(AZ59=4,G59,0) -> 0 | BE59: =IF(AZ59=5,G59,0) -> 0 | CA59: 1 | CB59: 1
C60: Stoka "A.1" KT DN300 a PVC DN315: | E60: 0 | M60: Stoka "A.1" KT DN300 a PVC DN315:
C61: Výkopy: | E61: 0 | M61: Výkopy:
C62: ŠA-5 - ŠA.1-1:24,40*(2,75+1,90)/2*2 | E62: 113.46 | M62: ŠA-5 - ŠA.1-1:24,40*(2,75+1,90)/2*2
C63: ŠA.1-10 - ŠA.1-11:(266,20-260,20)*(1,60+4,11)/2*2 | E63: 34.26 | M63: ŠA.1-10 - ŠA.1-11:(266,20-260,20)*(1,60+4,11)/2*2
A64: 10 | B64: 151101111R00 | C64: Odstranění pažení stěn rýh - příložné - hl. do 2 m | D64: m2 | E64: 1915.617 | G64: =E64*F64 -> 0 | H64: 0 | I64: =E64*H64 -> 0 | J64: 0 | K64: =E64*J64 -> 0 | O64: 2 | AA64: 1 | AB64: 1 | AC64: 1 | AZ64: 1 | BA64: =IF(AZ64=1,G64,0) -> 0 | BB64: =IF(AZ64=2,G64,0) -> 0 | BC64: =IF(AZ64=3,G64,0) -> 0 | BD64: =IF(AZ64=4,G64,0) -> 0 | BE64: =IF(AZ64=5,G64,0) -> 0 | CA64: 1 | CB64: 1
C65: Stoka "A.1" KT DN300 a PVC DN315: | E65: 0 | M65: Stoka "A.1" KT DN300 a PVC DN315:
C66: Výkopy: | E66: 0 | M66: Výkopy:
C67: ŠA.1-1 - ŠA.1-7:(169,70-24,40)*(1,90+2,21)/2*2 | E67: 597.183 | M67: ŠA.1-1 - ŠA.1-7:(169,70-24,40)*(1,90+2,21)/2*2
C68: ŠA.1-7 - ŠA.1-8:(189,90-169,70)*(2,21+2,56)/2*2 | E68: 96.354 | M68: ŠA.1-7 - ŠA.1-8:(189,90-169,70)*(2,21+2,56)/2*2
C69: ŠA.1-8 - ŠA.1-10:(260,20-189,90)*(1,40+1,60)/2*2 | E69: 210.9 | M69: ŠA.1-8 - ŠA.1-10:(260,20-189,90)*(1,40+1,60)/2*2
C70: ŠA.1-11 - ŠA.1-21:(532,30-266,20)*(1,90+1,90)/2*2 | E70: 1011.18 | M70: ŠA.1-11 - ŠA.1-21:(532,30-266,20)*(1,90+1,90)/2*2
A71: 11 | B71: 151101112R00 | C71: Odstranění pažení stěn rýh - příložné - hl. do 4 m | D71: m2 | E71: 147.72 | G71: =E71*F71 -> 0 | H71: 0 | I71: =E71*H71 -> 0 | J71: 0 | K71: =E71*J71 -> 0 | O71: 2 | AA71: 1 | AB71: 1 | AC71: 1 | AZ71: 1 | BA71: =IF(AZ71=1,G71,0) -> 0 | BB71: =IF(AZ71=2,G71,0) -> 0 | BC71: =IF(AZ71=3,G71,0) -> 0 | BD71: =IF(AZ71=4,G71,0) -> 0 | BE71: =IF(AZ71=5,G71,0) -> 0 | CA71: 1 | CB71: 1
C72: Stoka "A.1" KT DN300 a PVC DN315: | E72: 0 | M72: Stoka "A.1" KT DN300 a PVC DN315:
C73: Výkopy: | E73: 0 | M73: Výkopy:
C74: ŠA-5 - ŠA.1-1:24,40*(2,75+1,90)/2*2 | E74: 113.46 | M74: ŠA-5 - ŠA.1-1:24,40*(2,75+1,90)/2*2
C75: ŠA.1-10 - ŠA.1-11:(266,20-260,20)*(1,60+4,11)/2*2 | E75: 34.26 | M75: ŠA.1-10 - ŠA.1-11:(266,20-260,20)*(1,60+4,11)/2*2
A76: 12 | B76: 162701105RSZ | C76: Vodorovné přemístění výkopku z hor.1-7 na skládku zhotovitele | D76: m3 | E76: 942.4218 | G76: =E76*F76 -> 0 | H76: 0 | I76: =E76*H76 -> 0 | J76: 0 | K76: =E76*J76 -> 0 | O76: 2 | AA76: 1 | AB76: 1 | AC76: 1 | AZ76: 1 | BA76: =IF(AZ76=1,G76,0) -> 0 | BB76: =IF(AZ76=2,G76,0) -> 0 | BC76: =IF(AZ76=3,G76,0) -> 0 | BD76: =IF(AZ76=4,G76,0) -> 0 | BE76: =IF(AZ76=5,G76,0) -> 0 | CA76: 1 | CB76: 1
C77: Stoka "A.1" KT DN300 a PVC DN315: | E77: 0 | M77: Stoka "A.1" KT DN300 a PVC DN315:
C78: Výkopy: | E78: 0 | M78: Výkopy:
C79: V hornině tř. 3 - 5 :942,4218 | E79: 942.4218 | M79: V hornině tř. 3 - 5 :942,4218
A80: 13 | B80: 174101101R00 | C80: Zásyp jam, rýh, šachet se zhutněním | D80: m3 | E80: 449.4064 | G80: =E80*F80 -> 0 | H80: 0 | I80: =E80*H80 -> 0 | J80: 0 | K80: =E80*J80 -> 0 | O80: 2 | AA80: 1 | AB80: 1 | AC80: 1 | AZ80: 1 | BA80: =IF(AZ80=1,G80,0) -> 0 | BB80: =IF(AZ80=2,G80,0) -> 0 | BC80: =IF(AZ80=3,G80,0) -> 0 | BD80: =IF(AZ80=4,G80,0) -> 0 | BE80: =IF(AZ80=5,G80,0) -> 0 | CA80: 1 | CB80: 1
C81: Položka obsahuje strojní přemístění materiálu pro zásyp ze vzdálenosti do 10 m od okraje zásypu. | L81: Položka obsahuje strojní přemístění materiálu pro zásyp ze vzdálenosti do 10 m od okraje zásypu. | O81: 3
O82: 3
C83: Stoka "A.1" KT DN300 a PVC DN315: | E83: 0 | M83: Stoka "A.1" KT DN300 a PVC DN315:
C84: Zásypy ŠD fr. 0-63 mm:449,4064 | E84: 449.4064 | M84: Zásypy ŠD fr. 0-63 mm:449,4064
C85: Začátek provozního součtu | E85: 0 | M85: Začátek provozního součtu
C86: Výkopy: | E86: 0 | M86: Výkopy:
C87: V hornině tř. 3 - 5:942,4218 | E87: 942.4218 | M87: V hornině tř. 3 - 5:942,4218
C88: Odpočet objemu lože, potrubí a obsypů:-24,40*0,8855 | E88: -21.6062 | M88: Odpočet objemu lože, potrubí a obsypů:-24,40*0,8855
C89: -(532,30-24,40)*1,10*(0,15+0,315+0,30) | E89: -427.3979 | M89: -(532,30-24,40)*1,10*(0,15+0,315+0,30)
C90: Odpočet objemu RŠ:-44,0113 | E90: -44.0113 | M90: Odpočet objemu RŠ:-44,0113
C91: Konec provozního součtu | E91: 449.4064 | M91: Konec provozního součtu
A92: 14 | B92: 175101101R00 | C92: Obsyp potrubí bez prohození sypaniny | D92: m3 | E92: 316.2155 | G92: =E92*F92 -> 0 | H92: 0 | I92: =E92*H92 -> 0 | J92: 0 | K92: =E92*J92 -> 0 | O92: 2 | AA92: 1 | AB92: 1 | AC92: 1 | AZ92: 1 | BA92: =IF(AZ92=1,G92,0) -> 0 | BB92: =IF(AZ92=2,G92,0) -> 0 | BC92: =IF(AZ92=3,G92,0) -> 0 | BD92: =IF(AZ92=4,G92,0) -> 0 | BE92: =IF(AZ92=5,G92,0) -> 0 | CA92: 1 | CB92: 1
C93: Stoka "A.1" KT DN300 a PVC DN315: | E93: 0 | M93: Stoka "A.1" KT DN300 a PVC DN315:
C94: KT DN300:24,50*0,5005 | E94: 12.2622 | M94: KT DN300:24,50*0,5005
C95: PVC DN315:507,80*(1,10*(0,315+0,30)-0,1575^2*Pi) | E95: 303.9533 | M95: PVC DN315:507,80*(1,10*(0,315+0,30)-0,1575^2*Pi)
A96: 15 | B96: 199000002R00 | C96: Poplatek za skládku horniny 1- 7 č. dle katal. odpadů 17 05 04 | D96: m3 | E96: 942.4218 | G96: =E96*F96 -> 0 | H96: 0 | I96: =E96*H96 -> 0 | J96: 0 | K96: =E96*J96 -> 0 | O96: 2 | AA96: 1 | AB96: 1 | AC96: 1 | AZ96: 1 | BA96: =IF(AZ96=1,G96,0) -> 0 | BB96: =IF(AZ96=2,G96,0) -> 0 | BC96: =IF(AZ96=3,G96,0) -> 0 | BD96: =IF(AZ96=4,G96,0) -> 0 | BE96: =IF(AZ96=5,G96,0) -> 0 | CA96: 1 | CB96: 1
C97: Stoka "A.1" KT DN300 a PVC DN315: | E97: 0 | M97: Stoka "A.1" KT DN300 a PVC DN315:
C98: Výkopy: | E98: 0 | M98: Výkopy:
C99: V hornině tř. 3 - 5 :942,4218 | E99: 942.4218 | M99: V hornině tř. 3 - 5 :942,4218
A100: 16 | B100: 58337308.R | C100: Štěrkopísek frakce 0-2 tř.B | D100: t | E100: 630.1322 | G100: =E100*F100 -> 0 | H100: 1 | I100: =E100*H100 -> 630.1322 | K100: =E100*J100 -> 0 | O100: 2 | AA100: 3 | AB100: 1 | AC100: 58337308.R | AZ100: 1 | BA100: =IF(AZ100=1,G100,0) -> 0 | BB100: =IF(AZ100=2,G100,0) -> 0 | BC100: =IF(AZ100=3,G100,0) -> 0 | BD100: =IF(AZ100=4,G100,0) -> 0 | BE100: =IF(AZ100=5,G100,0) -> 0 | CA100: 3 | CB100: 1
C101: Stoka "A.1" KT DN300 a PVC DN315: | E101: 0 | M101: Stoka "A.1" KT DN300 a PVC DN315:
C102: KT DN300:24,50*0,5005*1,973*1,01 | E102: 24.4354 | M102: KT DN300:24,50*0,5005*1,973*1,01
C103: PVC DN315:507,80*(1,10*(0,315+0,30)-0,1575^2*Pi)*1,973*1,01 | E103: 605.6968 | M103: PVC DN315:507,80*(1,10*(0,315+0,30)-0,1575^2*Pi)*1,973*1,01
A104: 17 | B104: 58344197R | C104: Štěrkodrtě frakce 0-63 A | D104: t | E104: 850.1556 | G104: =E104*F104 -> 0 | H104: 1 | I104: =E104*H104 -> 850.1556 | K104: =E104*J104 -> 0 | O104: 2 | AA104: 3 | AB104: 1 | AC104: 58344197R | AZ104: 1 | BA104: =IF(AZ104=1,G104,0) -> 0 | BB104: =IF(AZ104=2,G104,0) -> 0 | BC104: =IF(AZ104=3,G104,0) -> 0 | BD104: =IF(AZ104=4,G104,0) -> 0 | BE104: =IF(AZ104=5,G104,0) -> 0 | CA104: 3 | CB104: 1
C105: Stoka "A.1" KT DN300 a PVC DN315: | E105: 0 | M105: Stoka "A.1" KT DN300 a PVC DN315:
C106: Zásypy ŠD fr. 0-63 mm:449,4064*1,873*1,01 | E106: 850.1556 | M106: Zásypy ŠD fr. 0-63 mm:449,4064*1,873*1,01
C107: Začátek provozního součtu | E107: 0 | M107: Začátek provozního součtu
C108: Výkopy: | E108: 0 | M108: Výkopy:
C109: V hornině tř. 3 - 5:942,4218 | E109: 942.4218 | M109: V hornině tř. 3 - 5:942,4218
C110: Odpočet objemu lože, potrubí a obsypů:-24,40*0,8855 | E110: -21.6062 | M110: Odpočet objemu lože, potrubí a obsypů:-24,40*0,8855
C111: -(532,30-24,40)*1,10*(0,15+0,315+0,30) | E111: -427.3979 | M111: -(532,30-24,40)*1,10*(0,15+0,315+0,30)
C112: Odpočet objemu RŠ:-44,0113 | E112: -44.0113 | M112: Odpočet objemu RŠ:-44,0113
C113: Konec provozního součtu | E113: 449.4064 | M113: Konec provozního součtu
B114: Celkem za | C114: 1 Zemní práce | G114: =SUM(G7:G113) -> 0 | I114: =SUM(I7:I113) -> 1483.292361 | K114: =SUM(K7:K113) -> 0 | O114: 4 | BA114: =SUM(BA7:BA113) -> 0 | BB114: =SUM(BB7:BB113) -> 0 | BC114: =SUM(BC7:BC113) -> 0 | BD114: =SUM(BD7:BD113) -> 0 | BE114: =SUM(BE7:BE113) -> 0
A115: Díl: | B115: 21 | C115: Úprava podloží a základ.spáry | O115: 1
A116: 18 | B116: 212810010RAC | C116: Trativody z PVC drenážních flexibilních trubek lože štěrkopísek a obsyp kamenivo, trubky d 100 mm | D116: m | E116: 278.04 | G116: =E116*F116 -> 0 | H116: 0.43651 | I116: =E116*H116 -> 121.3672404 | J116: 0 | K116: =E116*J116 -> 0 | O116: 2 | AA116: 1 | AB116: 1 | AC116: 1 | AZ116: 1 | BA116: =IF(AZ116=1,G116,0) -> 0 | BB116: =IF(AZ116=2,G116,0) -> 0 | BC116: =IF(AZ116=3,G116,0) -> 0 | BD116: =IF(AZ116=4,G116,0) -> 0 | BE116: =IF(AZ116=5,G116,0) -> 0 | CA116: 1 | CB116: 1
C117: Stoka "A.1" KT DN300 a PVC DN315: | E117: 0 | M117: Stoka "A.1" KT DN300 a PVC DN315:
C118: Drenáž DN100:24,50+507,08*0,5 | E118: 278.04 | M118: Drenáž DN100:24,50+507,08*0,5
B119: Celkem za | C119: 21 Úprava podloží a základ.spáry | G119: =SUM(G115:G118) -> 0 | I119: =SUM(I115:I118) -> 121.3672404 | K119: =SUM(K115:K118) -> 0 | O119: 4 | BA119: =SUM(BA115:BA118) -> 0 | BB119: =SUM(BB115:BB118) -> 0 | BC119: =SUM(BC115:BC118) -> 0 | BD119: =SUM(BD115:BD118) -> 0 | BE119: =SUM(BE115:BE118) -> 0
A120: Díl: | B120: 45 | C120: Podkladní a vedlejší konstrukce | O120: 1
A121: 19 | B121: 451572111R00 | C121: Lože pod potrubí z kameniva těženého 0 - 4 mm | D121: m3 | E121: 83.787 | G121: =E121*F121 -> 0 | H121: 0.43051 | I121: =E121*H121 -> 36.07114137 | J121: 0 | K121: =E121*J121 -> 0 | O121: 2 | AA121: 1 | AB121: 1 | AC121: 1 | AZ121: 1 | BA121: =IF(AZ121=1,G121,0) -> 0 | BB121: =IF(AZ121=2,G121,0) -> 0 | BC121: =IF(AZ121=3,G121,0) -> 0 | BD121: =IF(AZ121=4,G121,0) -> 0 | BE121: =IF(AZ121=5,G121,0) -> 0 | CA121: 1 | CB121: 1
C122: Stoka "A.1" KT DN300 a PVC DN315: | E122: 0 | M122: Stoka "A.1" KT DN300 a PVC DN315:
C123: PVC DN315:507,80*1,10*0,15 | E123: 83.787 | M123: PVC DN315:507,80*1,10*0,15
A124: 20 | B124: 452112111R00 | C124: Osazení beton. prstenců pod poklopy,výšky do100 mm | D124: kus | E124: 16 | G124: =E124*F124 -> 0 | H124: 0.0066 | I124: =E124*H124 -> 0.1056 | J124: 0 | K124: =E124*J124 -> 0 | O124: 2 | AA124: 1 | AB124: 1 | AC124: 1 | AZ124: 1 | BA124: =IF(AZ124=1,G124,0) -> 0 | BB124: =IF(AZ124=2,G124,0) -> 0 | BC124: =IF(AZ124=3,G124,0) -> 0 | BD124: =IF(AZ124=4,G124,0) -> 0 | BE124: =IF(AZ124=5,G124,0) -> 0 | CA124: 1 | CB124: 1
C125: Volba položky se řídí výškou prstence nebo rámu. V položkách nejsou zakalkulovány náklady na dodávku betonových výrobků; | L125: Volba položky se řídí výškou prstence nebo rámu. V položkách nejsou zakalkulovány náklady na dodávku betonových výrobků; | O125: 3
C126: Stoka "A.1" KT DN300 a PVC DN315: | E126: 0 | M126: Stoka "A.1" KT DN300 a PVC DN315:
C127: VP40:5 | E127: 5 | M127: VP40:5
C128: VP60:1 | E128: 1 | M128: VP60:1
C129: VP80:5 | E129: 5 | M129: VP80:5
C130: VP100:5 | E130: 5 | M130: VP100:5
A131: 21 | B131: 452112121R00 | C131: Osazení beton. prstenců pod poklopy,výšky do200 mm | D131: kus | E131: 12 | G131: =E131*F131 -> 0 | H131: 0.0066 | I131: =E131*H131 -> 0.0792 | J131: 0 | K131: =E131*J131 -> 0 | O131: 2 | AA131: 1 | AB131: 1 | AC131: 1 | AZ131: 1 | BA131: =IF(AZ131=1,G131,0) -> 0 | BB131: =IF(AZ131=2,G131,0) -> 0 | BC131: =IF(AZ131=3,G131,0) -> 0 | BD131: =IF(AZ131=4,G131,0) -> 0 | BE131: =IF(AZ131=5,G131,0) -> 0 | CA131: 1 | CB131: 1
C132: Stoka "A.1" KT DN300 a PVC DN315: | E132: 0 | M132: Stoka "A.1" KT DN300 a PVC DN315:
C133: VP120:12 | E133: 12 | M133: VP120:12
A134: 22 | B134: 452312131R00 | C134: Sedlové lože pod potrubí z betonu C 12/15 | D134: m3 | E134: 7.007 | G134: =E134*F134 -> 0 | H134: 2.5 | I134: =E134*H134 -> 17.5175 | J134: 0 | K134: =E134*J134 -> 0 | O134: 2 | AA134: 1 | AB134: 1 | AC134: 1 | AZ134: 1 | BA134: =IF(AZ134=1,G134,0) -> 0 | BB134: =IF(AZ134=2,G134,0) -> 0 | BC134: =IF(AZ134=3,G134,0) -> 0 | BD134: =IF(AZ134=4,G134,0) -> 0 | BE134: =IF(AZ134=5,G134,0) -> 0 | CA134: 1 | CB134: 1
C135: Položka je určena pro práce v otevřeném výkopu | L135: Položka je určena pro práce v otevřeném výkopu | O135: 3
C136: Stoka "A.1" KT DN300 a PVC DN315: | E136: 0 | M136: Stoka "A.1" KT DN300 a PVC DN315:
C137: KT DN300:24,50*0,286 | E137: 7.007 | M137: KT DN300:24,50*0,286
A138: 23 | B138: 59224346.A.R | C138: Prstenec vyrovn šachetní TBW-Q.1 63/4 | D138: kus | E138: 5.05 | G138: =E138*F138 -> 0 | H138: 0.028 | I138: =E138*H138 -> 0.1414 | K138: =E138*J138 -> 0 | O138: 2 | AA138: 3 | AB138: 1 | AC138: 59224346.A.R | AZ138: 1 | BA138: =IF(AZ138=1,G138,0) -> 0 | BB138: =IF(AZ138=2,G138,0) -> 0 | BC138: =IF(AZ138=3,G138,0) -> 0 | BD138: =IF(AZ138=4,G138,0) -> 0 | BE138: =IF(AZ138=5,G138,0) -> 0 | CA138: 3 | CB138: 1
C139: Stoka "A.1" KT DN300 a PVC DN315: | E139: 0 | M139: Stoka "A.1" KT DN300 a PVC DN315:
C140: VP40:5*1,01 | E140: 5.05 | M140: VP40:5*1,01
A141: 24 | B141: 59224347.A.R | C141: Prstenec vyrovn šachetní TBW-Q.1 63/6 | D141: kus | E141: 1.01 | G141: =E141*F141 -> 0 | H141: 0.04 | I141: =E141*H141 -> 0.0404 | K141: =E141*J141 -> 0 | O141: 2 | AA141: 3 | AB141: 1 | AC141: 59224347.A.R | AZ141: 1 | BA141: =IF(AZ141=1,G141,0) -> 0 | BB141: =IF(AZ141=2,G141,0) -> 0 | BC141: =IF(AZ141=3,G141,0) -> 0 | BD141: =IF(AZ141=4,G141,0) -> 0 | BE141: =IF(AZ141=5,G141,0) -> 0 | CA141: 3 | CB141: 1
C142: Stoka "A.1" KT DN300 a PVC DN315: | E142: 0 | M142: Stoka "A.1" KT DN300 a PVC DN315:
C143: VP60:1*1,01 | E143: 1.01 | M143: VP60:1*1,01
A144: 25 | B144: 59224348.A.R | C144: Prstenec vyrovn šachetní TBW-Q.1 63/8 | D144: kus | E144: 5.05 | G144: =E144*F144 -> 0 | H144: 0.054 | I144: =E144*H144 -> 0.2727 | K144: =E144*J144 -> 0 | O144: 2 | AA144: 3 | AB144: 1 | AC144: 59224348.A.R | AZ144: 1 | BA144: =IF(AZ144=1,G144,0) -> 0 | BB144: =IF(AZ144=2,G144,0) -> 0 | BC144: =IF(AZ144=3,G144,0) -> 0 | BD144: =IF(AZ144=4,G144,0) -> 0 | BE144: =IF(AZ144=5,G144,0) -> 0 | CA144: 3 | CB144: 1
C145: Stoka "A.1" KT DN300 a PVC DN315: | E145: 0 | M145: Stoka "A.1" KT DN300 a PVC DN315:
C146: VP80:5*1,01 | E146: 5.05 | M146: VP80:5*1,01
A147: 26 | B147: 59224349.A.R | C147: Prstenec vyrovn šachetní TBW-Q.1 63/10 | D147: kus | E147: 5.05 | G147: =E147*F147 -> 0 | H147: 0.068 | I147: =E147*H147 -> 0.3434 | K147: =E147*J147 -> 0 | O147: 2 | AA147: 3 | AB147: 1 | AC147: 59224349.A.R | AZ147: 1 | BA147: =IF(AZ147=1,G147,0) -> 0 | BB147: =IF(AZ147=2,G147,0) -> 0 | BC147: =IF(AZ147=3,G147,0) -> 0 | BD147: =IF(AZ147=4,G147,0) -> 0 | BE147: =IF(AZ147=5,G147,0) -> 0 | CA147: 3 | CB147: 1
C148: Stoka "A.1" KT DN300 a PVC DN315: | E148: 0 | M148: Stoka "A.1" KT DN300 a PVC DN315:
C149: VP H100:5*1,01 | E149: 5.05 | M149: VP H100:5*1,01
A150: 27 | B150: 59224350.A.R | C150: Prstenec vyrovn šachetní TBW-Q.1 63/12 | D150: kus | E150: 12.12 | G150: =E150*F150 -> 0 | H150: 0.081 | I150: =E150*H150 -> 0.98172 | K150: =E150*J150 -> 0 | O150: 2 | AA150: 3 | AB150: 1 | AC150: 59224350.A.R | AZ150: 1 | BA150: =IF(AZ150=1,G150,0) -> 0 | BB150: =IF(AZ150=2,G150,0) -> 0 | BC150: =IF(AZ150=3,G150,0) -> 0 | BD150: =IF(AZ150=4,G150,0) -> 0 | BE150: =IF(AZ150=5,G150,0) -> 0 | CA150: 3 | CB150: 1
C151: Stoka "A.1" KT DN300 a PVC DN315: | E151: 0 | M151: Stoka "A.1" KT DN300 a PVC DN315:
C152: VP H120:12*1,01 | E152: 12.12 | M152: VP H120:12*1,01
B153: Celkem za | C153: 45 Podkladní a vedlejší konstrukce | G153: =SUM(G120:G152) -> 0 | I153: =SUM(I120:I152) -> 55.55306137 | K153: =SUM(K120:K152) -> 0 | O153: 4 | BA153: =SUM(BA120:BA152) -> 0 | BB153: =SUM(BB120:BB152) -> 0 | BC153: =SUM(BC120:BC152) -> 0 | BD153: =SUM(BD120:BD152) -> 0 | BE153: =SUM(BE120:BE152) -> 0
A154: Díl: | B154: 5 | C154: Komunikace | O154: 1
A155: 28 | B155: 572701119RRX | C155: Provizorní zásyp rýh kam. hrubě drceným nebo recyk s následným odstraněním a odvozem | D155: m3 | E155: 229.6935 | G155: =E155*F155 -> 0 | H155: 1.4805 | I155: =E155*H155 -> 340.0612268 | J155: 0 | K155: =E155*J155 -> 0 | O155: 2 | AA155: 1 | AB155: 1 | AC155: 1 | AZ155: 1 | BA155: =IF(AZ155=1,G155,0) -> 0 | BB155: =IF(AZ155=2,G155,0) -> 0 | BC155: =IF(AZ155=3,G155,0) -> 0 | BD155: =IF(AZ155=4,G155,0) -> 0 | BE155: =IF(AZ155=5,G155,0) -> 0 | CA155: 1 | CB155: 1
C156: Stoka "A.1" KT DN300 a PVC DN315: | E156: 0 | M156: Stoka "A.1" KT DN300 a PVC DN315:
C157: Objemu konstrukce komunikace:(245,80*1,10+(1,60*(1,60-1,10)*10))*0,45 | E157: 125.271 | M157: Objemu konstrukce komunikace:(245,80*1,10+(1,60*(1,60-1,10)*10))*0,45
C158: ((532,30-245,80)*1,10+1,60*(1,60-1,10*11))*0,35 | E158: 104.4225 | M158: ((532,30-245,80)*1,10+1,60*(1,60-1,10*11))*0,35
B159: Celkem za | C159: 5 Komunikace | G159: =SUM(G154:G158) -> 0 | I159: =SUM(I154:I158) -> 340.0612268 | K159: =SUM(K154:K158) -> 0 | O159: 4 | BA159: =SUM(BA154:BA158) -> 0 | BB159: =SUM(BB154:BB158) -> 0 | BC159: =SUM(BC154:BC158) -> 0 | BD159: =SUM(BD154:BD158) -> 0 | BE159: =SUM(BE154:BE158) -> 0
A160: Díl: | B160: 8 | C160: Trubní vedení | O160: 1
A161: 29 | B161: 831372121R00 | C161: Montáž trub kameninových, pryž. kroužek, DN 300 | D161: m | E161: 24.5 | G161: =E161*F161 -> 0 | H161: 4e-05 | I161: =E161*H161 -> 0.00098 | J161: 0 | K161: =E161*J161 -> 0 | O161: 2 | AA161: 1 | AB161: 1 | AC161: 1 | AZ161: 1 | BA161: =IF(AZ161=1,G161,0) -> 0 | BB161: =IF(AZ161=2,G161,0) -> 0 | BC161: =IF(AZ161=3,G161,0) -> 0 | BD161: =IF(AZ161=4,G161,0) -> 0 | BE161: =IF(AZ161=5,G161,0) -> 0 | CA161: 1 | CB161: 1
C162: Položka je určena pro montáž potrubí z trub kameninových s polyuretanovým spojem v otevřeném výkopu ve sklonu do 20 % včetně případné potřeby krácení trub. | L162: Položka je určena pro montáž potrubí z trub kameninových s polyuretanovým spojem v otevřeném výkopu ve sklonu do 20 % včetně případné potřeby krácení trub. | O162: 3
C163: Stoka "A.1" KT DN300 a PVC DN315: | E163: 0 | M163: Stoka "A.1" KT DN300 a PVC DN315:
C164: KT DN300:24,50 | E164: 24.5 | M164: KT DN300:24,50
A165: 30 | B165: 871373121R00 | C165: Montáž trub z plastu, gumový kroužek, DN 300 | D165: m | E165: 507.8 | G165: =E165*F165 -> 0 | H165: 1e-05 | I165: =E165*H165 -> 0.005078 | J165: 0 | K165: =E165*J165 -> 0 | O165: 2 | AA165: 1 | AB165: 1 | AC165: 1 | AZ165: 1 | BA165: =IF(AZ165=1,G165,0) -> 0 | BB165: =IF(AZ165=2,G165,0) -> 0 | BC165: =IF(AZ165=3,G165,0) -> 0 | BD165: =IF(AZ165=4,G165,0) -> 0 | BE165: =IF(AZ165=5,G165,0) -> 0 | CA165: 1 | CB165: 1
C166: Stoka "A.1" KT DN300 a PVC DN315: | E166: 0 | M166: Stoka "A.1" KT DN300 a PVC DN315:
C167: PVC DN315:507,80 | E167: 507.8 | M167: PVC DN315:507,80
A168: 31 | B168: 877373121R00 | C168: Montáž tvarovek odboč. plast. gum. kroužek DN 300 | D168: kus | E168: 6 | G168: =E168*F168 -> 0 | H168: 5e-05 | I168: =E168*H168 -> 0.0003 | J168: 0 | K168: =E168*J168 -> 0 | O168: 2 | AA168: 1 | AB168: 1 | AC168: 1 | AZ168: 1 | BA168: =IF(AZ168=1,G168,0) -> 0 | BB168: =IF(AZ168=2,G168,0) -> 0 | BC168: =IF(AZ168=3,G168,0) -> 0 | BD168: =IF(AZ168=4,G168,0) -> 0 | BE168: =IF(AZ168=5,G168,0) -> 0 | CA168: 1 | CB168: 1
C169: Položka je určena pro montáž tvarovek odbočných na potrubí z kanalizačních trub z plastu těsněných gumovým kroužkem v otevřeném výkopu. | L169: Položka je určena pro montáž tvarovek odbočných na potrubí z kanalizačních trub z plastu těsněných gumovým kroužkem v otevřeném výkopu. | O169: 3
C170: Stoka "A.1" KT DN300 a PVC DN315: | E170: 0 | M170: Stoka "A.1" KT DN300 a PVC DN315:
C171: PVC DN315: | E171: 0 | M171: PVC DN315:
C172: Odbočka PVC DN315/160:4 | E172: 4 | M172: Odbočka PVC DN315/160:4
C173: Odbočka PVC DN315/200:2 | E173: 2 | M173: Odbočka PVC DN315/200:2
A174: 32 | B174: 892601154R00 | C174: Čištění kanalizační stoky do DN 500, nad 100 m | D174: m | E174: 532.3 | G174: =E174*F174 -> 0 | H174: 0 | I174: =E174*H174 -> 0 | J174: 0 | K174: =E174*J174 -> 0 | O174: 2 | AA174: 1 | AB174: 0 | AC174: 0 | AZ174: 1 | BA174: =IF(AZ174=1,G174,0) -> 0 | BB174: =IF(AZ174=2,G174,0) -> 0 | BC174: =IF(AZ174=3,G174,0) -> 0 | BD174: =IF(AZ174=4,G174,0) -> 0 | BE174: =IF(AZ174=5,G174,0) -> 0 | CA174: 1 | CB174: 0
C175: V položce je zakalkulováno: | L175: V položce je zakalkulováno: | O175: 3
C176: a) otevření a uzavření revizních šachet a čisticích kusů | L176: a) otevření a uzavření revizních šachet a čisticích kusů | O176: 3
C177: b) natažení vysokotlakých hadic k místu odkud se bude kanalizace čistit | L177: b) natažení vysokotlakých hadic k místu odkud se bude kanalizace čistit | O177: 3
C178: c) vyčištění potrubí tlakovou vodou nebo motorovým pérem. | L178: c) vyčištění potrubí tlakovou vodou nebo motorovým pérem. | O178: 3
C179: Stoka "A.1" KT DN300 a PVC DN315: | E179: 0 | M179: Stoka "A.1" KT DN300 a PVC DN315:
C180: KT DN300:24,50 | E180: 24.5 | M180: KT DN300:24,50
C181: PVC DN315:507,80 | E181: 507.8 | M181: PVC DN315:507,80
A182: 33 | B182: 892855115R00 | C182: Kontrola kanalizace TV kamerou do 500 m | D182: m | E182: 1064.6 | G182: =E182*F182 -> 0 | H182: 0 | I182: =E182*H182 -> 0 | J182: 0 | K182: =E182*J182 -> 0 | O182: 2 | AA182: 1 | AB182: 1 | AC182: 1 | AZ182: 1 | BA182: =IF(AZ182=1,G182,0) -> 0 | BB182: =IF(AZ182=2,G182,0) -> 0 | BC182: =IF(AZ182=3,G182,0) -> 0 | BD182: =IF(AZ182=4,G182,0) -> 0 | BE182: =IF(AZ182=5,G182,0) -> 0 | CA182: 1 | CB182: 1
C183: Provedení kaberové prohlídky včetně dodání elektronického záznamu na CD zadavateli a tištěné dokumentace průběhu kamerové prohlídky | L183: Provedení kaberové prohlídky včetně dodání elektronického záznamu na CD zadavateli a tištěné dokumentace průběhu kamerové prohlídky | O183: 3
C184: Stoka "A.1" KT DN300 a PVC DN315: | E184: 0 | M184: Stoka "A.1" KT DN300 a PVC DN315:
C185: KT DN300:24,50*2 | E185: 49 | M185: KT DN300:24,50*2
C186: PVC DN315:507,80*2 | E186: 1015.6 | M186: PVC DN315:507,80*2
A187: 34 | B187: 894421111RT1 | C187: Osazení betonových dílců šachet skruže rovné, na kroužek, do 0,5 t | D187: kus | E187: 19 | G187: =E187*F187 -> 0 | H187: 0 | I187: =E187*H187 -> 0 | J187: 0 | K187: =E187*J187 -> 0 | O187: 2 | AA187: 1 | AB187: 1 | AC187: 1 | AZ187: 1 | BA187: =IF(AZ187=1,G187,0) -> 0 | BB187: =IF(AZ187=2,G187,0) -> 0 | BC187: =IF(AZ187=3,G187,0) -> 0 | BD187: =IF(AZ187=4,G187,0) -> 0 | BE187: =IF(AZ187=5,G187,0) -> 0 | CA187: 1 | CB187: 1
C188: Položka je určena pro osazení betonových dílců šachet dle DIN 4034, skruže rovné na kroužek, hmotnost do 0,5 t. | L188: Položka je určena pro osazení betonových dílců šachet dle DIN 4034, skruže rovné na kroužek, hmotnost do 0,5 t. | O188: 3
C189: V položce nejsou zakalkulovány náklady na dodání betonových dílců; dílce se oceňují ve specifikaci. | L189: V položce nejsou zakalkulovány náklady na dodání betonových dílců; dílce se oceňují ve specifikaci. | O189: 3
C190: Stoka "A.1" KT DN300 a PVC DN315: | E190: 0 | M190: Stoka "A.1" KT DN300 a PVC DN315:
C191: Skruž H250:12 | E191: 12 | M191: Skruž H250:12
C192: Skruž H500:7 | E192: 7 | M192: Skruž H500:7
A193: 35 | B193: 894421112RT1 | C193: Osazení betonových dílců šachet skruže rovné, na kroužek, do 1,4 t | D193: kus | E193: 2 | G193: =E193*F193 -> 0 | H193: 0 | I193: =E193*H193 -> 0 | J193: 0 | K193: =E193*J193 -> 0 | O193: 2 | AA193: 1 | AB193: 1 | AC193: 1 | AZ193: 1 | BA193: =IF(AZ193=1,G193,0) -> 0 | BB193: =IF(AZ193=2,G193,0) -> 0 | BC193: =IF(AZ193=3,G193,0) -> 0 | BD193: =IF(AZ193=4,G193,0) -> 0 | BE193: =IF(AZ193=5,G193,0) -> 0 | CA193: 1 | CB193: 1
C194: Položka je určena pro osazení betonových dílců šachet dle DIN 4034, skruže rovné na kroužek, hmotnost přes 0,5 do 1,4 t. | L194: Položka je určena pro osazení betonových dílců šachet dle DIN 4034, skruže rovné na kroužek, hmotnost přes 0,5 do 1,4 t. | O194: 3
C195: V položce nejsou zakalkulovány náklady na dodání betonových dílců; dílce se oceňují ve specifikaci. | L195: V položce nejsou zakalkulovány náklady na dodání betonových dílců; dílce se oceňují ve specifikaci. | O195: 3
C196: Stoka "A.1" KT DN300 a PVC DN315: | E196: 0 | M196: Stoka "A.1" KT DN300 a PVC DN315:
C197: Skruž H1000:2 | E197: 2 | M197: Skruž H1000:2
A198: 36 | B198: 894422111RT1 | C198: Osazení betonových dílců šachet skruže přechodové, na kroužek | D198: kus | E198: 19 | G198: =E198*F198 -> 0 | H198: 0 | I198: =E198*H198 -> 0 | J198: 0 | K198: =E198*J198 -> 0 | O198: 2 | AA198: 1 | AB198: 1 | AC198: 1 | AZ198: 1 | BA198: =IF(AZ198=1,G198,0) -> 0 | BB198: =IF(AZ198=2,G198,0) -> 0 | BC198: =IF(AZ198=3,G198,0) -> 0 | BD198: =IF(AZ198=4,G198,0) -> 0 | BE198: =IF(AZ198=5,G198,0) -> 0 | CA198: 1 | CB198: 1
C199: Položka je určena pro osazení betonových dílců šachet dle DIN 4034, skruže přechodové, zákrytové, kónusy,... na kroužek. | L199: Položka je určena pro osazení betonových dílců šachet dle DIN 4034, skruže přechodové, zákrytové, kónusy,... na kroužek. | O199: 3
C200: Stoka "A.1" KT DN300 a PVC DN315: | E200: 0 | M200: Stoka "A.1" KT DN300 a PVC DN315:
C201: Kónus H580:19 | E201: 19 | M201: Kónus H580:19
A202: 37 | B202: 894423111RT1 | C202: Osazení betonových dílců šachet do 2,0 t šachtová dna, na kroužek, do 2,0 t | D202: kus | E202: 19 | G202: =E202*F202 -> 0 | H202: 0 | I202: =E202*H202 -> 0 | J202: 0 | K202: =E202*J202 -> 0 | O202: 2 | AA202: 1 | AB202: 1 | AC202: 1 | AZ202: 1 | BA202: =IF(AZ202=1,G202,0) -> 0 | BB202: =IF(AZ202=2,G202,0) -> 0 | BC202: =IF(AZ202=3,G202,0) -> 0 | BD202: =IF(AZ202=4,G202,0) -> 0 | BE202: =IF(AZ202=5,G202,0) -> 0 | CA202: 1 | CB202: 1
... 118 more rows

Sheet 01 01.03 KL
A1: POLOŽKOVÝ ROZPOČET
A2: Rozpočet | C2: 01.03 | D2: Stoka "A.1.1" km 0,000 - 0,216.9 | F2: JKSO | G2: 827.21.A3
A4: Objekt | F4: SKP
A5: 01 | C5: Kanalizace | F5: Měrná jednotka | G5: m
A6: Stavba | F6: Počet jednotek | G6: 0
A7: 3395 | C7: Kanalizace a ČOV Benešov u Semil | F7: Náklady na m.j. | G7: =IF(G6=0,,ROUND((F30+F32)/G6,1)) -> 0
A8: Projektant | C8: Vodohospodářský rozvoj a výstavba a.s. | F8: Typ rozpočtu
A9: Zpracovatel projektu
A10: Objednatel | C10: Vodohospodářské sdružení Turnov
A11: Dodavatel | C11: . | F11: Zakázkové číslo
A12: Rozpočtoval | F12: Počet listů
A13: ROZPOČTOVÉ NÁKLADY
A14: Základní rozpočtové náklady
B15: HSV celkem | C15: ='01 01.03 Rek'!E14 -> 0
A16: Z | B16: PSV celkem | C16: ='01 01.03 Rek'!F14 -> 0
A17: R | B17: M práce celkem | C17: ='01 01.03 Rek'!H14 -> 0
A18: N | B18: M dodávky celkem | C18: ='01 01.03 Rek'!G14 -> 0
A19: ZRN celkem | C19: =SUM(C15:C18) -> 0
A21: HZS | C21: ='01 01.03 Rek'!I14 -> 0
A22: ZRN+HZS | C22: =C19+C21 -> 0
A23: ZRN+ost.náklady+HZS | C23: =C22+G23 -> 0
A24: Vypracoval | D24: Za zhotovitele | F24: Za objednatele
A25: Jméno : | D25: Jméno : | F25: Jméno :
A26: Datum : | D26: Datum : | F26: Datum :
A28: Podpis : | D28: Podpis: | F28: Podpis:
A30: Základ pro DPH | C30: 21 | D30: % | F30: =C23-F32 -> 0
A31: DPH | C31: =C30 -> 21 | D31: % | F31: =ROUND(PRODUCT(F30,C31/100),0) -> 0
A32: Základ pro DPH | C32: 0 | D32: % | F32: 0
A33: DPH | C33: =C32 -> 0 | D33: % | F33: =ROUND(PRODUCT(F32,C33/100),0) -> 0
A34: CENA ZA OBJEKT CELKEM | F34: =ROUND(SUM(F30:F33),0) -> 0
A36: Poznámka :

Sheet 01 01.03 Rek
A1: Stavba : | C1: 3395 Kanalizace a ČOV Benešov u Semil | G1: Rozpočet : | H1: 01.03
A2: Objekt : | C2: 01 Kanalizace | G2: Stoka "A.1.1" km 0,000 - 0,216.9
A4: REKAPITULACE STAVEBNÍCH DÍLŮ
B6: Stavební díl | E6: HSV | F6: PSV | G6: Dodávka | H6: Montáž | I6: HZS
A7: ='01 01.03 Pol'!B7 -> 1 | B7: ='01 01.03 Pol'!C7 -> Zemní práce | E7: ='01 01.03 Pol'!BA86 -> 0 | F7: ='01 01.03 Pol'!BB86 -> 0 | G7: ='01 01.03 Pol'!BC86 -> 0 | H7: ='01 01.03 Pol'!BD86 -> 0 | I7: ='01 01.03 Pol'!BE86 -> 0
A8: ='01 01.03 Pol'!B87 -> 21 | B8: ='01 01.03 Pol'!C87 -> Úprava podloží a základ.spáry | E8: ='01 01.03 Pol'!BA91 -> 0 | F8: ='01 01.03 Pol'!BB91 -> 0 | G8: ='01 01.03 Pol'!BC91 -> 0 | H8: ='01 01.03 Pol'!BD91 -> 0 | I8: ='01 01.03 Pol'!BE91 -> 0
A9: ='01 01.03 Pol'!B92 -> 45 | B9: ='01 01.03 Pol'!C92 -> Podkladní a vedlejší konstrukce | E9: ='01 01.03 Pol'!BA120 -> 0 | F9: ='01 01.03 Pol'!BB120 -> 0 | G9: ='01 01.03 Pol'!BC120 -> 0 | H9: ='01 01.03 Pol'!BD120 -> 0 | I9: ='01 01.03 Pol'!BE120 -> 0
A10: ='01 01.03 Pol'!B121 -> 5 | B10: ='01 01.03 Pol'!C121 -> Komunikace | E10: ='01 01.03 Pol'!BA125 -> 0 | F10: ='01 01.03 Pol'!BB125 -> 0 | G10: ='01 01.03 Pol'!BC125 -> 0 | H10: ='01 01.03 Pol'!BD125 -> 0 | I10: ='01 01.03 Pol'!BE125 -> 0
A11: ='01 01.03 Pol'!B126 -> 8 | B11: ='01 01.03 Pol'!C126 -> Trubní vedení | E11: ='01 01.03 Pol'!BA193 -> 0 | F11: ='01 01.03 Pol'!BB193 -> 0 | G11: ='01 01.03 Pol'!BC193 -> 0 | H11: ='01 01.03 Pol'!BD193 -> 0 | I11: ='01 01.03 Pol'!BE193 -> 0
A12: ='01 01.03 Pol'!B194 -> 93 | B12: ='01 01.03 Pol'!C194 -> Dokončovací práce inženýrských staveb | E12: ='01 01.03 Pol'!BA210 -> 0 | F12: ='01 01.03 Pol'!BB210 -> 0 | G12: ='01 01.03 Pol'!BC210 -> 0 | H12: ='01 01.03 Pol'!BD210 -> 0 | I12: ='01 01.03 Pol'!BE210 -> 0
A13: ='01 01.03 Pol'!B211 -> 99 | B13: ='01 01.03 Pol'!C211 -> Staveništní přesun hmot | E13: ='01 01.03 Pol'!BA214 -> 0 | F13: ='01 01.03 Pol'!BB214 -> 0 | G13: ='01 01.03 Pol'!BC214 -> 0 | H13: ='01 01.03 Pol'!BD214 -> 0 | I13: ='01 01.03 Pol'!BE214 -> 0
B14: CELKEM OBJEKT | E14: =SUM(E7:E13) -> 0 | F14: =SUM(F7:F13) -> 0 | G14: =SUM(G7:G13) -> 0 | H14: =SUM(H7:H13) -> 0 | I14: =SUM(I7:I13) -> 0

Sheet 01 01.03 Pol
A1: Položkový rozpočet
A3: Stavba : | C3: 3395 Kanalizace a ČOV Benešov u Semil | E3: Rozpočet: | F3: ='01 01.03 Rek'!H1 -> 01.03
A4: Objekt : | C4: 01 Kanalizace | E4: ='01 01.03 Rek'!G2 -> Stoka "A.1.1" km 0,000 - 0,216.9
A6: P.č. | B6: Číslo položky | C6: Název položky | D6: MJ | E6: množství | F6: cena / MJ | G6: celkem (Kč) | H6: Jednotková hmotnost | I6: Celková hmotnost | J6: Jednotková dem.hmot. | K6: Celková dem.hmot.
A7: Díl: | B7: 1 | C7: Zemní práce | O7: 1
A8: 1 | B8: 115101201RRX | C8: Přečerpávání nebo převedení splašků a dešť. vod | D8: h | E8: 200 | G8: =E8*F8 -> 0 | H8: 0 | I8: =E8*H8 -> 0 | J8: 0 | K8: =E8*J8 -> 0 | O8: 2 | AA8: 1 | AB8: 1 | AC8: 1 | AZ8: 1 | BA8: =IF(AZ8=1,G8,0) -> 0 | BB8: =IF(AZ8=2,G8,0) -> 0 | BC8: =IF(AZ8=3,G8,0) -> 0 | BD8: =IF(AZ8=4,G8,0) -> 0 | BE8: =IF(AZ8=5,G8,0) -> 0 | CA8: 1 | CB8: 1
C9: Převedení a čerpání splašků nebo dešťových vod dle zvolené technologie zhotovitele stavby. | L9: Převedení a čerpání splašků nebo dešťových vod dle zvolené technologie zhotovitele stavby. | O9: 3
C10: (Množství bude určeno na stavbě dle skutečnosti) | L10: (Množství bude určeno na stavbě dle skutečnosti) | O10: 3
A11: 2 | B11: 130001101RRX | C11: Příplatek za ztížené hloubení v blízkosti vedení | D11: m3 | E11: 53.8874 | G11: =E11*F11 -> 0 | H11: 0 | I11: =E11*H11 -> 0 | J11: 0 | K11: =E11*J11 -> 0 | O11: 2 | AA11: 1 | AB11: 1 | AC11: 1 | AZ11: 1 | BA11: =IF(AZ11=1,G11,0) -> 0 | BB11: =IF(AZ11=2,G11,0) -> 0 | BC11: =IF(AZ11=3,G11,0) -> 0 | BD11: =IF(AZ11=4,G11,0) -> 0 | BE11: =IF(AZ11=5,G11,0) -> 0 | CA11: 1 | CB11: 1
C12: Včetně případných nutných dokopávem a ručního výkopu podél sousedících inženýrských sítí. | L12: Včetně případných nutných dokopávem a ručního výkopu podél sousedících inženýrských sítí. | O12: 3
C13: Součástí položky je i dočasné zajištění inženýrských sítí v prostoru výkopů (potrubí, kabely a pod.) | L13: Součástí položky je i dočasné zajištění inženýrských sítí v prostoru výkopů (potrubí, kabely a pod.) | O13: 3
C14: Stoka "A.1-1" PVC DN250: | E14: 0 | M14: Stoka "A.1-1" PVC DN250:
C15: Výkopy: | E15: 0 | M15: Výkopy:
C16: V hornině tř. 3 - 5 - 18%:299,3745*0,18 | E16: 53.8874 | M16: V hornině tř. 3 - 5 - 18%:299,3745*0,18
A17: 3 | B17: 132201212R00 | C17: Hloubení rýh š.do 200 cm hor.3 do 1000m3,STROJNĚ | D17: m3 | E17: 179.6247 | G17: =E17*F17 -> 0 | H17: 0 | I17: =E17*H17 -> 0 | J17: 0 | K17: =E17*J17 -> 0 | O17: 2 | AA17: 1 | AB17: 1 | AC17: 1 | AZ17: 1 | BA17: =IF(AZ17=1,G17,0) -> 0 | BB17: =IF(AZ17=2,G17,0) -> 0 | BC17: =IF(AZ17=3,G17,0) -> 0 | BD17: =IF(AZ17=4,G17,0) -> 0 | BE17: =IF(AZ17=5,G17,0) -> 0 | CA17: 1 | CB17: 1
C18: Položka obsahuje hloubení rýh traktorbagrem, naložení výkopku na dopravní prostředek pro svislé, nebo vodorovné přemístění, popř. přemístění výkopku do 3 m (po povrchu území), případné zajištění rypadel polštáři, udržování pracoviště a ochranu výkopiště proti stékání srážkové vody z okolního terénu i s jejím odvodněním, nebo odvedením, přesekání a odstranění kořenů ve výkopišti, odstranění napadávek, urovnání dna výkopu. | L18: Položka obsahuje hloubení rýh traktorbagrem, naložení výkopku na dopravní prostředek pro svislé, nebo vodorovné přemístění, popř. přemístění výkopku do 3 m (po povrchu území), případné zajištění rypadel polštáři, udržování pracoviště a ochranu výkopiště proti stékání srážkové vody z okolního terénu i s jejím odvodněním, nebo odvedením, přesekání a odstranění kořenů ve výkopišti, odstranění napadávek, urovnání dna výkopu. | O18: 3
C19: Stoka "A.1-1" PVC DN250: | E19: 0 | M19: Stoka "A.1-1" PVC DN250:
C20: Výkopy: | E20: 0 | M20: Výkopy:
C21: Začátek provozního součtu | E21: 0 | M21: Začátek provozního součtu
C22: ŠA.1-3 - ŠA.1-1-10:216,90*0,90*(1,90+1,90)/2 | E22: 370.899 | M22: ŠA.1-3 - ŠA.1-1-10:216,90*0,90*(1,90+1,90)/2
C23: Prohloubení pro RŠ:1,60*1,60*0,20*10 | E23: 5.12 | M23: Prohloubení pro RŠ:1,60*1,60*0,20*10
C24: Rozšíření pro RŠ:1,60*(1,60-0,90)*14,50 | E24: 16.24 | M24: Rozšíření pro RŠ:1,60*(1,60-0,90)*14,50
C25: Odpočet objemu konstrukce komunikace:-(216,90*0,90+(1,60*(1,60-0,90)*10))*0,45 | E25: -92.8845 | M25: Odpočet objemu konstrukce komunikace:-(216,90*0,90+(1,60*(1,60-0,90)*10))*0,45
C26: Konec provozního součtu | E26: 299.3745 | M26: Konec provozního součtu
C27: V hornině tř. 3 - 60%:299,3745*0,6 | E27: 179.6247 | M27: V hornině tř. 3 - 60%:299,3745*0,6
A28: 4 | B28: 132201219R00 | C28: Přípl.za lepivost,hloubení rýh 200cm,hor.3,STROJNĚ | D28: m3 | E28: 89.8123 | G28: =E28*F28 -> 0 | H28: 0 | I28: =E28*H28 -> 0 | J28: 0 | K28: =E28*J28 -> 0 | O28: 2 | AA28: 1 | AB28: 1 | AC28: 1 | AZ28: 1 | BA28: =IF(AZ28=1,G28,0) -> 0 | BB28: =IF(AZ28=2,G28,0) -> 0 | BC28: =IF(AZ28=3,G28,0) -> 0 | BD28: =IF(AZ28=4,G28,0) -> 0 | BE28: =IF(AZ28=5,G28,0) -> 0 | CA28: 1 | CB28: 1
C29: Stoka "A.1-1" PVC DN250: | E29: 0 | M29: Stoka "A.1-1" PVC DN250:
C30: Výkopy: | E30: 0 | M30: Výkopy:
C31: V hornině tř. 3 - 60%:299,3745*0,6*0,5 | E31: 89.8123 | M31: V hornině tř. 3 - 60%:299,3745*0,6*0,5
A32: 5 | B32: 132301212R00 | C32: Hloubení rýh š.do 200 cm hor.4 do 1000 m3, STROJNĚ | D32: m3 | E32: 89.8123 | G32: =E32*F32 -> 0 | H32: 0 | I32: =E32*H32 -> 0 | J32: 0 | K32: =E32*J32 -> 0 | O32: 2 | AA32: 1 | AB32: 1 | AC32: 1 | AZ32: 1 | BA32: =IF(AZ32=1,G32,0) -> 0 | BB32: =IF(AZ32=2,G32,0) -> 0 | BC32: =IF(AZ32=3,G32,0) -> 0 | BD32: =IF(AZ32=4,G32,0) -> 0 | BE32: =IF(AZ32=5,G32,0) -> 0 | CA32: 1 | CB32: 1
C33: Položka obsahuje hloubení rýh traktorbagrem, naložení výkopku na dopravní prostředek pro svislé, nebo vodorovné přemístění, popř. přemístění výkopku do 3 m (po povrchu území), případné zajištění rypadel polštáři, udržování pracoviště a ochranu výkopiště proti stékání srážkové vody z okolního terénu i s jejím odvodněním, nebo odvedením, přesekání a odstranění kořenů ve výkopišti, odstranění napadávek, urovnání dna výkopu. | L33: Položka obsahuje hloubení rýh traktorbagrem, naložení výkopku na dopravní prostředek pro svislé, nebo vodorovné přemístění, popř. přemístění výkopku do 3 m (po povrchu území), případné zajištění rypadel polštáři, udržování pracoviště a ochranu výkopiště proti stékání srážkové vody z okolního terénu i s jejím odvodněním, nebo odvedením, přesekání a odstranění kořenů ve výkopišti, odstranění napadávek, urovnání dna výkopu. | O33: 3
C34: Stoka "A.1-1" PVC DN250: | E34: 0 | M34: Stoka "A.1-1" PVC DN250:
C35: Výkopy: | E35: 0 | M35: Výkopy:
C36: V hornině tř. 4 - 30%:299,3745*0,3 | E36: 89.8123 | M36: V hornině tř. 4 - 30%:299,3745*0,3
A37: 6 | B37: 132301219R00 | C37: Přípl.za lepivost,hloubení rýh 200cm,hor.4,STROJNĚ | D37: m3 | E37: 44.9062 | G37: =E37*F37 -> 0 | H37: 0 | I37: =E37*H37 -> 0 | J37: 0 | K37: =E37*J37 -> 0 | O37: 2 | AA37: 1 | AB37: 1 | AC37: 1 | AZ37: 1 | BA37: =IF(AZ37=1,G37,0) -> 0 | BB37: =IF(AZ37=2,G37,0) -> 0 | BC37: =IF(AZ37=3,G37,0) -> 0 | BD37: =IF(AZ37=4,G37,0) -> 0 | BE37: =IF(AZ37=5,G37,0) -> 0 | CA37: 1 | CB37: 1
C38: Stoka "A.1-1" PVC DN250: | E38: 0 | M38: Stoka "A.1-1" PVC DN250:
C39: Výkopy: | E39: 0 | M39: Výkopy:
C40: V hornině tř. 4 - 30%:299,3745*0,3*0,5 | E40: 44.9062 | M40: V hornině tř. 4 - 30%:299,3745*0,3*0,5
A41: 7 | B41: 132401211RRX | C41: Hloubení rýh šířky do 200 cm v hor.5 STROJNĚ včetně případného dolamování ve vrstvě do 0,5 m | D41: m3 | E41: 29.9375 | G41: =E41*F41 -> 0 | H41: 0.01041 | I41: =E41*H41 -> 0.311649375 | J41: 0 | K41: =E41*J41 -> 0 | O41: 2 | AA41: 1 | AB41: 1 | AC41: 1 | AZ41: 1 | BA41: =IF(AZ41=1,G41,0) -> 0 | BB41: =IF(AZ41=2,G41,0) -> 0 | BC41: =IF(AZ41=3,G41,0) -> 0 | BD41: =IF(AZ41=4,G41,0) -> 0 | BE41: =IF(AZ41=5,G41,0) -> 0 | CA41: 1 | CB41: 1
C42: Položka obsahuje hloubení rýh traktorbagrem, naložení výkopku na dopravní prostředek pro svislé, nebo vodorovné přemístění, popř. přemístění výkopku do 3 m (po povrchu území), případné zajištění rypadel polštáři, udržování pracoviště a ochranu výkopiště proti stékání srážkové vody z okolního terénu i s jejím odvodněním, nebo odvedením, přesekání a odstranění kořenů ve výkopišti, odstranění napadávek, urovnání dna výkopu.včetně případného dolamování ve vrstvě do 0,5 m | L42: Položka obsahuje hloubení rýh traktorbagrem, naložení výkopku na dopravní prostředek pro svislé, nebo vodorovné přemístění, popř. přemístění výkopku do 3 m (po povrchu území), případné zajištění rypadel polštáři, udržování pracoviště a ochranu výkopiště proti stékání srážkové vody z okolního terénu i s jejím odvodněním, nebo odvedením, přesekání a odstranění kořenů ve výkopišti, odstranění napadávek, urovnání dna výkopu.včetně případného dolamování ve vrstvě do 0,5 m | O42: 3
C43: Stoka "A.1-1" PVC DN250: | E43: 0 | M43: Stoka "A.1-1" PVC DN250:
C44: Výkopy: | E44: 0 | M44: Výkopy:
C45: V hornině tř. 5 - 10%:299,3745*0,1 | E45: 29.9375 | M45: V hornině tř. 5 - 10%:299,3745*0,1
A46: 8 | B46: 151101101R00 | C46: Pažení a rozepření stěn rýh - příložné - hl.do 2 m | D46: m2 | E46: 824.22 | G46: =E46*F46 -> 0 | H46: 0.00099 | I46: =E46*H46 -> 0.8159778 | J46: 0 | K46: =E46*J46 -> 0 | O46: 2 | AA46: 1 | AB46: 1 | AC46: 1 | AZ46: 1 | BA46: =IF(AZ46=1,G46,0) -> 0 | BB46: =IF(AZ46=2,G46,0) -> 0 | BC46: =IF(AZ46=3,G46,0) -> 0 | BD46: =IF(AZ46=4,G46,0) -> 0 | BE46: =IF(AZ46=5,G46,0) -> 0 | CA46: 1 | CB46: 1
C47: Stoka "A.1-1" PVC DN250: | E47: 0 | M47: Stoka "A.1-1" PVC DN250:
C48: Výkopy: | E48: 0 | M48: Výkopy:
C49: ŠA.1-3 - ŠA.1-1-10:216,90*(1,90+1,90)/2*2 | E49: 824.22 | M49: ŠA.1-3 - ŠA.1-1-10:216,90*(1,90+1,90)/2*2
A50: 9 | B50: 151101111R00 | C50: Odstranění pažení stěn rýh - příložné - hl. do 2 m | D50: m2 | E50: 824.22 | G50: =E50*F50 -> 0 | H50: 0 | I50: =E50*H50 -> 0 | J50: 0 | K50: =E50*J50 -> 0 | O50: 2 | AA50: 1 | AB50: 1 | AC50: 1 | AZ50: 1 | BA50: =IF(AZ50=1,G50,0) -> 0 | BB50: =IF(AZ50=2,G50,0) -> 0 | BC50: =IF(AZ50=3,G50,0) -> 0 | BD50: =IF(AZ50=4,G50,0) -> 0 | BE50: =IF(AZ50=5,G50,0) -> 0 | CA50: 1 | CB50: 1
C51: Stoka "A.1-1" PVC DN250: | E51: 0 | M51: Stoka "A.1-1" PVC DN250:
C52: Výkopy: | E52: 0 | M52: Výkopy:
C53: ŠA.1-3 - ŠA.1-1-10:216,90*(1,90+1,90)/2*2 | E53: 824.22 | M53: ŠA.1-3 - ŠA.1-1-10:216,90*(1,90+1,90)/2*2
A54: 10 | B54: 162701105RSZ | C54: Vodorovné přemístění výkopku z hor.1-7 na skládku zhotovitele | D54: m3 | E54: 299.3745 | G54: =E54*F54 -> 0 | H54: 0 | I54: =E54*H54 -> 0 | J54: 0 | K54: =E54*J54 -> 0 | O54: 2 | AA54: 1 | AB54: 1 | AC54: 1 | AZ54: 1 | BA54: =IF(AZ54=1,G54,0) -> 0 | BB54: =IF(AZ54=2,G54,0) -> 0 | BC54: =IF(AZ54=3,G54,0) -> 0 | BD54: =IF(AZ54=4,G54,0) -> 0 | BE54: =IF(AZ54=5,G54,0) -> 0 | CA54: 1 | CB54: 1
C55: Stoka "A.1-1" PVC DN250: | E55: 0 | M55: Stoka "A.1-1" PVC DN250:
C56: Výkopy: | E56: 0 | M56: Výkopy:
C57: V hornině tř. 3 - 5 :299,3745 | E57: 299.3745 | M57: V hornině tř. 3 - 5 :299,3745
A58: 11 | B58: 174101101R00 | C58: Zásyp jam, rýh, šachet se zhutněním | D58: m3 | E58: 143.4825 | G58: =E58*F58 -> 0 | H58: 0 | I58: =E58*H58 -> 0 | J58: 0 | K58: =E58*J58 -> 0 | O58: 2 | AA58: 1 | AB58: 1 | AC58: 1 | AZ58: 1 | BA58: =IF(AZ58=1,G58,0) -> 0 | BB58: =IF(AZ58=2,G58,0) -> 0 | BC58: =IF(AZ58=3,G58,0) -> 0 | BD58: =IF(AZ58=4,G58,0) -> 0 | BE58: =IF(AZ58=5,G58,0) -> 0 | CA58: 1 | CB58: 1
C59: Položka obsahuje strojní přemístění materiálu pro zásyp ze vzdálenosti do 10 m od okraje zásypu. | L59: Položka obsahuje strojní přemístění materiálu pro zásyp ze vzdálenosti do 10 m od okraje zásypu. | O59: 3
O60: 3
C61: Stoka "A.1-1" PVC DN250: | E61: 0 | M61: Stoka "A.1-1" PVC DN250:
C62: Zásypy ŠD fr. 0-63 mm:143,4825 | E62: 143.4825 | M62: Zásypy ŠD fr. 0-63 mm:143,4825
C63: Začátek provozního součtu | E63: 0 | M63: Začátek provozního součtu
C64: Výkopy: | E64: 0 | M64: Výkopy:
C65: V hornině tř. 3 - 5:299,3745 | E65: 299.3745 | M65: V hornině tř. 3 - 5:299,3745
C66: Odpočet objemu lože, potrubí a obsypů:-216,90*0,90*(0,15+0,25+0,30) | E66: -136.647 | M66: Odpočet objemu lože, potrubí a obsypů:-216,90*0,90*(0,15+0,25+0,30)
C67: Odpočet objemu RŠ:-19,2450 | E67: -19.245 | M67: Odpočet objemu RŠ:-19,2450
C68: Konec provozního součtu | E68: 143.4825 | M68: Konec provozního součtu
A69: 12 | B69: 175101101R00 | C69: Obsyp potrubí bez prohození sypaniny | D69: m3 | E69: 96.7184 | G69: =E69*F69 -> 0 | H69: 0 | I69: =E69*H69 -> 0 | J69: 0 | K69: =E69*J69 -> 0 | O69: 2 | AA69: 1 | AB69: 1 | AC69: 1 | AZ69: 1 | BA69: =IF(AZ69=1,G69,0) -> 0 | BB69: =IF(AZ69=2,G69,0) -> 0 | BC69: =IF(AZ69=3,G69,0) -> 0 | BD69: =IF(AZ69=4,G69,0) -> 0 | BE69: =IF(AZ69=5,G69,0) -> 0 | CA69: 1 | CB69: 1
C70: Stoka "A.1-1" PVC DN250:216,90*(0,90*(0,25+0,30)-0,125^2*Pi) | E70: 96.7184 | M70: Stoka "A.1-1" PVC DN250:216,90*(0,90*(0,25+0,30)-0,125^2*Pi)
A71: 13 | B71: 199000002R00 | C71: Poplatek za skládku horniny 1- 7 č. dle katal. odpadů 17 05 04 | D71: m3 | E71: 299.3745 | G71: =E71*F71 -> 0 | H71: 0 | I71: =E71*H71 -> 0 | J71: 0 | K71: =E71*J71 -> 0 | O71: 2 | AA71: 1 | AB71: 1 | AC71: 1 | AZ71: 1 | BA71: =IF(AZ71=1,G71,0) -> 0 | BB71: =IF(AZ71=2,G71,0) -> 0 | BC71: =IF(AZ71=3,G71,0) -> 0 | BD71: =IF(AZ71=4,G71,0) -> 0 | BE71: =IF(AZ71=5,G71,0) -> 0 | CA71: 1 | CB71: 1
C72: Stoka "A.1-1" PVC DN250: | E72: 0 | M72: Stoka "A.1-1" PVC DN250:
C73: Výkopy: | E73: 0 | M73: Výkopy:
C74: V hornině tř. 3 - 5 :299,3745 | E74: 299.3745 | M74: V hornině tř. 3 - 5 :299,3745
A75: 14 | B75: 58337308.R | C75: Štěrkopísek frakce 0-2 tř.B | D75: t | E75: 192.7337 | G75: =E75*F75 -> 0 | H75: 1 | I75: =E75*H75 -> 192.7337 | K75: =E75*J75 -> 0 | O75: 2 | AA75: 3 | AB75: 1 | AC75: 58337308.R | AZ75: 1 | BA75: =IF(AZ75=1,G75,0) -> 0 | BB75: =IF(AZ75=2,G75,0) -> 0 | BC75: =IF(AZ75=3,G75,0) -> 0 | BD75: =IF(AZ75=4,G75,0) -> 0 | BE75: =IF(AZ75=5,G75,0) -> 0 | CA75: 3 | CB75: 1
C76: Stoka "A.1-1" PVC DN250:216,90*(0,90*(0,25+0,30)-0,125^2*Pi)*1,973*1,01 | E76: 192.7337 | M76: Stoka "A.1-1" PVC DN250:216,90*(0,90*(0,25+0,30)-0,125^2*Pi)*1,973*1,01
A77: 15 | B77: 58344197R | C77: Štěrkodrtě frakce 0-63 A | D77: t | E77: 271.4301 | G77: =E77*F77 -> 0 | H77: 1 | I77: =E77*H77 -> 271.4301 | K77: =E77*J77 -> 0 | O77: 2 | AA77: 3 | AB77: 1 | AC77: 58344197R | AZ77: 1 | BA77: =IF(AZ77=1,G77,0) -> 0 | BB77: =IF(AZ77=2,G77,0) -> 0 | BC77: =IF(AZ77=3,G77,0) -> 0 | BD77: =IF(AZ77=4,G77,0) -> 0 | BE77: =IF(AZ77=5,G77,0) -> 0 | CA77: 3 | CB77: 1
C78: Stoka "A.1-1" PVC DN250: | E78: 0 | M78: Stoka "A.1-1" PVC DN250:
C79: Zásypy ŠD fr. 0-63 mm:143,4825*1,873*1,01 | E79: 271.4301 | M79: Zásypy ŠD fr. 0-63 mm:143,4825*1,873*1,01
C80: Začátek provozního součtu | E80: 0 | M80: Začátek provozního součtu
C81: Výkopy: | E81: 0 | M81: Výkopy:
C82: V hornině tř. 3 - 5:299,3745 | E82: 299.3745 | M82: V hornině tř. 3 - 5:299,3745
C83: Odpočet objemu lože, potrubí a obsypů:-216,90*0,90*(0,15+0,25+0,30) | E83: -136.647 | M83: Odpočet objemu lože, potrubí a obsypů:-216,90*0,90*(0,15+0,25+0,30)
C84: Odpočet objemu RŠ:-19,2450 | E84: -19.245 | M84: Odpočet objemu RŠ:-19,2450
C85: Konec provozního součtu | E85: 143.4825 | M85: Konec provozního součtu
B86: Celkem za | C86: 1 Zemní práce | G86: =SUM(G7:G85) -> 0 | I86: =SUM(I7:I85) -> 465.2914272 | K86: =SUM(K7:K85) -> 0 | O86: 4 | BA86: =SUM(BA7:BA85) -> 0 | BB86: =SUM(BB7:BB85) -> 0 | BC86: =SUM(BC7:BC85) -> 0 | BD86: =SUM(BD7:BD85) -> 0 | BE86: =SUM(BE7:BE85) -> 0
A87: Díl: | B87: 21 | C87: Úprava podloží a základ.spáry | O87: 1
A88: 16 | B88: 212810010RAC | C88: Trativody z PVC drenážních flexibilních trubek lože štěrkopísek a obsyp kamenivo, trubky d 100 mm | D88: m | E88: 58.45 | G88: =E88*F88 -> 0 | H88: 0.43651 | I88: =E88*H88 -> 25.5140095 | J88: 0 | K88: =E88*J88 -> 0 | O88: 2 | AA88: 1 | AB88: 1 | AC88: 1 | AZ88: 1 | BA88: =IF(AZ88=1,G88,0) -> 0 | BB88: =IF(AZ88=2,G88,0) -> 0 | BC88: =IF(AZ88=3,G88,0) -> 0 | BD88: =IF(AZ88=4,G88,0) -> 0 | BE88: =IF(AZ88=5,G88,0) -> 0 | CA88: 1 | CB88: 1
C89: Stoka "A.1-1" PVC DN250: | E89: 0 | M89: Stoka "A.1-1" PVC DN250:
C90: Drenáž DN100:116,90*0,5 | E90: 58.45 | M90: Drenáž DN100:116,90*0,5
B91: Celkem za | C91: 21 Úprava podloží a základ.spáry | G91: =SUM(G87:G90) -> 0 | I91: =SUM(I87:I90) -> 25.5140095 | K91: =SUM(K87:K90) -> 0 | O91: 4 | BA91: =SUM(BA87:BA90) -> 0 | BB91: =SUM(BB87:BB90) -> 0 | BC91: =SUM(BC87:BC90) -> 0 | BD91: =SUM(BD87:BD90) -> 0 | BE91: =SUM(BE87:BE90) -> 0
A92: Díl: | B92: 45 | C92: Podkladní a vedlejší konstrukce | O92: 1
A93: 17 | B93: 451572111R00 | C93: Lože pod potrubí z kameniva těženého 0 - 4 mm | D93: m3 | E93: 29.2815 | G93: =E93*F93 -> 0 | H93: 0.43051 | I93: =E93*H93 -> 12.60597857 | J93: 0 | K93: =E93*J93 -> 0 | O93: 2 | AA93: 1 | AB93: 1 | AC93: 1 | AZ93: 1 | BA93: =IF(AZ93=1,G93,0) -> 0 | BB93: =IF(AZ93=2,G93,0) -> 0 | BC93: =IF(AZ93=3,G93,0) -> 0 | BD93: =IF(AZ93=4,G93,0) -> 0 | BE93: =IF(AZ93=5,G93,0) -> 0 | CA93: 1 | CB93: 1
C94: Stoka "A.1-1" PVC DN250:216,90*0,90*0,15 | E94: 29.2815 | M94: Stoka "A.1-1" PVC DN250:216,90*0,90*0,15
A95: 18 | B95: 452112111R00 | C95: Osazení beton. prstenců pod poklopy,výšky do100 mm | D95: kus | E95: 11 | G95: =E95*F95 -> 0 | H95: 0.0066 | I95: =E95*H95 -> 0.0726 | J95: 0 | K95: =E95*J95 -> 0 | O95: 2 | AA95: 1 | AB95: 1 | AC95: 1 | AZ95: 1 | BA95: =IF(AZ95=1,G95,0) -> 0 | BB95: =IF(AZ95=2,G95,0) -> 0 | BC95: =IF(AZ95=3,G95,0) -> 0 | BD95: =IF(AZ95=4,G95,0) -> 0 | BE95: =IF(AZ95=5,G95,0) -> 0 | CA95: 1 | CB95: 1
C96: Volba položky se řídí výškou prstence nebo rámu. V položkách nejsou zakalkulovány náklady na dodávku betonových výrobků; | L96: Volba položky se řídí výškou prstence nebo rámu. V položkách nejsou zakalkulovány náklady na dodávku betonových výrobků; | O96: 3
C97: Stoka "A.1-1" PVC DN250: | E97: 0 | M97: Stoka "A.1-1" PVC DN250:
C98: VP40:4 | E98: 4 | M98: VP40:4
C99: VP60:3 | E99: 3 | M99: VP60:3
C100: VP80:3 | E100: 3 | M100: VP80:3
C101: VP100:1 | E101: 1 | M101: VP100:1
A102: 19 | B102: 452112121R00 | C102: Osazení beton. prstenců pod poklopy,výšky do200 mm | D102: kus | E102: 2 | G102: =E102*F102 -> 0 | H102: 0.0066 | I102: =E102*H102 -> 0.0132 | J102: 0 | K102: =E102*J102 -> 0 | O102: 2 | AA102: 1 | AB102: 1 | AC102: 1 | AZ102: 1 | BA102: =IF(AZ102=1,G102,0) -> 0 | BB102: =IF(AZ102=2,G102,0) -> 0 | BC102: =IF(AZ102=3,G102,0) -> 0 | BD102: =IF(AZ102=4,G102,0) -> 0 | BE102: =IF(AZ102=5,G102,0) -> 0 | CA102: 1 | CB102: 1
C103: Stoka "A.1-1" PVC DN250: | E103: 0 | M103: Stoka "A.1-1" PVC DN250:
C104: VP120:2 | E104: 2 | M104: VP120:2
A105: 20 | B105: 59224346.A.R | C105: Prstenec vyrovn šachetní TBW-Q.1 63/4 | D105: kus | E105: 4.04 | G105: =E105*F105 -> 0 | H105: 0.028 | I105: =E105*H105 -> 0.11312 | K105: =E105*J105 -> 0 | O105: 2 | AA105: 3 | AB105: 1 | AC105: 59224346.A.R | AZ105: 1 | BA105: =IF(AZ105=1,G105,0) -> 0 | BB105: =IF(AZ105=2,G105,0) -> 0 | BC105: =IF(AZ105=3,G105,0) -> 0 | BD105: =IF(AZ105=4,G105,0) -> 0 | BE105: =IF(AZ105=5,G105,0) -> 0 | CA105: 3 | CB105: 1
C106: Stoka "A.1-1" PVC DN250: | E106: 0 | M106: Stoka "A.1-1" PVC DN250:
C107: VP40:4*1,01 | E107: 4.04 | M107: VP40:4*1,01
A108: 21 | B108: 59224347.A.R | C108: Prstenec vyrovn šachetní TBW-Q.1 63/6 | D108: kus | E108: 3.03 | G108: =E108*F108 -> 0 | H108: 0.04 | I108: =E108*H108 -> 0.1212 | K108: =E108*J108 -> 0 | O108: 2 | AA108: 3 | AB108: 1 | AC108: 59224347.A.R | AZ108: 1 | BA108: =IF(AZ108=1,G108,0) -> 0 | BB108: =IF(AZ108=2,G108,0) -> 0 | BC108: =IF(AZ108=3,G108,0) -> 0 | BD108: =IF(AZ108=4,G108,0) -> 0 | BE108: =IF(AZ108=5,G108,0) -> 0 | CA108: 3 | CB108: 1
C109: Stoka "A.1-1" PVC DN250: | E109: 0 | M109: Stoka "A.1-1" PVC DN250:
C110: VP60:3*1,01 | E110: 3.03 | M110: VP60:3*1,01
A111: 22 | B111: 59224348.A.R | C111: Prstenec vyrovn šachetní TBW-Q.1 63/8 | D111: kus | E111: 3.03 | G111: =E111*F111 -> 0 | H111: 0.054 | I111: =E111*H111 -> 0.16362 | K111: =E111*J111 -> 0 | O111: 2 | AA111: 3 | AB111: 1 | AC111: 59224348.A.R | AZ111: 1 | BA111: =IF(AZ111=1,G111,0) -> 0 | BB111: =IF(AZ111=2,G111,0) -> 0 | BC111: =IF(AZ111=3,G111,0) -> 0 | BD111: =IF(AZ111=4,G111,0) -> 0 | BE111: =IF(AZ111=5,G111,0) -> 0 | CA111: 3 | CB111: 1
C112: Stoka "A.1-1" PVC DN250: | E112: 0 | M112: Stoka "A.1-1" PVC DN250:
C113: VP80:3*1,01 | E113: 3.03 | M113: VP80:3*1,01
A114: 23 | B114: 59224349.A.R | C114: Prstenec vyrovn šachetní TBW-Q.1 63/10 | D114: kus | E114: 1.01 | G114: =E114*F114 -> 0 | H114: 0.068 | I114: =E114*H114 -> 0.06868 | K114: =E114*J114 -> 0 | O114: 2 | AA114: 3 | AB114: 1 | AC114: 59224349.A.R | AZ114: 1 | BA114: =IF(AZ114=1,G114,0) -> 0 | BB114: =IF(AZ114=2,G114,0) -> 0 | BC114: =IF(AZ114=3,G114,0) -> 0 | BD114: =IF(AZ114=4,G114,0) -> 0 | BE114: =IF(AZ114=5,G114,0) -> 0 | CA114: 3 | CB114: 1
C115: Stoka "A.1-1" PVC DN250: | E115: 0 | M115: Stoka "A.1-1" PVC DN250:
C116: VP H100:1*1,01 | E116: 1.01 | M116: VP H100:1*1,01
A117: 24 | B117: 59224350.A.R | C117: Prstenec vyrovn šachetní TBW-Q.1 63/12 | D117: kus | E117: 2.02 | G117: =E117*F117 -> 0 | H117: 0.081 | I117: =E117*H117 -> 0.16362 | K117: =E117*J117 -> 0 | O117: 2 | AA117: 3 | AB117: 1 | AC117: 59224350.A.R | AZ117: 1 | BA117: =IF(AZ117=1,G117,0) -> 0 | BB117: =IF(AZ117=2,G117,0) -> 0 | BC117: =IF(AZ117=3,G117,0) -> 0 | BD117: =IF(AZ117=4,G117,0) -> 0 | BE117: =IF(AZ117=5,G117,0) -> 0 | CA117: 3 | CB117: 1
C118: Stoka "A.1-1" PVC DN250: | E118: 0 | M118: Stoka "A.1-1" PVC DN250:
C119: VP H120:2*1,01 | E119: 2.02 | M119: VP H120:2*1,01
B120: Celkem za | C120: 45 Podkladní a vedlejší konstrukce | G120: =SUM(G92:G119) -> 0 | I120: =SUM(I92:I119) -> 13.32201857 | K120: =SUM(K92:K119) -> 0 | O120: 4 | BA120: =SUM(BA92:BA119) -> 0 | BB120: =SUM(BB92:BB119) -> 0 | BC120: =SUM(BC92:BC119) -> 0 | BD120: =SUM(BD92:BD119) -> 0 | BE120: =SUM(BE92:BE119) -> 0
A121: Díl: | B121: 5 | C121: Komunikace | O121: 1
A122: 25 | B122: 572701119RRX | C122: Provizorní zásyp rýh kam. hrubě drceným nebo recyk s následným odstraněním a odvozem | D122: m3 | E122: 92.8845 | G122: =E122*F122 -> 0 | H122: 1.4805 | I122: =E122*H122 -> 137.5155022 | J122: 0 | K122: =E122*J122 -> 0 | O122: 2 | AA122: 1 | AB122: 1 | AC122: 1 | AZ122: 1 | BA122: =IF(AZ122=1,G122,0) -> 0 | BB122: =IF(AZ122=2,G122,0) -> 0 | BC122: =IF(AZ122=3,G122,0) -> 0 | BD122: =IF(AZ122=4,G122,0) -> 0 | BE122: =IF(AZ122=5,G122,0) -> 0 | CA122: 1 | CB122: 1
C123: Stoka "A.1-1" PVC DN250: | E123: 0 | M123: Stoka "A.1-1" PVC DN250:
C124: Objem konstrukce komunikace:(216,90*0,90+(1,60*(1,60-0,90)*10))*0,45 | E124: 92.8845 | M124: Objem konstrukce komunikace:(216,90*0,90+(1,60*(1,60-0,90)*10))*0,45
B125: Celkem za | C125: 5 Komunikace | G125: =SUM(G121:G124) -> 0 | I125: =SUM(I121:I124) -> 137.5155022 | K125: =SUM(K121:K124) -> 0 | O125: 4 | BA125: =SUM(BA121:BA124) -> 0 | BB125: =SUM(BB121:BB124) -> 0 | BC125: =SUM(BC121:BC124) -> 0 | BD125: =SUM(BD121:BD124) -> 0 | BE125: =SUM(BE121:BE124) -> 0
A126: Díl: | B126: 8 | C126: Trubní vedení | O126: 1
A127: 26 | B127: 871373121R00 | C127: Montáž trub z plastu, gumový kroužek, DN 300 | D127: m | E127: 216.9 | G127: =E127*F127 -> 0 | H127: 1e-05 | I127: =E127*H127 -> 0.002169 | J127: 0 | K127: =E127*J127 -> 0 | O127: 2 | AA127: 1 | AB127: 1 | AC127: 1 | AZ127: 1 | BA127: =IF(AZ127=1,G127,0) -> 0 | BB127: =IF(AZ127=2,G127,0) -> 0 | BC127: =IF(AZ127=3,G127,0) -> 0 | BD127: =IF(AZ127=4,G127,0) -> 0 | BE127: =IF(AZ127=5,G127,0) -> 0 | CA127: 1 | CB127: 1
C128: Stoka "A.1-1" PVC DN250:216,90 | E128: 216.9 | M128: Stoka "A.1-1" PVC DN250:216,90
A129: 27 | B129: 877373121R00 | C129: Montáž tvarovek odboč. plast. gum. kroužek DN 300 | D129: kus | E129: 1 | G129: =E129*F129 -> 0 | H129: 5e-05 | I129: =E129*H129 -> 5e-05 | J129: 0 | K129: =E129*J129 -> 0 | O129: 2 | AA129: 1 | AB129: 1 | AC129: 1 | AZ129: 1 | BA129: =IF(AZ129=1,G129,0) -> 0 | BB129: =IF(AZ129=2,G129,0) -> 0 | BC129: =IF(AZ129=3,G129,0) -> 0 | BD129: =IF(AZ129=4,G129,0) -> 0 | BE129: =IF(AZ129=5,G129,0) -> 0 | CA129: 1 | CB129: 1
C130: Položka je určena pro montáž tvarovek odbočných na potrubí z kanalizačních trub z plastu těsněných gumovým kroužkem v otevřeném výkopu. | L130: Položka je určena pro montáž tvarovek odbočných na potrubí z kanalizačních trub z plastu těsněných gumovým kroužkem v otevřeném výkopu. | O130: 3
C131: Stoka "A.1-1" PVC DN250: | E131: 0 | M131: Stoka "A.1-1" PVC DN250:
C132: Odbočka PVC DN250/160:1 | E132: 1 | M132: Odbočka PVC DN250/160:1
A133: 28 | B133: 892601154R00 | C133: Čištění kanalizační stoky do DN 500, nad 100 m | D133: m | E133: 216.9 | G133: =E133*F133 -> 0 | H133: 0 | I133: =E133*H133 -> 0 | J133: 0 | K133: =E133*J133 -> 0 | O133: 2 | AA133: 1 | AB133: 0 | AC133: 0 | AZ133: 1 | BA133: =IF(AZ133=1,G133,0) -> 0 | BB133: =IF(AZ133=2,G133,0) -> 0 | BC133: =IF(AZ133=3,G133,0) -> 0 | BD133: =IF(AZ133=4,G133,0) -> 0 | BE133: =IF(AZ133=5,G133,0) -> 0 | CA133: 1 | CB133: 0
C134: V položce je zakalkulováno: | L134: V položce je zakalkulováno: | O134: 3
C135: a) otevření a uzavření revizních šachet a čisticích kusů | L135: a) otevření a uzavření revizních šachet a čisticích kusů | O135: 3
C136: b) natažení vysokotlakých hadic k místu odkud se bude kanalizace čistit | L136: b) natažení vysokotlakých hadic k místu odkud se bude kanalizace čistit | O136: 3
C137: c) vyčištění potrubí tlakovou vodou nebo motorovým pérem. | L137: c) vyčištění potrubí tlakovou vodou nebo motorovým pérem. | O137: 3
C138: Stoka "A.1-1" PVC DN250:216,90 | E138: 216.9 | M138: Stoka "A.1-1" PVC DN250:216,90
A139: 29 | B139: 892855115R00 | C139: Kontrola kanalizace TV kamerou do 500 m | D139: m | E139: 216.9 | G139: =E139*F139 -> 0 | H139: 0 | I139: =E139*H139 -> 0 | J139: 0 | K139: =E139*J139 -> 0 | O139: 2 | AA139: 1 | AB139: 1 | AC139: 1 | AZ139: 1 | BA139: =IF(AZ139=1,G139,0) -> 0 | BB139: =IF(AZ139=2,G139,0) -> 0 | BC139: =IF(AZ139=3,G139,0) -> 0 | BD139: =IF(AZ139=4,G139,0) -> 0 | BE139: =IF(AZ139=5,G139,0) -> 0 | CA139: 1 | CB139: 1
C140: Provedení kaberové prohlídky včetně dodání elektronického záznamu na CD zadavateli a tištěné dokumentace průběhu kamerové prohlídky | L140: Provedení kaberové prohlídky včetně dodání elektronického záznamu na CD zadavateli a tištěné dokumentace průběhu kamerové prohlídky | O140: 3
C141: Stoka "A.1-1" PVC DN250:216,90 | E141: 216.9 | M141: Stoka "A.1-1" PVC DN250:216,90
A142: 30 | B142: 894421111RT1 | C142: Osazení betonových dílců šachet skruže rovné, na kroužek, do 0,5 t | D142: kus | E142: 11 | G142: =E142*F142 -> 0 | H142: 0 | I142: =E142*H142 -> 0 | J142: 0 | K142: =E142*J142 -> 0 | O142: 2 | AA142: 1 | AB142: 1 | AC142: 1 | AZ142: 1 | BA142: =IF(AZ142=1,G142,0) -> 0 | BB142: =IF(AZ142=2,G142,0) -> 0 | BC142: =IF(AZ142=3,G142,0) -> 0 | BD142: =IF(AZ142=4,G142,0) -> 0 | BE142: =IF(AZ142=5,G142,0) -> 0 | CA142: 1 | CB142: 1
C143: Položka je určena pro osazení betonových dílců šachet dle DIN 4034, skruže rovné na kroužek, hmotnost do 0,5 t. | L143: Položka je určena pro osazení betonových dílců šachet dle DIN 4034, skruže rovné na kroužek, hmotnost do 0,5 t. | O143: 3
C144: V položce nejsou zakalkulovány náklady na dodání betonových dílců; dílce se oceňují ve specifikaci. | L144: V položce nejsou zakalkulovány náklady na dodání betonových dílců; dílce se oceňují ve specifikaci. | O144: 3
C145: Stoka "A.1-1" PVC DN250: | E145: 0 | M145: Stoka "A.1-1" PVC DN250:
C146: Skruž H250:2 | E146: 2 | M146: Skruž H250:2
C147: Skruž H500:9 | E147: 9 | M147: Skruž H500:9
A148: 31 | B148: 894422111RT1 | C148: Osazení betonových dílců šachet skruže přechodové, na kroužek | D148: kus | E148: 10 | G148: =E148*F148 -> 0 | H148: 0 | I148: =E148*H148 -> 0 | J148: 0 | K148: =E148*J148 -> 0 | O148: 2 | AA148: 1 | AB148: 1 | AC148: 1 | AZ148: 1 | BA148: =IF(AZ148=1,G148,0) -> 0 | BB148: =IF(AZ148=2,G148,0) -> 0 | BC148: =IF(AZ148=3,G148,0) -> 0 | BD148: =IF(AZ148=4,G148,0) -> 0 | BE148: =IF(AZ148=5,G148,0) -> 0 | CA148: 1 | CB148: 1
C149: Položka je určena pro osazení betonových dílců šachet dle DIN 4034, skruže přechodové, zákrytové, kónusy,... na kroužek. | L149: Položka je určena pro osazení betonových dílců šachet dle DIN 4034, skruže přechodové, zákrytové, kónusy,... na kroužek. | O149: 3
C150: Stoka "A.1-1" PVC DN250: | E150: 0 | M150: Stoka "A.1-1" PVC DN250:
C151: Kónus H580:10 | E151: 10 | M151: Kónus H580:10
A152: 32 | B152: 894423111RT1 | C152: Osazení betonových dílců šachet do 2,0 t šachtová dna, na kroužek, do 2,0 t | D152: kus | E152: 10 | G152: =E152*F152 -> 0 | H152: 0 | I152: =E152*H152 -> 0 | J152: 0 | K152: =E152*J152 -> 0 | O152: 2 | AA152: 1 | AB152: 1 | AC152: 1 | AZ152: 1 | BA152: =IF(AZ152=1,G152,0) -> 0 | BB152: =IF(AZ152=2,G152,0) -> 0 | BC152: =IF(AZ152=3,G152,0) -> 0 | BD152: =IF(AZ152=4,G152,0) -> 0 | BE152: =IF(AZ152=5,G152,0) -> 0 | CA152: 1 | CB152: 1
C153: Položka je určena pro osazení betonových dílců šachet dle DIN 4034, šachtová dna na kroužek, hmotnost do 2,0 t. | L153: Položka je určena pro osazení betonových dílců šachet dle DIN 4034, šachtová dna na kroužek, hmotnost do 2,0 t. | O153: 3
C154: V položce nejsou zakalkulovány náklady na dodání betonových dílců; | L154: V položce nejsou zakalkulovány náklady na dodání betonových dílců; | O154: 3
C155: Součástí položky je i podbetonování šachtového dna betonem C12/15 v min. tl. 10 cm. | L155: Součástí položky je i podbetonování šachtového dna betonem C12/15 v min. tl. 10 cm. | O155: 3
C156: Stoka "A.1-1" PVC DN250: | E156: 0 | M156: Stoka "A.1-1" PVC DN250:
C157: ŠD H575:8 | E157: 8 | M157: ŠD H575:8
C158: ŠD H675:2 | E158: 2 | M158: ŠD H675:2
A159: 33 | B159: 899102111R00 | C159: Osazení poklopu s rámem do 100 kg | D159: kus | E159: 10 | G159: =E159*F159 -> 0 | H159: 0.00702 | I159: =E159*H159 -> 0.0702 | J159: 0 | K159: =E159*J159 -> 0 | O159: 2 | AA159: 1 | AB159: 1 | AC159: 1 | AZ159: 1 | BA159: =IF(AZ159=1,G159,0) -> 0 | BB159: =IF(AZ159=2,G159,0) -> 0 | BC159: =IF(AZ159=3,G159,0) -> 0 | BD159: =IF(AZ159=4,G159,0) -> 0 | BE159: =IF(AZ159=5,G159,0) -> 0 | CA159: 1 | CB159: 1
C160: Osazení provizorních poklopů během realizace stavby (nefakturovaný materiál zhotovitele) | L160: Osazení provizorních poklopů během realizace stavby (nefakturovaný materiál zhotovitele) | O160: 3
A161: 34 | B161: 899711122R00 | C161: Fólie výstražná z PVC šedá, šířka 30 cm | D161: m | E161: 216.9 | G161: =E161*F161 -> 0 | H161: 0 | I161: =E161*H161 -> 0 | J161: 0 | K161: =E161*J161 -> 0 | O161: 2 | AA161: 1 | AB161: 1 | AC161: 1 | AZ161: 1 | BA161: =IF(AZ161=1,G161,0) -> 0 | BB161: =IF(AZ161=2,G161,0) -> 0 | BC161: =IF(AZ161=3,G161,0) -> 0 | BD161: =IF(AZ161=4,G161,0) -> 0 | BE161: =IF(AZ161=5,G161,0) -> 0 | CA161: 1 | CB161: 1
C162: Stoka "A.1-1" PVC DN250:216,90 | E162: 216.9 | M162: Stoka "A.1-1" PVC DN250:216,90
A163: 35 | B163: 286111923.A.R | C163: Trubka kanalizační PVC QUANTUM SN 12 DN 250 | D163: kus | E163: 223.407 | G163: =E163*F163 -> 0 | H163: 0.0082 | I163: =E163*H163 -> 1.8319374 | K163: =E163*J163 -> 0 | O163: 2 | AA163: 3 | AB163: 1 | AC163: 286111923.A.R | AZ163: 1 | BA163: =IF(AZ163=1,G163,0) -> 0 | BB163: =IF(AZ163=2,G163,0) -> 0 | BC163: =IF(AZ163=3,G163,0) -> 0 | BD163: =IF(AZ163=4,G163,0) -> 0 | BE163: =IF(AZ163=5,G163,0) -> 0 | CA163: 3 | CB163: 1
C164: Jedná se o plnostěnné kanalizační trubky DN 150 – DN 400, SN 12 kN/m2 , zvenčí i zevnitř hladké. Jsou opatřeny hrdlem, v němž je vložen vysoce elastický jazýčkový kroužek. konce trubek (dříků) jsou opatřeny zkosením pod úhlem 15°. Způsob použití trubek je „U“ dle normy ČSN EN 1401-1, tj. mimo budovy. Spolehlivá funkce těsnění je jištěna výztužným kroužkem z elastomeru. Je tak zamezeno vypad-nutí nebo vytlačení kroužku při manipulaci a montáži. Tento systém zaručuje při správné montáži | L164: Jedná se o plnostěnné kanalizační trubky DN 150 – DN 400, SN 12 kN/m2 , zvenčí i zevnitř hladké. Jsou opatřeny hrdlem, v němž je vložen vysoce elastický jazýčkový kroužek. konce trubek (dříků) jsou opatřeny zkosením pod úhlem 15°. Způsob použití trubek je „U“ dle normy ČSN EN 1401-1, tj. mimo budovy. Spolehlivá funkce těsnění je jištěna výztužným kroužkem z elastomeru. Je tak zamezeno vypad-nutí nebo vytlačení kroužku při manipulaci a montáži. Tento systém zaručuje při správné montáži | O164: 3
C165: dokonalou těsnost do výšky vodního sloupce 5 metrů. | L165: dokonalou těsnost do výšky vodního sloupce 5 metrů. | O165: 3
C166: Stoka "A.1-1" PVC DN250:216,90*1,03 | E166: 223.407 | M166: Stoka "A.1-1" PVC DN250:216,90*1,03
A167: 36 | B167: 286506121.R | C167: Odbočka kanaliz. PVC QUANTUM SDR 34 DN 250/150/45° | D167: kus | E167: 1.015 | G167: =E167*F167 -> 0 | H167: 0.00367 | I167: =E167*H167 -> 0.00372505 | K167: =E167*J167 -> 0 | O167: 2 | AA167: 3 | AB167: 1 | AC167: 286506121.R | AZ167: 1 | BA167: =IF(AZ167=1,G167,0) -> 0 | BB167: =IF(AZ167=2,G167,0) -> 0 | BC167: =IF(AZ167=3,G167,0) -> 0 | BD167: =IF(AZ167=4,G167,0) -> 0 | BE167: =IF(AZ167=5,G167,0) -> 0 | CA167: 3 | CB167: 1
C168: Tvarovky kanalizačního systému PVC QUANTUM SDR 34 | L168: Tvarovky kanalizačního systému PVC QUANTUM SDR 34 | O168: 3
C169: Teplota při pokládce: min. -10 °C, max. 50 °C | L169: Teplota při pokládce: min. -10 °C, max. 50 °C | O169: 3
C170: Max. teplota média: trvale do 40 °C, krátkodobě do 60 °C | L170: Max. teplota média: trvale do 40 °C, krátkodobě do 60 °C | O170: 3
C171: Orientační výška krytí: min. 0,5 m, max. 10 m | L171: Orientační výška krytí: min. 0,5 m, max. 10 m | O171: 3
C172: Max. rychlost média: 12 m/s | L172: Max. rychlost média: 12 m/s | O172: 3
C173: Stoka "A.1-1" PVC DN250: | E173: 0 | M173: Stoka "A.1-1" PVC DN250:
C174: Odbočka PVC DN250/160:1*1,015 | E174: 1.015 | M174: Odbočka PVC DN250/160:1*1,015
A175: 37 | B175: 592243543.R | C175: Kónus šachetní TBR-Q.1 100x63/58/12 KPS | D175: kus | E175: 10.1 | G175: =E175*F175 -> 0 | H175: 0.585 | I175: =E175*H175 -> 5.9085 | K175: =E175*J175 -> 0 | O175: 2 | AA175: 3 | AB175: 1 | AC175: 592243543.R | AZ175: 1 | BA175: =IF(AZ175=1,G175,0) -> 0 | BB175: =IF(AZ175=2,G175,0) -> 0 | BC175: =IF(AZ175=3,G175,0) -> 0 | BD175: =IF(AZ175=4,G175,0) -> 0 | BE175: =IF(AZ175=5,G175,0) -> 0 | CA175: 3 | CB175: 1
C176: Stoka "A.1-1" PVC DN250: | E176: 0 | M176: Stoka "A.1-1" PVC DN250:
C177: Kónus H580:10*1,01 | E177: 10.1 | M177: Kónus H580:10*1,01
A178: 38 | B178: 59224358.A.R | C178: Skruž šachetní TBS-Q.1 100/25/12 PS | D178: kus | E178: 2.02 | G178: =E178*F178 -> 0 | H178: 0.25 | I178: =E178*H178 -> 0.505 | K178: =E178*J178 -> 0 | O178: 2 | AA178: 3 | AB178: 1 | AC178: 59224358.A.R | AZ178: 1 | BA178: =IF(AZ178=1,G178,0) -> 0 | BB178: =IF(AZ178=2,G178,0) -> 0 | BC178: =IF(AZ178=3,G178,0) -> 0 | BD178: =IF(AZ178=4,G178,0) -> 0 | BE178: =IF(AZ178=5,G178,0) -> 0 | CA178: 3 | CB178: 1
C179: Stoka "A.1-1" PVC DN250: | E179: 0 | M179: Stoka "A.1-1" PVC DN250:
C180: Skruž H250:2*1,01 | E180: 2.02 | M180: Skruž H250:2*1,01
A181: 39 | B181: 59224361.A.R | C181: Skruž šachetní TBS-Q.1 100/50/12 PS | D181: kus | E181: 9.09 | G181: =E181*F181 -> 0 | H181: 0.5 | I181: =E181*H181 -> 4.545 | K181: =E181*J181 -> 0 | O181: 2 | AA181: 3 | AB181: 1 | AC181: 59224361.A.R | AZ181: 1 | BA181: =IF(AZ181=1,G181,0) -> 0 | BB181: =IF(AZ181=2,G181,0) -> 0 | BC181: =IF(AZ181=3,G181,0) -> 0 | BD181: =IF(AZ181=4,G181,0) -> 0 | BE181: =IF(AZ181=5,G181,0) -> 0 | CA181: 3 | CB181: 1
C182: Stoka "A.1-1" PVC DN250: | E182: 0 | M182: Stoka "A.1-1" PVC DN250:
C183: Skruž H500:9*1,01 | E183: 9.09 | M183: Skruž H500:9*1,01
A184: 40 | B184: 59224371.A.R | C184: Dno šachetní TBZ-Q.1 100/58 KOM V20 včetně kynety dle PD | D184: kus | E184: 8.08 | G184: =E184*F184 -> 0 | H184: 1.27 | I184: =E184*H184 -> 10.2616 | K184: =E184*J184 -> 0 | O184: 2 | AA184: 3 | AB184: 1 | AC184: 59224371.A.R | AZ184: 1 | BA184: =IF(AZ184=1,G184,0) -> 0 | BB184: =IF(AZ184=2,G184,0) -> 0 | BC184: =IF(AZ184=3,G184,0) -> 0 | BD184: =IF(AZ184=4,G184,0) -> 0 | BE184: =IF(AZ184=5,G184,0) -> 0 | CA184: 3 | CB184: 1
C185: Stoka "A.1-1" PVC DN250: | E185: 0 | M185: Stoka "A.1-1" PVC DN250:
C186: ŠD H575:8*1,01 | E186: 8.08 | M186: ŠD H575:8*1,01
A187: 41 | B187: 59224373.A.R | C187: Dno šachetní TBZ-Q.1 100/68 KOM V30 včetně kynety dle PD | D187: kus | E187: 2.02 | G187: =E187*F187 -> 0 | H187: 1.45 | I187: =E187*H187 -> 2.929 | K187: =E187*J187 -> 0 | O187: 2 | AA187: 3 | AB187: 1 | AC187: 59224373.A.R | AZ187: 1 | BA187: =IF(AZ187=1,G187,0) -> 0 | BB187: =IF(AZ187=2,G187,0) -> 0 | BC187: =IF(AZ187=3,G187,0) -> 0 | BD187: =IF(AZ187=4,G187,0) -> 0 | BE187: =IF(AZ187=5,G187,0) -> 0 | CA187: 3 | CB187: 1
C188: Stoka "A.1-1" PVC DN250: | E188: 0 | M188: Stoka "A.1-1" PVC DN250:
C189: ŠD H675:2*1,01 | E189: 2.02 | M189: ŠD H675:2*1,01
A190: 42 | B190: 59224380.R | C190: Těsnění elastom pro šach díly EMT 100/1.7 - DN1000 | D190: kus | E190: 21.21 | G190: =E190*F190 -> 0 | H190: 0.002 | I190: =E190*H190 -> 0.04242 | K190: =E190*J190 -> 0 | O190: 2 | AA190: 3 | AB190: 1 | AC190: 59224380.R | AZ190: 1 | BA190: =IF(AZ190=1,G190,0) -> 0 | BB190: =IF(AZ190=2,G190,0) -> 0 | BC190: =IF(AZ190=3,G190,0) -> 0 | BD190: =IF(AZ190=4,G190,0) -> 0 | BE190: =IF(AZ190=5,G190,0) -> 0 | CA190: 3 | CB190: 1
C191: Stoka "A.1-1" PVC DN250: | E191: 0 | M191: Stoka "A.1-1" PVC DN250:
C192: Těsnění DN1000:21*1,01 | E192: 21.21 | M192: Těsnění DN1000:21*1,01
B193: Celkem za | C193: 8 Trubní vedení | G193: =SUM(G126:G192) -> 0 | I193: =SUM(I126:I192) -> 26.09960145 | K193: =SUM(K126:K192) -> 0 | O193: 4 | BA193: =SUM(BA126:BA192) -> 0 | BB193: =SUM(BB126:BB192) -> 0 | BC193: =SUM(BC126:BC192) -> 0 | BD193: =SUM(BD126:BD192) -> 0 | BE193: =SUM(BE126:BE192) -> 0
A194: Díl: | B194: 93 | C194: Dokončovací práce inženýrských staveb | O194: 1
A195: 43 | B195: 939421111RT1 | C195: Osazení samonivelač.kanalizač.poklopu za finišerem bez dodávky poklopu | D195: kus | E195: 10 | G195: =E195*F195 -> 0 | H195: 0.15425 | I195: =E195*H195 -> 1.5425 | J195: 0 | K195: =E195*J195 -> 0 | O195: 2 | AA195: 1 | AB195: 0 | AC195: 0 | AZ195: 1 | BA195: =IF(AZ195=1,G195,0) -> 0 | BB195: =IF(AZ195=2,G195,0) -> 0 | BC195: =IF(AZ195=3,G195,0) -> 0 | BD195: =IF(AZ195=4,G195,0) -> 0 | BE195: =IF(AZ195=5,G195,0) -> 0 | CA195: 1 | CB195: 0
C196: Položka obsahuje: | L196: Položka obsahuje: | O196: 3
C197: osazení prefabrikovaného betonového prstence do rychletuhnoucí vysokopevnostní malty (s dodávkou hmot) | L197: - osazení prefabrikovaného betonového prstence do rychletuhnoucí malty (s dodávkou hmot) | O197: 3
C198: - zalití prstence rychletuhnoucí zálivkou do výše prstence (s dodávkou hmoty) | L198: - zalití prstence rychletuhnoucí zálivkou do výše prstence (s dodávkou hmoty) | O198: 3
C199: - vložení kruhového bednění | L199: - vložení kruhového bednění | O199: 3
C200: - doplnění mezikruží asfaltovou směsí do výšky současné podkladní vrstvy, zhutnění | L200: - doplnění mezikruží asfaltovou směsí do výšky současné podkladní vrstvy, zhutnění | O200: 3
C201: - vyjmutí kruhového bednění | L201: - vyjmutí kruhového bednění | O201: 3
C202: - osazení poklopu a zatlačení | L202: - osazení poklopu a zatlačení | O202: 3
... 12 more rows

Sheet 01 01.10 KL
A1: POLOŽKOVÝ ROZPOČET
A2: Rozpočet | C2: 01.10 | D2: Stoka "B" km 0,000 - 0,145.7 | F2: JKSO | G2: 827.21.A3
A4: Objekt | F4: SKP
A5: 01 | C5: Kanalizace | F5: Měrná jednotka | G5: m
A6: Stavba | F6: Počet jednotek | G6: 0
A7: 3395 | C7: Kanalizace a ČOV Benešov u Semil | F7: Náklady na m.j. | G7: =IF(G6=0,,ROUND((F30+F32)/G6,1)) -> 0
A8: Projektant | C8: Vodohospodářský rozvoj a výstavba a.s. | F8: Typ rozpočtu
A9: Zpracovatel projektu
A10: Objednatel | C10: Vodohospodářské sdružení Turnov
A11: Dodavatel | C11: . | F11: Zakázkové číslo
A12: Rozpočtoval | F12: Počet listů
A13: ROZPOČTOVÉ NÁKLADY
A14: Základní rozpočtové náklady
B15: HSV celkem | C15: ='01 01.10 Rek'!E14 -> 0
A16: Z | B16: PSV celkem | C16: ='01 01.10 Rek'!F14 -> 0
A17: R | B17: M práce celkem | C17: ='01 01.10 Rek'!H14 -> 0
A18: N | B18: M dodávky celkem | C18: ='01 01.10 Rek'!G14 -> 0
A19: ZRN celkem | C19: =SUM(C15:C18) -> 0
A21: HZS | C21: ='01 01.10 Rek'!I14 -> 0
A22: ZRN+HZS | C22: =C19+C21 -> 0
A23: ZRN+ost.náklady+HZS | C23: =C22+G23 -> 0
A24: Vypracoval | D24: Za zhotovitele | F24: Za objednatele
A25: Jméno : | D25: Jméno : | F25: Jméno :
A26: Datum : | D26: Datum : | F26: Datum :
A28: Podpis : | D28: Podpis: | F28: Podpis:
A30: Základ pro DPH | C30: 21 | D30: % | F30: =C23-F32 -> 0
A31: DPH | C31: =C30 -> 21 | D31: % | F31: =ROUND(PRODUCT(F30,C31/100),0) -> 0
A32: Základ pro DPH | C32: 0 | D32: % | F32: 0
A33: DPH | C33: =C32 -> 0 | D33: % | F33: =ROUND(PRODUCT(F32,C33/100),0) -> 0
A34: CENA ZA OBJEKT CELKEM | F34: =ROUND(SUM(F30:F33),0) -> 0
A36: Poznámka :

Sheet 01 01.10 Rek
A1: Stavba : | C1: 3395 Kanalizace a ČOV Benešov u Semil | G1: Rozpočet : | H1: 01.10
A2: Objekt : | C2: 01 Kanalizace | G2: Stoka "B" km 0,000 - 0,145.7
A4: REKAPITULACE STAVEBNÍCH DÍLŮ
B6: Stavební díl | E6: HSV | F6: PSV | G6: Dodávka | H6: Montáž | I6: HZS
A7: ='01 01.10 Pol'!B7 -> 1 | B7: ='01 01.10 Pol'!C7 -> Zemní práce | E7: ='01 01.10 Pol'!BA98 -> 0 | F7: ='01 01.10 Pol'!BB98 -> 0 | G7: ='01 01.10 Pol'!BC98 -> 0 | H7: ='01 01.10 Pol'!BD98 -> 0 | I7: ='01 01.10 Pol'!BE98 -> 0
A8: ='01 01.10 Pol'!B99 -> 21 | B8: ='01 01.10 Pol'!C99 -> Úprava podloží a základ.spáry | E8: ='01 01.10 Pol'!BA103 -> 0 | F8: ='01 01.10 Pol'!BB103 -> 0 | G8: ='01 01.10 Pol'!BC103 -> 0 | H8: ='01 01.10 Pol'!BD103 -> 0 | I8: ='01 01.10 Pol'!BE103 -> 0
A9: ='01 01.10 Pol'!B104 -> 45 | B9: ='01 01.10 Pol'!C104 -> Podkladní a vedlejší konstrukce | E9: ='01 01.10 Pol'!BA129 -> 0 | F9: ='01 01.10 Pol'!BB129 -> 0 | G9: ='01 01.10 Pol'!BC129 -> 0 | H9: ='01 01.10 Pol'!BD129 -> 0 | I9: ='01 01.10 Pol'!BE129 -> 0
A10: ='01 01.10 Pol'!B130 -> 5 | B10: ='01 01.10 Pol'!C130 -> Komunikace | E10: ='01 01.10 Pol'!BA134 -> 0 | F10: ='01 01.10 Pol'!BB134 -> 0 | G10: ='01 01.10 Pol'!BC134 -> 0 | H10: ='01 01.10 Pol'!BD134 -> 0 | I10: ='01 01.10 Pol'!BE134 -> 0
A11: ='01 01.10 Pol'!B135 -> 8 | B11: ='01 01.10 Pol'!C135 -> Trubní vedení | E11: ='01 01.10 Pol'!BA223 -> 0 | F11: ='01 01.10 Pol'!BB223 -> 0 | G11: ='01 01.10 Pol'!BC223 -> 0 | H11: ='01 01.10 Pol'!BD223 -> 0 | I11: ='01 01.10 Pol'!BE223 -> 0
A12: ='01 01.10 Pol'!B224 -> 93 | B12: ='01 01.10 Pol'!C224 -> Dokončovací práce inženýrských staveb | E12: ='01 01.10 Pol'!BA240 -> 0 | F12: ='01 01.10 Pol'!BB240 -> 0 | G12: ='01 01.10 Pol'!BC240 -> 0 | H12: ='01 01.10 Pol'!BD240 -> 0 | I12: ='01 01.10 Pol'!BE240 -> 0
A13: ='01 01.10 Pol'!B241 -> 99 | B13: ='01 01.10 Pol'!C241 -> Staveništní přesun hmot | E13: ='01 01.10 Pol'!BA244 -> 0 | F13: ='01 01.10 Pol'!BB244 -> 0 | G13: ='01 01.10 Pol'!BC244 -> 0 | H13: ='01 01.10 Pol'!BD244 -> 0 | I13: ='01 01.10 Pol'!BE244 -> 0
B14: CELKEM OBJEKT | E14: =SUM(E7:E13) -> 0 | F14: =SUM(F7:F13) -> 0 | G14: =SUM(G7:G13) -> 0 | H14: =SUM(H7:H13) -> 0 | I14: =SUM(I7:I13) -> 0

Sheet 01 01.10 Pol
A1: Položkový rozpočet
A3: Stavba : | C3: 3395 Kanalizace a ČOV Benešov u Semil | E3: Rozpočet: | F3: ='01 01.10 Rek'!H1 -> 01.10
A4: Objekt : | C4: 01 Kanalizace | E4: ='01 01.10 Rek'!G2 -> Stoka "B" km 0,000 - 0,145.7
A6: P.č. | B6: Číslo položky | C6: Název položky | D6: MJ | E6: množství | F6: cena / MJ | G6: celkem (Kč) | H6: Jednotková hmotnost | I6: Celková hmotnost | J6: Jednotková dem.hmot. | K6: Celková dem.hmot.
A7: Díl: | B7: 1 | C7: Zemní práce | O7: 1
A8: 1 | B8: 115101201RRX | C8: Přečerpávání nebo převedení splašků a dešť. vod | D8: h | E8: 200 | G8: =E8*F8 -> 0 | H8: 0 | I8: =E8*H8 -> 0 | J8: 0 | K8: =E8*J8 -> 0 | O8: 2 | AA8: 1 | AB8: 1 | AC8: 1 | AZ8: 1 | BA8: =IF(AZ8=1,G8,0) -> 0 | BB8: =IF(AZ8=2,G8,0) -> 0 | BC8: =IF(AZ8=3,G8,0) -> 0 | BD8: =IF(AZ8=4,G8,0) -> 0 | BE8: =IF(AZ8=5,G8,0) -> 0 | CA8: 1 | CB8: 1
C9: Převedení a čerpání splašků nebo dešťových vod dle zvolené technologie zhotovitele stavby. | L9: Převedení a čerpání splašků nebo dešťových vod dle zvolené technologie zhotovitele stavby. | O9: 3
C10: (Množství bude určeno na stavbě dle skutečnosti) | L10: (Množství bude určeno na stavbě dle skutečnosti) | O10: 3
A11: 2 | B11: 130001101RRX | C11: Příplatek za ztížené hloubení v blízkosti vedení | D11: m3 | E11: 37.959 | G11: =E11*F11 -> 0 | H11: 0 | I11: =E11*H11 -> 0 | J11: 0 | K11: =E11*J11 -> 0 | O11: 2 | AA11: 1 | AB11: 1 | AC11: 1 | AZ11: 1 | BA11: =IF(AZ11=1,G11,0) -> 0 | BB11: =IF(AZ11=2,G11,0) -> 0 | BC11: =IF(AZ11=3,G11,0) -> 0 | BD11: =IF(AZ11=4,G11,0) -> 0 | BE11: =IF(AZ11=5,G11,0) -> 0 | CA11: 1 | CB11: 1
C12: Včetně případných nutných dokopávem a ručního výkopu podél sousedících inženýrských sítí. | L12: Včetně případných nutných dokopávem a ručního výkopu podél sousedících inženýrských sítí. | O12: 3
C13: Součástí položky je i dočasné zajištění inženýrských sítí v prostoru výkopů (potrubí, kabely a pod.) | L13: Součástí položky je i dočasné zajištění inženýrských sítí v prostoru výkopů (potrubí, kabely a pod.) | O13: 3
C14: Stoka "B" KT DN400: | E14: 0 | M14: Stoka "B" KT DN400:
C15: Výkopy: | E15: 0 | M15: Výkopy:
C16: V hornině tř. 3 - 5 - 10%:379,5901*0,1 | E16: 37.959 | M16: V hornině tř. 3 - 5 - 10%:379,5901*0,1
A17: 3 | B17: 132201212R00 | C17: Hloubení rýh š.do 200 cm hor.3 do 1000m3,STROJNĚ | D17: m3 | E17: 227.7541 | G17: =E17*F17 -> 0 | H17: 0 | I17: =E17*H17 -> 0 | J17: 0 | K17: =E17*J17 -> 0 | O17: 2 | AA17: 1 | AB17: 1 | AC17: 1 | AZ17: 1 | BA17: =IF(AZ17=1,G17,0) -> 0 | BB17: =IF(AZ17=2,G17,0) -> 0 | BC17: =IF(AZ17=3,G17,0) -> 0 | BD17: =IF(AZ17=4,G17,0) -> 0 | BE17: =IF(AZ17=5,G17,0) -> 0 | CA17: 1 | CB17: 1
C18: Položka obsahuje hloubení rýh traktorbagrem, naložení výkopku na dopravní prostředek pro svislé, nebo vodorovné přemístění, popř. přemístění výkopku do 3 m (po povrchu území), případné zajištění rypadel polštáři, udržování pracoviště a ochranu výkopiště proti stékání srážkové vody z okolního terénu i s jejím odvodněním, nebo odvedením, přesekání a odstranění kořenů ve výkopišti, odstranění napadávek, urovnání dna výkopu. | L18: Položka obsahuje hloubení rýh traktorbagrem, naložení výkopku na dopravní prostředek pro svislé, nebo vodorovné přemístění, popř. přemístění výkopku do 3 m (po povrchu území), případné zajištění rypadel polštáři, udržování pracoviště a ochranu výkopiště proti stékání srážkové vody z okolního terénu i s jejím odvodněním, nebo odvedením, přesekání a odstranění kořenů ve výkopišti, odstranění napadávek, urovnání dna výkopu. | O18: 3
C19: Stoka "B" KT DN400: | E19: 0 | M19: Stoka "B" KT DN400:
C20: Výkopy: | E20: 0 | M20: Výkopy:
C21: Začátek provozního součtu | E21: 0 | M21: Začátek provozního součtu
C22: ŠA-0 - ŠB-1:48,50*1,30*(3,63+2,38)/2 | E22: 189.4652 | M22: ŠA-0 - ŠB-1:48,50*1,30*(3,63+2,38)/2
C23: ŠB-1 - ŠB-6:(137,70-48,50)*1,30*(2,38+2,05)/2 | E23: 256.8514 | M23: ŠB-1 - ŠB-6:(137,70-48,50)*1,30*(2,38+2,05)/2
C24: ŠB-6 - ŠB-7:(145,70-137,70)*1,30*(2,05+1,90)/2 | E24: 20.54 | M24: ŠB-6 - ŠB-7:(145,70-137,70)*1,30*(2,05+1,90)/2
C25: Prohloubení pro RŠ:1,60*1,60*0,20*7 | E25: 3.584 | M25: Prohloubení pro RŠ:1,60*1,60*0,20*7
C26: Rozšíření pro RŠ:1,60*(1,60-1,30)*11,53 | E26: 5.5344 | M26: Rozšíření pro RŠ:1,60*(1,60-1,30)*11,53
C27: Odpočet objemu konstrukce komunikace:-(145,70*1,30+1,60*(1,60-1,30)*7)*0,50 | E27: -96.385 | M27: Odpočet objemu konstrukce komunikace:-(145,70*1,30+1,60*(1,60-1,30)*7)*0,50
C28: Konec provozního součtu | E28: 379.59 | M28: Konec provozního součtu
C29: V hornině tř. 3 - 60%:379,5901*0,6 | E29: 227.7541 | M29: V hornině tř. 3 - 60%:379,5901*0,6
A30: 4 | B30: 132201219R00 | C30: Přípl.za lepivost,hloubení rýh 200cm,hor.3,STROJNĚ | D30: m3 | E30: 113.877 | G30: =E30*F30 -> 0 | H30: 0 | I30: =E30*H30 -> 0 | J30: 0 | K30: =E30*J30 -> 0 | O30: 2 | AA30: 1 | AB30: 1 | AC30: 1 | AZ30: 1 | BA30: =IF(AZ30=1,G30,0) -> 0 | BB30: =IF(AZ30=2,G30,0) -> 0 | BC30: =IF(AZ30=3,G30,0) -> 0 | BD30: =IF(AZ30=4,G30,0) -> 0 | BE30: =IF(AZ30=5,G30,0) -> 0 | CA30: 1 | CB30: 1
C31: Stoka "B" KT DN400: | E31: 0 | M31: Stoka "B" KT DN400:
C32: Výkopy: | E32: 0 | M32: Výkopy:
C33: V hornině tř. 3 - 60%:379,5901*0,6*0,5 | E33: 113.877 | M33: V hornině tř. 3 - 60%:379,5901*0,6*0,5
A34: 5 | B34: 132301212R00 | C34: Hloubení rýh š.do 200 cm hor.4 do 1000 m3, STROJNĚ | D34: m3 | E34: 113.877 | G34: =E34*F34 -> 0 | H34: 0 | I34: =E34*H34 -> 0 | J34: 0 | K34: =E34*J34 -> 0 | O34: 2 | AA34: 1 | AB34: 1 | AC34: 1 | AZ34: 1 | BA34: =IF(AZ34=1,G34,0) -> 0 | BB34: =IF(AZ34=2,G34,0) -> 0 | BC34: =IF(AZ34=3,G34,0) -> 0 | BD34: =IF(AZ34=4,G34,0) -> 0 | BE34: =IF(AZ34=5,G34,0) -> 0 | CA34: 1 | CB34: 1
C35: Položka obsahuje hloubení rýh traktorbagrem, naložení výkopku na dopravní prostředek pro svislé, nebo vodorovné přemístění, popř. přemístění výkopku do 3 m (po povrchu území), případné zajištění rypadel polštáři, udržování pracoviště a ochranu výkopiště proti stékání srážkové vody z okolního terénu i s jejím odvodněním, nebo odvedením, přesekání a odstranění kořenů ve výkopišti, odstranění napadávek, urovnání dna výkopu. | L35: Položka obsahuje hloubení rýh traktorbagrem, naložení výkopku na dopravní prostředek pro svislé, nebo vodorovné přemístění, popř. přemístění výkopku do 3 m (po povrchu území), případné zajištění rypadel polštáři, udržování pracoviště a ochranu výkopiště proti stékání srážkové vody z okolního terénu i s jejím odvodněním, nebo odvedením, přesekání a odstranění kořenů ve výkopišti, odstranění napadávek, urovnání dna výkopu. | O35: 3
C36: Stoka "B" KT DN400: | E36: 0 | M36: Stoka "B" KT DN400:
C37: Výkopy: | E37: 0 | M37: Výkopy:
C38: V hornině tř. 4 - 30%:379,5901*0,3 | E38: 113.877 | M38: V hornině tř. 4 - 30%:379,5901*0,3
A39: 6 | B39: 132301219R00 | C39: Přípl.za lepivost,hloubení rýh 200cm,hor.4,STROJNĚ | D39: m3 | E39: 56.9385 | G39: =E39*F39 -> 0 | H39: 0 | I39: =E39*H39 -> 0 | J39: 0 | K39: =E39*J39 -> 0 | O39: 2 | AA39: 1 | AB39: 1 | AC39: 1 | AZ39: 1 | BA39: =IF(AZ39=1,G39,0) -> 0 | BB39: =IF(AZ39=2,G39,0) -> 0 | BC39: =IF(AZ39=3,G39,0) -> 0 | BD39: =IF(AZ39=4,G39,0) -> 0 | BE39: =IF(AZ39=5,G39,0) -> 0 | CA39: 1 | CB39: 1
C40: Stoka "B" KT DN400: | E40: 0 | M40: Stoka "B" KT DN400:
C41: Výkopy: | E41: 0 | M41: Výkopy:
C42: V hornině tř. 4 - 30%:379,5901*0,3*0,5 | E42: 56.9385 | M42: V hornině tř. 4 - 30%:379,5901*0,3*0,5
A43: 7 | B43: 132401211RRX | C43: Hloubení rýh šířky do 200 cm v hor.5 STROJNĚ včetně případného dolamování ve vrstvě do 0,5 m | D43: m3 | E43: 37.959 | G43: =E43*F43 -> 0 | H43: 0.01041 | I43: =E43*H43 -> 0.39515319 | J43: 0 | K43: =E43*J43 -> 0 | O43: 2 | AA43: 1 | AB43: 1 | AC43: 1 | AZ43: 1 | BA43: =IF(AZ43=1,G43,0) -> 0 | BB43: =IF(AZ43=2,G43,0) -> 0 | BC43: =IF(AZ43=3,G43,0) -> 0 | BD43: =IF(AZ43=4,G43,0) -> 0 | BE43: =IF(AZ43=5,G43,0) -> 0 | CA43: 1 | CB43: 1
C44: Položka obsahuje hloubení rýh traktorbagrem, naložení výkopku na dopravní prostředek pro svislé, nebo vodorovné přemístění, popř. přemístění výkopku do 3 m (po povrchu území), případné zajištění rypadel polštáři, udržování pracoviště a ochranu výkopiště proti stékání srážkové vody z okolního terénu i s jejím odvodněním, nebo odvedením, přesekání a odstranění kořenů ve výkopišti, odstranění napadávek, urovnání dna výkopu.včetně případného dolamování ve vrstvě do 0,5 m | L44: Položka obsahuje hloubení rýh traktorbagrem, naložení výkopku na dopravní prostředek pro svislé, nebo vodorovné přemístění, popř. přemístění výkopku do 3 m (po povrchu území), případné zajištění rypadel polštáři, udržování pracoviště a ochranu výkopiště proti stékání srážkové vody z okolního terénu i s jejím odvodněním, nebo odvedením, přesekání a odstranění kořenů ve výkopišti, odstranění napadávek, urovnání dna výkopu.včetně případného dolamování ve vrstvě do 0,5 m | O44: 3
C45: Stoka "B" KT DN400: | E45: 0 | M45: Stoka "B" KT DN400:
C46: Výkopy: | E46: 0 | M46: Výkopy:
C47: V hornině tř. 5 - 10%:379,5901*0,1 | E47: 37.959 | M47: V hornině tř. 5 - 10%:379,5901*0,1
A48: 8 | B48: 151101101R00 | C48: Pažení a rozepření stěn rýh - příložné - hl.do 2 m | D48: m2 | E48: 31.6 | G48: =E48*F48 -> 0 | H48: 0.00099 | I48: =E48*H48 -> 0.031284 | J48: 0 | K48: =E48*J48 -> 0 | O48: 2 | AA48: 1 | AB48: 1 | AC48: 1 | AZ48: 1 | BA48: =IF(AZ48=1,G48,0) -> 0 | BB48: =IF(AZ48=2,G48,0) -> 0 | BC48: =IF(AZ48=3,G48,0) -> 0 | BD48: =IF(AZ48=4,G48,0) -> 0 | BE48: =IF(AZ48=5,G48,0) -> 0 | CA48: 1 | CB48: 1
C49: Stoka "B" KT DN400: | E49: 0 | M49: Stoka "B" KT DN400:
C50: Výkopy: | E50: 0 | M50: Výkopy:
C51: ŠB-6 - ŠB-7:(145,70-137,70)*(2,05+1,90)/2*2 | E51: 31.6 | M51: ŠB-6 - ŠB-7:(145,70-137,70)*(2,05+1,90)/2*2
A52: 9 | B52: 151101102R00 | C52: Pažení a rozepření stěn rýh - příložné - hl.do 4 m | D52: m2 | E52: 686.641 | G52: =E52*F52 -> 0 | H52: 0.00086 | I52: =E52*H52 -> 0.59051126 | J52: 0 | K52: =E52*J52 -> 0 | O52: 2 | AA52: 1 | AB52: 1 | AC52: 1 | AZ52: 1 | BA52: =IF(AZ52=1,G52,0) -> 0 | BB52: =IF(AZ52=2,G52,0) -> 0 | BC52: =IF(AZ52=3,G52,0) -> 0 | BD52: =IF(AZ52=4,G52,0) -> 0 | BE52: =IF(AZ52=5,G52,0) -> 0 | CA52: 1 | CB52: 1
C53: Stoka "B" KT DN400: | E53: 0 | M53: Stoka "B" KT DN400:
C54: Výkopy: | E54: 0 | M54: Výkopy:
C55: ŠA-0 - ŠB-1:48,50*(3,63+2,38)/2*2 | E55: 291.485 | M55: ŠA-0 - ŠB-1:48,50*(3,63+2,38)/2*2
C56: ŠB-1 - ŠB-6:(137,70-48,50)*(2,38+2,05)/2*2 | E56: 395.156 | M56: ŠB-1 - ŠB-6:(137,70-48,50)*(2,38+2,05)/2*2
A57: 10 | B57: 151101111R00 | C57: Odstranění pažení stěn rýh - příložné - hl. do 2 m | D57: m2 | E57: 31.6 | G57: =E57*F57 -> 0 | H57: 0 | I57: =E57*H57 -> 0 | J57: 0 | K57: =E57*J57 -> 0 | O57: 2 | AA57: 1 | AB57: 1 | AC57: 1 | AZ57: 1 | BA57: =IF(AZ57=1,G57,0) -> 0 | BB57: =IF(AZ57=2,G57,0) -> 0 | BC57: =IF(AZ57=3,G57,0) -> 0 | BD57: =IF(AZ57=4,G57,0) -> 0 | BE57: =IF(AZ57=5,G57,0) -> 0 | CA57: 1 | CB57: 1
C58: Stoka "B" KT DN400: | E58: 0 | M58: Stoka "B" KT DN400:
C59: Výkopy: | E59: 0 | M59: Výkopy:
C60: ŠB-6 - ŠB-7:(145,70-137,70)*(2,05+1,90)/2*2 | E60: 31.6 | M60: ŠB-6 - ŠB-7:(145,70-137,70)*(2,05+1,90)/2*2
A61: 11 | B61: 151101112R00 | C61: Odstranění pažení stěn rýh - příložné - hl. do 4 m | D61: m2 | E61: 686.641 | G61: =E61*F61 -> 0 | H61: 0 | I61: =E61*H61 -> 0 | J61: 0 | K61: =E61*J61 -> 0 | O61: 2 | AA61: 1 | AB61: 1 | AC61: 1 | AZ61: 1 | BA61: =IF(AZ61=1,G61,0) -> 0 | BB61: =IF(AZ61=2,G61,0) -> 0 | BC61: =IF(AZ61=3,G61,0) -> 0 | BD61: =IF(AZ61=4,G61,0) -> 0 | BE61: =IF(AZ61=5,G61,0) -> 0 | CA61: 1 | CB61: 1
C62: Stoka "B" KT DN400: | E62: 0 | M62: Stoka "B" KT DN400:
C63: Výkopy: | E63: 0 | M63: Výkopy:
C64: ŠA-0 - ŠB-1:48,50*(3,63+2,38)/2*2 | E64: 291.485 | M64: ŠA-0 - ŠB-1:48,50*(3,63+2,38)/2*2
C65: ŠB-1 - ŠB-6:(137,70-48,50)*(2,38+2,05)/2*2 | E65: 395.156 | M65: ŠB-1 - ŠB-6:(137,70-48,50)*(2,38+2,05)/2*2
A66: 12 | B66: 162701105RSZ | C66: Vodorovné přemístění výkopku z hor.1-7 na skládku zhotovitele | D66: m3 | E66: 379.5901 | G66: =E66*F66 -> 0 | H66: 0 | I66: =E66*H66 -> 0 | J66: 0 | K66: =E66*J66 -> 0 | O66: 2 | AA66: 1 | AB66: 1 | AC66: 1 | AZ66: 1 | BA66: =IF(AZ66=1,G66,0) -> 0 | BB66: =IF(AZ66=2,G66,0) -> 0 | BC66: =IF(AZ66=3,G66,0) -> 0 | BD66: =IF(AZ66=4,G66,0) -> 0 | BE66: =IF(AZ66=5,G66,0) -> 0 | CA66: 1 | CB66: 1
C67: Stoka "B" KT DN400: | E67: 0 | M67: Stoka "B" KT DN400:
C68: Výkopy: | E68: 0 | M68: Výkopy:
C69: V hornině tř. 3 - 5:379,5901 | E69: 379.5901 | M69: V hornině tř. 3 - 5:379,5901
A70: 13 | B70: 174101101R00 | C70: Zásyp jam, rýh, šachet se zhutněním | D70: m3 | E70: 186.9992 | G70: =E70*F70 -> 0 | H70: 0 | I70: =E70*H70 -> 0 | J70: 0 | K70: =E70*J70 -> 0 | O70: 2 | AA70: 1 | AB70: 1 | AC70: 1 | AZ70: 1 | BA70: =IF(AZ70=1,G70,0) -> 0 | BB70: =IF(AZ70=2,G70,0) -> 0 | BC70: =IF(AZ70=3,G70,0) -> 0 | BD70: =IF(AZ70=4,G70,0) -> 0 | BE70: =IF(AZ70=5,G70,0) -> 0 | CA70: 1 | CB70: 1
C71: Položka obsahuje strojní přemístění materiálu pro zásyp ze vzdálenosti do 10 m od okraje zásypu. | L71: Položka obsahuje strojní přemístění materiálu pro zásyp ze vzdálenosti do 10 m od okraje zásypu. | O71: 3
O72: 3
C73: Stoka "B" KT DN400: | E73: 0 | M73: Stoka "B" KT DN400:
C74: Zásypy ŠD fr. 0-63 mm:186,9992 | E74: 186.9992 | M74: Zásypy ŠD fr. 0-63 mm:186,9992
C75: Začátek provozního součtu | E75: 0 | M75: Začátek provozního součtu
C76: Výkopy: | E76: 0 | M76: Výkopy:
C77: V hornině tř. 3 - 5 - 10%:379,5901 | E77: 379.5901 | M77: V hornině tř. 3 - 5 - 10%:379,5901
C78: Odpočet objemu lože, potrubí a obsypů:-145,70*1,2168 | E78: -177.2878 | M78: Odpočet objemu lože, potrubí a obsypů:-145,70*1,2168
C79: Odpočet objemu RŠ:-15,3031 | E79: -15.3031 | M79: Odpočet objemu RŠ:-15,3031
C80: Konec provozního součtu | E80: 186.9992 | M80: Konec provozního součtu
A81: 14 | B81: 175101101R00 | C81: Obsyp potrubí bez prohození sypaniny | D81: m3 | E81: 121.8052 | G81: =E81*F81 -> 0 | H81: 0 | I81: =E81*H81 -> 0 | J81: 0 | K81: =E81*J81 -> 0 | O81: 2 | AA81: 1 | AB81: 1 | AC81: 1 | AZ81: 1 | BA81: =IF(AZ81=1,G81,0) -> 0 | BB81: =IF(AZ81=2,G81,0) -> 0 | BC81: =IF(AZ81=3,G81,0) -> 0 | BD81: =IF(AZ81=4,G81,0) -> 0 | BE81: =IF(AZ81=5,G81,0) -> 0 | CA81: 1 | CB81: 1
C82: Stoka "B" KT DN400:145,70*0,836 | E82: 121.8052 | M82: Stoka "B" KT DN400:145,70*0,836
A83: 15 | B83: 199000002R00 | C83: Poplatek za skládku horniny 1- 7 č. dle katal. odpadů 17 05 04 | D83: m3 | E83: 379.5901 | G83: =E83*F83 -> 0 | H83: 0 | I83: =E83*H83 -> 0 | J83: 0 | K83: =E83*J83 -> 0 | O83: 2 | AA83: 1 | AB83: 1 | AC83: 1 | AZ83: 1 | BA83: =IF(AZ83=1,G83,0) -> 0 | BB83: =IF(AZ83=2,G83,0) -> 0 | BC83: =IF(AZ83=3,G83,0) -> 0 | BD83: =IF(AZ83=4,G83,0) -> 0 | BE83: =IF(AZ83=5,G83,0) -> 0 | CA83: 1 | CB83: 1
C84: Stoka "B" KT DN400: | E84: 0 | M84: Stoka "B" KT DN400:
C85: Výkopy: | E85: 0 | M85: Výkopy:
C86: V hornině tř. 3 - 5:379,5901 | E86: 379.5901 | M86: V hornině tř. 3 - 5:379,5901
A87: 16 | B87: 58337308.R | C87: Štěrkopísek frakce 0-2 tř.B | D87: t | E87: 242.7249 | G87: =E87*F87 -> 0 | H87: 1 | I87: =E87*H87 -> 242.7249 | K87: =E87*J87 -> 0 | O87: 2 | AA87: 3 | AB87: 1 | AC87: 58337308.R | AZ87: 1 | BA87: =IF(AZ87=1,G87,0) -> 0 | BB87: =IF(AZ87=2,G87,0) -> 0 | BC87: =IF(AZ87=3,G87,0) -> 0 | BD87: =IF(AZ87=4,G87,0) -> 0 | BE87: =IF(AZ87=5,G87,0) -> 0 | CA87: 3 | CB87: 1
C88: Stoka "B" KT DN400:145,70*0,836*1,973*1,01 | E88: 242.7249 | M88: Stoka "B" KT DN400:145,70*0,836*1,973*1,01
A89: 17 | B89: 58344197R | C89: Štěrkodrtě frakce 0-63 A | D89: t | E89: 353.752 | G89: =E89*F89 -> 0 | H89: 1 | I89: =E89*H89 -> 353.752 | K89: =E89*J89 -> 0 | O89: 2 | AA89: 3 | AB89: 1 | AC89: 58344197R | AZ89: 1 | BA89: =IF(AZ89=1,G89,0) -> 0 | BB89: =IF(AZ89=2,G89,0) -> 0 | BC89: =IF(AZ89=3,G89,0) -> 0 | BD89: =IF(AZ89=4,G89,0) -> 0 | BE89: =IF(AZ89=5,G89,0) -> 0 | CA89: 3 | CB89: 1
C90: Stoka "B" KT DN400: | E90: 0 | M90: Stoka "B" KT DN400:
C91: Zásypy ŠD fr. 0-63 mm:186,9992*1,873*1,01 | E91: 353.752 | M91: Zásypy ŠD fr. 0-63 mm:186,9992*1,873*1,01
C92: Začátek provozního součtu | E92: 0 | M92: Začátek provozního součtu
C93: Výkopy: | E93: 0 | M93: Výkopy:
C94: V hornině tř. 3 - 5 - 10%:379,5901 | E94: 379.5901 | M94: V hornině tř. 3 - 5 - 10%:379,5901
C95: Odpočet objemu lože, potrubí a obsypů:-145,70*1,2168 | E95: -177.2878 | M95: Odpočet objemu lože, potrubí a obsypů:-145,70*1,2168
C96: Odpočet objemu RŠ:-15,3031 | E96: -15.3031 | M96: Odpočet objemu RŠ:-15,3031
C97: Konec provozního součtu | E97: 186.9992 | M97: Konec provozního součtu
B98: Celkem za | C98: 1 Zemní práce | G98: =SUM(G7:G97) -> 0 | I98: =SUM(I7:I97) -> 597.4938484 | K98: =SUM(K7:K97) -> 0 | O98: 4 | BA98: =SUM(BA7:BA97) -> 0 | BB98: =SUM(BB7:BB97) -> 0 | BC98: =SUM(BC7:BC97) -> 0 | BD98: =SUM(BD7:BD97) -> 0 | BE98: =SUM(BE7:BE97) -> 0
A99: Díl: | B99: 21 | C99: Úprava podloží a základ.spáry | O99: 1
A100: 18 | B100: 212810010RAC | C100: Trativody z PVC drenážních flexibilních trubek lože štěrkopísek a obsyp kamenivo, trubky d 100 mm | D100: m | E100: 145.7 | G100: =E100*F100 -> 0 | H100: 0.43651 | I100: =E100*H100 -> 63.599507 | J100: 0 | K100: =E100*J100 -> 0 | O100: 2 | AA100: 1 | AB100: 1 | AC100: 1 | AZ100: 1 | BA100: =IF(AZ100=1,G100,0) -> 0 | BB100: =IF(AZ100=2,G100,0) -> 0 | BC100: =IF(AZ100=3,G100,0) -> 0 | BD100: =IF(AZ100=4,G100,0) -> 0 | BE100: =IF(AZ100=5,G100,0) -> 0 | CA100: 1 | CB100: 1
C101: Stoka "B" KT DN400: | E101: 0 | M101: Stoka "B" KT DN400:
C102: Drenáž DN100:145,70 | E102: 145.7 | M102: Drenáž DN100:145,70
B103: Celkem za | C103: 21 Úprava podloží a základ.spáry | G103: =SUM(G99:G102) -> 0 | I103: =SUM(I99:I102) -> 63.599507 | K103: =SUM(K99:K102) -> 0 | O103: 4 | BA103: =SUM(BA99:BA102) -> 0 | BB103: =SUM(BB99:BB102) -> 0 | BC103: =SUM(BC99:BC102) -> 0 | BD103: =SUM(BD99:BD102) -> 0 | BE103: =SUM(BE99:BE102) -> 0
A104: Díl: | B104: 45 | C104: Podkladní a vedlejší konstrukce | O104: 1
A105: 19 | B105: 452112111R00 | C105: Osazení beton. prstenců pod poklopy,výšky do100 mm | D105: kus | E105: 8 | G105: =E105*F105 -> 0 | H105: 0.0066 | I105: =E105*H105 -> 0.0528 | J105: 0 | K105: =E105*J105 -> 0 | O105: 2 | AA105: 1 | AB105: 1 | AC105: 1 | AZ105: 1 | BA105: =IF(AZ105=1,G105,0) -> 0 | BB105: =IF(AZ105=2,G105,0) -> 0 | BC105: =IF(AZ105=3,G105,0) -> 0 | BD105: =IF(AZ105=4,G105,0) -> 0 | BE105: =IF(AZ105=5,G105,0) -> 0 | CA105: 1 | CB105: 1
C106: Volba položky se řídí výškou prstence nebo rámu. V položkách nejsou zakalkulovány náklady na dodávku betonových výrobků; | L106: Volba položky se řídí výškou prstence nebo rámu. V položkách nejsou zakalkulovány náklady na dodávku betonových výrobků; | O106: 3
C107: Stoka "B" KT DN400: | E107: 0 | M107: Stoka "B" KT DN400:
C108: VP H40:4 | E108: 4 | M108: VP H40:4
C109: VP H60:1 | E109: 1 | M109: VP H60:1
C110: VP H100:3 | E110: 3 | M110: VP H100:3
A111: 20 | B111: 452112121R00 | C111: Osazení beton. prstenců pod poklopy,výšky do200 mm | D111: kus | E111: 4 | G111: =E111*F111 -> 0 | H111: 0.0066 | I111: =E111*H111 -> 0.0264 | J111: 0 | K111: =E111*J111 -> 0 | O111: 2 | AA111: 1 | AB111: 1 | AC111: 1 | AZ111: 1 | BA111: =IF(AZ111=1,G111,0) -> 0 | BB111: =IF(AZ111=2,G111,0) -> 0 | BC111: =IF(AZ111=3,G111,0) -> 0 | BD111: =IF(AZ111=4,G111,0) -> 0 | BE111: =IF(AZ111=5,G111,0) -> 0 | CA111: 1 | CB111: 1
C112: Stoka "B" KT DN400: | E112: 0 | M112: Stoka "B" KT DN400:
C113: VP H120:4 | E113: 4 | M113: VP H120:4
A114: 21 | B114: 452312131R00 | C114: Sedlové lože pod potrubí z betonu C 12/15 | D114: m3 | E114: 49.2466 | G114: =E114*F114 -> 0 | H114: 2.5 | I114: =E114*H114 -> 123.1165 | J114: 0 | K114: =E114*J114 -> 0 | O114: 2 | AA114: 1 | AB114: 1 | AC114: 1 | AZ114: 1 | BA114: =IF(AZ114=1,G114,0) -> 0 | BB114: =IF(AZ114=2,G114,0) -> 0 | BC114: =IF(AZ114=3,G114,0) -> 0 | BD114: =IF(AZ114=4,G114,0) -> 0 | BE114: =IF(AZ114=5,G114,0) -> 0 | CA114: 1 | CB114: 1
C115: Položka je určena pro práce v otevřeném výkopu | L115: Položka je určena pro práce v otevřeném výkopu | O115: 3
C116: Stoka "B" KT DN400:145,70*0,338 | E116: 49.2466 | M116: Stoka "B" KT DN400:145,70*0,338
A117: 22 | B117: 59224346.A.R | C117: Prstenec vyrovn šachetní TBW-Q.1 63/4 | D117: kus | E117: 4.04 | G117: =E117*F117 -> 0 | H117: 0.028 | I117: =E117*H117 -> 0.11312 | K117: =E117*J117 -> 0 | O117: 2 | AA117: 3 | AB117: 1 | AC117: 59224346.A.R | AZ117: 1 | BA117: =IF(AZ117=1,G117,0) -> 0 | BB117: =IF(AZ117=2,G117,0) -> 0 | BC117: =IF(AZ117=3,G117,0) -> 0 | BD117: =IF(AZ117=4,G117,0) -> 0 | BE117: =IF(AZ117=5,G117,0) -> 0 | CA117: 3 | CB117: 1
C118: Stoka "B" KT DN400: | E118: 0 | M118: Stoka "B" KT DN400:
C119: VP H40:4*1,01 | E119: 4.04 | M119: VP H40:4*1,01
A120: 23 | B120: 59224347.A.R | C120: Prstenec vyrovn šachetní TBW-Q.1 63/6 | D120: kus | E120: 1.01 | G120: =E120*F120 -> 0 | H120: 0.04 | I120: =E120*H120 -> 0.0404 | K120: =E120*J120 -> 0 | O120: 2 | AA120: 3 | AB120: 1 | AC120: 59224347.A.R | AZ120: 1 | BA120: =IF(AZ120=1,G120,0) -> 0 | BB120: =IF(AZ120=2,G120,0) -> 0 | BC120: =IF(AZ120=3,G120,0) -> 0 | BD120: =IF(AZ120=4,G120,0) -> 0 | BE120: =IF(AZ120=5,G120,0) -> 0 | CA120: 3 | CB120: 1
C121: Stoka "B" KT DN400: | E121: 0 | M121: Stoka "B" KT DN400:
C122: VP H60:1*1,01 | E122: 1.01 | M122: VP H60:1*1,01
A123: 24 | B123: 59224349.A.R | C123: Prstenec vyrovn šachetní TBW-Q.1 63/10 | D123: kus | E123: 3.03 | G123: =E123*F123 -> 0 | H123: 0.068 | I123: =E123*H123 -> 0.20604 | K123: =E123*J123 -> 0 | O123: 2 | AA123: 3 | AB123: 1 | AC123: 59224349.A.R | AZ123: 1 | BA123: =IF(AZ123=1,G123,0) -> 0 | BB123: =IF(AZ123=2,G123,0) -> 0 | BC123: =IF(AZ123=3,G123,0) -> 0 | BD123: =IF(AZ123=4,G123,0) -> 0 | BE123: =IF(AZ123=5,G123,0) -> 0 | CA123: 3 | CB123: 1
C124: Stoka "B" KT DN400: | E124: 0 | M124: Stoka "B" KT DN400:
C125: VP H100:3*1,01 | E125: 3.03 | M125: VP H100:3*1,01
A126: 25 | B126: 59224350.A.R | C126: Prstenec vyrovn šachetní TBW-Q.1 63/12 | D126: kus | E126: 4.04 | G126: =E126*F126 -> 0 | H126: 0.081 | I126: =E126*H126 -> 0.32724 | K126: =E126*J126 -> 0 | O126: 2 | AA126: 3 | AB126: 1 | AC126: 59224350.A.R | AZ126: 1 | BA126: =IF(AZ126=1,G126,0) -> 0 | BB126: =IF(AZ126=2,G126,0) -> 0 | BC126: =IF(AZ126=3,G126,0) -> 0 | BD126: =IF(AZ126=4,G126,0) -> 0 | BE126: =IF(AZ126=5,G126,0) -> 0 | CA126: 3 | CB126: 1
C127: Stoka "B" KT DN400: | E127: 0 | M127: Stoka "B" KT DN400:
C128: VP H120:4*1,01 | E128: 4.04 | M128: VP H120:4*1,01
B129: Celkem za | C129: 45 Podkladní a vedlejší konstrukce | G129: =SUM(G104:G128) -> 0 | I129: =SUM(I104:I128) -> 123.8825 | K129: =SUM(K104:K128) -> 0 | O129: 4 | BA129: =SUM(BA104:BA128) -> 0 | BB129: =SUM(BB104:BB128) -> 0 | BC129: =SUM(BC104:BC128) -> 0 | BD129: =SUM(BD104:BD128) -> 0 | BE129: =SUM(BE104:BE128) -> 0
A130: Díl: | B130: 5 | C130: Komunikace | O130: 1
A131: 26 | B131: 572701119RRX | C131: Provizorní zásyp rýh kam. hrubě drceným nebo recyk s následným odstraněním a odvozem | D131: m3 | E131: 96.385 | G131: =E131*F131 -> 0 | H131: 1.4805 | I131: =E131*H131 -> 142.6979925 | J131: 0 | K131: =E131*J131 -> 0 | O131: 2 | AA131: 1 | AB131: 1 | AC131: 1 | AZ131: 1 | BA131: =IF(AZ131=1,G131,0) -> 0 | BB131: =IF(AZ131=2,G131,0) -> 0 | BC131: =IF(AZ131=3,G131,0) -> 0 | BD131: =IF(AZ131=4,G131,0) -> 0 | BE131: =IF(AZ131=5,G131,0) -> 0 | CA131: 1 | CB131: 1
C132: Stoka "B" KT DN400: | E132: 0 | M132: Stoka "B" KT DN400:
C133: Objemu konstrukce komunikace:(145,70*1,30+1,60*(1,60-1,30)*7)*0,50 | E133: 96.385 | M133: Objemu konstrukce komunikace:(145,70*1,30+1,60*(1,60-1,30)*7)*0,50
B134: Celkem za | C134: 5 Komunikace | G134: =SUM(G130:G133) -> 0 | I134: =SUM(I130:I133) -> 142.6979925 | K134: =SUM(K130:K133) -> 0 | O134: 4 | BA134: =SUM(BA130:BA133) -> 0 | BB134: =SUM(BB130:BB133) -> 0 | BC134: =SUM(BC130:BC133) -> 0 | BD134: =SUM(BD130:BD133) -> 0 | BE134: =SUM(BE130:BE133) -> 0
A135: Díl: | B135: 8 | C135: Trubní vedení | O135: 1
A136: 27 | B136: 831392121R00 | C136: Montáž trub kameninových, pryž. kroužek, DN 400 | D136: m | E136: 145.7 | G136: =E136*F136 -> 0 | H136: 6e-05 | I136: =E136*H136 -> 0.008742 | J136: 0 | K136: =E136*J136 -> 0 | O136: 2 | AA136: 1 | AB136: 1 | AC136: 1 | AZ136: 1 | BA136: =IF(AZ136=1,G136,0) -> 0 | BB136: =IF(AZ136=2,G136,0) -> 0 | BC136: =IF(AZ136=3,G136,0) -> 0 | BD136: =IF(AZ136=4,G136,0) -> 0 | BE136: =IF(AZ136=5,G136,0) -> 0 | CA136: 1 | CB136: 1
C137: Položka je určena pro montáž potrubí z trub kameninových s polyuretanovým spojem v otevřeném výkopu ve sklonu do 20 % včetně případné potřeby krácení trub. | L137: Položka je určena pro montáž potrubí z trub kameninových s polyuretanovým spojem v otevřeném výkopu ve sklonu do 20 % včetně případné potřeby krácení trub. | O137: 3
C138: Stoka "B" KT DN400:145,70 | E138: 145.7 | M138: Stoka "B" KT DN400:145,70
A139: 28 | B139: 892601154R00 | C139: Čištění kanalizační stoky do DN 500, nad 100 m | D139: m | E139: 145.7 | G139: =E139*F139 -> 0 | H139: 0 | I139: =E139*H139 -> 0 | J139: 0 | K139: =E139*J139 -> 0 | O139: 2 | AA139: 1 | AB139: 0 | AC139: 0 | AZ139: 1 | BA139: =IF(AZ139=1,G139,0) -> 0 | BB139: =IF(AZ139=2,G139,0) -> 0 | BC139: =IF(AZ139=3,G139,0) -> 0 | BD139: =IF(AZ139=4,G139,0) -> 0 | BE139: =IF(AZ139=5,G139,0) -> 0 | CA139: 1 | CB139: 0
C140: V položce je zakalkulováno: | L140: V položce je zakalkulováno: | O140: 3
C141: a) otevření a uzavření revizních šachet a čisticích kusů | L141: a) otevření a uzavření revizních šachet a čisticích kusů | O141: 3
C142: b) natažení vysokotlakých hadic k místu odkud se bude kanalizace čistit | L142: b) natažení vysokotlakých hadic k místu odkud se bude kanalizace čistit | O142: 3
C143: c) vyčištění potrubí tlakovou vodou nebo motorovým pérem. | L143: c) vyčištění potrubí tlakovou vodou nebo motorovým pérem. | O143: 3
C144: Stoka "B" KT DN400:145,70 | E144: 145.7 | M144: Stoka "B" KT DN400:145,70
A145: 29 | B145: 892855115R00 | C145: Kontrola kanalizace TV kamerou do 500 m | D145: m | E145: 291.4 | G145: =E145*F145 -> 0 | H145: 0 | I145: =E145*H145 -> 0 | J145: 0 | K145: =E145*J145 -> 0 | O145: 2 | AA145: 1 | AB145: 1 | AC145: 1 | AZ145: 1 | BA145: =IF(AZ145=1,G145,0) -> 0 | BB145: =IF(AZ145=2,G145,0) -> 0 | BC145: =IF(AZ145=3,G145,0) -> 0 | BD145: =IF(AZ145=4,G145,0) -> 0 | BE145: =IF(AZ145=5,G145,0) -> 0 | CA145: 1 | CB145: 1
C146: Provedení kaberové prohlídky včetně dodání elektronického záznamu na CD zadavateli a tištěné dokumentace průběhu kamerové prohlídky | L146: Provedení kaberové prohlídky včetně dodání elektronického záznamu na CD zadavateli a tištěné dokumentace průběhu kamerové prohlídky | O146: 3
C147: Stoka "B" KT DN400:145,70*2 | E147: 291.4 | M147: Stoka "B" KT DN400:145,70*2
A148: 30 | B148: 894421111RT1 | C148: Osazení betonových dílců šachet skruže rovné, na kroužek, do 0,5 t | D148: kus | E148: 8 | G148: =E148*F148 -> 0 | H148: 0 | I148: =E148*H148 -> 0 | J148: 0 | K148: =E148*J148 -> 0 | O148: 2 | AA148: 1 | AB148: 1 | AC148: 1 | AZ148: 1 | BA148: =IF(AZ148=1,G148,0) -> 0 | BB148: =IF(AZ148=2,G148,0) -> 0 | BC148: =IF(AZ148=3,G148,0) -> 0 | BD148: =IF(AZ148=4,G148,0) -> 0 | BE148: =IF(AZ148=5,G148,0) -> 0 | CA148: 1 | CB148: 1
C149: Položka je určena pro osazení betonových dílců šachet dle DIN 4034, skruže rovné na kroužek, hmotnost do 0,5 t. | L149: Položka je určena pro osazení betonových dílců šachet dle DIN 4034, skruže rovné na kroužek, hmotnost do 0,5 t. | O149: 3
C150: V položce nejsou zakalkulovány náklady na dodání betonových dílců; dílce se oceňují ve specifikaci. | L150: V položce nejsou zakalkulovány náklady na dodání betonových dílců; dílce se oceňují ve specifikaci. | O150: 3
C151: Stoka "B" KT DN400: | E151: 0 | M151: Stoka "B" KT DN400:
C152: Skruž H250:1 | E152: 1 | M152: Skruž H250:1
C153: Skruž H500:7 | E153: 7 | M153: Skruž H500:7
A154: 31 | B154: 894422111RT1 | C154: Osazení betonových dílců šachet skruže přechodové, na kroužek | D154: kus | E154: 7 | G154: =E154*F154 -> 0 | H154: 0 | I154: =E154*H154 -> 0 | J154: 0 | K154: =E154*J154 -> 0 | O154: 2 | AA154: 1 | AB154: 1 | AC154: 1 | AZ154: 1 | BA154: =IF(AZ154=1,G154,0) -> 0 | BB154: =IF(AZ154=2,G154,0) -> 0 | BC154: =IF(AZ154=3,G154,0) -> 0 | BD154: =IF(AZ154=4,G154,0) -> 0 | BE154: =IF(AZ154=5,G154,0) -> 0 | CA154: 1 | CB154: 1
C155: Položka je určena pro osazení betonových dílců šachet dle DIN 4034, skruže přechodové, zákrytové, kónusy,... na kroužek. | L155: Položka je určena pro osazení betonových dílců šachet dle DIN 4034, skruže přechodové, zákrytové, kónusy,... na kroužek. | O155: 3
C156: Stoka "B" KT DN400: | E156: 0 | M156: Stoka "B" KT DN400:
C157: Kónus H580:7 | E157: 7 | M157: Kónus H580:7
A158: 32 | B158: 894423111RT1 | C158: Osazení betonových dílců šachet do 2,0 t šachtová dna, na kroužek, do 2,0 t | D158: kus | E158: 7 | G158: =E158*F158 -> 0 | H158: 0 | I158: =E158*H158 -> 0 | J158: 0 | K158: =E158*J158 -> 0 | O158: 2 | AA158: 1 | AB158: 1 | AC158: 1 | AZ158: 1 | BA158: =IF(AZ158=1,G158,0) -> 0 | BB158: =IF(AZ158=2,G158,0) -> 0 | BC158: =IF(AZ158=3,G158,0) -> 0 | BD158: =IF(AZ158=4,G158,0) -> 0 | BE158: =IF(AZ158=5,G158,0) -> 0 | CA158: 1 | CB158: 1
C159: Položka je určena pro osazení betonových dílců šachet dle DIN 4034, šachtová dna na kroužek, hmotnost do 2,0 t. | L159: Položka je určena pro osazení betonových dílců šachet dle DIN 4034, šachtová dna na kroužek, hmotnost do 2,0 t. | O159: 3
C160: V položce nejsou zakalkulovány náklady na dodání betonových dílců; | L160: V položce nejsou zakalkulovány náklady na dodání betonových dílců; | O160: 3
C161: Součástí položky je i podbetonování šachtového dna betonem C12/15 v min. tl. 10 cm. | L161: Součástí položky je i podbetonování šachtového dna betonem C12/15 v min. tl. 10 cm. | O161: 3
C162: Stoka "B" KT DN400: | E162: 0 | M162: Stoka "B" KT DN400:
C163: ŠD H575:1 | E163: 1 | M163: ŠD H575:1
C164: ŠD H675:6 | E164: 6 | M164: ŠD H675:6
A165: 33 | B165: 899102111R00 | C165: Osazení poklopu s rámem do 100 kg | D165: kus | E165: 7 | G165: =E165*F165 -> 0 | H165: 0.00702 | I165: =E165*H165 -> 0.04914 | J165: 0 | K165: =E165*J165 -> 0 | O165: 2 | AA165: 1 | AB165: 1 | AC165: 1 | AZ165: 1 | BA165: =IF(AZ165=1,G165,0) -> 0 | BB165: =IF(AZ165=2,G165,0) -> 0 | BC165: =IF(AZ165=3,G165,0) -> 0 | BD165: =IF(AZ165=4,G165,0) -> 0 | BE165: =IF(AZ165=5,G165,0) -> 0 | CA165: 1 | CB165: 1
C166: Osazení provizorních poklopů během realizace stavby (nefakturovaný materiál zhotovitele) | L166: Osazení provizorních poklopů během realizace stavby (nefakturovaný materiál zhotovitele) | O166: 3
A167: 34 | B167: 899711122R00 | C167: Fólie výstražná z PVC šedá, šířka 30 cm | D167: m | E167: 145.7 | G167: =E167*F167 -> 0 | H167: 0 | I167: =E167*H167 -> 0 | J167: 0 | K167: =E167*J167 -> 0 | O167: 2 | AA167: 1 | AB167: 1 | AC167: 1 | AZ167: 1 | BA167: =IF(AZ167=1,G167,0) -> 0 | BB167: =IF(AZ167=2,G167,0) -> 0 | BC167: =IF(AZ167=3,G167,0) -> 0 | BD167: =IF(AZ167=4,G167,0) -> 0 | BE167: =IF(AZ167=5,G167,0) -> 0 | CA167: 1 | CB167: 1
C168: Stoka "B" KT DN400:145,70 | E168: 145.7 | M168: Stoka "B" KT DN400:145,70
A169: 35 | B169: 592243543.R | C169: Kónus šachetní TBR-Q.1 100x63/58/12 KPS | D169: kus | E169: 7.07 | G169: =E169*F169 -> 0 | H169: 0.585 | I169: =E169*H169 -> 4.13595 | K169: =E169*J169 -> 0 | O169: 2 | AA169: 3 | AB169: 1 | AC169: 592243543.R | AZ169: 1 | BA169: =IF(AZ169=1,G169,0) -> 0 | BB169: =IF(AZ169=2,G169,0) -> 0 | BC169: =IF(AZ169=3,G169,0) -> 0 | BD169: =IF(AZ169=4,G169,0) -> 0 | BE169: =IF(AZ169=5,G169,0) -> 0 | CA169: 3 | CB169: 1
C170: Stoka "B" KT DN400: | E170: 0 | M170: Stoka "B" KT DN400:
C171: Kónus H580:7*1,01 | E171: 7.07 | M171: Kónus H580:7*1,01
A172: 36 | B172: 59224358.A.R | C172: Skruž šachetní TBS-Q.1 100/25/12 PS | D172: kus | E172: 1.01 | G172: =E172*F172 -> 0 | H172: 0.25 | I172: =E172*H172 -> 0.2525 | K172: =E172*J172 -> 0 | O172: 2 | AA172: 3 | AB172: 1 | AC172: 59224358.A.R | AZ172: 1 | BA172: =IF(AZ172=1,G172,0) -> 0 | BB172: =IF(AZ172=2,G172,0) -> 0 | BC172: =IF(AZ172=3,G172,0) -> 0 | BD172: =IF(AZ172=4,G172,0) -> 0 | BE172: =IF(AZ172=5,G172,0) -> 0 | CA172: 3 | CB172: 1
C173: Stoka "B" KT DN400: | E173: 0 | M173: Stoka "B" KT DN400:
C174: Skruž H250:1*1,01 | E174: 1.01 | M174: Skruž H250:1*1,01
A175: 37 | B175: 59224361.A.R | C175: Skruž šachetní TBS-Q.1 100/50/12 PS | D175: kus | E175: 7.07 | G175: =E175*F175 -> 0 | H175: 0.5 | I175: =E175*H175 -> 3.535 | K175: =E175*J175 -> 0 | O175: 2 | AA175: 3 | AB175: 1 | AC175: 59224361.A.R | AZ175: 1 | BA175: =IF(AZ175=1,G175,0) -> 0 | BB175: =IF(AZ175=2,G175,0) -> 0 | BC175: =IF(AZ175=3,G175,0) -> 0 | BD175: =IF(AZ175=4,G175,0) -> 0 | BE175: =IF(AZ175=5,G175,0) -> 0 | CA175: 3 | CB175: 1
C176: Stoka "B" KT DN400: | E176: 0 | M176: Stoka "B" KT DN400:
C177: Skruž H500:7*1,01 | E177: 7.07 | M177: Skruž H500:7*1,01
A178: 38 | B178: 59224371.A.R | C178: Dno šachetní TBZ-Q.1 100/58 KOM V20 včetně kynety dle PD | D178: kus | E178: 1.01 | G178: =E178*F178 -> 0 | H178: 1.27 | I178: =E178*H178 -> 1.2827 | K178: =E178*J178 -> 0 | O178: 2 | AA178: 3 | AB178: 1 | AC178: 59224371.A.R | AZ178: 1 | BA178: =IF(AZ178=1,G178,0) -> 0 | BB178: =IF(AZ178=2,G178,0) -> 0 | BC178: =IF(AZ178=3,G178,0) -> 0 | BD178: =IF(AZ178=4,G178,0) -> 0 | BE178: =IF(AZ178=5,G178,0) -> 0 | CA178: 3 | CB178: 1
C179: Stoka "B" KT DN400: | E179: 0 | M179: Stoka "B" KT DN400:
C180: ŠD H575:1*1,01 | E180: 1.01 | M180: ŠD H575:1*1,01
A181: 39 | B181: 59224373.A.R | C181: Dno šachetní TBZ-Q.1 100/68 KOM V30 včetně kynety dle PD | D181: kus | E181: 6.06 | G181: =E181*F181 -> 0 | H181: 1.45 | I181: =E181*H181 -> 8.787 | K181: =E181*J181 -> 0 | O181: 2 | AA181: 3 | AB181: 1 | AC181: 59224373.A.R | AZ181: 1 | BA181: =IF(AZ181=1,G181,0) -> 0 | BB181: =IF(AZ181=2,G181,0) -> 0 | BC181: =IF(AZ181=3,G181,0) -> 0 | BD181: =IF(AZ181=4,G181,0) -> 0 | BE181: =IF(AZ181=5,G181,0) -> 0 | CA181: 3 | CB181: 1
C182: Stoka "B" KT DN400: | E182: 0 | M182: Stoka "B" KT DN400:
C183: ŠD H675:6*1,01 | E183: 6.06 | M183: ŠD H675:6*1,01
A184: 40 | B184: 59224380.R | C184: Těsnění elastom pro šach díly EMT 100/1.7 - DN1000 | D184: kus | E184: 15.15 | G184: =E184*F184 -> 0 | H184: 0.002 | I184: =E184*H184 -> 0.0303 | K184: =E184*J184 -> 0 | O184: 2 | AA184: 3 | AB184: 1 | AC184: 59224380.R | AZ184: 1 | BA184: =IF(AZ184=1,G184,0) -> 0 | BB184: =IF(AZ184=2,G184,0) -> 0 | BC184: =IF(AZ184=3,G184,0) -> 0 | BD184: =IF(AZ184=4,G184,0) -> 0 | BE184: =IF(AZ184=5,G184,0) -> 0 | CA184: 3 | CB184: 1
C185: Stoka "B" KT DN400: | E185: 0 | M185: Stoka "B" KT DN400:
C186: Těsnění DN1000:15*1,01 | E186: 15.15 | M186: Těsnění DN1000:15*1,01
A187: 41 | B187: 59710700.A.R | C187: Trouba kameninová hrdlová DN 400, l=2,50 m, FN 64 | D187: m | E187: 137.228 | G187: =E187*F187 -> 0 | H187: 0.136 | I187: =E187*H187 -> 18.663008 | K187: =E187*J187 -> 0 | O187: 2 | AA187: 3 | AB187: 1 | AC187: 59710700.A.R | AZ187: 1 | BA187: =IF(AZ187=1,G187,0) -> 0 | BB187: =IF(AZ187=2,G187,0) -> 0 | BC187: =IF(AZ187=3,G187,0) -> 0 | BD187: =IF(AZ187=4,G187,0) -> 0 | BE187: =IF(AZ187=5,G187,0) -> 0 | CA187: 3 | CB187: 1
C188: Hrdlové trouby KeraBase pro použití v komunální a průmyslové kanalizační systémy. | L188: Hrdlové trouby KeraBase pro použití v komunální a průmyslové kanalizační systémy. | O188: 3
C189: Otevřený výkop, normální zatížení. | L189: Otevřený výkop, normální zatížení. | O189: 3
C190: DN 400 | L190: DN 400 | O190: 3
C191: Délka 250 cm | L191: Délka 250 cm | O191: 3
C192: FN 64 kN/m | L192: FN 64 kN/m | O192: 3
C193: Hmotnost 350 kg/ks | L193: Hmotnost 350 kg/ks | O193: 3
C194: Hrdlo K/S | L194: Hrdlo K/S | O194: 3
C195: Třída pevnosti 160 | L195: Třída pevnosti 160 | O195: 3
C196: Stoka "B" KT DN400:145,70*1,015 | E196: 147.8855 | M196: Stoka "B" KT DN400:145,70*1,015
C197: Odpočet - Tvarovky GA a GZ:-0,75*(7+7)*1,015 | E197: -10.6575 | M197: Odpočet - Tvarovky GA a GZ:-0,75*(7+7)*1,015
A198: 42 | B198: 59710826.A.R | C198: Trouba kameninová zkrácená GZ DN 400, FN 64 | D198: kus | E198: 7.105 | G198: =E198*F198 -> 0 | H198: 0.115 | I198: =E198*H198 -> 0.817075 | K198: =E198*J198 -> 0 | O198: 2 | AA198: 3 | AB198: 1 | AC198: 59710826.A.R | AZ198: 1 | BA198: =IF(AZ198=1,G198,0) -> 0 | BB198: =IF(AZ198=2,G198,0) -> 0 | BC198: =IF(AZ198=3,G198,0) -> 0 | BD198: =IF(AZ198=4,G198,0) -> 0 | BE198: =IF(AZ198=5,G198,0) -> 0 | CA198: 3 | CB198: 1
C199: Zkrácené trouby KeraBase GZ pro použití v komunální a průmyslové kanalizační systémy. | L199: Zkrácené trouby KeraBase GZ pro použití v komunální a průmyslové kanalizační systémy. | O199: 3
C200: Otevřený výkop, normální zatížení. | L200: Otevřený výkop, normální zatížení. | O200: 3
C201: DN 400 | L201: DN 400 | O201: 3
C202: Délka 75 cm | L202: Délka 75 cm | O202: 3
... 42 more rows

Sheet 01 01.11 KL
A1: POLOŽKOVÝ ROZPOČET
A2: Rozpočet | C2: 01.11 | D2: Stoka "B.1" km 0,000 - 0,120.9 | F2: JKSO | G2: 827.21.A3
A4: Objekt | F4: SKP
A5: 01 | C5: Kanalizace | F5: Měrná jednotka | G5: m
A6: Stavba | F6: Počet jednotek | G6: 0
A7: 3395 | C7: Kanalizace a ČOV Benešov u Semil | F7: Náklady na m.j. | G7: =IF(G6=0,,ROUND((F30+F32)/G6,1)) -> 0
A8: Projektant | C8: Vodohospodářský rozvoj a výstavba a.s. | F8: Typ rozpočtu
A9: Zpracovatel projektu
A10: Objednatel | C10: Vodohospodářské sdružení Turnov
A11: Dodavatel | C11: . | F11: Zakázkové číslo
A12: Rozpočtoval | F12: Počet listů
A13: ROZPOČTOVÉ NÁKLADY
A14: Základní rozpočtové náklady
B15: HSV celkem | C15: ='01 01.11 Rek'!E14 -> 0
A16: Z | B16: PSV celkem | C16: ='01 01.11 Rek'!F14 -> 0
A17: R | B17: M práce celkem | C17: ='01 01.11 Rek'!H14 -> 0
A18: N | B18: M dodávky celkem | C18: ='01 01.11 Rek'!G14 -> 0
A19: ZRN celkem | C19: =SUM(C15:C18) -> 0
A21: HZS | C21: ='01 01.11 Rek'!I14 -> 0
A22: ZRN+HZS | C22: =C19+C21 -> 0
A23: ZRN+ost.náklady+HZS | C23: =C22+G23 -> 0
A24: Vypracoval | D24: Za zhotovitele | F24: Za objednatele
A25: Jméno : | D25: Jméno : | F25: Jméno :
A26: Datum : | D26: Datum : | F26: Datum :
A28: Podpis : | D28: Podpis: | F28: Podpis:
A30: Základ pro DPH | C30: 21 | D30: % | F30: =C23-F32 -> 0
A31: DPH | C31: =C30 -> 21 | D31: % | F31: =ROUND(PRODUCT(F30,C31/100),0) -> 0
A32: Základ pro DPH | C32: 0 | D32: % | F32: 0
A33: DPH | C33: =C32 -> 0 | D33: % | F33: =ROUND(PRODUCT(F32,C33/100),0) -> 0
A34: CENA ZA OBJEKT CELKEM | F34: =ROUND(SUM(F30:F33),0) -> 0
A36: Poznámka :

Sheet 01 01.11 Rek
A1: Stavba : | C1: 3395 Kanalizace a ČOV Benešov u Semil | G1: Rozpočet : | H1: 01.11
A2: Objekt : | C2: 01 Kanalizace | G2: Stoka "B.1" km 0,000 - 0,120.9
A4: REKAPITULACE STAVEBNÍCH DÍLŮ
B6: Stavební díl | E6: HSV | F6: PSV | G6: Dodávka | H6: Montáž | I6: HZS
A7: ='01 01.11 Pol'!B7 -> 1 | B7: ='01 01.11 Pol'!C7 -> Zemní práce | E7: ='01 01.11 Pol'!BA88 -> 0 | F7: ='01 01.11 Pol'!BB88 -> 0 | G7: ='01 01.11 Pol'!BC88 -> 0 | H7: ='01 01.11 Pol'!BD88 -> 0 | I7: ='01 01.11 Pol'!BE88 -> 0
A8: ='01 01.11 Pol'!B89 -> 21 | B8: ='01 01.11 Pol'!C89 -> Úprava podloží a základ.spáry | E8: ='01 01.11 Pol'!BA93 -> 0 | F8: ='01 01.11 Pol'!BB93 -> 0 | G8: ='01 01.11 Pol'!BC93 -> 0 | H8: ='01 01.11 Pol'!BD93 -> 0 | I8: ='01 01.11 Pol'!BE93 -> 0
A9: ='01 01.11 Pol'!B94 -> 45 | B9: ='01 01.11 Pol'!C94 -> Podkladní a vedlejší konstrukce | E9: ='01 01.11 Pol'!BA123 -> 0 | F9: ='01 01.11 Pol'!BB123 -> 0 | G9: ='01 01.11 Pol'!BC123 -> 0 | H9: ='01 01.11 Pol'!BD123 -> 0 | I9: ='01 01.11 Pol'!BE123 -> 0
A10: ='01 01.11 Pol'!B124 -> 5 | B10: ='01 01.11 Pol'!C124 -> Komunikace | E10: ='01 01.11 Pol'!BA128 -> 0 | F10: ='01 01.11 Pol'!BB128 -> 0 | G10: ='01 01.11 Pol'!BC128 -> 0 | H10: ='01 01.11 Pol'!BD128 -> 0 | I10: ='01 01.11 Pol'!BE128 -> 0
A11: ='01 01.11 Pol'!B129 -> 8 | B11: ='01 01.11 Pol'!C129 -> Trubní vedení | E11: ='01 01.11 Pol'!BA230 -> 0 | F11: ='01 01.11 Pol'!BB230 -> 0 | G11: ='01 01.11 Pol'!BC230 -> 0 | H11: ='01 01.11 Pol'!BD230 -> 0 | I11: ='01 01.11 Pol'!BE230 -> 0
A12: ='01 01.11 Pol'!B231 -> 93 | B12: ='01 01.11 Pol'!C231 -> Dokončovací práce inženýrských staveb | E12: ='01 01.11 Pol'!BA247 -> 0 | F12: ='01 01.11 Pol'!BB247 -> 0 | G12: ='01 01.11 Pol'!BC247 -> 0 | H12: ='01 01.11 Pol'!BD247 -> 0 | I12: ='01 01.11 Pol'!BE247 -> 0
A13: ='01 01.11 Pol'!B248 -> 99 | B13: ='01 01.11 Pol'!C248 -> Staveništní přesun hmot | E13: ='01 01.11 Pol'!BA251 -> 0 | F13: ='01 01.11 Pol'!BB251 -> 0 | G13: ='01 01.11 Pol'!BC251 -> 0 | H13: ='01 01.11 Pol'!BD251 -> 0 | I13: ='01 01.11 Pol'!BE251 -> 0
B14: CELKEM OBJEKT | E14: =SUM(E7:E13) -> 0 | F14: =SUM(F7:F13) -> 0 | G14: =SUM(G7:G13) -> 0 | H14: =SUM(H7:H13) -> 0 | I14: =SUM(I7:I13) -> 0

Sheet 01 01.11 Pol
A1: Položkový rozpočet
A3: Stavba : | C3: 3395 Kanalizace a ČOV Benešov u Semil | E3: Rozpočet: | F3: ='01 01.11 Rek'!H1 -> 01.11
A4: Objekt : | C4: 01 Kanalizace | E4: ='01 01.11 Rek'!G2 -> Stoka "B.1" km 0,000 - 0,120.9
A6: P.č. | B6: Číslo položky | C6: Název položky | D6: MJ | E6: množství | F6: cena / MJ | G6: celkem (Kč) | H6: Jednotková hmotnost | I6: Celková hmotnost | J6: Jednotková dem.hmot. | K6: Celková dem.hmot.
A7: Díl: | B7: 1 | C7: Zemní práce | O7: 1
A8: 1 | B8: 115101201RRX | C8: Přečerpávání nebo převedení splašků a dešť. vod | D8: h | E8: 160 | G8: =E8*F8 -> 0 | H8: 0 | I8: =E8*H8 -> 0 | J8: 0 | K8: =E8*J8 -> 0 | O8: 2 | AA8: 1 | AB8: 1 | AC8: 1 | AZ8: 1 | BA8: =IF(AZ8=1,G8,0) -> 0 | BB8: =IF(AZ8=2,G8,0) -> 0 | BC8: =IF(AZ8=3,G8,0) -> 0 | BD8: =IF(AZ8=4,G8,0) -> 0 | BE8: =IF(AZ8=5,G8,0) -> 0 | CA8: 1 | CB8: 1
C9: Převedení a čerpání splašků nebo dešťových vod dle zvolené technologie zhotovitele stavby. | L9: Převedení a čerpání splašků nebo dešťových vod dle zvolené technologie zhotovitele stavby. | O9: 3
C10: (Množství bude určeno na stavbě dle skutečnosti) | L10: (Množství bude určeno na stavbě dle skutečnosti) | O10: 3
A11: 2 | B11: 130001101RRX | C11: Příplatek za ztížené hloubení v blízkosti vedení | D11: m3 | E11: 16.2232 | G11: =E11*F11 -> 0 | H11: 0 | I11: =E11*H11 -> 0 | J11: 0 | K11: =E11*J11 -> 0 | O11: 2 | AA11: 1 | AB11: 1 | AC11: 1 | AZ11: 1 | BA11: =IF(AZ11=1,G11,0) -> 0 | BB11: =IF(AZ11=2,G11,0) -> 0 | BC11: =IF(AZ11=3,G11,0) -> 0 | BD11: =IF(AZ11=4,G11,0) -> 0 | BE11: =IF(AZ11=5,G11,0) -> 0 | CA11: 1 | CB11: 1
C12: Včetně případných nutných dokopávem a ručního výkopu podél sousedících inženýrských sítí. | L12: Včetně případných nutných dokopávem a ručního výkopu podél sousedících inženýrských sítí. | O12: 3
C13: Součástí položky je i dočasné zajištění inženýrských sítí v prostoru výkopů (potrubí, kabely a pod.) | L13: Součástí položky je i dočasné zajištění inženýrských sítí v prostoru výkopů (potrubí, kabely a pod.) | O13: 3
C14: Stoka "B.1" KT DN250: | E14: 0 | M14: Stoka "B.1" KT DN250:
C15: Výkopy: | E15: 0 | M15: Výkopy:
C16: V hornině tř. 3 - 5 - 10%:162,2324*0,1 | E16: 16.2232 | M16: V hornině tř. 3 - 5 - 10%:162,2324*0,1
A17: 3 | B17: 132201212R00 | C17: Hloubení rýh š.do 200 cm hor.3 do 1000m3,STROJNĚ | D17: m3 | E17: 97.3394 | G17: =E17*F17 -> 0 | H17: 0 | I17: =E17*H17 -> 0 | J17: 0 | K17: =E17*J17 -> 0 | O17: 2 | AA17: 1 | AB17: 1 | AC17: 1 | AZ17: 1 | BA17: =IF(AZ17=1,G17,0) -> 0 | BB17: =IF(AZ17=2,G17,0) -> 0 | BC17: =IF(AZ17=3,G17,0) -> 0 | BD17: =IF(AZ17=4,G17,0) -> 0 | BE17: =IF(AZ17=5,G17,0) -> 0 | CA17: 1 | CB17: 1
C18: Položka obsahuje hloubení rýh traktorbagrem, naložení výkopku na dopravní prostředek pro svislé, nebo vodorovné přemístění, popř. přemístění výkopku do 3 m (po povrchu území), případné zajištění rypadel polštáři, udržování pracoviště a ochranu výkopiště proti stékání srážkové vody z okolního terénu i s jejím odvodněním, nebo odvedením, přesekání a odstranění kořenů ve výkopišti, odstranění napadávek, urovnání dna výkopu. | L18: Položka obsahuje hloubení rýh traktorbagrem, naložení výkopku na dopravní prostředek pro svislé, nebo vodorovné přemístění, popř. přemístění výkopku do 3 m (po povrchu území), případné zajištění rypadel polštáři, udržování pracoviště a ochranu výkopiště proti stékání srážkové vody z okolního terénu i s jejím odvodněním, nebo odvedením, přesekání a odstranění kořenů ve výkopišti, odstranění napadávek, urovnání dna výkopu. | O18: 3
C19: Stoka "B.1" KT DN250: | E19: 0 | M19: Stoka "B.1" KT DN250:
C20: Výkopy: | E20: 0 | M20: Výkopy:
C21: Začátek provozního součtu | E21: 0 | M21: Začátek provozního součtu
C22: ŠB-6 - ŠB.1-4:120,90*1,00*(2,05+1,55)/2 | E22: 217.62 | M22: ŠB-6 - ŠB.1-4:120,90*1,00*(2,05+1,55)/2
C23: Prohloubení pro RŠ:1,60*1,60*0,20*4 | E23: 2.048 | M23: Prohloubení pro RŠ:1,60*1,60*0,20*4
C24: Rozšíření pro RŠ:1,60*(1,60-1,00)*5,14 | E24: 4.9344 | M24: Rozšíření pro RŠ:1,60*(1,60-1,00)*5,14
C25: Odpočet objemu konstrukce komunikace:-(120,90*1,00+1,60*(1,60-1,00)*4)*0,50 | E25: -62.37 | M25: Odpočet objemu konstrukce komunikace:-(120,90*1,00+1,60*(1,60-1,00)*4)*0,50
C26: Konec provozního součtu | E26: 162.2324 | M26: Konec provozního součtu
C27: V hornině tř. 3 - 60%:162,2324*0,6 | E27: 97.3394 | M27: V hornině tř. 3 - 60%:162,2324*0,6
A28: 4 | B28: 132201219R00 | C28: Přípl.za lepivost,hloubení rýh 200cm,hor.3,STROJNĚ | D28: m3 | E28: 48.6697 | G28: =E28*F28 -> 0 | H28: 0 | I28: =E28*H28 -> 0 | J28: 0 | K28: =E28*J28 -> 0 | O28: 2 | AA28: 1 | AB28: 1 | AC28: 1 | AZ28: 1 | BA28: =IF(AZ28=1,G28,0) -> 0 | BB28: =IF(AZ28=2,G28,0) -> 0 | BC28: =IF(AZ28=3,G28,0) -> 0 | BD28: =IF(AZ28=4,G28,0) -> 0 | BE28: =IF(AZ28=5,G28,0) -> 0 | CA28: 1 | CB28: 1
C29: Stoka "B.1" KT DN250: | E29: 0 | M29: Stoka "B.1" KT DN250:
C30: Výkopy: | E30: 0 | M30: Výkopy:
C31: V hornině tř. 3 - 60%:162,2324*0,6*0,5 | E31: 48.6697 | M31: V hornině tř. 3 - 60%:162,2324*0,6*0,5
A32: 5 | B32: 132301212R00 | C32: Hloubení rýh š.do 200 cm hor.4 do 1000 m3, STROJNĚ | D32: m3 | E32: 48.6697 | G32: =E32*F32 -> 0 | H32: 0 | I32: =E32*H32 -> 0 | J32: 0 | K32: =E32*J32 -> 0 | O32: 2 | AA32: 1 | AB32: 1 | AC32: 1 | AZ32: 1 | BA32: =IF(AZ32=1,G32,0) -> 0 | BB32: =IF(AZ32=2,G32,0) -> 0 | BC32: =IF(AZ32=3,G32,0) -> 0 | BD32: =IF(AZ32=4,G32,0) -> 0 | BE32: =IF(AZ32=5,G32,0) -> 0 | CA32: 1 | CB32: 1
C33: Položka obsahuje hloubení rýh traktorbagrem, naložení výkopku na dopravní prostředek pro svislé, nebo vodorovné přemístění, popř. přemístění výkopku do 3 m (po povrchu území), případné zajištění rypadel polštáři, udržování pracoviště a ochranu výkopiště proti stékání srážkové vody z okolního terénu i s jejím odvodněním, nebo odvedením, přesekání a odstranění kořenů ve výkopišti, odstranění napadávek, urovnání dna výkopu. | L33: Položka obsahuje hloubení rýh traktorbagrem, naložení výkopku na dopravní prostředek pro svislé, nebo vodorovné přemístění, popř. přemístění výkopku do 3 m (po povrchu území), případné zajištění rypadel polštáři, udržování pracoviště a ochranu výkopiště proti stékání srážkové vody z okolního terénu i s jejím odvodněním, nebo odvedením, přesekání a odstranění kořenů ve výkopišti, odstranění napadávek, urovnání dna výkopu. | O33: 3
C34: Stoka "B.1" KT DN250: | E34: 0 | M34: Stoka "B.1" KT DN250:
C35: Výkopy: | E35: 0 | M35: Výkopy:
C36: V hornině tř. 4 - 30%:162,2324*0,3 | E36: 48.6697 | M36: V hornině tř. 4 - 30%:162,2324*0,3
A37: 6 | B37: 132301219R00 | C37: Přípl.za lepivost,hloubení rýh 200cm,hor.4,STROJNĚ | D37: m3 | E37: 24.3349 | G37: =E37*F37 -> 0 | H37: 0 | I37: =E37*H37 -> 0 | J37: 0 | K37: =E37*J37 -> 0 | O37: 2 | AA37: 1 | AB37: 1 | AC37: 1 | AZ37: 1 | BA37: =IF(AZ37=1,G37,0) -> 0 | BB37: =IF(AZ37=2,G37,0) -> 0 | BC37: =IF(AZ37=3,G37,0) -> 0 | BD37: =IF(AZ37=4,G37,0) -> 0 | BE37: =IF(AZ37=5,G37,0) -> 0 | CA37: 1 | CB37: 1
C38: Stoka "B.1" KT DN250: | E38: 0 | M38: Stoka "B.1" KT DN250:
C39: Výkopy: | E39: 0 | M39: Výkopy:
C40: V hornině tř. 4 - 30%:162,2324*0,3*0,5 | E40: 24.3349 | M40: V hornině tř. 4 - 30%:162,2324*0,3*0,5
A41: 7 | B41: 132401211RRX | C41: Hloubení rýh šířky do 200 cm v hor.5 STROJNĚ včetně případného dolamování ve vrstvě do 0,5 m | D41: m3 | E41: 16.2232 | G41: =E41*F41 -> 0 | H41: 0.01041 | I41: =E41*H41 -> 0.168883512 | J41: 0 | K41: =E41*J41 -> 0 | O41: 2 | AA41: 1 | AB41: 1 | AC41: 1 | AZ41: 1 | BA41: =IF(AZ41=1,G41,0) -> 0 | BB41: =IF(AZ41=2,G41,0) -> 0 | BC41: =IF(AZ41=3,G41,0) -> 0 | BD41: =IF(AZ41=4,G41,0) -> 0 | BE41: =IF(AZ41=5,G41,0) -> 0 | CA41: 1 | CB41: 1
C42: Položka obsahuje hloubení rýh traktorbagrem, naložení výkopku na dopravní prostředek pro svislé, nebo vodorovné přemístění, popř. přemístění výkopku do 3 m (po povrchu území), případné zajištění rypadel polštáři, udržování pracoviště a ochranu výkopiště proti stékání srážkové vody z okolního terénu i s jejím odvodněním, nebo odvedením, přesekání a odstranění kořenů ve výkopišti, odstranění napadávek, urovnání dna výkopu.včetně případného dolamování ve vrstvě do 0,5 m | L42: Položka obsahuje hloubení rýh traktorbagrem, naložení výkopku na dopravní prostředek pro svislé, nebo vodorovné přemístění, popř. přemístění výkopku do 3 m (po povrchu území), případné zajištění rypadel polštáři, udržování pracoviště a ochranu výkopiště proti stékání srážkové vody z okolního terénu i s jejím odvodněním, nebo odvedením, přesekání a odstranění kořenů ve výkopišti, odstranění napadávek, urovnání dna výkopu.včetně případného dolamování ve vrstvě do 0,5 m | O42: 3
C43: Stoka "B.1" KT DN250: | E43: 0 | M43: Stoka "B.1" KT DN250:
C44: Výkopy: | E44: 0 | M44: Výkopy:
C45: V hornině tř. 5 - 10%:162,2324*0,1 | E45: 16.2232 | M45: V hornině tř. 5 - 10%:162,2324*0,1
A46: 8 | B46: 151101101R00 | C46: Pažení a rozepření stěn rýh - příložné - hl.do 2 m | D46: m2 | E46: 435.24 | G46: =E46*F46 -> 0 | H46: 0.00099 | I46: =E46*H46 -> 0.4308876 | J46: 0 | K46: =E46*J46 -> 0 | O46: 2 | AA46: 1 | AB46: 1 | AC46: 1 | AZ46: 1 | BA46: =IF(AZ46=1,G46,0) -> 0 | BB46: =IF(AZ46=2,G46,0) -> 0 | BC46: =IF(AZ46=3,G46,0) -> 0 | BD46: =IF(AZ46=4,G46,0) -> 0 | BE46: =IF(AZ46=5,G46,0) -> 0 | CA46: 1 | CB46: 1
C47: Stoka "B.1" KT DN250: | E47: 0 | M47: Stoka "B.1" KT DN250:
C48: Výkopy: | E48: 0 | M48: Výkopy:
C49: ŠB-6 - ŠB.1-4:120,90*(2,05+1,55)/2*2 | E49: 435.24 | M49: ŠB-6 - ŠB.1-4:120,90*(2,05+1,55)/2*2
A50: 9 | B50: 151101111R00 | C50: Odstranění pažení stěn rýh - příložné - hl. do 2 m | D50: m2 | E50: 435.24 | G50: =E50*F50 -> 0 | H50: 0 | I50: =E50*H50 -> 0 | J50: 0 | K50: =E50*J50 -> 0 | O50: 2 | AA50: 1 | AB50: 1 | AC50: 1 | AZ50: 1 | BA50: =IF(AZ50=1,G50,0) -> 0 | BB50: =IF(AZ50=2,G50,0) -> 0 | BC50: =IF(AZ50=3,G50,0) -> 0 | BD50: =IF(AZ50=4,G50,0) -> 0 | BE50: =IF(AZ50=5,G50,0) -> 0 | CA50: 1 | CB50: 1
C51: Stoka "B.1" KT DN250: | E51: 0 | M51: Stoka "B.1" KT DN250:
C52: Výkopy: | E52: 0 | M52: Výkopy:
C53: ŠB-6 - ŠB.1-4:120,90*(2,05+1,55)/2*2 | E53: 435.24 | M53: ŠB-6 - ŠB.1-4:120,90*(2,05+1,55)/2*2
A54: 10 | B54: 162701105RSZ | C54: Vodorovné přemístění výkopku z hor.1-7 na skládku zhotovitele | D54: m3 | E54: 162.2324 | G54: =E54*F54 -> 0 | H54: 0 | I54: =E54*H54 -> 0 | J54: 0 | K54: =E54*J54 -> 0 | O54: 2 | AA54: 1 | AB54: 1 | AC54: 1 | AZ54: 1 | BA54: =IF(AZ54=1,G54,0) -> 0 | BB54: =IF(AZ54=2,G54,0) -> 0 | BC54: =IF(AZ54=3,G54,0) -> 0 | BD54: =IF(AZ54=4,G54,0) -> 0 | BE54: =IF(AZ54=5,G54,0) -> 0 | CA54: 1 | CB54: 1
C55: Stoka "B.1" KT DN250: | E55: 0 | M55: Stoka "B.1" KT DN250:
C56: Výkopy: | E56: 0 | M56: Výkopy:
C57: V hornině tř. 3 - 5:162,2324 | E57: 162.2324 | M57: V hornině tř. 3 - 5:162,2324
A58: 11 | B58: 174101101R00 | C58: Zásyp jam, rýh, šachet se zhutněním | D58: m3 | E58: 64.7354 | G58: =E58*F58 -> 0 | H58: 0 | I58: =E58*H58 -> 0 | J58: 0 | K58: =E58*J58 -> 0 | O58: 2 | AA58: 1 | AB58: 1 | AC58: 1 | AZ58: 1 | BA58: =IF(AZ58=1,G58,0) -> 0 | BB58: =IF(AZ58=2,G58,0) -> 0 | BC58: =IF(AZ58=3,G58,0) -> 0 | BD58: =IF(AZ58=4,G58,0) -> 0 | BE58: =IF(AZ58=5,G58,0) -> 0 | CA58: 1 | CB58: 1
C59: Položka obsahuje strojní přemístění materiálu pro zásyp ze vzdálenosti do 10 m od okraje zásypu. | L59: Položka obsahuje strojní přemístění materiálu pro zásyp ze vzdálenosti do 10 m od okraje zásypu. | O59: 3
O60: 3
C61: Stoka "B.1" KT DN250: | E61: 0 | M61: Stoka "B.1" KT DN250:
C62: Zásypy ŠD fr. - 0-63 mm:64,7354 | E62: 64.7354 | M62: Zásypy ŠD fr. - 0-63 mm:64,7354
C63: Začátek provozního součtu | E63: 0 | M63: Začátek provozního součtu
C64: Výkopy: | E64: 0 | M64: Výkopy:
C65: V hornině tř. 3 - 5:162,2324 | E65: 162.2324 | M65: V hornině tř. 3 - 5:162,2324
C66: Odpočet lože, potrubí a obsypů:-120,90*0,750 | E66: -90.675 | M66: Odpočet lože, potrubí a obsypů:-120,90*0,750
C67: Odpočet objemu RŠ:-6,8220 | E67: -6.822 | M67: Odpočet objemu RŠ:-6,8220
C68: 0 | E68: 0 | M68: 0
C69: Konec provozního součtu | E69: 64.7354 | M69: Konec provozního součtu
A70: 12 | B70: 175101101R00 | C70: Obsyp potrubí bez prohození sypaniny | D70: m3 | E70: 49.4844 | G70: =E70*F70 -> 0 | H70: 0 | I70: =E70*H70 -> 0 | J70: 0 | K70: =E70*J70 -> 0 | O70: 2 | AA70: 1 | AB70: 1 | AC70: 1 | AZ70: 1 | BA70: =IF(AZ70=1,G70,0) -> 0 | BB70: =IF(AZ70=2,G70,0) -> 0 | BC70: =IF(AZ70=3,G70,0) -> 0 | BD70: =IF(AZ70=4,G70,0) -> 0 | BE70: =IF(AZ70=5,G70,0) -> 0 | CA70: 1 | CB70: 1
C71: Stoka "B.1" KT DN250:120,90*0,4093 | E71: 49.4844 | M71: Stoka "B.1" KT DN250:120,90*0,4093
A72: 13 | B72: 199000002R00 | C72: Poplatek za skládku horniny 1- 7 č. dle katal. odpadů 17 05 04 | D72: m3 | E72: 815.0924 | G72: =E72*F72 -> 0 | H72: 0 | I72: =E72*H72 -> 0 | J72: 0 | K72: =E72*J72 -> 0 | O72: 2 | AA72: 1 | AB72: 1 | AC72: 1 | AZ72: 1 | BA72: =IF(AZ72=1,G72,0) -> 0 | BB72: =IF(AZ72=2,G72,0) -> 0 | BC72: =IF(AZ72=3,G72,0) -> 0 | BD72: =IF(AZ72=4,G72,0) -> 0 | BE72: =IF(AZ72=5,G72,0) -> 0 | CA72: 1 | CB72: 1
C73: Stoka "B.1" KT DN250: | E73: 0 | M73: Stoka "B.1" KT DN250:
C74: Výkopy: | E74: 0 | M74: Výkopy:
C75: V hornině tř. 3 - 5:815,0924 | E75: 815.0924 | M75: V hornině tř. 3 - 5:815,0924
A76: 14 | B76: 58337308.R | C76: Štěrkopísek frakce 0-2 tř.B | D76: t | E76: 98.609 | G76: =E76*F76 -> 0 | H76: 1 | I76: =E76*H76 -> 98.609 | K76: =E76*J76 -> 0 | O76: 2 | AA76: 3 | AB76: 1 | AC76: 58337308.R | AZ76: 1 | BA76: =IF(AZ76=1,G76,0) -> 0 | BB76: =IF(AZ76=2,G76,0) -> 0 | BC76: =IF(AZ76=3,G76,0) -> 0 | BD76: =IF(AZ76=4,G76,0) -> 0 | BE76: =IF(AZ76=5,G76,0) -> 0 | CA76: 3 | CB76: 1
C77: Stoka "B.1" KT DN250:120,90*0,4093*1,973*1,01 | E77: 98.609 | M77: Stoka "B.1" KT DN250:120,90*0,4093*1,973*1,01
A78: 15 | B78: 58344197R | C78: Štěrkodrtě frakce 0-63 A | D78: t | E78: 122.4619 | G78: =E78*F78 -> 0 | H78: 1 | I78: =E78*H78 -> 122.4619 | K78: =E78*J78 -> 0 | O78: 2 | AA78: 3 | AB78: 1 | AC78: 58344197R | AZ78: 1 | BA78: =IF(AZ78=1,G78,0) -> 0 | BB78: =IF(AZ78=2,G78,0) -> 0 | BC78: =IF(AZ78=3,G78,0) -> 0 | BD78: =IF(AZ78=4,G78,0) -> 0 | BE78: =IF(AZ78=5,G78,0) -> 0 | CA78: 3 | CB78: 1
C79: Stoka "B.1" KT DN250: | E79: 0 | M79: Stoka "B.1" KT DN250:
C80: Zásypy ŠD fr. - 0-63 mm:64,7354*1,873*1,01 | E80: 122.4619 | M80: Zásypy ŠD fr. - 0-63 mm:64,7354*1,873*1,01
C81: Začátek provozního součtu | E81: 0 | M81: Začátek provozního součtu
C82: Výkopy: | E82: 0 | M82: Výkopy:
C83: V hornině tř. 3 - 5:162,2324 | E83: 162.2324 | M83: V hornině tř. 3 - 5:162,2324
C84: Odpočet lože, potrubí a obsypů:-120,90*0,750 | E84: -90.675 | M84: Odpočet lože, potrubí a obsypů:-120,90*0,750
C85: Odpočet objemu RŠ:-6,8220 | E85: -6.822 | M85: Odpočet objemu RŠ:-6,8220
C86: 0 | E86: 0 | M86: 0
C87: Konec provozního součtu | E87: 64.7354 | M87: Konec provozního součtu
B88: Celkem za | C88: 1 Zemní práce | G88: =SUM(G7:G87) -> 0 | I88: =SUM(I7:I87) -> 221.6706711 | K88: =SUM(K7:K87) -> 0 | O88: 4 | BA88: =SUM(BA7:BA87) -> 0 | BB88: =SUM(BB7:BB87) -> 0 | BC88: =SUM(BC7:BC87) -> 0 | BD88: =SUM(BD7:BD87) -> 0 | BE88: =SUM(BE7:BE87) -> 0
A89: Díl: | B89: 21 | C89: Úprava podloží a základ.spáry | O89: 1
A90: 16 | B90: 212810010RAC | C90: Trativody z PVC drenážních flexibilních trubek lože štěrkopísek a obsyp kamenivo, trubky d 100 mm | D90: m | E90: 120.9 | G90: =E90*F90 -> 0 | H90: 0.43651 | I90: =E90*H90 -> 52.774059 | J90: 0 | K90: =E90*J90 -> 0 | O90: 2 | AA90: 1 | AB90: 1 | AC90: 1 | AZ90: 1 | BA90: =IF(AZ90=1,G90,0) -> 0 | BB90: =IF(AZ90=2,G90,0) -> 0 | BC90: =IF(AZ90=3,G90,0) -> 0 | BD90: =IF(AZ90=4,G90,0) -> 0 | BE90: =IF(AZ90=5,G90,0) -> 0 | CA90: 1 | CB90: 1
C91: Stoka "B.1" KT DN250: | E91: 0 | M91: Stoka "B.1" KT DN250:
C92: Drenáž DN100:120,90 | E92: 120.9 | M92: Drenáž DN100:120,90
B93: Celkem za | C93: 21 Úprava podloží a základ.spáry | G93: =SUM(G89:G92) -> 0 | I93: =SUM(I89:I92) -> 52.774059 | K93: =SUM(K89:K92) -> 0 | O93: 4 | BA93: =SUM(BA89:BA92) -> 0 | BB93: =SUM(BB89:BB92) -> 0 | BC93: =SUM(BC89:BC92) -> 0 | BD93: =SUM(BD89:BD92) -> 0 | BE93: =SUM(BE89:BE92) -> 0
A94: Díl: | B94: 45 | C94: Podkladní a vedlejší konstrukce | O94: 1
A95: 17 | B95: 452112111R00 | C95: Osazení beton. prstenců pod poklopy,výšky do100 mm | D95: kus | E95: 4 | G95: =E95*F95 -> 0 | H95: 0.0066 | I95: =E95*H95 -> 0.0264 | J95: 0 | K95: =E95*J95 -> 0 | O95: 2 | AA95: 1 | AB95: 1 | AC95: 1 | AZ95: 1 | BA95: =IF(AZ95=1,G95,0) -> 0 | BB95: =IF(AZ95=2,G95,0) -> 0 | BC95: =IF(AZ95=3,G95,0) -> 0 | BD95: =IF(AZ95=4,G95,0) -> 0 | BE95: =IF(AZ95=5,G95,0) -> 0 | CA95: 1 | CB95: 1
C96: Volba položky se řídí výškou prstence nebo rámu. V položkách nejsou zakalkulovány náklady na dodávku betonových výrobků; | L96: Volba položky se řídí výškou prstence nebo rámu. V položkách nejsou zakalkulovány náklady na dodávku betonových výrobků; | O96: 3
C97: Stoka "B.1" KT DN250: | E97: 0 | M97: Stoka "B.1" KT DN250:
C98: VP H40:1 | E98: 1 | M98: VP H40:1
C99: VP H60:1 | E99: 1 | M99: VP H60:1
C100: VP H80:1 | E100: 1 | M100: VP H80:1
C101: VP H100:1 | E101: 1 | M101: VP H100:1
A102: 18 | B102: 452112121R00 | C102: Osazení beton. prstenců pod poklopy,výšky do200 mm | D102: kus | E102: 2 | G102: =E102*F102 -> 0 | H102: 0.0066 | I102: =E102*H102 -> 0.0132 | J102: 0 | K102: =E102*J102 -> 0 | O102: 2 | AA102: 1 | AB102: 1 | AC102: 1 | AZ102: 1 | BA102: =IF(AZ102=1,G102,0) -> 0 | BB102: =IF(AZ102=2,G102,0) -> 0 | BC102: =IF(AZ102=3,G102,0) -> 0 | BD102: =IF(AZ102=4,G102,0) -> 0 | BE102: =IF(AZ102=5,G102,0) -> 0 | CA102: 1 | CB102: 1
C103: Stoka "B.1" KT DN250: | E103: 0 | M103: Stoka "B.1" KT DN250:
C104: VP H120:2 | E104: 2 | M104: VP H120:2
A105: 19 | B105: 452312131R00 | C105: Sedlové lože pod potrubí z betonu C 12/15 | D105: m3 | E105: 32.643 | G105: =E105*F105 -> 0 | H105: 2.5 | I105: =E105*H105 -> 81.6075 | J105: 0 | K105: =E105*J105 -> 0 | O105: 2 | AA105: 1 | AB105: 1 | AC105: 1 | AZ105: 1 | BA105: =IF(AZ105=1,G105,0) -> 0 | BB105: =IF(AZ105=2,G105,0) -> 0 | BC105: =IF(AZ105=3,G105,0) -> 0 | BD105: =IF(AZ105=4,G105,0) -> 0 | BE105: =IF(AZ105=5,G105,0) -> 0 | CA105: 1 | CB105: 1
C106: Položka je určena pro práce v otevřeném výkopu | L106: Položka je určena pro práce v otevřeném výkopu | O106: 3
C107: Stoka "B.1" KT DN250:120,90*0,270 | E107: 32.643 | M107: Stoka "B.1" KT DN250:120,90*0,270
A108: 20 | B108: 59224346.A.R | C108: Prstenec vyrovn šachetní TBW-Q.1 63/4 | D108: kus | E108: 1.01 | G108: =E108*F108 -> 0 | H108: 0.028 | I108: =E108*H108 -> 0.02828 | K108: =E108*J108 -> 0 | O108: 2 | AA108: 3 | AB108: 1 | AC108: 59224346.A.R | AZ108: 1 | BA108: =IF(AZ108=1,G108,0) -> 0 | BB108: =IF(AZ108=2,G108,0) -> 0 | BC108: =IF(AZ108=3,G108,0) -> 0 | BD108: =IF(AZ108=4,G108,0) -> 0 | BE108: =IF(AZ108=5,G108,0) -> 0 | CA108: 3 | CB108: 1
C109: Stoka "B.1" KT DN250: | E109: 0 | M109: Stoka "B.1" KT DN250:
C110: VP H40:1*1,01 | E110: 1.01 | M110: VP H40:1*1,01
A111: 21 | B111: 59224347.A.R | C111: Prstenec vyrovn šachetní TBW-Q.1 63/6 | D111: kus | E111: 1.01 | G111: =E111*F111 -> 0 | H111: 0.04 | I111: =E111*H111 -> 0.0404 | K111: =E111*J111 -> 0 | O111: 2 | AA111: 3 | AB111: 1 | AC111: 59224347.A.R | AZ111: 1 | BA111: =IF(AZ111=1,G111,0) -> 0 | BB111: =IF(AZ111=2,G111,0) -> 0 | BC111: =IF(AZ111=3,G111,0) -> 0 | BD111: =IF(AZ111=4,G111,0) -> 0 | BE111: =IF(AZ111=5,G111,0) -> 0 | CA111: 3 | CB111: 1
C112: Stoka "B.1" KT DN250: | E112: 0 | M112: Stoka "B.1" KT DN250:
C113: VP H60:1*1,01 | E113: 1.01 | M113: VP H60:1*1,01
A114: 22 | B114: 59224348.A.R | C114: Prstenec vyrovn šachetní TBW-Q.1 63/8 | D114: kus | E114: 1.01 | G114: =E114*F114 -> 0 | H114: 0.054 | I114: =E114*H114 -> 0.05454 | K114: =E114*J114 -> 0 | O114: 2 | AA114: 3 | AB114: 1 | AC114: 59224348.A.R | AZ114: 1 | BA114: =IF(AZ114=1,G114,0) -> 0 | BB114: =IF(AZ114=2,G114,0) -> 0 | BC114: =IF(AZ114=3,G114,0) -> 0 | BD114: =IF(AZ114=4,G114,0) -> 0 | BE114: =IF(AZ114=5,G114,0) -> 0 | CA114: 3 | CB114: 1
C115: Stoka "B.1" KT DN250: | E115: 0 | M115: Stoka "B.1" KT DN250:
C116: VP H80:1*1,01 | E116: 1.01 | M116: VP H80:1*1,01
A117: 23 | B117: 59224349.A.R | C117: Prstenec vyrovn šachetní TBW-Q.1 63/10 | D117: kus | E117: 1.01 | G117: =E117*F117 -> 0 | H117: 0.068 | I117: =E117*H117 -> 0.06868 | K117: =E117*J117 -> 0 | O117: 2 | AA117: 3 | AB117: 1 | AC117: 59224349.A.R | AZ117: 1 | BA117: =IF(AZ117=1,G117,0) -> 0 | BB117: =IF(AZ117=2,G117,0) -> 0 | BC117: =IF(AZ117=3,G117,0) -> 0 | BD117: =IF(AZ117=4,G117,0) -> 0 | BE117: =IF(AZ117=5,G117,0) -> 0 | CA117: 3 | CB117: 1
C118: Stoka "B.1" KT DN250: | E118: 0 | M118: Stoka "B.1" KT DN250:
C119: VP H100:1*1,01 | E119: 1.01 | M119: VP H100:1*1,01
A120: 24 | B120: 59224350.A.R | C120: Prstenec vyrovn šachetní TBW-Q.1 63/12 | D120: kus | E120: 2.02 | G120: =E120*F120 -> 0 | H120: 0.081 | I120: =E120*H120 -> 0.16362 | K120: =E120*J120 -> 0 | O120: 2 | AA120: 3 | AB120: 1 | AC120: 59224350.A.R | AZ120: 1 | BA120: =IF(AZ120=1,G120,0) -> 0 | BB120: =IF(AZ120=2,G120,0) -> 0 | BC120: =IF(AZ120=3,G120,0) -> 0 | BD120: =IF(AZ120=4,G120,0) -> 0 | BE120: =IF(AZ120=5,G120,0) -> 0 | CA120: 3 | CB120: 1
C121: Stoka "B.1" KT DN250: | E121: 0 | M121: Stoka "B.1" KT DN250:
C122: VP H120:2*1,01 | E122: 2.02 | M122: VP H120:2*1,01
B123: Celkem za | C123: 45 Podkladní a vedlejší konstrukce | G123: =SUM(G94:G122) -> 0 | I123: =SUM(I94:I122) -> 82.00262 | K123: =SUM(K94:K122) -> 0 | O123: 4 | BA123: =SUM(BA94:BA122) -> 0 | BB123: =SUM(BB94:BB122) -> 0 | BC123: =SUM(BC94:BC122) -> 0 | BD123: =SUM(BD94:BD122) -> 0 | BE123: =SUM(BE94:BE122) -> 0
A124: Díl: | B124: 5 | C124: Komunikace | O124: 1
A125: 25 | B125: 572701119RRX | C125: Provizorní zásyp rýh kam. hrubě drceným nebo recyk s následným odstraněním a odvozem | D125: m3 | E125: 62.37 | G125: =E125*F125 -> 0 | H125: 1.4805 | I125: =E125*H125 -> 92.338785 | J125: 0 | K125: =E125*J125 -> 0 | O125: 2 | AA125: 1 | AB125: 1 | AC125: 1 | AZ125: 1 | BA125: =IF(AZ125=1,G125,0) -> 0 | BB125: =IF(AZ125=2,G125,0) -> 0 | BC125: =IF(AZ125=3,G125,0) -> 0 | BD125: =IF(AZ125=4,G125,0) -> 0 | BE125: =IF(AZ125=5,G125,0) -> 0 | CA125: 1 | CB125: 1
C126: Stoka "B.1" KT DN250: | E126: 0 | M126: Stoka "B.1" KT DN250:
C127: Objemu konstrukce komunikace:(120,90*1,00+1,60*(1,60-1,00)*4)*0,50 | E127: 62.37 | M127: Objemu konstrukce komunikace:(120,90*1,00+1,60*(1,60-1,00)*4)*0,50
B128: Celkem za | C128: 5 Komunikace | G128: =SUM(G124:G127) -> 0 | I128: =SUM(I124:I127) -> 92.338785 | K128: =SUM(K124:K127) -> 0 | O128: 4 | BA128: =SUM(BA124:BA127) -> 0 | BB128: =SUM(BB124:BB127) -> 0 | BC128: =SUM(BC124:BC127) -> 0 | BD128: =SUM(BD124:BD127) -> 0 | BE128: =SUM(BE124:BE127) -> 0
A129: Díl: | B129: 8 | C129: Trubní vedení | O129: 1
A130: 26 | B130: 831362121R00 | C130: Montáž trub kameninových, pryž. kroužek, DN 250 | D130: m | E130: 120.9 | G130: =E130*F130 -> 0 | H130: 3e-05 | I130: =E130*H130 -> 0.003627 | J130: 0 | K130: =E130*J130 -> 0 | O130: 2 | AA130: 1 | AB130: 1 | AC130: 1 | AZ130: 1 | BA130: =IF(AZ130=1,G130,0) -> 0 | BB130: =IF(AZ130=2,G130,0) -> 0 | BC130: =IF(AZ130=3,G130,0) -> 0 | BD130: =IF(AZ130=4,G130,0) -> 0 | BE130: =IF(AZ130=5,G130,0) -> 0 | CA130: 1 | CB130: 1
C131: Položka je určena pro montáž potrubí z trub kameninových s polyuretanovým spojem v otevřeném výkopu ve sklonu do 20 % včetně případné potřeby krácení trub. | L131: Položka je určena pro montáž potrubí z trub kameninových s polyuretanovým spojem v otevřeném výkopu ve sklonu do 20 % včetně případné potřeby krácení trub. | O131: 3
C132: Stoka "B.1" KT DN250:120,90 | E132: 120.9 | M132: Stoka "B.1" KT DN250:120,90
A133: 27 | B133: 837361221R00 | C133: Montáž tvarov. kamenin. odboč. pryž. krouž. DN 250 | D133: kus | E133: 2 | G133: =E133*F133 -> 0 | H133: 6e-05 | I133: =E133*H133 -> 0.00012 | J133: 0 | K133: =E133*J133 -> 0 | O133: 2 | AA133: 1 | AB133: 1 | AC133: 1 | AZ133: 1 | BA133: =IF(AZ133=1,G133,0) -> 0 | BB133: =IF(AZ133=2,G133,0) -> 0 | BC133: =IF(AZ133=3,G133,0) -> 0 | BD133: =IF(AZ133=4,G133,0) -> 0 | BE133: =IF(AZ133=5,G133,0) -> 0 | CA133: 1 | CB133: 1
C134: Položka je určena pro montáž kameninových tvarovek odbočných těsněných pryžovými kroužky na potrubí z trub kameninových v otevřeném výkopu. | L134: Položka je určena pro montáž kameninových tvarovek odbočných těsněných pryžovými kroužky na potrubí z trub kameninových v otevřeném výkopu. | O134: 3
C135: Stoka "B.1" KT DN250: | E135: 0 | M135: Stoka "B.1" KT DN250:
C136: Odbočka KT DN250/150:2 | E136: 2 | M136: Odbočka KT DN250/150:2
A137: 28 | B137: 892601154R00 | C137: Čištění kanalizační stoky do DN 500, nad 100 m | D137: m | E137: 120.9 | G137: =E137*F137 -> 0 | H137: 0 | I137: =E137*H137 -> 0 | J137: 0 | K137: =E137*J137 -> 0 | O137: 2 | AA137: 1 | AB137: 0 | AC137: 0 | AZ137: 1 | BA137: =IF(AZ137=1,G137,0) -> 0 | BB137: =IF(AZ137=2,G137,0) -> 0 | BC137: =IF(AZ137=3,G137,0) -> 0 | BD137: =IF(AZ137=4,G137,0) -> 0 | BE137: =IF(AZ137=5,G137,0) -> 0 | CA137: 1 | CB137: 0
C138: V položce je zakalkulováno: | L138: V položce je zakalkulováno: | O138: 3
C139: a) otevření a uzavření revizních šachet a čisticích kusů | L139: a) otevření a uzavření revizních šachet a čisticích kusů | O139: 3
C140: b) natažení vysokotlakých hadic k místu odkud se bude kanalizace čistit | L140: b) natažení vysokotlakých hadic k místu odkud se bude kanalizace čistit | O140: 3
C141: c) vyčištění potrubí tlakovou vodou nebo motorovým pérem. | L141: c) vyčištění potrubí tlakovou vodou nebo motorovým pérem. | O141: 3
C142: Stoka "B.1" KT DN250:120,90 | E142: 120.9 | M142: Stoka "B.1" KT DN250:120,90
A143: 29 | B143: 892855115R00 | C143: Kontrola kanalizace TV kamerou do 500 m | D143: m | E143: 241.8 | G143: =E143*F143 -> 0 | H143: 0 | I143: =E143*H143 -> 0 | J143: 0 | K143: =E143*J143 -> 0 | O143: 2 | AA143: 1 | AB143: 1 | AC143: 1 | AZ143: 1 | BA143: =IF(AZ143=1,G143,0) -> 0 | BB143: =IF(AZ143=2,G143,0) -> 0 | BC143: =IF(AZ143=3,G143,0) -> 0 | BD143: =IF(AZ143=4,G143,0) -> 0 | BE143: =IF(AZ143=5,G143,0) -> 0 | CA143: 1 | CB143: 1
C144: Provedení kaberové prohlídky včetně dodání elektronického záznamu na CD zadavateli a tištěné dokumentace průběhu kamerové prohlídky | L144: Provedení kaberové prohlídky včetně dodání elektronického záznamu na CD zadavateli a tištěné dokumentace průběhu kamerové prohlídky | O144: 3
C145: Stoka "B.1" KT DN250:120,90*2 | E145: 241.8 | M145: Stoka "B.1" KT DN250:120,90*2
A146: 30 | B146: 894421111RT1 | C146: Osazení betonových dílců šachet skruže rovné, na kroužek, do 0,5 t | D146: kus | E146: 3 | G146: =E146*F146 -> 0 | H146: 0 | I146: =E146*H146 -> 0 | J146: 0 | K146: =E146*J146 -> 0 | O146: 2 | AA146: 1 | AB146: 1 | AC146: 1 | AZ146: 1 | BA146: =IF(AZ146=1,G146,0) -> 0 | BB146: =IF(AZ146=2,G146,0) -> 0 | BC146: =IF(AZ146=3,G146,0) -> 0 | BD146: =IF(AZ146=4,G146,0) -> 0 | BE146: =IF(AZ146=5,G146,0) -> 0 | CA146: 1 | CB146: 1
C147: Položka je určena pro osazení betonových dílců šachet dle DIN 4034, skruže rovné na kroužek, hmotnost do 0,5 t. | L147: Položka je určena pro osazení betonových dílců šachet dle DIN 4034, skruže rovné na kroužek, hmotnost do 0,5 t. | O147: 3
C148: V položce nejsou zakalkulovány náklady na dodání betonových dílců; dílce se oceňují ve specifikaci. | L148: V položce nejsou zakalkulovány náklady na dodání betonových dílců; dílce se oceňují ve specifikaci. | O148: 3
C149: Stoka "B.1" KT DN250: | E149: 0 | M149: Stoka "B.1" KT DN250:
C150: Skruž H250:2 | E150: 2 | M150: Skruž H250:2
C151: Skruž H500:1 | E151: 1 | M151: Skruž H500:1
A152: 31 | B152: 894422111RT1 | C152: Osazení betonových dílců šachet skruže přechodové, na kroužek | D152: kus | E152: 4 | G152: =E152*F152 -> 0 | H152: 0 | I152: =E152*H152 -> 0 | J152: 0 | K152: =E152*J152 -> 0 | O152: 2 | AA152: 1 | AB152: 1 | AC152: 1 | AZ152: 1 | BA152: =IF(AZ152=1,G152,0) -> 0 | BB152: =IF(AZ152=2,G152,0) -> 0 | BC152: =IF(AZ152=3,G152,0) -> 0 | BD152: =IF(AZ152=4,G152,0) -> 0 | BE152: =IF(AZ152=5,G152,0) -> 0 | CA152: 1 | CB152: 1
C153: Položka je určena pro osazení betonových dílců šachet dle DIN 4034, skruže přechodové, zákrytové, kónusy,... na kroužek. | L153: Položka je určena pro osazení betonových dílců šachet dle DIN 4034, skruže přechodové, zákrytové, kónusy,... na kroužek. | O153: 3
C154: Stoka "B.1" KT DN250: | E154: 0 | M154: Stoka "B.1" KT DN250:
C155: Kónus H580:4 | E155: 4 | M155: Kónus H580:4
A156: 32 | B156: 894423111RT1 | C156: Osazení betonových dílců šachet do 2,0 t šachtová dna, na kroužek, do 2,0 t | D156: kus | E156: 4 | G156: =E156*F156 -> 0 | H156: 0 | I156: =E156*H156 -> 0 | J156: 0 | K156: =E156*J156 -> 0 | O156: 2 | AA156: 1 | AB156: 1 | AC156: 1 | AZ156: 1 | BA156: =IF(AZ156=1,G156,0) -> 0 | BB156: =IF(AZ156=2,G156,0) -> 0 | BC156: =IF(AZ156=3,G156,0) -> 0 | BD156: =IF(AZ156=4,G156,0) -> 0 | BE156: =IF(AZ156=5,G156,0) -> 0 | CA156: 1 | CB156: 1
C157: Položka je určena pro osazení betonových dílců šachet dle DIN 4034, šachtová dna na kroužek, hmotnost do 2,0 t. | L157: Položka je určena pro osazení betonových dílců šachet dle DIN 4034, šachtová dna na kroužek, hmotnost do 2,0 t. | O157: 3
C158: V položce nejsou zakalkulovány náklady na dodání betonových dílců; | L158: V položce nejsou zakalkulovány náklady na dodání betonových dílců; | O158: 3
C159: Součástí položky je i podbetonování šachtového dna betonem C12/15 v min. tl. 10 cm. | L159: Součástí položky je i podbetonování šachtového dna betonem C12/15 v min. tl. 10 cm. | O159: 3
C160: Stoka "B.1" KT DN250: | E160: 0 | M160: Stoka "B.1" KT DN250:
C161: ŠD H575:4 | E161: 4 | M161: ŠD H575:4
A162: 33 | B162: 899102111R00 | C162: Osazení poklopu s rámem do 100 kg | D162: kus | E162: 4 | G162: =E162*F162 -> 0 | H162: 0.00702 | I162: =E162*H162 -> 0.02808 | J162: 0 | K162: =E162*J162 -> 0 | O162: 2 | AA162: 1 | AB162: 1 | AC162: 1 | AZ162: 1 | BA162: =IF(AZ162=1,G162,0) -> 0 | BB162: =IF(AZ162=2,G162,0) -> 0 | BC162: =IF(AZ162=3,G162,0) -> 0 | BD162: =IF(AZ162=4,G162,0) -> 0 | BE162: =IF(AZ162=5,G162,0) -> 0 | CA162: 1 | CB162: 1
C163: Osazení provizorních poklopů během realizace stavby (nefakturovaný materiál zhotovitele) | L163: Osazení provizorních poklopů během realizace stavby (nefakturovaný materiál zhotovitele) | O163: 3
A164: 34 | B164: 899711122R00 | C164: Fólie výstražná z PVC šedá, šířka 30 cm | D164: m | E164: 120.9 | G164: =E164*F164 -> 0 | H164: 0 | I164: =E164*H164 -> 0 | J164: 0 | K164: =E164*J164 -> 0 | O164: 2 | AA164: 1 | AB164: 1 | AC164: 1 | AZ164: 1 | BA164: =IF(AZ164=1,G164,0) -> 0 | BB164: =IF(AZ164=2,G164,0) -> 0 | BC164: =IF(AZ164=3,G164,0) -> 0 | BD164: =IF(AZ164=4,G164,0) -> 0 | BE164: =IF(AZ164=5,G164,0) -> 0 | CA164: 1 | CB164: 1
C165: Stoka "B.1" KT DN250:120,90 | E165: 120.9 | M165: Stoka "B.1" KT DN250:120,90
A166: 35 | B166: 592243543.R | C166: Kónus šachetní TBR-Q.1 100x63/58/12 KPS | D166: kus | E166: 4.04 | G166: =E166*F166 -> 0 | H166: 0.585 | I166: =E166*H166 -> 2.3634 | K166: =E166*J166 -> 0 | O166: 2 | AA166: 3 | AB166: 1 | AC166: 592243543.R | AZ166: 1 | BA166: =IF(AZ166=1,G166,0) -> 0 | BB166: =IF(AZ166=2,G166,0) -> 0 | BC166: =IF(AZ166=3,G166,0) -> 0 | BD166: =IF(AZ166=4,G166,0) -> 0 | BE166: =IF(AZ166=5,G166,0) -> 0 | CA166: 3 | CB166: 1
C167: Stoka "B.1" KT DN250: | E167: 0 | M167: Stoka "B.1" KT DN250:
C168: Kónus H580:4*1,01 | E168: 4.04 | M168: Kónus H580:4*1,01
A169: 36 | B169: 59224358.A.R | C169: Skruž šachetní TBS-Q.1 100/25/12 PS | D169: kus | E169: 2.02 | G169: =E169*F169 -> 0 | H169: 0.25 | I169: =E169*H169 -> 0.505 | K169: =E169*J169 -> 0 | O169: 2 | AA169: 3 | AB169: 1 | AC169: 59224358.A.R | AZ169: 1 | BA169: =IF(AZ169=1,G169,0) -> 0 | BB169: =IF(AZ169=2,G169,0) -> 0 | BC169: =IF(AZ169=3,G169,0) -> 0 | BD169: =IF(AZ169=4,G169,0) -> 0 | BE169: =IF(AZ169=5,G169,0) -> 0 | CA169: 3 | CB169: 1
C170: Stoka "B.1" KT DN250: | E170: 0 | M170: Stoka "B.1" KT DN250:
C171: Skruž H250:2*1,01 | E171: 2.02 | M171: Skruž H250:2*1,01
A172: 37 | B172: 59224361.A.R | C172: Skruž šachetní TBS-Q.1 100/50/12 PS | D172: kus | E172: 1.01 | G172: =E172*F172 -> 0 | H172: 0.5 | I172: =E172*H172 -> 0.505 | K172: =E172*J172 -> 0 | O172: 2 | AA172: 3 | AB172: 1 | AC172: 59224361.A.R | AZ172: 1 | BA172: =IF(AZ172=1,G172,0) -> 0 | BB172: =IF(AZ172=2,G172,0) -> 0 | BC172: =IF(AZ172=3,G172,0) -> 0 | BD172: =IF(AZ172=4,G172,0) -> 0 | BE172: =IF(AZ172=5,G172,0) -> 0 | CA172: 3 | CB172: 1
C173: Stoka "B.1" KT DN250: | E173: 0 | M173: Stoka "B.1" KT DN250:
C174: Skruž H500:1*1,01 | E174: 1.01 | M174: Skruž H500:1*1,01
A175: 38 | B175: 59224371.A.R | C175: Dno šachetní TBZ-Q.1 100/58 KOM V20 včetně kynety dle PD | D175: kus | E175: 4.04 | G175: =E175*F175 -> 0 | H175: 1.27 | I175: =E175*H175 -> 5.1308 | K175: =E175*J175 -> 0 | O175: 2 | AA175: 3 | AB175: 1 | AC175: 59224371.A.R | AZ175: 1 | BA175: =IF(AZ175=1,G175,0) -> 0 | BB175: =IF(AZ175=2,G175,0) -> 0 | BC175: =IF(AZ175=3,G175,0) -> 0 | BD175: =IF(AZ175=4,G175,0) -> 0 | BE175: =IF(AZ175=5,G175,0) -> 0 | CA175: 3 | CB175: 1
C176: Stoka "B.1" KT DN250: | E176: 0 | M176: Stoka "B.1" KT DN250:
C177: ŠD H575:4*1,01 | E177: 4.04 | M177: ŠD H575:4*1,01
A178: 39 | B178: 59224380.R | C178: Těsnění elastom pro šach díly EMT 100/1.7 - DN1000 | D178: kus | E178: 7.07 | G178: =E178*F178 -> 0 | H178: 0.002 | I178: =E178*H178 -> 0.01414 | K178: =E178*J178 -> 0 | O178: 2 | AA178: 3 | AB178: 1 | AC178: 59224380.R | AZ178: 1 | BA178: =IF(AZ178=1,G178,0) -> 0 | BB178: =IF(AZ178=2,G178,0) -> 0 | BC178: =IF(AZ178=3,G178,0) -> 0 | BD178: =IF(AZ178=4,G178,0) -> 0 | BE178: =IF(AZ178=5,G178,0) -> 0 | CA178: 3 | CB178: 1
C179: Stoka "B.1" KT DN250: | E179: 0 | M179: Stoka "B.1" KT DN250:
C180: Těsnění DN1000:7*1,01 | E180: 7.07 | M180: Těsnění DN1000:7*1,01
A181: 40 | B181: 59710698.A | C181: Trouba kameninová hrdlová DN 250, l=2,50 m, FN 40 | D181: m | E181: 116.8265 | G181: =E181*F181 -> 0 | H181: 0.053 | I181: =E181*H181 -> 6.1918045 | K181: =E181*J181 -> 0 | O181: 2 | AA181: 3 | AB181: 1 | AC181: 59710698.A | AZ181: 1 | BA181: =IF(AZ181=1,G181,0) -> 0 | BB181: =IF(AZ181=2,G181,0) -> 0 | BC181: =IF(AZ181=3,G181,0) -> 0 | BD181: =IF(AZ181=4,G181,0) -> 0 | BE181: =IF(AZ181=5,G181,0) -> 0 | CA181: 3 | CB181: 1
C182: Hrdlové trouby KeraBase pro použití v komunální a průmyslové kanalizační systémy. | L182: Hrdlové trouby KeraBase pro použití v komunální a průmyslové kanalizační systémy. | O182: 3
C183: Otevřený výkop, normální zatížení. | L183: Otevřený výkop, normální zatížení. | O183: 3
C184: DN 250 | L184: DN 250 | O184: 3
C185: Délka 250 cm | L185: Délka 250 cm | O185: 3
C186: FN 40 kN/m | L186: FN 40 kN/m | O186: 3
C187: Hmotnost 133 kg/ks | L187: Hmotnost 133 kg/ks | O187: 3
C188: Hrdlo K/S | L188: Hrdlo K/S | O188: 3
C189: Třída pevnosti 200 | L189: Třída pevnosti 200 | O189: 3
C190: trouba oboustranně glazována | L190: trouba oboustranně glazována | O190: 3
C191: Stoka "B.1" KT DN250:120,90*1,015 | E191: 122.7135 | M191: Stoka "B.1" KT DN250:120,90*1,015
C192: Odpočet - Odbočky DN250/150:-0,50*2*1,015 | E192: -1.015 | M192: Odpočet - Odbočky DN250/150:-0,50*2*1,015
C193: Odpočet - Tvarovky GA a GZ:-0,60*(4+4)*1,015 | E193: -4.872 | M193: Odpočet - Tvarovky GA a GZ:-0,60*(4+4)*1,015
A194: 41 | B194: 59710821.A.R | C194: Trouba kameninová zkrácená GZ DN 250, FN 40 | D194: kus | E194: 4.06 | G194: =E194*F194 -> 0 | H194: 0.041 | I194: =E194*H194 -> 0.16646 | K194: =E194*J194 -> 0 | O194: 2 | AA194: 3 | AB194: 1 | AC194: 59710821.A.R | AZ194: 1 | BA194: =IF(AZ194=1,G194,0) -> 0 | BB194: =IF(AZ194=2,G194,0) -> 0 | BC194: =IF(AZ194=3,G194,0) -> 0 | BD194: =IF(AZ194=4,G194,0) -> 0 | BE194: =IF(AZ194=5,G194,0) -> 0 | CA194: 3 | CB194: 1
C195: Zkrácené trouby KeraBase GZ pro použití v komunální a průmyslové kanalizační systémy. | L195: Zkrácené trouby KeraBase GZ pro použití v komunální a průmyslové kanalizační systémy. | O195: 3
C196: Otevřený výkop, normální zatížení. | L196: Otevřený výkop, normální zatížení. | O196: 3
C197: DN 250 | L197: DN 250 | O197: 3
C198: Délka 60 cm | L198: Délka 60 cm | O198: 3
C199: FN 40 kN/m | L199: FN 40 kN/m | O199: 3
C200: Hmotnost 41 kg/ks | L200: Hmotnost 41 kg/ks | O200: 3
C201: Hrdlo K | L201: Hrdlo K | O201: 3
C202: Třída pevnosti 160 | L202: Třída pevnosti 160 | O202: 3
... 49 more rows

Sheet 01 01.32 KL
A1: POLOŽKOVÝ ROZPOČET
A2: Rozpočet | C2: 01.32 | D2: Stoka "H" km 0,000 - 0,060.3 | F2: JKSO | G2: 827.21.A3
A4: Objekt | F4: SKP
A5: 01 | C5: Kanalizace | F5: Měrná jednotka | G5: m
A6: Stavba | F6: Počet jednotek | G6: 0
A7: 3395 | C7: Kanalizace a ČOV Benešov u Semil | F7: Náklady na m.j. | G7: =IF(G6=0,,ROUND((F30+F32)/G6,1)) -> 0
A8: Projektant | C8: Vodohospodářský rozvoj a výstavba a.s. | F8: Typ rozpočtu
A9: Zpracovatel projektu
A10: Objednatel | C10: Vodohospodářské sdružení Turnov
A11: Dodavatel | C11: . | F11: Zakázkové číslo
A12: Rozpočtoval | F12: Počet listů
A13: ROZPOČTOVÉ NÁKLADY
A14: Základní rozpočtové náklady
B15: HSV celkem | C15: ='01 01.32 Rek'!E14 -> 0
A16: Z | B16: PSV celkem | C16: ='01 01.32 Rek'!F14 -> 0
A17: R | B17: M práce celkem | C17: ='01 01.32 Rek'!H14 -> 0
A18: N | B18: M dodávky celkem | C18: ='01 01.32 Rek'!G14 -> 0
A19: ZRN celkem | C19: =SUM(C15:C18) -> 0
A21: HZS | C21: ='01 01.32 Rek'!I14 -> 0
A22: ZRN+HZS | C22: =C19+C21 -> 0
A23: ZRN+ost.náklady+HZS | C23: =C22+G23 -> 0
A24: Vypracoval | D24: Za zhotovitele | F24: Za objednatele
A25: Jméno : | D25: Jméno : | F25: Jméno :
A26: Datum : | D26: Datum : | F26: Datum :
A28: Podpis : | D28: Podpis: | F28: Podpis:
A30: Základ pro DPH | C30: 21 | D30: % | F30: =C23-F32 -> 0
A31: DPH | C31: =C30 -> 21 | D31: % | F31: =ROUND(PRODUCT(F30,C31/100),0) -> 0
A32: Základ pro DPH | C32: 0 | D32: % | F32: 0
A33: DPH | C33: =C32 -> 0 | D33: % | F33: =ROUND(PRODUCT(F32,C33/100),0) -> 0
A34: CENA ZA OBJEKT CELKEM | F34: =ROUND(SUM(F30:F33),0) -> 0
A36: Poznámka :

Sheet 01 01.32 Rek
A1: Stavba : | C1: 3395 Kanalizace a ČOV Benešov u Semil | G1: Rozpočet : | H1: 01.32
A2: Objekt : | C2: 01 Kanalizace | G2: Stoka "H" km 0,000 - 0,060.3
A4: REKAPITULACE STAVEBNÍCH DÍLŮ
B6: Stavební díl | E6: HSV | F6: PSV | G6: Dodávka | H6: Montáž | I6: HZS
A7: ='01 01.32 Pol'!B7 -> 1 | B7: ='01 01.32 Pol'!C7 -> Zemní práce | E7: ='01 01.32 Pol'!BA102 -> 0 | F7: ='01 01.32 Pol'!BB102 -> 0 | G7: ='01 01.32 Pol'!BC102 -> 0 | H7: ='01 01.32 Pol'!BD102 -> 0 | I7: ='01 01.32 Pol'!BE102 -> 0
A8: ='01 01.32 Pol'!B103 -> 21 | B8: ='01 01.32 Pol'!C103 -> Úprava podloží a základ.spáry | E8: ='01 01.32 Pol'!BA107 -> 0 | F8: ='01 01.32 Pol'!BB107 -> 0 | G8: ='01 01.32 Pol'!BC107 -> 0 | H8: ='01 01.32 Pol'!BD107 -> 0 | I8: ='01 01.32 Pol'!BE107 -> 0
A9: ='01 01.32 Pol'!B108 -> 45 | B9: ='01 01.32 Pol'!C108 -> Podkladní a vedlejší konstrukce | E9: ='01 01.32 Pol'!BA132 -> 0 | F9: ='01 01.32 Pol'!BB132 -> 0 | G9: ='01 01.32 Pol'!BC132 -> 0 | H9: ='01 01.32 Pol'!BD132 -> 0 | I9: ='01 01.32 Pol'!BE132 -> 0
A10: ='01 01.32 Pol'!B133 -> 5 | B10: ='01 01.32 Pol'!C133 -> Komunikace | E10: ='01 01.32 Pol'!BA137 -> 0 | F10: ='01 01.32 Pol'!BB137 -> 0 | G10: ='01 01.32 Pol'!BC137 -> 0 | H10: ='01 01.32 Pol'!BD137 -> 0 | I10: ='01 01.32 Pol'!BE137 -> 0
A11: ='01 01.32 Pol'!B138 -> 8 | B11: ='01 01.32 Pol'!C138 -> Trubní vedení | E11: ='01 01.32 Pol'!BA193 -> 0 | F11: ='01 01.32 Pol'!BB193 -> 0 | G11: ='01 01.32 Pol'!BC193 -> 0 | H11: ='01 01.32 Pol'!BD193 -> 0 | I11: ='01 01.32 Pol'!BE193 -> 0
A12: ='01 01.32 Pol'!B194 -> 93 | B12: ='01 01.32 Pol'!C194 -> Dokončovací práce inženýrských staveb | E12: ='01 01.32 Pol'!BA210 -> 0 | F12: ='01 01.32 Pol'!BB210 -> 0 | G12: ='01 01.32 Pol'!BC210 -> 0 | H12: ='01 01.32 Pol'!BD210 -> 0 | I12: ='01 01.32 Pol'!BE210 -> 0
A13: ='01 01.32 Pol'!B211 -> 99 | B13: ='01 01.32 Pol'!C211 -> Staveništní přesun hmot | E13: ='01 01.32 Pol'!BA214 -> 0 | F13: ='01 01.32 Pol'!BB214 -> 0 | G13: ='01 01.32 Pol'!BC214 -> 0 | H13: ='01 01.32 Pol'!BD214 -> 0 | I13: ='01 01.32 Pol'!BE214 -> 0
B14: CELKEM OBJEKT | E14: =SUM(E7:E13) -> 0 | F14: =SUM(F7:F13) -> 0 | G14: =SUM(G7:G13) -> 0 | H14: =SUM(H7:H13) -> 0 | I14: =SUM(I7:I13) -> 0

Sheet 01 01.32 Pol
A1: Položkový rozpočet
A3: Stavba : | C3: 3395 Kanalizace a ČOV Benešov u Semil | E3: Rozpočet: | F3: ='01 01.32 Rek'!H1 -> 01.32
A4: Objekt : | C4: 01 Kanalizace | E4: ='01 01.32 Rek'!G2 -> Stoka "H" km 0,000 - 0,060.3
A6: P.č. | B6: Číslo položky | C6: Název položky | D6: MJ | E6: množství | F6: cena / MJ | G6: celkem (Kč) | H6: Jednotková hmotnost | I6: Celková hmotnost | J6: Jednotková dem.hmot. | K6: Celková dem.hmot.
A7: Díl: | B7: 1 | C7: Zemní práce | O7: 1
A8: 1 | B8: 115101201RRX | C8: Přečerpávání nebo převedení splašků a dešť. vod | D8: h | E8: 50 | G8: =E8*F8 -> 0 | H8: 0 | I8: =E8*H8 -> 0 | J8: 0 | K8: =E8*J8 -> 0 | O8: 2 | AA8: 1 | AB8: 1 | AC8: 1 | AZ8: 1 | BA8: =IF(AZ8=1,G8,0) -> 0 | BB8: =IF(AZ8=2,G8,0) -> 0 | BC8: =IF(AZ8=3,G8,0) -> 0 | BD8: =IF(AZ8=4,G8,0) -> 0 | BE8: =IF(AZ8=5,G8,0) -> 0 | CA8: 1 | CB8: 1
C9: Převedení a čerpání splašků nebo dešťových vod dle zvolené technologie zhotovitele stavby. | L9: Převedení a čerpání splašků nebo dešťových vod dle zvolené technologie zhotovitele stavby. | O9: 3
C10: (Množství bude určeno na stavbě dle skutečnosti) | L10: (Množství bude určeno na stavbě dle skutečnosti) | O10: 3
A11: 2 | B11: 130001101RRX | C11: Příplatek za ztížené hloubení v blízkosti vedení | D11: m3 | E11: 5.5527 | G11: =E11*F11 -> 0 | H11: 0 | I11: =E11*H11 -> 0 | J11: 0 | K11: =E11*J11 -> 0 | O11: 2 | AA11: 1 | AB11: 1 | AC11: 1 | AZ11: 1 | BA11: =IF(AZ11=1,G11,0) -> 0 | BB11: =IF(AZ11=2,G11,0) -> 0 | BC11: =IF(AZ11=3,G11,0) -> 0 | BD11: =IF(AZ11=4,G11,0) -> 0 | BE11: =IF(AZ11=5,G11,0) -> 0 | CA11: 1 | CB11: 1
C12: Včetně případných nutných dokopávem a ručního výkopu podél sousedících inženýrských sítí. | L12: Včetně případných nutných dokopávem a ručního výkopu podél sousedících inženýrských sítí. | O12: 3
C13: Součástí položky je i dočasné zajištění inženýrských sítí v prostoru výkopů (potrubí, kabely a pod.) | L13: Součástí položky je i dočasné zajištění inženýrských sítí v prostoru výkopů (potrubí, kabely a pod.) | O13: 3
C14: Stoka "H" PVC DN250: | E14: 0 | M14: Stoka "H" PVC DN250:
C15: Výkopy: | E15: 0 | M15: Výkopy:
C16: V hornině tř. 3 - 5 - 6%:92,5447*0,06 | E16: 5.5527 | M16: V hornině tř. 3 - 5 - 6%:92,5447*0,06
A17: 3 | B17: 132201212R00 | C17: Hloubení rýh š.do 200 cm hor.3 do 1000m3,STROJNĚ | D17: m3 | E17: 55.5268 | G17: =E17*F17 -> 0 | H17: 0 | I17: =E17*H17 -> 0 | J17: 0 | K17: =E17*J17 -> 0 | O17: 2 | AA17: 1 | AB17: 1 | AC17: 1 | AZ17: 1 | BA17: =IF(AZ17=1,G17,0) -> 0 | BB17: =IF(AZ17=2,G17,0) -> 0 | BC17: =IF(AZ17=3,G17,0) -> 0 | BD17: =IF(AZ17=4,G17,0) -> 0 | BE17: =IF(AZ17=5,G17,0) -> 0 | CA17: 1 | CB17: 1
C18: Položka obsahuje hloubení rýh traktorbagrem, naložení výkopku na dopravní prostředek pro svislé, nebo vodorovné přemístění, popř. přemístění výkopku do 3 m (po povrchu území), případné zajištění rypadel polštáři, udržování pracoviště a ochranu výkopiště proti stékání srážkové vody z okolního terénu i s jejím odvodněním, nebo odvedením, přesekání a odstranění kořenů ve výkopišti, odstranění napadávek, urovnání dna výkopu. | L18: Položka obsahuje hloubení rýh traktorbagrem, naložení výkopku na dopravní prostředek pro svislé, nebo vodorovné přemístění, popř. přemístění výkopku do 3 m (po povrchu území), případné zajištění rypadel polštáři, udržování pracoviště a ochranu výkopiště proti stékání srážkové vody z okolního terénu i s jejím odvodněním, nebo odvedením, přesekání a odstranění kořenů ve výkopišti, odstranění napadávek, urovnání dna výkopu. | O18: 3
C19: Stoka "H" PVC DN250: | E19: 0 | M19: Stoka "H" PVC DN250:
C20: Výkopy: | E20: 0 | M20: Výkopy:
C21: Začátek provozního součtu | E21: 0 | M21: Začátek provozního součtu
C22: ŠA.1-3 - ŠH-1:20,90*0,90*(1,75+1,70)/2 | E22: 32.4473 | M22: ŠA.1-3 - ŠH-1:20,90*0,90*(1,75+1,70)/2
C23: ŠH-1 - ŠH-2:(41,80-20,90)*0,90*(1,70+2,50)/2 | E23: 39.501 | M23: ŠH-1 - ŠH-2:(41,80-20,90)*0,90*(1,70+2,50)/2
C24: ŠH-2 - ŠH-3:(60,30-41,80)*0,90*(2,50+1,80)/2 | E24: 35.7975 | M24: ŠH-2 - ŠH-3:(60,30-41,80)*0,90*(2,50+1,80)/2
C25: Prohloubení pro RŠ:1,60*1,60*0,20*3 | E25: 1.536 | M25: Prohloubení pro RŠ:1,60*1,60*0,20*3
C26: Rozšíření pro RŠ:1,60*(1,60-0,90)*4,95 | E26: 5.544 | M26: Rozšíření pro RŠ:1,60*(1,60-0,90)*4,95
C27: Odpočet objemu konstrukce komunikace:-(60,30+1,60*(1,60-0,90)*3)*0,35 | E27: -22.281 | M27: Odpočet objemu konstrukce komunikace:-(60,30+1,60*(1,60-0,90)*3)*0,35
C28: Konec provozního součtu | E28: 92.5448 | M28: Konec provozního součtu
C29: V hornině tř. 3 - 60%:92,5447*0,6 | E29: 55.5268 | M29: V hornině tř. 3 - 60%:92,5447*0,6
A30: 4 | B30: 132201219R00 | C30: Přípl.za lepivost,hloubení rýh 200cm,hor.3,STROJNĚ | D30: m3 | E30: 27.7634 | G30: =E30*F30 -> 0 | H30: 0 | I30: =E30*H30 -> 0 | J30: 0 | K30: =E30*J30 -> 0 | O30: 2 | AA30: 1 | AB30: 1 | AC30: 1 | AZ30: 1 | BA30: =IF(AZ30=1,G30,0) -> 0 | BB30: =IF(AZ30=2,G30,0) -> 0 | BC30: =IF(AZ30=3,G30,0) -> 0 | BD30: =IF(AZ30=4,G30,0) -> 0 | BE30: =IF(AZ30=5,G30,0) -> 0 | CA30: 1 | CB30: 1
C31: Stoka "H" PVC DN250: | E31: 0 | M31: Stoka "H" PVC DN250:
C32: Výkopy: | E32: 0 | M32: Výkopy:
C33: V hornině tř. 3 - 60%:92,5447*0,6*0,5 | E33: 27.7634 | M33: V hornině tř. 3 - 60%:92,5447*0,6*0,5
A34: 5 | B34: 132301212R00 | C34: Hloubení rýh š.do 200 cm hor.4 do 1000 m3, STROJNĚ | D34: m3 | E34: 27.7634 | G34: =E34*F34 -> 0 | H34: 0 | I34: =E34*H34 -> 0 | J34: 0 | K34: =E34*J34 -> 0 | O34: 2 | AA34: 1 | AB34: 1 | AC34: 1 | AZ34: 1 | BA34: =IF(AZ34=1,G34,0) -> 0 | BB34: =IF(AZ34=2,G34,0) -> 0 | BC34: =IF(AZ34=3,G34,0) -> 0 | BD34: =IF(AZ34=4,G34,0) -> 0 | BE34: =IF(AZ34=5,G34,0) -> 0 | CA34: 1 | CB34: 1
C35: Položka obsahuje hloubení rýh traktorbagrem, naložení výkopku na dopravní prostředek pro svislé, nebo vodorovné přemístění, popř. přemístění výkopku do 3 m (po povrchu území), případné zajištění rypadel polštáři, udržování pracoviště a ochranu výkopiště proti stékání srážkové vody z okolního terénu i s jejím odvodněním, nebo odvedením, přesekání a odstranění kořenů ve výkopišti, odstranění napadávek, urovnání dna výkopu. | L35: Položka obsahuje hloubení rýh traktorbagrem, naložení výkopku na dopravní prostředek pro svislé, nebo vodorovné přemístění, popř. přemístění výkopku do 3 m (po povrchu území), případné zajištění rypadel polštáři, udržování pracoviště a ochranu výkopiště proti stékání srážkové vody z okolního terénu i s jejím odvodněním, nebo odvedením, přesekání a odstranění kořenů ve výkopišti, odstranění napadávek, urovnání dna výkopu. | O35: 3
C36: Stoka "H" PVC DN250: | E36: 0 | M36: Stoka "H" PVC DN250:
C37: Výkopy: | E37: 0 | M37: Výkopy:
C38: V hornině tř. 4 - 30%:92,5447*0,3 | E38: 27.7634 | M38: V hornině tř. 4 - 30%:92,5447*0,3
A39: 6 | B39: 132301219R00 | C39: Přípl.za lepivost,hloubení rýh 200cm,hor.4,STROJNĚ | D39: m3 | E39: 13.8817 | G39: =E39*F39 -> 0 | H39: 0 | I39: =E39*H39 -> 0 | J39: 0 | K39: =E39*J39 -> 0 | O39: 2 | AA39: 1 | AB39: 1 | AC39: 1 | AZ39: 1 | BA39: =IF(AZ39=1,G39,0) -> 0 | BB39: =IF(AZ39=2,G39,0) -> 0 | BC39: =IF(AZ39=3,G39,0) -> 0 | BD39: =IF(AZ39=4,G39,0) -> 0 | BE39: =IF(AZ39=5,G39,0) -> 0 | CA39: 1 | CB39: 1
C40: Stoka "H" PVC DN250: | E40: 0 | M40: Stoka "H" PVC DN250:
C41: Výkopy: | E41: 0 | M41: Výkopy:
C42: V hornině tř. 4 - 30%:92,5447*0,3*0,5 | E42: 13.8817 | M42: V hornině tř. 4 - 30%:92,5447*0,3*0,5
A43: 7 | B43: 132401211RRX | C43: Hloubení rýh šířky do 200 cm v hor.5 STROJNĚ včetně případného dolamování ve vrstvě do 0,5 m | D43: m3 | E43: 9.2545 | G43: =E43*F43 -> 0 | H43: 0.01041 | I43: =E43*H43 -> 0.096339345 | J43: 0 | K43: =E43*J43 -> 0 | O43: 2 | AA43: 1 | AB43: 1 | AC43: 1 | AZ43: 1 | BA43: =IF(AZ43=1,G43,0) -> 0 | BB43: =IF(AZ43=2,G43,0) -> 0 | BC43: =IF(AZ43=3,G43,0) -> 0 | BD43: =IF(AZ43=4,G43,0) -> 0 | BE43: =IF(AZ43=5,G43,0) -> 0 | CA43: 1 | CB43: 1
C44: Položka obsahuje hloubení rýh traktorbagrem, naložení výkopku na dopravní prostředek pro svislé, nebo vodorovné přemístění, popř. přemístění výkopku do 3 m (po povrchu území), případné zajištění rypadel polštáři, udržování pracoviště a ochranu výkopiště proti stékání srážkové vody z okolního terénu i s jejím odvodněním, nebo odvedením, přesekání a odstranění kořenů ve výkopišti, odstranění napadávek, urovnání dna výkopu.včetně případného dolamování ve vrstvě do 0,5 m | L44: Položka obsahuje hloubení rýh traktorbagrem, naložení výkopku na dopravní prostředek pro svislé, nebo vodorovné přemístění, popř. přemístění výkopku do 3 m (po povrchu území), případné zajištění rypadel polštáři, udržování pracoviště a ochranu výkopiště proti stékání srážkové vody z okolního terénu i s jejím odvodněním, nebo odvedením, přesekání a odstranění kořenů ve výkopišti, odstranění napadávek, urovnání dna výkopu.včetně případného dolamování ve vrstvě do 0,5 m | O44: 3
C45: Stoka "H" PVC DN250: | E45: 0 | M45: Stoka "H" PVC DN250:
C46: Výkopy: | E46: 0 | M46: Výkopy:
C47: V hornině tř. 5 - 10%:92,5447*0,1 | E47: 9.2545 | M47: V hornině tř. 5 - 10%:92,5447*0,1
A48: 8 | B48: 151101101R00 | C48: Pažení a rozepření stěn rýh - příložné - hl.do 2 m | D48: m2 | E48: 239.435 | G48: =E48*F48 -> 0 | H48: 0.00099 | I48: =E48*H48 -> 0.23704065 | J48: 0 | K48: =E48*J48 -> 0 | O48: 2 | AA48: 1 | AB48: 1 | AC48: 1 | AZ48: 1 | BA48: =IF(AZ48=1,G48,0) -> 0 | BB48: =IF(AZ48=2,G48,0) -> 0 | BC48: =IF(AZ48=3,G48,0) -> 0 | BD48: =IF(AZ48=4,G48,0) -> 0 | BE48: =IF(AZ48=5,G48,0) -> 0 | CA48: 1 | CB48: 1
C49: Stoka "H" PVC DN250: | E49: 0 | M49: Stoka "H" PVC DN250:
C50: Výkopy: | E50: 0 | M50: Výkopy:
C51: ŠA.1-3 - ŠH-1:20,90*(1,75+1,70)/2*2 | E51: 72.105 | M51: ŠA.1-3 - ŠH-1:20,90*(1,75+1,70)/2*2
C52: ŠH-1 - ŠH-2:(41,80-20,90)*(1,70+2,50)/2*2 | E52: 87.78 | M52: ŠH-1 - ŠH-2:(41,80-20,90)*(1,70+2,50)/2*2
C53: ŠH-2 - ŠH-3:(60,30-41,80)*(2,50+1,80)/2*2 | E53: 79.55 | M53: ŠH-2 - ŠH-3:(60,30-41,80)*(2,50+1,80)/2*2
A54: 9 | B54: 151101111R00 | C54: Odstranění pažení stěn rýh - příložné - hl. do 2 m | D54: m2 | E54: 239.435 | G54: =E54*F54 -> 0 | H54: 0 | I54: =E54*H54 -> 0 | J54: 0 | K54: =E54*J54 -> 0 | O54: 2 | AA54: 1 | AB54: 1 | AC54: 1 | AZ54: 1 | BA54: =IF(AZ54=1,G54,0) -> 0 | BB54: =IF(AZ54=2,G54,0) -> 0 | BC54: =IF(AZ54=3,G54,0) -> 0 | BD54: =IF(AZ54=4,G54,0) -> 0 | BE54: =IF(AZ54=5,G54,0) -> 0 | CA54: 1 | CB54: 1
C55: Stoka "H" PVC DN250: | E55: 0 | M55: Stoka "H" PVC DN250:
C56: Výkopy: | E56: 0 | M56: Výkopy:
C57: ŠA.1-3 - ŠH-1:20,90*(1,75+1,70)/2*2 | E57: 72.105 | M57: ŠA.1-3 - ŠH-1:20,90*(1,75+1,70)/2*2
C58: ŠH-1 - ŠH-2:(41,80-20,90)*(1,70+2,50)/2*2 | E58: 87.78 | M58: ŠH-1 - ŠH-2:(41,80-20,90)*(1,70+2,50)/2*2
C59: ŠH-2 - ŠH-3:(60,30-41,80)*(2,50+1,80)/2*2 | E59: 79.55 | M59: ŠH-2 - ŠH-3:(60,30-41,80)*(2,50+1,80)/2*2
A60: 10 | B60: 162701105RSZ | C60: Vodorovné přemístění výkopku z hor.1-7 na skládku zhotovitele | D60: m3 | E60: 92.5447 | G60: =E60*F60 -> 0 | H60: 0 | I60: =E60*H60 -> 0 | J60: 0 | K60: =E60*J60 -> 0 | O60: 2 | AA60: 1 | AB60: 1 | AC60: 1 | AZ60: 1 | BA60: =IF(AZ60=1,G60,0) -> 0 | BB60: =IF(AZ60=2,G60,0) -> 0 | BC60: =IF(AZ60=3,G60,0) -> 0 | BD60: =IF(AZ60=4,G60,0) -> 0 | BE60: =IF(AZ60=5,G60,0) -> 0 | CA60: 1 | CB60: 1
C61: Stoka "H" PVC DN250: | E61: 0 | M61: Stoka "H" PVC DN250:
C62: Výkopy: | E62: 0 | M62: Výkopy:
C63: V hornině tř. 3 - 5 :92,5447 | E63: 92.5447 | M63: V hornině tř. 3 - 5 :92,5447
A64: 11 | B64: 174101101R00 | C64: Zásyp jam, rýh, šachet se zhutněním | D64: m3 | E64: 47.9859 | G64: =E64*F64 -> 0 | H64: 0 | I64: =E64*H64 -> 0 | J64: 0 | K64: =E64*J64 -> 0 | O64: 2 | AA64: 1 | AB64: 1 | AC64: 1 | AZ64: 1 | BA64: =IF(AZ64=1,G64,0) -> 0 | BB64: =IF(AZ64=2,G64,0) -> 0 | BC64: =IF(AZ64=3,G64,0) -> 0 | BD64: =IF(AZ64=4,G64,0) -> 0 | BE64: =IF(AZ64=5,G64,0) -> 0 | CA64: 1 | CB64: 1
C65: Položka obsahuje strojní přemístění materiálu pro zásyp ze vzdálenosti do 10 m od okraje zásypu. | L65: Položka obsahuje strojní přemístění materiálu pro zásyp ze vzdálenosti do 10 m od okraje zásypu. | O65: 3
O66: 3
C67: Stoka "H" PVC DN250: | E67: 0 | M67: Stoka "H" PVC DN250:
C68: Zásypy ŠD fr. 0-63 mm:47,9859 | E68: 47.9859 | M68: Zásypy ŠD fr. 0-63 mm:47,9859
C69: Začátek provozního součtu | E69: 0 | M69: Začátek provozního součtu
C70: Výkopy: | E70: 0 | M70: Výkopy:
C71: ŠA.1-3 - ŠH-1:20,90*0,90*(1,75+1,70)/2 | E71: 32.4473 | M71: ŠA.1-3 - ŠH-1:20,90*0,90*(1,75+1,70)/2
C72: ŠH-1 - ŠH-2:(41,80-20,90)*0,90*(1,70+2,50)/2 | E72: 39.501 | M72: ŠH-1 - ŠH-2:(41,80-20,90)*0,90*(1,70+2,50)/2
C73: ŠH-2 - ŠH-3:(60,30-41,80)*0,90*(2,50+1,80)/2 | E73: 35.7975 | M73: ŠH-2 - ŠH-3:(60,30-41,80)*0,90*(2,50+1,80)/2
C74: Prohloubení pro RŠ:1,60*1,60*0,20*3 | E74: 1.536 | M74: Prohloubení pro RŠ:1,60*1,60*0,20*3
C75: Rozšíření pro RŠ:1,60*(1,60-0,90)*4,95 | E75: 5.544 | M75: Rozšíření pro RŠ:1,60*(1,60-0,90)*4,95
C76: Odpočet objemu konstrukce komunikace:-(60,30+1,60*(1,60-0,90)*3)*0,35 | E76: -22.281 | M76: Odpočet objemu konstrukce komunikace:-(60,30+1,60*(1,60-0,90)*3)*0,35
C77: Odpočet objemu lože, potrubí a obsypů:-60,30*0,90*(0,15+0,25+0,30) | E77: -37.989 | M77: Odpočet objemu lože, potrubí a obsypů:-60,30*0,90*(0,15+0,25+0,30)
C78: Odpočet objemu RŠ:-6,5698 | E78: -6.5698 | M78: Odpočet objemu RŠ:-6,5698
C79: Konec provozního součtu | E79: 47.986 | M79: Konec provozního součtu
A80: 12 | B80: 175101101R00 | C80: Obsyp potrubí bez prohození sypaniny | D80: m3 | E80: 26.8885 | G80: =E80*F80 -> 0 | H80: 0 | I80: =E80*H80 -> 0 | J80: 0 | K80: =E80*J80 -> 0 | O80: 2 | AA80: 1 | AB80: 1 | AC80: 1 | AZ80: 1 | BA80: =IF(AZ80=1,G80,0) -> 0 | BB80: =IF(AZ80=2,G80,0) -> 0 | BC80: =IF(AZ80=3,G80,0) -> 0 | BD80: =IF(AZ80=4,G80,0) -> 0 | BE80: =IF(AZ80=5,G80,0) -> 0 | CA80: 1 | CB80: 1
C81: Stoka "H" PVC DN250:60,30*(0,90*(0,25+0,30)-0,125^2*Pi) | E81: 26.8885 | M81: Stoka "H" PVC DN250:60,30*(0,90*(0,25+0,30)-0,125^2*Pi)
A82: 13 | B82: 199000002R00 | C82: Poplatek za skládku horniny 1- 7 č. dle katal. odpadů 17 05 04 | D82: m3 | E82: 92.5447 | G82: =E82*F82 -> 0 | H82: 0 | I82: =E82*H82 -> 0 | J82: 0 | K82: =E82*J82 -> 0 | O82: 2 | AA82: 1 | AB82: 1 | AC82: 1 | AZ82: 1 | BA82: =IF(AZ82=1,G82,0) -> 0 | BB82: =IF(AZ82=2,G82,0) -> 0 | BC82: =IF(AZ82=3,G82,0) -> 0 | BD82: =IF(AZ82=4,G82,0) -> 0 | BE82: =IF(AZ82=5,G82,0) -> 0 | CA82: 1 | CB82: 1
C83: Stoka "H" PVC DN250: | E83: 0 | M83: Stoka "H" PVC DN250:
C84: Výkopy: | E84: 0 | M84: Výkopy:
C85: V hornině tř. 3 - 5 :92,5447 | E85: 92.5447 | M85: V hornině tř. 3 - 5 :92,5447
A86: 14 | B86: 58337308.R | C86: Štěrkopísek frakce 0-2 tř.B | D86: t | E86: 53.5816 | G86: =E86*F86 -> 0 | H86: 1 | I86: =E86*H86 -> 53.5816 | K86: =E86*J86 -> 0 | O86: 2 | AA86: 3 | AB86: 1 | AC86: 58337308.R | AZ86: 1 | BA86: =IF(AZ86=1,G86,0) -> 0 | BB86: =IF(AZ86=2,G86,0) -> 0 | BC86: =IF(AZ86=3,G86,0) -> 0 | BD86: =IF(AZ86=4,G86,0) -> 0 | BE86: =IF(AZ86=5,G86,0) -> 0 | CA86: 3 | CB86: 1
C87: Stoka "H" PVC DN250:60,30*(0,90*(0,25+0,30)-0,125^2*Pi)*1,973*1,01 | E87: 53.5816 | M87: Stoka "H" PVC DN250:60,30*(0,90*(0,25+0,30)-0,125^2*Pi)*1,973*1,01
A88: 15 | B88: 58344197R | C88: Štěrkodrtě frakce 0-63 A | D88: t | E88: 90.7764 | G88: =E88*F88 -> 0 | H88: 1 | I88: =E88*H88 -> 90.7764 | K88: =E88*J88 -> 0 | O88: 2 | AA88: 3 | AB88: 1 | AC88: 58344197R | AZ88: 1 | BA88: =IF(AZ88=1,G88,0) -> 0 | BB88: =IF(AZ88=2,G88,0) -> 0 | BC88: =IF(AZ88=3,G88,0) -> 0 | BD88: =IF(AZ88=4,G88,0) -> 0 | BE88: =IF(AZ88=5,G88,0) -> 0 | CA88: 3 | CB88: 1
C89: Stoka "H" PVC DN250: | E89: 0 | M89: Stoka "H" PVC DN250:
C90: Zásypy ŠD fr. 0-63 mm:47,9859*1,873*1,01 | E90: 90.7764 | M90: Zásypy ŠD fr. 0-63 mm:47,9859*1,873*1,01
C91: Začátek provozního součtu | E91: 0 | M91: Začátek provozního součtu
C92: Výkopy: | E92: 0 | M92: Výkopy:
C93: ŠA.1-3 - ŠH-1:20,90*0,90*(1,75+1,70)/2 | E93: 32.4473 | M93: ŠA.1-3 - ŠH-1:20,90*0,90*(1,75+1,70)/2
C94: ŠH-1 - ŠH-2:(41,80-20,90)*0,90*(1,70+2,50)/2 | E94: 39.501 | M94: ŠH-1 - ŠH-2:(41,80-20,90)*0,90*(1,70+2,50)/2
C95: ŠH-2 - ŠH-3:(60,30-41,80)*0,90*(2,50+1,80)/2 | E95: 35.7975 | M95: ŠH-2 - ŠH-3:(60,30-41,80)*0,90*(2,50+1,80)/2
C96: Prohloubení pro RŠ:1,60*1,60*0,20*3 | E96: 1.536 | M96: Prohloubení pro RŠ:1,60*1,60*0,20*3
C97: Rozšíření pro RŠ:1,60*(1,60-0,90)*4,95 | E97: 5.544 | M97: Rozšíření pro RŠ:1,60*(1,60-0,90)*4,95
C98: Odpočet objemu konstrukce komunikace:-(60,30+1,60*(1,60-0,90)*3)*0,35 | E98: -22.281 | M98: Odpočet objemu konstrukce komunikace:-(60,30+1,60*(1,60-0,90)*3)*0,35
C99: Odpočet objemu lože, potrubí a obsypů:-60,30*0,90*(0,15+0,25+0,30) | E99: -37.989 | M99: Odpočet objemu lože, potrubí a obsypů:-60,30*0,90*(0,15+0,25+0,30)
C100: Odpočet objemu RŠ:-6,5698 | E100: -6.5698 | M100: Odpočet objemu RŠ:-6,5698
C101: Konec provozního součtu | E101: 47.986 | M101: Konec provozního součtu
B102: Celkem za | C102: 1 Zemní práce | G102: =SUM(G7:G101) -> 0 | I102: =SUM(I7:I101) -> 144.69138 | K102: =SUM(K7:K101) -> 0 | O102: 4 | BA102: =SUM(BA7:BA101) -> 0 | BB102: =SUM(BB7:BB101) -> 0 | BC102: =SUM(BC7:BC101) -> 0 | BD102: =SUM(BD7:BD101) -> 0 | BE102: =SUM(BE7:BE101) -> 0
A103: Díl: | B103: 21 | C103: Úprava podloží a základ.spáry | O103: 1
A104: 16 | B104: 212810010RAC | C104: Trativody z PVC drenážních flexibilních trubek lože štěrkopísek a obsyp kamenivo, trubky d 100 mm | D104: m | E104: 58.45 | G104: =E104*F104 -> 0 | H104: 0.43651 | I104: =E104*H104 -> 25.5140095 | J104: 0 | K104: =E104*J104 -> 0 | O104: 2 | AA104: 1 | AB104: 1 | AC104: 1 | AZ104: 1 | BA104: =IF(AZ104=1,G104,0) -> 0 | BB104: =IF(AZ104=2,G104,0) -> 0 | BC104: =IF(AZ104=3,G104,0) -> 0 | BD104: =IF(AZ104=4,G104,0) -> 0 | BE104: =IF(AZ104=5,G104,0) -> 0 | CA104: 1 | CB104: 1
C105: Stoka "A.1-1" PVC DN250: | E105: 0 | M105: Stoka "A.1-1" PVC DN250:
C106: Drenáž DN100:116,90*0,5 | E106: 58.45 | M106: Drenáž DN100:116,90*0,5
B107: Celkem za | C107: 21 Úprava podloží a základ.spáry | G107: =SUM(G103:G106) -> 0 | I107: =SUM(I103:I106) -> 25.5140095 | K107: =SUM(K103:K106) -> 0 | O107: 4 | BA107: =SUM(BA103:BA106) -> 0 | BB107: =SUM(BB103:BB106) -> 0 | BC107: =SUM(BC103:BC106) -> 0 | BD107: =SUM(BD103:BD106) -> 0 | BE107: =SUM(BE103:BE106) -> 0
A108: Díl: | B108: 45 | C108: Podkladní a vedlejší konstrukce | O108: 1
A109: 17 | B109: 451572111R00 | C109: Lože pod potrubí z kameniva těženého 0 - 4 mm | D109: m3 | E109: 8.1405 | G109: =E109*F109 -> 0 | H109: 0.43051 | I109: =E109*H109 -> 3.504566655 | J109: 0 | K109: =E109*J109 -> 0 | O109: 2 | AA109: 1 | AB109: 1 | AC109: 1 | AZ109: 1 | BA109: =IF(AZ109=1,G109,0) -> 0 | BB109: =IF(AZ109=2,G109,0) -> 0 | BC109: =IF(AZ109=3,G109,0) -> 0 | BD109: =IF(AZ109=4,G109,0) -> 0 | BE109: =IF(AZ109=5,G109,0) -> 0 | CA109: 1 | CB109: 1
C110: Stoka "H" PVC DN250:60,30*0,90*0,15 | E110: 8.1405 | M110: Stoka "H" PVC DN250:60,30*0,90*0,15
A111: 18 | B111: 452112111R00 | C111: Osazení beton. prstenců pod poklopy,výšky do100 mm | D111: kus | E111: 4 | G111: =E111*F111 -> 0 | H111: 0.0066 | I111: =E111*H111 -> 0.0264 | J111: 0 | K111: =E111*J111 -> 0 | O111: 2 | AA111: 1 | AB111: 1 | AC111: 1 | AZ111: 1 | BA111: =IF(AZ111=1,G111,0) -> 0 | BB111: =IF(AZ111=2,G111,0) -> 0 | BC111: =IF(AZ111=3,G111,0) -> 0 | BD111: =IF(AZ111=4,G111,0) -> 0 | BE111: =IF(AZ111=5,G111,0) -> 0 | CA111: 1 | CB111: 1
C112: Volba položky se řídí výškou prstence nebo rámu. V položkách nejsou zakalkulovány náklady na dodávku betonových výrobků; | L112: Volba položky se řídí výškou prstence nebo rámu. V položkách nejsou zakalkulovány náklady na dodávku betonových výrobků; | O112: 3
C113: Stoka "H" PVC DN250: | E113: 0 | M113: Stoka "H" PVC DN250:
C114: VP60:1 | E114: 1 | M114: VP60:1
C115: VP80:2 | E115: 2 | M115: VP80:2
C116: VP100:1 | E116: 1 | M116: VP100:1
A117: 19 | B117: 452112121R00 | C117: Osazení beton. prstenců pod poklopy,výšky do200 mm | D117: kus | E117: 2 | G117: =E117*F117 -> 0 | H117: 0.0066 | I117: =E117*H117 -> 0.0132 | J117: 0 | K117: =E117*J117 -> 0 | O117: 2 | AA117: 1 | AB117: 1 | AC117: 1 | AZ117: 1 | BA117: =IF(AZ117=1,G117,0) -> 0 | BB117: =IF(AZ117=2,G117,0) -> 0 | BC117: =IF(AZ117=3,G117,0) -> 0 | BD117: =IF(AZ117=4,G117,0) -> 0 | BE117: =IF(AZ117=5,G117,0) -> 0 | CA117: 1 | CB117: 1
C118: Stoka "H" PVC DN250: | E118: 0 | M118: Stoka "H" PVC DN250:
C119: VP120:2 | E119: 2 | M119: VP120:2
A120: 20 | B120: 59224347.A.R | C120: Prstenec vyrovn šachetní TBW-Q.1 63/6 | D120: kus | E120: 1.01 | G120: =E120*F120 -> 0 | H120: 0.04 | I120: =E120*H120 -> 0.0404 | K120: =E120*J120 -> 0 | O120: 2 | AA120: 3 | AB120: 1 | AC120: 59224347.A.R | AZ120: 1 | BA120: =IF(AZ120=1,G120,0) -> 0 | BB120: =IF(AZ120=2,G120,0) -> 0 | BC120: =IF(AZ120=3,G120,0) -> 0 | BD120: =IF(AZ120=4,G120,0) -> 0 | BE120: =IF(AZ120=5,G120,0) -> 0 | CA120: 3 | CB120: 1
C121: Stoka "H" PVC DN250: | E121: 0 | M121: Stoka "H" PVC DN250:
C122: VP60:1*1,01 | E122: 1.01 | M122: VP60:1*1,01
A123: 21 | B123: 59224348.A.R | C123: Prstenec vyrovn šachetní TBW-Q.1 63/8 | D123: kus | E123: 2.02 | G123: =E123*F123 -> 0 | H123: 0.054 | I123: =E123*H123 -> 0.10908 | K123: =E123*J123 -> 0 | O123: 2 | AA123: 3 | AB123: 1 | AC123: 59224348.A.R | AZ123: 1 | BA123: =IF(AZ123=1,G123,0) -> 0 | BB123: =IF(AZ123=2,G123,0) -> 0 | BC123: =IF(AZ123=3,G123,0) -> 0 | BD123: =IF(AZ123=4,G123,0) -> 0 | BE123: =IF(AZ123=5,G123,0) -> 0 | CA123: 3 | CB123: 1
C124: Stoka "H" PVC DN250: | E124: 0 | M124: Stoka "H" PVC DN250:
C125: VP80:2*1,01 | E125: 2.02 | M125: VP80:2*1,01
A126: 22 | B126: 59224349.A.R | C126: Prstenec vyrovn šachetní TBW-Q.1 63/10 | D126: kus | E126: 1.01 | G126: =E126*F126 -> 0 | H126: 0.068 | I126: =E126*H126 -> 0.06868 | K126: =E126*J126 -> 0 | O126: 2 | AA126: 3 | AB126: 1 | AC126: 59224349.A.R | AZ126: 1 | BA126: =IF(AZ126=1,G126,0) -> 0 | BB126: =IF(AZ126=2,G126,0) -> 0 | BC126: =IF(AZ126=3,G126,0) -> 0 | BD126: =IF(AZ126=4,G126,0) -> 0 | BE126: =IF(AZ126=5,G126,0) -> 0 | CA126: 3 | CB126: 1
C127: Stoka "H" PVC DN250: | E127: 0 | M127: Stoka "H" PVC DN250:
C128: VP H100:1*1,01 | E128: 1.01 | M128: VP H100:1*1,01
A129: 23 | B129: 59224350.A.R | C129: Prstenec vyrovn šachetní TBW-Q.1 63/12 | D129: kus | E129: 2.02 | G129: =E129*F129 -> 0 | H129: 0.081 | I129: =E129*H129 -> 0.16362 | K129: =E129*J129 -> 0 | O129: 2 | AA129: 3 | AB129: 1 | AC129: 59224350.A.R | AZ129: 1 | BA129: =IF(AZ129=1,G129,0) -> 0 | BB129: =IF(AZ129=2,G129,0) -> 0 | BC129: =IF(AZ129=3,G129,0) -> 0 | BD129: =IF(AZ129=4,G129,0) -> 0 | BE129: =IF(AZ129=5,G129,0) -> 0 | CA129: 3 | CB129: 1
C130: Stoka "H" PVC DN250: | E130: 0 | M130: Stoka "H" PVC DN250:
C131: VP H120:2*1,01 | E131: 2.02 | M131: VP H120:2*1,01
B132: Celkem za | C132: 45 Podkladní a vedlejší konstrukce | G132: =SUM(G108:G131) -> 0 | I132: =SUM(I108:I131) -> 3.925946655 | K132: =SUM(K108:K131) -> 0 | O132: 4 | BA132: =SUM(BA108:BA131) -> 0 | BB132: =SUM(BB108:BB131) -> 0 | BC132: =SUM(BC108:BC131) -> 0 | BD132: =SUM(BD108:BD131) -> 0 | BE132: =SUM(BE108:BE131) -> 0
A133: Díl: | B133: 5 | C133: Komunikace | O133: 1
A134: 24 | B134: 572701119RRX | C134: Provizorní zásyp rýh kam. hrubě drceným nebo recyk s následným odstraněním a odvozem | D134: m3 | E134: 22.281 | G134: =E134*F134 -> 0 | H134: 1.4805 | I134: =E134*H134 -> 32.9870205 | J134: 0 | K134: =E134*J134 -> 0 | O134: 2 | AA134: 1 | AB134: 1 | AC134: 1 | AZ134: 1 | BA134: =IF(AZ134=1,G134,0) -> 0 | BB134: =IF(AZ134=2,G134,0) -> 0 | BC134: =IF(AZ134=3,G134,0) -> 0 | BD134: =IF(AZ134=4,G134,0) -> 0 | BE134: =IF(AZ134=5,G134,0) -> 0 | CA134: 1 | CB134: 1
C135: Stoka "H" PVC DN250: | E135: 0 | M135: Stoka "H" PVC DN250:
C136: Objem konstrukce komunikace:(60,30+1,60*(1,60-0,90)*3)*0,35 | E136: 22.281 | M136: Objem konstrukce komunikace:(60,30+1,60*(1,60-0,90)*3)*0,35
B137: Celkem za | C137: 5 Komunikace | G137: =SUM(G133:G136) -> 0 | I137: =SUM(I133:I136) -> 32.9870205 | K137: =SUM(K133:K136) -> 0 | O137: 4 | BA137: =SUM(BA133:BA136) -> 0 | BB137: =SUM(BB133:BB136) -> 0 | BC137: =SUM(BC133:BC136) -> 0 | BD137: =SUM(BD133:BD136) -> 0 | BE137: =SUM(BE133:BE136) -> 0
A138: Díl: | B138: 8 | C138: Trubní vedení | O138: 1
A139: 25 | B139: 871373121R00 | C139: Montáž trub z plastu, gumový kroužek, DN 300 | D139: m | E139: 60.3 | G139: =E139*F139 -> 0 | H139: 1e-05 | I139: =E139*H139 -> 0.000603 | J139: 0 | K139: =E139*J139 -> 0 | O139: 2 | AA139: 1 | AB139: 1 | AC139: 1 | AZ139: 1 | BA139: =IF(AZ139=1,G139,0) -> 0 | BB139: =IF(AZ139=2,G139,0) -> 0 | BC139: =IF(AZ139=3,G139,0) -> 0 | BD139: =IF(AZ139=4,G139,0) -> 0 | BE139: =IF(AZ139=5,G139,0) -> 0 | CA139: 1 | CB139: 1
C140: Stoka "H" PVC DN250:60,30 | E140: 60.3 | M140: Stoka "H" PVC DN250:60,30
A141: 26 | B141: 892601154R00 | C141: Čištění kanalizační stoky do DN 500, nad 100 m | D141: m | E141: 60.3 | G141: =E141*F141 -> 0 | H141: 0 | I141: =E141*H141 -> 0 | J141: 0 | K141: =E141*J141 -> 0 | O141: 2 | AA141: 1 | AB141: 0 | AC141: 0 | AZ141: 1 | BA141: =IF(AZ141=1,G141,0) -> 0 | BB141: =IF(AZ141=2,G141,0) -> 0 | BC141: =IF(AZ141=3,G141,0) -> 0 | BD141: =IF(AZ141=4,G141,0) -> 0 | BE141: =IF(AZ141=5,G141,0) -> 0 | CA141: 1 | CB141: 0
C142: V položce je zakalkulováno: | L142: V položce je zakalkulováno: | O142: 3
C143: a) otevření a uzavření revizních šachet a čisticích kusů | L143: a) otevření a uzavření revizních šachet a čisticích kusů | O143: 3
C144: b) natažení vysokotlakých hadic k místu odkud se bude kanalizace čistit | L144: b) natažení vysokotlakých hadic k místu odkud se bude kanalizace čistit | O144: 3
C145: c) vyčištění potrubí tlakovou vodou nebo motorovým pérem. | L145: c) vyčištění potrubí tlakovou vodou nebo motorovým pérem. | O145: 3
C146: Stoka "H" PVC DN250:60,30 | E146: 60.3 | M146: Stoka "H" PVC DN250:60,30
A147: 27 | B147: 892855115R00 | C147: Kontrola kanalizace TV kamerou do 500 m | D147: m | E147: 120.6 | G147: =E147*F147 -> 0 | H147: 0 | I147: =E147*H147 -> 0 | J147: 0 | K147: =E147*J147 -> 0 | O147: 2 | AA147: 1 | AB147: 1 | AC147: 1 | AZ147: 1 | BA147: =IF(AZ147=1,G147,0) -> 0 | BB147: =IF(AZ147=2,G147,0) -> 0 | BC147: =IF(AZ147=3,G147,0) -> 0 | BD147: =IF(AZ147=4,G147,0) -> 0 | BE147: =IF(AZ147=5,G147,0) -> 0 | CA147: 1 | CB147: 1
C148: Provedení kaberové prohlídky včetně dodání elektronického záznamu na CD zadavateli a tištěné dokumentace průběhu kamerové prohlídky | L148: Provedení kaberové prohlídky včetně dodání elektronického záznamu na CD zadavateli a tištěné dokumentace průběhu kamerové prohlídky | O148: 3
C149: Stoka "H" PVC DN250:60,30*2 | E149: 120.6 | M149: Stoka "H" PVC DN250:60,30*2
A150: 28 | B150: 894421111RT1 | C150: Osazení betonových dílců šachet skruže rovné, na kroužek, do 0,5 t | D150: kus | E150: 2 | G150: =E150*F150 -> 0 | H150: 0 | I150: =E150*H150 -> 0 | J150: 0 | K150: =E150*J150 -> 0 | O150: 2 | AA150: 1 | AB150: 1 | AC150: 1 | AZ150: 1 | BA150: =IF(AZ150=1,G150,0) -> 0 | BB150: =IF(AZ150=2,G150,0) -> 0 | BC150: =IF(AZ150=3,G150,0) -> 0 | BD150: =IF(AZ150=4,G150,0) -> 0 | BE150: =IF(AZ150=5,G150,0) -> 0 | CA150: 1 | CB150: 1
C151: Položka je určena pro osazení betonových dílců šachet dle DIN 4034, skruže rovné na kroužek, hmotnost do 0,5 t. | L151: Položka je určena pro osazení betonových dílců šachet dle DIN 4034, skruže rovné na kroužek, hmotnost do 0,5 t. | O151: 3
C152: V položce nejsou zakalkulovány náklady na dodání betonových dílců; dílce se oceňují ve specifikaci. | L152: V položce nejsou zakalkulovány náklady na dodání betonových dílců; dílce se oceňují ve specifikaci. | O152: 3
C153: Stoka "H" PVC DN250: | E153: 0 | M153: Stoka "H" PVC DN250:
C154: Skruž H250:2 | E154: 2 | M154: Skruž H250:2
A155: 29 | B155: 894421112RT1 | C155: Osazení betonových dílců šachet skruže rovné, na kroužek, do 1,4 t | D155: kus | E155: 1 | G155: =E155*F155 -> 0 | H155: 0 | I155: =E155*H155 -> 0 | J155: 0 | K155: =E155*J155 -> 0 | O155: 2 | AA155: 1 | AB155: 1 | AC155: 1 | AZ155: 1 | BA155: =IF(AZ155=1,G155,0) -> 0 | BB155: =IF(AZ155=2,G155,0) -> 0 | BC155: =IF(AZ155=3,G155,0) -> 0 | BD155: =IF(AZ155=4,G155,0) -> 0 | BE155: =IF(AZ155=5,G155,0) -> 0 | CA155: 1 | CB155: 1
C156: Položka je určena pro osazení betonových dílců šachet dle DIN 4034, skruže rovné na kroužek, hmotnost přes 0,5 do 1,4 t. | L156: Položka je určena pro osazení betonových dílců šachet dle DIN 4034, skruže rovné na kroužek, hmotnost přes 0,5 do 1,4 t. | O156: 3
C157: V položce nejsou zakalkulovány náklady na dodání betonových dílců; dílce se oceňují ve specifikaci. | L157: V položce nejsou zakalkulovány náklady na dodání betonových dílců; dílce se oceňují ve specifikaci. | O157: 3
C158: Stoka "H" PVC DN250: | E158: 0 | M158: Stoka "H" PVC DN250:
C159: Skruž H1000:1 | E159: 1 | M159: Skruž H1000:1
A160: 30 | B160: 894422111RT1 | C160: Osazení betonových dílců šachet skruže přechodové, na kroužek | D160: kus | E160: 3 | G160: =E160*F160 -> 0 | H160: 0 | I160: =E160*H160 -> 0 | J160: 0 | K160: =E160*J160 -> 0 | O160: 2 | AA160: 1 | AB160: 1 | AC160: 1 | AZ160: 1 | BA160: =IF(AZ160=1,G160,0) -> 0 | BB160: =IF(AZ160=2,G160,0) -> 0 | BC160: =IF(AZ160=3,G160,0) -> 0 | BD160: =IF(AZ160=4,G160,0) -> 0 | BE160: =IF(AZ160=5,G160,0) -> 0 | CA160: 1 | CB160: 1
C161: Položka je určena pro osazení betonových dílců šachet dle DIN 4034, skruže přechodové, zákrytové, kónusy,... na kroužek. | L161: Položka je určena pro osazení betonových dílců šachet dle DIN 4034, skruže přechodové, zákrytové, kónusy,... na kroužek. | O161: 3
C162: Stoka "H" PVC DN250: | E162: 0 | M162: Stoka "H" PVC DN250:
C163: Kónus H580:3 | E163: 3 | M163: Kónus H580:3
A164: 31 | B164: 894423111RT1 | C164: Osazení betonových dílců šachet do 2,0 t šachtová dna, na kroužek, do 2,0 t | D164: kus | E164: 3 | G164: =E164*F164 -> 0 | H164: 0 | I164: =E164*H164 -> 0 | J164: 0 | K164: =E164*J164 -> 0 | O164: 2 | AA164: 1 | AB164: 1 | AC164: 1 | AZ164: 1 | BA164: =IF(AZ164=1,G164,0) -> 0 | BB164: =IF(AZ164=2,G164,0) -> 0 | BC164: =IF(AZ164=3,G164,0) -> 0 | BD164: =IF(AZ164=4,G164,0) -> 0 | BE164: =IF(AZ164=5,G164,0) -> 0 | CA164: 1 | CB164: 1
C165: Položka je určena pro osazení betonových dílců šachet dle DIN 4034, šachtová dna na kroužek, hmotnost do 2,0 t. | L165: Položka je určena pro osazení betonových dílců šachet dle DIN 4034, šachtová dna na kroužek, hmotnost do 2,0 t. | O165: 3
C166: V položce nejsou zakalkulovány náklady na dodání betonových dílců; | L166: V položce nejsou zakalkulovány náklady na dodání betonových dílců; | O166: 3
C167: Součástí položky je i podbetonování šachtového dna betonem C12/15 v min. tl. 10 cm. | L167: Součástí položky je i podbetonování šachtového dna betonem C12/15 v min. tl. 10 cm. | O167: 3
C168: Stoka "H" PVC DN250: | E168: 0 | M168: Stoka "H" PVC DN250:
C169: ŠD H575:3 | E169: 3 | M169: ŠD H575:3
A170: 32 | B170: 899102111R00 | C170: Osazení poklopu s rámem do 100 kg | D170: kus | E170: 3 | G170: =E170*F170 -> 0 | H170: 0.00702 | I170: =E170*H170 -> 0.02106 | J170: 0 | K170: =E170*J170 -> 0 | O170: 2 | AA170: 1 | AB170: 1 | AC170: 1 | AZ170: 1 | BA170: =IF(AZ170=1,G170,0) -> 0 | BB170: =IF(AZ170=2,G170,0) -> 0 | BC170: =IF(AZ170=3,G170,0) -> 0 | BD170: =IF(AZ170=4,G170,0) -> 0 | BE170: =IF(AZ170=5,G170,0) -> 0 | CA170: 1 | CB170: 1
C171: Osazení provizorních poklopů během realizace stavby (nefakturovaný materiál zhotovitele) | L171: Osazení provizorních poklopů během realizace stavby (nefakturovaný materiál zhotovitele) | O171: 3
A172: 33 | B172: 899711122R00 | C172: Fólie výstražná z PVC šedá, šířka 30 cm | D172: m | E172: 60.3 | G172: =E172*F172 -> 0 | H172: 0 | I172: =E172*H172 -> 0 | J172: 0 | K172: =E172*J172 -> 0 | O172: 2 | AA172: 1 | AB172: 1 | AC172: 1 | AZ172: 1 | BA172: =IF(AZ172=1,G172,0) -> 0 | BB172: =IF(AZ172=2,G172,0) -> 0 | BC172: =IF(AZ172=3,G172,0) -> 0 | BD172: =IF(AZ172=4,G172,0) -> 0 | BE172: =IF(AZ172=5,G172,0) -> 0 | CA172: 1 | CB172: 1
C173: Stoka "H" PVC DN250:60,30 | E173: 60.3 | M173: Stoka "H" PVC DN250:60,30
A174: 34 | B174: 286111923.A.R | C174: Trubka kanalizační PVC QUANTUM SN 12 DN 250 | D174: kus | E174: 62.109 | G174: =E174*F174 -> 0 | H174: 0.0082 | I174: =E174*H174 -> 0.5092938 | K174: =E174*J174 -> 0 | O174: 2 | AA174: 3 | AB174: 1 | AC174: 286111923.A.R | AZ174: 1 | BA174: =IF(AZ174=1,G174,0) -> 0 | BB174: =IF(AZ174=2,G174,0) -> 0 | BC174: =IF(AZ174=3,G174,0) -> 0 | BD174: =IF(AZ174=4,G174,0) -> 0 | BE174: =IF(AZ174=5,G174,0) -> 0 | CA174: 3 | CB174: 1
C175: Jedná se o plnostěnné kanalizační trubky DN 150 – DN 400, SN 12 kN/m2 , zvenčí i zevnitř hladké. Jsou opatřeny hrdlem, v němž je vložen vysoce elastický jazýčkový kroužek. konce trubek (dříků) jsou opatřeny zkosením pod úhlem 15°. Způsob použití trubek je „U“ dle normy ČSN EN 1401-1, tj. mimo budovy. Spolehlivá funkce těsnění je jištěna výztužným kroužkem z elastomeru. Je tak zamezeno vypad-nutí nebo vytlačení kroužku při manipulaci a montáži. Tento systém zaručuje při správné montáži | L175: Jedná se o plnostěnné kanalizační trubky DN 150 – DN 400, SN 12 kN/m2 , zvenčí i zevnitř hladké. Jsou opatřeny hrdlem, v němž je vložen vysoce elastický jazýčkový kroužek. konce trubek (dříků) jsou opatřeny zkosením pod úhlem 15°. Způsob použití trubek je „U“ dle normy ČSN EN 1401-1, tj. mimo budovy. Spolehlivá funkce těsnění je jištěna výztužným kroužkem z elastomeru. Je tak zamezeno vypad-nutí nebo vytlačení kroužku při manipulaci a montáži. Tento systém zaručuje při správné montáži | O175: 3
C176: dokonalou těsnost do výšky vodního sloupce 5 metrů. | L176: dokonalou těsnost do výšky vodního sloupce 5 metrů. | O176: 3
C177: Stoka "H" PVC DN250:60,30*1,03 | E177: 62.109 | M177: Stoka "H" PVC DN250:60,30*1,03
A178: 35 | B178: 592243543.R | C178: Kónus šachetní TBR-Q.1 100x63/58/12 KPS | D178: kus | E178: 3.03 | G178: =E178*F178 -> 0 | H178: 0.585 | I178: =E178*H178 -> 1.77255 | K178: =E178*J178 -> 0 | O178: 2 | AA178: 3 | AB178: 1 | AC178: 592243543.R | AZ178: 1 | BA178: =IF(AZ178=1,G178,0) -> 0 | BB178: =IF(AZ178=2,G178,0) -> 0 | BC178: =IF(AZ178=3,G178,0) -> 0 | BD178: =IF(AZ178=4,G178,0) -> 0 | BE178: =IF(AZ178=5,G178,0) -> 0 | CA178: 3 | CB178: 1
C179: Stoka "H" PVC DN250: | E179: 0 | M179: Stoka "H" PVC DN250:
C180: Kónus H580:3*1,01 | E180: 3.03 | M180: Kónus H580:3*1,01
A181: 36 | B181: 59224358.A.R | C181: Skruž šachetní TBS-Q.1 100/25/12 PS | D181: kus | E181: 2.02 | G181: =E181*F181 -> 0 | H181: 0.25 | I181: =E181*H181 -> 0.505 | K181: =E181*J181 -> 0 | O181: 2 | AA181: 3 | AB181: 1 | AC181: 59224358.A.R | AZ181: 1 | BA181: =IF(AZ181=1,G181,0) -> 0 | BB181: =IF(AZ181=2,G181,0) -> 0 | BC181: =IF(AZ181=3,G181,0) -> 0 | BD181: =IF(AZ181=4,G181,0) -> 0 | BE181: =IF(AZ181=5,G181,0) -> 0 | CA181: 3 | CB181: 1
C182: Stoka "H" PVC DN250: | E182: 0 | M182: Stoka "H" PVC DN250:
C183: Skruž H250:2*1,01 | E183: 2.02 | M183: Skruž H250:2*1,01
A184: 37 | B184: 59224364.A.R | C184: Skruž šachetní TBS-Q.1 100/100/12 PS | D184: kus | E184: 1.01 | G184: =E184*F184 -> 0 | H184: 1 | I184: =E184*H184 -> 1.01 | K184: =E184*J184 -> 0 | O184: 2 | AA184: 3 | AB184: 1 | AC184: 59224364.A.R | AZ184: 1 | BA184: =IF(AZ184=1,G184,0) -> 0 | BB184: =IF(AZ184=2,G184,0) -> 0 | BC184: =IF(AZ184=3,G184,0) -> 0 | BD184: =IF(AZ184=4,G184,0) -> 0 | BE184: =IF(AZ184=5,G184,0) -> 0 | CA184: 3 | CB184: 1
C185: Stoka "H" PVC DN250: | E185: 0 | M185: Stoka "H" PVC DN250:
C186: Skruž H1000:1*1,01 | E186: 1.01 | M186: Skruž H1000:1*1,01
A187: 38 | B187: 59224371.A.R | C187: Dno šachetní TBZ-Q.1 100/58 KOM V20 včetně kynety dle PD | D187: kus | E187: 3.03 | G187: =E187*F187 -> 0 | H187: 1.27 | I187: =E187*H187 -> 3.8481 | K187: =E187*J187 -> 0 | O187: 2 | AA187: 3 | AB187: 1 | AC187: 59224371.A.R | AZ187: 1 | BA187: =IF(AZ187=1,G187,0) -> 0 | BB187: =IF(AZ187=2,G187,0) -> 0 | BC187: =IF(AZ187=3,G187,0) -> 0 | BD187: =IF(AZ187=4,G187,0) -> 0 | BE187: =IF(AZ187=5,G187,0) -> 0 | CA187: 3 | CB187: 1
C188: Stoka "H" PVC DN250: | E188: 0 | M188: Stoka "H" PVC DN250:
C189: ŠD H575:3*1,01 | E189: 3.03 | M189: ŠD H575:3*1,01
A190: 39 | B190: 59224380.R | C190: Těsnění elastom pro šach díly EMT 100/1.7 - DN1000 | D190: kus | E190: 6.06 | G190: =E190*F190 -> 0 | H190: 0.002 | I190: =E190*H190 -> 0.01212 | K190: =E190*J190 -> 0 | O190: 2 | AA190: 3 | AB190: 1 | AC190: 59224380.R | AZ190: 1 | BA190: =IF(AZ190=1,G190,0) -> 0 | BB190: =IF(AZ190=2,G190,0) -> 0 | BC190: =IF(AZ190=3,G190,0) -> 0 | BD190: =IF(AZ190=4,G190,0) -> 0 | BE190: =IF(AZ190=5,G190,0) -> 0 | CA190: 3 | CB190: 1
C191: Stoka "H" PVC DN250: | E191: 0 | M191: Stoka "H" PVC DN250:
C192: Těsnění DN1000:6*1,01 | E192: 6.06 | M192: Těsnění DN1000:6*1,01
B193: Celkem za | C193: 8 Trubní vedení | G193: =SUM(G138:G192) -> 0 | I193: =SUM(I138:I192) -> 7.6787268 | K193: =SUM(K138:K192) -> 0 | O193: 4 | BA193: =SUM(BA138:BA192) -> 0 | BB193: =SUM(BB138:BB192) -> 0 | BC193: =SUM(BC138:BC192) -> 0 | BD193: =SUM(BD138:BD192) -> 0 | BE193: =SUM(BE138:BE192) -> 0
A194: Díl: | B194: 93 | C194: Dokončovací práce inženýrských staveb | O194: 1
A195: 40 | B195: 939421111RT1 | C195: Osazení samonivelač.kanalizač.poklopu za finišerem bez dodávky poklopu | D195: kus | E195: 3 | G195: =E195*F195 -> 0 | H195: 0.15425 | I195: =E195*H195 -> 0.46275 | J195: 0 | K195: =E195*J195 -> 0 | O195: 2 | AA195: 1 | AB195: 0 | AC195: 0 | AZ195: 1 | BA195: =IF(AZ195=1,G195,0) -> 0 | BB195: =IF(AZ195=2,G195,0) -> 0 | BC195: =IF(AZ195=3,G195,0) -> 0 | BD195: =IF(AZ195=4,G195,0) -> 0 | BE195: =IF(AZ195=5,G195,0) -> 0 | CA195: 1 | CB195: 0
C196: Položka obsahuje: | L196: Položka obsahuje: | O196: 3
C197: osazení prefabrikovaného betonového prstence do rychletuhnoucí vysokopevnostní malty (s dodávkou hmot) | L197: - osazení prefabrikovaného betonového prstence do rychletuhnoucí malty (s dodávkou hmot) | O197: 3
C198: - zalití prstence rychletuhnoucí zálivkou do výše prstence (s dodávkou hmoty) | L198: - zalití prstence rychletuhnoucí zálivkou do výše prstence (s dodávkou hmoty) | O198: 3
C199: - vložení kruhového bednění | L199: - vložení kruhového bednění | O199: 3
C200: - doplnění mezikruží asfaltovou směsí do výšky současné podkladní vrstvy, zhutnění | L200: - doplnění mezikruží asfaltovou směsí do výšky současné podkladní vrstvy, zhutnění | O200: 3
C201: - vyjmutí kruhového bednění | L201: - vyjmutí kruhového bednění | O201: 3
C202: - osazení poklopu a zatlačení | L202: - osazení poklopu a zatlačení | O202: 3
... 12 more rows

Sheet 01 01.33 KL
A1: POLOŽKOVÝ ROZPOČET
A2: Rozpočet | C2: 01.33 | D2: Stoka "I" km 0,000 - 0,027.8 | F2: JKSO | G2: 827.21.A3
A4: Objekt | F4: SKP
A5: 01 | C5: Kanalizace | F5: Měrná jednotka | G5: m
A6: Stavba | F6: Počet jednotek | G6: 0
A7: 3395 | C7: Kanalizace a ČOV Benešov u Semil | F7: Náklady na m.j. | G7: =IF(G6=0,,ROUND((F30+F32)/G6,1)) -> 0
A8: Projektant | C8: Vodohospodářský rozvoj a výstavba a.s. | F8: Typ rozpočtu
A9: Zpracovatel projektu
A10: Objednatel | C10: Vodohospodářské sdružení Turnov
A11: Dodavatel | C11: . | F11: Zakázkové číslo
A12: Rozpočtoval | F12: Počet listů
A13: ROZPOČTOVÉ NÁKLADY
A14: Základní rozpočtové náklady
B15: HSV celkem | C15: ='01 01.33 Rek'!E13 -> 0
A16: Z | B16: PSV celkem | C16: ='01 01.33 Rek'!F13 -> 0
A17: R | B17: M práce celkem | C17: ='01 01.33 Rek'!H13 -> 0
A18: N | B18: M dodávky celkem | C18: ='01 01.33 Rek'!G13 -> 0
A19: ZRN celkem | C19: =SUM(C15:C18) -> 0
A21: HZS | C21: ='01 01.33 Rek'!I13 -> 0
A22: ZRN+HZS | C22: =C19+C21 -> 0
A23: ZRN+ost.náklady+HZS | C23: =C22+G23 -> 0
A24: Vypracoval | D24: Za zhotovitele | F24: Za objednatele
A25: Jméno : | D25: Jméno : | F25: Jméno :
A26: Datum : | D26: Datum : | F26: Datum :
A28: Podpis : | D28: Podpis: | F28: Podpis:
A30: Základ pro DPH | C30: 21 | D30: % | F30: =C23-F32 -> 0
A31: DPH | C31: =C30 -> 21 | D31: % | F31: =ROUND(PRODUCT(F30,C31/100),0) -> 0
A32: Základ pro DPH | C32: 0 | D32: % | F32: 0
A33: DPH | C33: =C32 -> 0 | D33: % | F33: =ROUND(PRODUCT(F32,C33/100),0) -> 0
A34: CENA ZA OBJEKT CELKEM | F34: =ROUND(SUM(F30:F33),0) -> 0
A36: Poznámka :

Sheet 01 01.33 Rek
A1: Stavba : | C1: 3395 Kanalizace a ČOV Benešov u Semil | G1: Rozpočet : | H1: 01.33
A2: Objekt : | C2: 01 Kanalizace | G2: Stoka "I" km 0,000 - 0,027.8
A4: REKAPITULACE STAVEBNÍCH DÍLŮ
B6: Stavební díl | E6: HSV | F6: PSV | G6: Dodávka | H6: Montáž | I6: HZS
A7: ='01 01.33 Pol'!B7 -> 1 | B7: ='01 01.33 Pol'!C7 -> Zemní práce | E7: ='01 01.33 Pol'!BA89 -> 0 | F7: ='01 01.33 Pol'!BB89 -> 0 | G7: ='01 01.33 Pol'!BC89 -> 0 | H7: ='01 01.33 Pol'!BD89 -> 0 | I7: ='01 01.33 Pol'!BE89 -> 0
A8: ='01 01.33 Pol'!B90 -> 21 | B8: ='01 01.33 Pol'!C90 -> Úprava podloží a základ.spáry | E8: ='01 01.33 Pol'!BA94 -> 0 | F8: ='01 01.33 Pol'!BB94 -> 0 | G8: ='01 01.33 Pol'!BC94 -> 0 | H8: ='01 01.33 Pol'!BD94 -> 0 | I8: ='01 01.33 Pol'!BE94 -> 0
A9: ='01 01.33 Pol'!B95 -> 45 | B9: ='01 01.33 Pol'!C95 -> Podkladní a vedlejší konstrukce | E9: ='01 01.33 Pol'!BA113 -> 0 | F9: ='01 01.33 Pol'!BB113 -> 0 | G9: ='01 01.33 Pol'!BC113 -> 0 | H9: ='01 01.33 Pol'!BD113 -> 0 | I9: ='01 01.33 Pol'!BE113 -> 0
A10: ='01 01.33 Pol'!B114 -> 8 | B10: ='01 01.33 Pol'!C114 -> Trubní vedení | E10: ='01 01.33 Pol'!BA171 -> 0 | F10: ='01 01.33 Pol'!BB171 -> 0 | G10: ='01 01.33 Pol'!BC171 -> 0 | H10: ='01 01.33 Pol'!BD171 -> 0 | I10: ='01 01.33 Pol'!BE171 -> 0
A11: ='01 01.33 Pol'!B172 -> 93 | B11: ='01 01.33 Pol'!C172 -> Dokončovací práce inženýrských staveb | E11: ='01 01.33 Pol'!BA188 -> 0 | F11: ='01 01.33 Pol'!BB188 -> 0 | G11: ='01 01.33 Pol'!BC188 -> 0 | H11: ='01 01.33 Pol'!BD188 -> 0 | I11: ='01 01.33 Pol'!BE188 -> 0
A12: ='01 01.33 Pol'!B189 -> 99 | B12: ='01 01.33 Pol'!C189 -> Staveništní přesun hmot | E12: ='01 01.33 Pol'!BA192 -> 0 | F12: ='01 01.33 Pol'!BB192 -> 0 | G12: ='01 01.33 Pol'!BC192 -> 0 | H12: ='01 01.33 Pol'!BD192 -> 0 | I12: ='01 01.33 Pol'!BE192 -> 0
B13: CELKEM OBJEKT | E13: =SUM(E7:E12) -> 0 | F13: =SUM(F7:F12) -> 0 | G13: =SUM(G7:G12) -> 0 | H13: =SUM(H7:H12) -> 0 | I13: =SUM(I7:I12) -> 0

Sheet 01 01.33 Pol
A1: Položkový rozpočet
A3: Stavba : | C3: 3395 Kanalizace a ČOV Benešov u Semil | E3: Rozpočet: | F3: ='01 01.33 Rek'!H1 -> 01.33
A4: Objekt : | C4: 01 Kanalizace | E4: ='01 01.33 Rek'!G2 -> Stoka "I" km 0,000 - 0,027.8
A6: P.č. | B6: Číslo položky | C6: Název položky | D6: MJ | E6: množství | F6: cena / MJ | G6: celkem (Kč) | H6: Jednotková hmotnost | I6: Celková hmotnost | J6: Jednotková dem.hmot. | K6: Celková dem.hmot.
A7: Díl: | B7: 1 | C7: Zemní práce | O7: 1
A8: 1 | B8: 115101201RRX | C8: Přečerpávání nebo převedení splašků a dešť. vod | D8: h | E8: 60 | G8: =E8*F8 -> 0 | H8: 0 | I8: =E8*H8 -> 0 | J8: 0 | K8: =E8*J8 -> 0 | O8: 2 | AA8: 1 | AB8: 1 | AC8: 1 | AZ8: 1 | BA8: =IF(AZ8=1,G8,0) -> 0 | BB8: =IF(AZ8=2,G8,0) -> 0 | BC8: =IF(AZ8=3,G8,0) -> 0 | BD8: =IF(AZ8=4,G8,0) -> 0 | BE8: =IF(AZ8=5,G8,0) -> 0 | CA8: 1 | CB8: 1
C9: Převedení a čerpání splašků nebo dešťových vod dle zvolené technologie zhotovitele stavby. | L9: Převedení a čerpání splašků nebo dešťových vod dle zvolené technologie zhotovitele stavby. | O9: 3
C10: (Množství bude určeno na stavbě dle skutečnosti) | L10: (Množství bude určeno na stavbě dle skutečnosti) | O10: 3
A11: 2 | B11: 121100002RAA | C11: Sejmutí ornice a uložení na deponii zpětný přesun, rozprostření v tl. 20 cm | D11: m3 | E11: 18 | G11: =E11*F11 -> 0 | H11: 0 | I11: =E11*H11 -> 0 | J11: 0 | K11: =E11*J11 -> 0 | O11: 2 | AA11: 1 | AB11: 1 | AC11: 1 | AZ11: 1 | BA11: =IF(AZ11=1,G11,0) -> 0 | BB11: =IF(AZ11=2,G11,0) -> 0 | BC11: =IF(AZ11=3,G11,0) -> 0 | BD11: =IF(AZ11=4,G11,0) -> 0 | BE11: =IF(AZ11=5,G11,0) -> 0 | CA11: 1 | CB11: 1
C12: Stoka "I" PVC DN250: | E12: 0 | M12: Stoka "I" PVC DN250:
C13: Plocha ornice v pracovním prostoru:30,00*3,00*0,20 | E13: 18 | M13: Plocha ornice v pracovním prostoru:30,00*3,00*0,20
A14: 3 | B14: 130001101RRX | C14: Příplatek za ztížené hloubení v blízkosti vedení | D14: m3 | E14: 2.4803 | G14: =E14*F14 -> 0 | H14: 0 | I14: =E14*H14 -> 0 | J14: 0 | K14: =E14*J14 -> 0 | O14: 2 | AA14: 1 | AB14: 1 | AC14: 1 | AZ14: 1 | BA14: =IF(AZ14=1,G14,0) -> 0 | BB14: =IF(AZ14=2,G14,0) -> 0 | BC14: =IF(AZ14=3,G14,0) -> 0 | BD14: =IF(AZ14=4,G14,0) -> 0 | BE14: =IF(AZ14=5,G14,0) -> 0 | CA14: 1 | CB14: 1
C15: Včetně případných nutných dokopávem a ručního výkopu podél sousedících inženýrských sítí. | L15: Včetně případných nutných dokopávem a ručního výkopu podél sousedících inženýrských sítí. | O15: 3
C16: Součástí položky je i dočasné zajištění inženýrských sítí v prostoru výkopů (potrubí, kabely a pod.) | L16: Součástí položky je i dočasné zajištění inženýrských sítí v prostoru výkopů (potrubí, kabely a pod.) | O16: 3
C17: Stoka "I" PVC DN250: | E17: 0 | M17: Stoka "I" PVC DN250:
C18: Výkopy: | E18: 0 | M18: Výkopy:
C19: V hornině tř. 3 - 5 - 5%:49,6060*0,05 | E19: 2.4803 | M19: V hornině tř. 3 - 5 - 5%:49,6060*0,05
A20: 4 | B20: 132201212R00 | C20: Hloubení rýh š.do 200 cm hor.3 do 1000m3,STROJNĚ | D20: m3 | E20: 29.7636 | G20: =E20*F20 -> 0 | H20: 0 | I20: =E20*H20 -> 0 | J20: 0 | K20: =E20*J20 -> 0 | O20: 2 | AA20: 1 | AB20: 1 | AC20: 1 | AZ20: 1 | BA20: =IF(AZ20=1,G20,0) -> 0 | BB20: =IF(AZ20=2,G20,0) -> 0 | BC20: =IF(AZ20=3,G20,0) -> 0 | BD20: =IF(AZ20=4,G20,0) -> 0 | BE20: =IF(AZ20=5,G20,0) -> 0 | CA20: 1 | CB20: 1
C21: Položka obsahuje hloubení rýh traktorbagrem, naložení výkopku na dopravní prostředek pro svislé, nebo vodorovné přemístění, popř. přemístění výkopku do 3 m (po povrchu území), případné zajištění rypadel polštáři, udržování pracoviště a ochranu výkopiště proti stékání srážkové vody z okolního terénu i s jejím odvodněním, nebo odvedením, přesekání a odstranění kořenů ve výkopišti, odstranění napadávek, urovnání dna výkopu. | L21: Položka obsahuje hloubení rýh traktorbagrem, naložení výkopku na dopravní prostředek pro svislé, nebo vodorovné přemístění, popř. přemístění výkopku do 3 m (po povrchu území), případné zajištění rypadel polštáři, udržování pracoviště a ochranu výkopiště proti stékání srážkové vody z okolního terénu i s jejím odvodněním, nebo odvedením, přesekání a odstranění kořenů ve výkopišti, odstranění napadávek, urovnání dna výkopu. | O21: 3
C22: Stoka "I" PVC DN250: | E22: 0 | M22: Stoka "I" PVC DN250:
C23: Výkopy: | E23: 0 | M23: Výkopy:
C24: Začátek provozního součtu | E24: 0 | M24: Začátek provozního součtu
C25: ŠA.1-8 - ŠI-1:10,80*0,90*(1,25+2,60)/2 | E25: 18.711 | M25: ŠA.1-8 - ŠI-1:10,80*0,90*(1,25+2,60)/2
C26: ŠI-1 - ŠI-2:(27,80-10,80)*0,90*(1,40+2,50)/2 | E26: 29.835 | M26: ŠI-1 - ŠI-2:(27,80-10,80)*0,90*(1,40+2,50)/2
C27: Prohloubení pro RŠ:1,60*1,60*0,20*2 | E27: 1.024 | M27: Prohloubení pro RŠ:1,60*1,60*0,20*2
C28: Rozšíření pro RŠ:1,60*(1,60-0,90)*4,90 | E28: 5.488 | M28: Rozšíření pro RŠ:1,60*(1,60-0,90)*4,90
C29: Odpočet objemu ornice:-(27,80*0,90+(1,60*(1,60-0,90)*2))*0,20 | E29: -5.452 | M29: Odpočet objemu ornice:-(27,80*0,90+(1,60*(1,60-0,90)*2))*0,20
C30: Konec provozního součtu | E30: 49.606 | M30: Konec provozního součtu
C31: V hornině tř. 3 - 60%:49,6060*0,6 | E31: 29.7636 | M31: V hornině tř. 3 - 60%:49,6060*0,6
A32: 5 | B32: 132201219R00 | C32: Přípl.za lepivost,hloubení rýh 200cm,hor.3,STROJNĚ | D32: m3 | E32: 14.8818 | G32: =E32*F32 -> 0 | H32: 0 | I32: =E32*H32 -> 0 | J32: 0 | K32: =E32*J32 -> 0 | O32: 2 | AA32: 1 | AB32: 1 | AC32: 1 | AZ32: 1 | BA32: =IF(AZ32=1,G32,0) -> 0 | BB32: =IF(AZ32=2,G32,0) -> 0 | BC32: =IF(AZ32=3,G32,0) -> 0 | BD32: =IF(AZ32=4,G32,0) -> 0 | BE32: =IF(AZ32=5,G32,0) -> 0 | CA32: 1 | CB32: 1
C33: Stoka "I" PVC DN250: | E33: 0 | M33: Stoka "I" PVC DN250:
C34: Výkopy: | E34: 0 | M34: Výkopy:
C35: V hornině tř. 3 - 60%:49,6060*0,6*0,5 | E35: 14.8818 | M35: V hornině tř. 3 - 60%:49,6060*0,6*0,5
A36: 6 | B36: 132301212R00 | C36: Hloubení rýh š.do 200 cm hor.4 do 1000 m3, STROJNĚ | D36: m3 | E36: 14.8818 | G36: =E36*F36 -> 0 | H36: 0 | I36: =E36*H36 -> 0 | J36: 0 | K36: =E36*J36 -> 0 | O36: 2 | AA36: 1 | AB36: 1 | AC36: 1 | AZ36: 1 | BA36: =IF(AZ36=1,G36,0) -> 0 | BB36: =IF(AZ36=2,G36,0) -> 0 | BC36: =IF(AZ36=3,G36,0) -> 0 | BD36: =IF(AZ36=4,G36,0) -> 0 | BE36: =IF(AZ36=5,G36,0) -> 0 | CA36: 1 | CB36: 1
C37: Položka obsahuje hloubení rýh traktorbagrem, naložení výkopku na dopravní prostředek pro svislé, nebo vodorovné přemístění, popř. přemístění výkopku do 3 m (po povrchu území), případné zajištění rypadel polštáři, udržování pracoviště a ochranu výkopiště proti stékání srážkové vody z okolního terénu i s jejím odvodněním, nebo odvedením, přesekání a odstranění kořenů ve výkopišti, odstranění napadávek, urovnání dna výkopu. | L37: Položka obsahuje hloubení rýh traktorbagrem, naložení výkopku na dopravní prostředek pro svislé, nebo vodorovné přemístění, popř. přemístění výkopku do 3 m (po povrchu území), případné zajištění rypadel polštáři, udržování pracoviště a ochranu výkopiště proti stékání srážkové vody z okolního terénu i s jejím odvodněním, nebo odvedením, přesekání a odstranění kořenů ve výkopišti, odstranění napadávek, urovnání dna výkopu. | O37: 3
C38: Stoka "I" PVC DN250: | E38: 0 | M38: Stoka "I" PVC DN250:
C39: Výkopy: | E39: 0 | M39: Výkopy:
C40: V hornině tř. 4 - 30%:49,6060*0,3 | E40: 14.8818 | M40: V hornině tř. 4 - 30%:49,6060*0,3
A41: 7 | B41: 132301219R00 | C41: Přípl.za lepivost,hloubení rýh 200cm,hor.4,STROJNĚ | D41: m3 | E41: 7.4409 | G41: =E41*F41 -> 0 | H41: 0 | I41: =E41*H41 -> 0 | J41: 0 | K41: =E41*J41 -> 0 | O41: 2 | AA41: 1 | AB41: 1 | AC41: 1 | AZ41: 1 | BA41: =IF(AZ41=1,G41,0) -> 0 | BB41: =IF(AZ41=2,G41,0) -> 0 | BC41: =IF(AZ41=3,G41,0) -> 0 | BD41: =IF(AZ41=4,G41,0) -> 0 | BE41: =IF(AZ41=5,G41,0) -> 0 | CA41: 1 | CB41: 1
C42: Stoka "I" PVC DN250: | E42: 0 | M42: Stoka "I" PVC DN250:
C43: Výkopy: | E43: 0 | M43: Výkopy:
C44: V hornině tř. 4 - 30%:49,6060*0,3*0,5 | E44: 7.4409 | M44: V hornině tř. 4 - 30%:49,6060*0,3*0,5
A45: 8 | B45: 132401211RRX | C45: Hloubení rýh šířky do 200 cm v hor.5 STROJNĚ včetně případného dolamování ve vrstvě do 0,5 m | D45: m3 | E45: 4.9606 | G45: =E45*F45 -> 0 | H45: 0.01041 | I45: =E45*H45 -> 0.051639846 | J45: 0 | K45: =E45*J45 -> 0 | O45: 2 | AA45: 1 | AB45: 1 | AC45: 1 | AZ45: 1 | BA45: =IF(AZ45=1,G45,0) -> 0 | BB45: =IF(AZ45=2,G45,0) -> 0 | BC45: =IF(AZ45=3,G45,0) -> 0 | BD45: =IF(AZ45=4,G45,0) -> 0 | BE45: =IF(AZ45=5,G45,0) -> 0 | CA45: 1 | CB45: 1
C46: Položka obsahuje hloubení rýh traktorbagrem, naložení výkopku na dopravní prostředek pro svislé, nebo vodorovné přemístění, popř. přemístění výkopku do 3 m (po povrchu území), případné zajištění rypadel polštáři, udržování pracoviště a ochranu výkopiště proti stékání srážkové vody z okolního terénu i s jejím odvodněním, nebo odvedením, přesekání a odstranění kořenů ve výkopišti, odstranění napadávek, urovnání dna výkopu.včetně případného dolamování ve vrstvě do 0,5 m | L46: Položka obsahuje hloubení rýh traktorbagrem, naložení výkopku na dopravní prostředek pro svislé, nebo vodorovné přemístění, popř. přemístění výkopku do 3 m (po povrchu území), případné zajištění rypadel polštáři, udržování pracoviště a ochranu výkopiště proti stékání srážkové vody z okolního terénu i s jejím odvodněním, nebo odvedením, přesekání a odstranění kořenů ve výkopišti, odstranění napadávek, urovnání dna výkopu.včetně případného dolamování ve vrstvě do 0,5 m | O46: 3
C47: Stoka "I" PVC DN250: | E47: 0 | M47: Stoka "I" PVC DN250:
C48: Výkopy: | E48: 0 | M48: Výkopy:
C49: V hornině tř. 5 - 10%:49,6060*0,1 | E49: 4.9606 | M49: V hornině tř. 5 - 10%:49,6060*0,1
A50: 9 | B50: 151101101R00 | C50: Pažení a rozepření stěn rýh - příložné - hl.do 2 m | D50: m2 | E50: 107.88 | G50: =E50*F50 -> 0 | H50: 0.00099 | I50: =E50*H50 -> 0.1068012 | J50: 0 | K50: =E50*J50 -> 0 | O50: 2 | AA50: 1 | AB50: 1 | AC50: 1 | AZ50: 1 | BA50: =IF(AZ50=1,G50,0) -> 0 | BB50: =IF(AZ50=2,G50,0) -> 0 | BC50: =IF(AZ50=3,G50,0) -> 0 | BD50: =IF(AZ50=4,G50,0) -> 0 | BE50: =IF(AZ50=5,G50,0) -> 0 | CA50: 1 | CB50: 1
C51: Stoka "I" PVC DN250: | E51: 0 | M51: Stoka "I" PVC DN250:
C52: Výkopy: | E52: 0 | M52: Výkopy:
C53: ŠA.1-8 - ŠI-1:10,80*(1,25+2,60)/2*2 | E53: 41.58 | M53: ŠA.1-8 - ŠI-1:10,80*(1,25+2,60)/2*2
C54: ŠI-1 - ŠI-2:(27,80-10,80)*(1,40+2,50)/2*2 | E54: 66.3 | M54: ŠI-1 - ŠI-2:(27,80-10,80)*(1,40+2,50)/2*2
A55: 10 | B55: 151101111R00 | C55: Odstranění pažení stěn rýh - příložné - hl. do 2 m | D55: m2 | E55: 107.88 | G55: =E55*F55 -> 0 | H55: 0 | I55: =E55*H55 -> 0 | J55: 0 | K55: =E55*J55 -> 0 | O55: 2 | AA55: 1 | AB55: 1 | AC55: 1 | AZ55: 1 | BA55: =IF(AZ55=1,G55,0) -> 0 | BB55: =IF(AZ55=2,G55,0) -> 0 | BC55: =IF(AZ55=3,G55,0) -> 0 | BD55: =IF(AZ55=4,G55,0) -> 0 | BE55: =IF(AZ55=5,G55,0) -> 0 | CA55: 1 | CB55: 1
C56: Stoka "I" PVC DN250: | E56: 0 | M56: Stoka "I" PVC DN250:
C57: Výkopy: | E57: 0 | M57: Výkopy:
C58: ŠA.1-8 - ŠI-1:10,80*(1,25+2,60)/2*2 | E58: 41.58 | M58: ŠA.1-8 - ŠI-1:10,80*(1,25+2,60)/2*2
C59: ŠI-1 - ŠI-2:(27,80-10,80)*(1,40+2,50)/2*2 | E59: 66.3 | M59: ŠI-1 - ŠI-2:(27,80-10,80)*(1,40+2,50)/2*2
A60: 11 | B60: 162701105RSZ | C60: Vodorovné přemístění výkopku z hor.1-7 na skládku zhotovitele | D60: m3 | E60: 24.1175 | G60: =E60*F60 -> 0 | H60: 0 | I60: =E60*H60 -> 0 | J60: 0 | K60: =E60*J60 -> 0 | O60: 2 | AA60: 1 | AB60: 1 | AC60: 1 | AZ60: 1 | BA60: =IF(AZ60=1,G60,0) -> 0 | BB60: =IF(AZ60=2,G60,0) -> 0 | BC60: =IF(AZ60=3,G60,0) -> 0 | BD60: =IF(AZ60=4,G60,0) -> 0 | BE60: =IF(AZ60=5,G60,0) -> 0 | CA60: 1 | CB60: 1
C61: Stoka "I" PVC DN250: | E61: 0 | M61: Stoka "I" PVC DN250:
C62: Výkopy: | E62: 0 | M62: Výkopy:
C63: V hornině tř. 3 - 5 :49,6060 | E63: 49.606 | M63: V hornině tř. 3 - 5 :49,6060
C64: Odpočet zásypů zeminou:-25,4885 | E64: -25.4885 | M64: Odpočet zásypů zeminou:-25,4885
A65: 12 | B65: 174101101R00 | C65: Zásyp jam, rýh, šachet se zhutněním | D65: m3 | E65: 25.4885 | G65: =E65*F65 -> 0 | H65: 0 | I65: =E65*H65 -> 0 | J65: 0 | K65: =E65*J65 -> 0 | O65: 2 | AA65: 1 | AB65: 1 | AC65: 1 | AZ65: 1 | BA65: =IF(AZ65=1,G65,0) -> 0 | BB65: =IF(AZ65=2,G65,0) -> 0 | BC65: =IF(AZ65=3,G65,0) -> 0 | BD65: =IF(AZ65=4,G65,0) -> 0 | BE65: =IF(AZ65=5,G65,0) -> 0 | CA65: 1 | CB65: 1
C66: Položka obsahuje strojní přemístění materiálu pro zásyp ze vzdálenosti do 10 m od okraje zásypu. | L66: Položka obsahuje strojní přemístění materiálu pro zásyp ze vzdálenosti do 10 m od okraje zásypu. | O66: 3
O67: 3
C68: Stoka "I" PVC DN250: | E68: 0 | M68: Stoka "I" PVC DN250:
C69: Zásypy zeminou:25,4885 | E69: 25.4885 | M69: Zásypy zeminou:25,4885
C70: Výkopy: | E70: 0 | M70: Výkopy:
C71: Začátek provozního součtu | E71: 0 | M71: Začátek provozního součtu
C72: ŠA.1-8 - ŠI-1:10,80*0,90*(1,25+2,60)/2 | E72: 18.711 | M72: ŠA.1-8 - ŠI-1:10,80*0,90*(1,25+2,60)/2
C73: ŠI-1 - ŠI-2:(27,80-10,80)*0,90*(1,40+2,50)/2 | E73: 29.835 | M73: ŠI-1 - ŠI-2:(27,80-10,80)*0,90*(1,40+2,50)/2
C74: Prohloubení pro RŠ:1,60*1,60*0,20*2 | E74: 1.024 | M74: Prohloubení pro RŠ:1,60*1,60*0,20*2
C75: Rozšíření pro RŠ:1,60*(1,60-0,90)*4,90 | E75: 5.488 | M75: Rozšíření pro RŠ:1,60*(1,60-0,90)*4,90
C76: Odpočet objemu ornice:-(27,80*0,90+(1,60*(1,60-0,90)*2))*0,20 | E76: -5.452 | M76: Odpočet objemu ornice:-(27,80*0,90+(1,60*(1,60-0,90)*2))*0,20
C77: Odpočet obemu lože, potrubí a obsypů:-27,80*0,90*(0,15+0,25+0,30) | E77: -17.514 | M77: Odpočet obemu lože, potrubí a obsypů:-27,80*0,90*(0,15+0,25+0,30)
C78: Odpočet objemu RŠ:-6,6035 | E78: -6.6035 | M78: Odpočet objemu RŠ:-6,6035
C79: Konec provozního součtu | E79: 25.4885 | M79: Konec provozního součtu
A80: 13 | B80: 175101101R00 | C80: Obsyp potrubí bez prohození sypaniny | D80: m3 | E80: 12.3964 | G80: =E80*F80 -> 0 | H80: 0 | I80: =E80*H80 -> 0 | J80: 0 | K80: =E80*J80 -> 0 | O80: 2 | AA80: 1 | AB80: 1 | AC80: 1 | AZ80: 1 | BA80: =IF(AZ80=1,G80,0) -> 0 | BB80: =IF(AZ80=2,G80,0) -> 0 | BC80: =IF(AZ80=3,G80,0) -> 0 | BD80: =IF(AZ80=4,G80,0) -> 0 | BE80: =IF(AZ80=5,G80,0) -> 0 | CA80: 1 | CB80: 1
C81: Stoka "I" PVC DN250:27,80*(0,90*(0,25+0,30)-0,125^2*Pi) | E81: 12.3964 | M81: Stoka "I" PVC DN250:27,80*(0,90*(0,25+0,30)-0,125^2*Pi)
A82: 14 | B82: 199000002R00 | C82: Poplatek za skládku horniny 1- 7 č. dle katal. odpadů 17 05 04 | D82: m3 | E82: 24.1175 | G82: =E82*F82 -> 0 | H82: 0 | I82: =E82*H82 -> 0 | J82: 0 | K82: =E82*J82 -> 0 | O82: 2 | AA82: 1 | AB82: 1 | AC82: 1 | AZ82: 1 | BA82: =IF(AZ82=1,G82,0) -> 0 | BB82: =IF(AZ82=2,G82,0) -> 0 | BC82: =IF(AZ82=3,G82,0) -> 0 | BD82: =IF(AZ82=4,G82,0) -> 0 | BE82: =IF(AZ82=5,G82,0) -> 0 | CA82: 1 | CB82: 1
C83: Stoka "I" PVC DN250: | E83: 0 | M83: Stoka "I" PVC DN250:
C84: Výkopy: | E84: 0 | M84: Výkopy:
C85: V hornině tř. 3 - 5 :49,6060 | E85: 49.606 | M85: V hornině tř. 3 - 5 :49,6060
C86: Odpočet zásypů zeminou:-25,4885 | E86: -25.4885 | M86: Odpočet zásypů zeminou:-25,4885
A87: 15 | B87: 58337308.R | C87: Štěrkopísek frakce 0-2 tř.B | D87: t | E87: 24.7026 | G87: =E87*F87 -> 0 | H87: 1 | I87: =E87*H87 -> 24.7026 | K87: =E87*J87 -> 0 | O87: 2 | AA87: 3 | AB87: 1 | AC87: 58337308.R | AZ87: 1 | BA87: =IF(AZ87=1,G87,0) -> 0 | BB87: =IF(AZ87=2,G87,0) -> 0 | BC87: =IF(AZ87=3,G87,0) -> 0 | BD87: =IF(AZ87=4,G87,0) -> 0 | BE87: =IF(AZ87=5,G87,0) -> 0 | CA87: 3 | CB87: 1
C88: Stoka "I" PVC DN250:27,80*(0,90*(0,25+0,30)-0,125^2*Pi)*1,973*1,01 | E88: 24.7026 | M88: Stoka "I" PVC DN250:27,80*(0,90*(0,25+0,30)-0,125^2*Pi)*1,973*1,01
B89: Celkem za | C89: 1 Zemní práce | G89: =SUM(G7:G88) -> 0 | I89: =SUM(I7:I88) -> 24.86104105 | K89: =SUM(K7:K88) -> 0 | O89: 4 | BA89: =SUM(BA7:BA88) -> 0 | BB89: =SUM(BB7:BB88) -> 0 | BC89: =SUM(BC7:BC88) -> 0 | BD89: =SUM(BD7:BD88) -> 0 | BE89: =SUM(BE7:BE88) -> 0
A90: Díl: | B90: 21 | C90: Úprava podloží a základ.spáry | O90: 1
A91: 16 | B91: 212810010RAC | C91: Trativody z PVC drenážních flexibilních trubek lože štěrkopísek a obsyp kamenivo, trubky d 100 mm | D91: m | E91: 27.8 | G91: =E91*F91 -> 0 | H91: 0.43651 | I91: =E91*H91 -> 12.134978 | J91: 0 | K91: =E91*J91 -> 0 | O91: 2 | AA91: 1 | AB91: 1 | AC91: 1 | AZ91: 1 | BA91: =IF(AZ91=1,G91,0) -> 0 | BB91: =IF(AZ91=2,G91,0) -> 0 | BC91: =IF(AZ91=3,G91,0) -> 0 | BD91: =IF(AZ91=4,G91,0) -> 0 | BE91: =IF(AZ91=5,G91,0) -> 0 | CA91: 1 | CB91: 1
C92: Stoka "I" PVC DN250: | E92: 0 | M92: Stoka "I" PVC DN250:
C93: Drenáž DN100:27,80 | E93: 27.8 | M93: Drenáž DN100:27,80
B94: Celkem za | C94: 21 Úprava podloží a základ.spáry | G94: =SUM(G90:G93) -> 0 | I94: =SUM(I90:I93) -> 12.134978 | K94: =SUM(K90:K93) -> 0 | O94: 4 | BA94: =SUM(BA90:BA93) -> 0 | BB94: =SUM(BB90:BB93) -> 0 | BC94: =SUM(BC90:BC93) -> 0 | BD94: =SUM(BD90:BD93) -> 0 | BE94: =SUM(BE90:BE93) -> 0
A95: Díl: | B95: 45 | C95: Podkladní a vedlejší konstrukce | O95: 1
A96: 17 | B96: 451572111R00 | C96: Lože pod potrubí z kameniva těženého 0 - 4 mm | D96: m3 | E96: 3.8745 | G96: =E96*F96 -> 0 | H96: 0.43051 | I96: =E96*H96 -> 1.668010995 | J96: 0 | K96: =E96*J96 -> 0 | O96: 2 | AA96: 1 | AB96: 1 | AC96: 1 | AZ96: 1 | BA96: =IF(AZ96=1,G96,0) -> 0 | BB96: =IF(AZ96=2,G96,0) -> 0 | BC96: =IF(AZ96=3,G96,0) -> 0 | BD96: =IF(AZ96=4,G96,0) -> 0 | BE96: =IF(AZ96=5,G96,0) -> 0 | CA96: 1 | CB96: 1
C97: Stoka "I" PVC DN250:28,70*0,90*0,15 | E97: 3.8745 | M97: Stoka "I" PVC DN250:28,70*0,90*0,15
A98: 18 | B98: 452112111R00 | C98: Osazení beton. prstenců pod poklopy,výšky do100 mm | D98: kus | E98: 5 | G98: =E98*F98 -> 0 | H98: 0.0066 | I98: =E98*H98 -> 0.033 | J98: 0 | K98: =E98*J98 -> 0 | O98: 2 | AA98: 1 | AB98: 1 | AC98: 1 | AZ98: 1 | BA98: =IF(AZ98=1,G98,0) -> 0 | BB98: =IF(AZ98=2,G98,0) -> 0 | BC98: =IF(AZ98=3,G98,0) -> 0 | BD98: =IF(AZ98=4,G98,0) -> 0 | BE98: =IF(AZ98=5,G98,0) -> 0 | CA98: 1 | CB98: 1
C99: Volba položky se řídí výškou prstence nebo rámu. V položkách nejsou zakalkulovány náklady na dodávku betonových výrobků; | L99: Volba položky se řídí výškou prstence nebo rámu. V položkách nejsou zakalkulovány náklady na dodávku betonových výrobků; | O99: 3
C100: Stoka "I" PVC DN250: | E100: 0 | M100: Stoka "I" PVC DN250:
C101: VP40:1 | E101: 1 | M101: VP40:1
C102: VP801:3 | E102: 3 | M102: VP801:3
C103: VP100:1 | E103: 1 | M103: VP100:1
A104: 19 | B104: 59224346.A.R | C104: Prstenec vyrovn šachetní TBW-Q.1 63/4 | D104: kus | E104: 1.01 | G104: =E104*F104 -> 0 | H104: 0.028 | I104: =E104*H104 -> 0.02828 | K104: =E104*J104 -> 0 | O104: 2 | AA104: 3 | AB104: 1 | AC104: 59224346.A.R | AZ104: 1 | BA104: =IF(AZ104=1,G104,0) -> 0 | BB104: =IF(AZ104=2,G104,0) -> 0 | BC104: =IF(AZ104=3,G104,0) -> 0 | BD104: =IF(AZ104=4,G104,0) -> 0 | BE104: =IF(AZ104=5,G104,0) -> 0 | CA104: 3 | CB104: 1
C105: Stoka "I" PVC DN250: | E105: 0 | M105: Stoka "I" PVC DN250:
C106: VP40:1*1,01 | E106: 1.01 | M106: VP40:1*1,01
A107: 20 | B107: 59224348.A.R | C107: Prstenec vyrovn šachetní TBW-Q.1 63/8 | D107: kus | E107: 1.01 | G107: =E107*F107 -> 0 | H107: 0.054 | I107: =E107*H107 -> 0.05454 | K107: =E107*J107 -> 0 | O107: 2 | AA107: 3 | AB107: 1 | AC107: 59224348.A.R | AZ107: 1 | BA107: =IF(AZ107=1,G107,0) -> 0 | BB107: =IF(AZ107=2,G107,0) -> 0 | BC107: =IF(AZ107=3,G107,0) -> 0 | BD107: =IF(AZ107=4,G107,0) -> 0 | BE107: =IF(AZ107=5,G107,0) -> 0 | CA107: 3 | CB107: 1
C108: Stoka "I" PVC DN250: | E108: 0 | M108: Stoka "I" PVC DN250:
C109: VP80:1*1,01 | E109: 1.01 | M109: VP80:1*1,01
A110: 21 | B110: 59224349.A.R | C110: Prstenec vyrovn šachetní TBW-Q.1 63/10 | D110: kus | E110: 1.01 | G110: =E110*F110 -> 0 | H110: 0.068 | I110: =E110*H110 -> 0.06868 | K110: =E110*J110 -> 0 | O110: 2 | AA110: 3 | AB110: 1 | AC110: 59224349.A.R | AZ110: 1 | BA110: =IF(AZ110=1,G110,0) -> 0 | BB110: =IF(AZ110=2,G110,0) -> 0 | BC110: =IF(AZ110=3,G110,0) -> 0 | BD110: =IF(AZ110=4,G110,0) -> 0 | BE110: =IF(AZ110=5,G110,0) -> 0 | CA110: 3 | CB110: 1
C111: Stoka "I" PVC DN250: | E111: 0 | M111: Stoka "I" PVC DN250:
C112: VP H100:1*1,01 | E112: 1.01 | M112: VP H100:1*1,01
B113: Celkem za | C113: 45 Podkladní a vedlejší konstrukce | G113: =SUM(G95:G112) -> 0 | I113: =SUM(I95:I112) -> 1.852510995 | K113: =SUM(K95:K112) -> 0 | O113: 4 | BA113: =SUM(BA95:BA112) -> 0 | BB113: =SUM(BB95:BB112) -> 0 | BC113: =SUM(BC95:BC112) -> 0 | BD113: =SUM(BD95:BD112) -> 0 | BE113: =SUM(BE95:BE112) -> 0
A114: Díl: | B114: 8 | C114: Trubní vedení | O114: 1
A115: 22 | B115: 871373121R00 | C115: Montáž trub z plastu, gumový kroužek, DN 300 | D115: m | E115: 27.8 | G115: =E115*F115 -> 0 | H115: 1e-05 | I115: =E115*H115 -> 0.000278 | J115: 0 | K115: =E115*J115 -> 0 | O115: 2 | AA115: 1 | AB115: 1 | AC115: 1 | AZ115: 1 | BA115: =IF(AZ115=1,G115,0) -> 0 | BB115: =IF(AZ115=2,G115,0) -> 0 | BC115: =IF(AZ115=3,G115,0) -> 0 | BD115: =IF(AZ115=4,G115,0) -> 0 | BE115: =IF(AZ115=5,G115,0) -> 0 | CA115: 1 | CB115: 1
C116: Stoka "I" PVC DN250:27,80 | E116: 27.8 | M116: Stoka "I" PVC DN250:27,80
A117: 23 | B117: 892601154R00 | C117: Čištění kanalizační stoky do DN 500, nad 100 m | D117: m | E117: 27.8 | G117: =E117*F117 -> 0 | H117: 0 | I117: =E117*H117 -> 0 | J117: 0 | K117: =E117*J117 -> 0 | O117: 2 | AA117: 1 | AB117: 0 | AC117: 0 | AZ117: 1 | BA117: =IF(AZ117=1,G117,0) -> 0 | BB117: =IF(AZ117=2,G117,0) -> 0 | BC117: =IF(AZ117=3,G117,0) -> 0 | BD117: =IF(AZ117=4,G117,0) -> 0 | BE117: =IF(AZ117=5,G117,0) -> 0 | CA117: 1 | CB117: 0
C118: V položce je zakalkulováno: | L118: V položce je zakalkulováno: | O118: 3
C119: a) otevření a uzavření revizních šachet a čisticích kusů | L119: a) otevření a uzavření revizních šachet a čisticích kusů | O119: 3
C120: b) natažení vysokotlakých hadic k místu odkud se bude kanalizace čistit | L120: b) natažení vysokotlakých hadic k místu odkud se bude kanalizace čistit | O120: 3
C121: c) vyčištění potrubí tlakovou vodou nebo motorovým pérem. | L121: c) vyčištění potrubí tlakovou vodou nebo motorovým pérem. | O121: 3
C122: Stoka "I" PVC DN250:27,80 | E122: 27.8 | M122: Stoka "I" PVC DN250:27,80
A123: 24 | B123: 892855115R00 | C123: Kontrola kanalizace TV kamerou do 500 m | D123: m | E123: 27.8 | G123: =E123*F123 -> 0 | H123: 0 | I123: =E123*H123 -> 0 | J123: 0 | K123: =E123*J123 -> 0 | O123: 2 | AA123: 1 | AB123: 1 | AC123: 1 | AZ123: 1 | BA123: =IF(AZ123=1,G123,0) -> 0 | BB123: =IF(AZ123=2,G123,0) -> 0 | BC123: =IF(AZ123=3,G123,0) -> 0 | BD123: =IF(AZ123=4,G123,0) -> 0 | BE123: =IF(AZ123=5,G123,0) -> 0 | CA123: 1 | CB123: 1
C124: Provedení kaberové prohlídky včetně dodání elektronického záznamu na CD zadavateli a tištěné dokumentace průběhu kamerové prohlídky | L124: Provedení kaberové prohlídky včetně dodání elektronického záznamu na CD zadavateli a tištěné dokumentace průběhu kamerové prohlídky | O124: 3
C125: Stoka "I" PVC DN250:27,80 | E125: 27.8 | M125: Stoka "I" PVC DN250:27,80
A126: 25 | B126: 894421111RT1 | C126: Osazení betonových dílců šachet skruže rovné, na kroužek, do 0,5 t | D126: kus | E126: 1 | G126: =E126*F126 -> 0 | H126: 0 | I126: =E126*H126 -> 0 | J126: 0 | K126: =E126*J126 -> 0 | O126: 2 | AA126: 1 | AB126: 1 | AC126: 1 | AZ126: 1 | BA126: =IF(AZ126=1,G126,0) -> 0 | BB126: =IF(AZ126=2,G126,0) -> 0 | BC126: =IF(AZ126=3,G126,0) -> 0 | BD126: =IF(AZ126=4,G126,0) -> 0 | BE126: =IF(AZ126=5,G126,0) -> 0 | CA126: 1 | CB126: 1
C127: Položka je určena pro osazení betonových dílců šachet dle DIN 4034, skruže rovné na kroužek, hmotnost do 0,5 t. | L127: Položka je určena pro osazení betonových dílců šachet dle DIN 4034, skruže rovné na kroužek, hmotnost do 0,5 t. | O127: 3
C128: V položce nejsou zakalkulovány náklady na dodání betonových dílců; dílce se oceňují ve specifikaci. | L128: V položce nejsou zakalkulovány náklady na dodání betonových dílců; dílce se oceňují ve specifikaci. | O128: 3
C129: Stoka "I" PVC DN250: | E129: 0 | M129: Stoka "I" PVC DN250:
C130: Skruž H250:1 | E130: 1 | M130: Skruž H250:1
A131: 26 | B131: 894421112RT1 | C131: Osazení betonových dílců šachet skruže rovné, na kroužek, do 1,4 t | D131: kus | E131: 2 | G131: =E131*F131 -> 0 | H131: 0 | I131: =E131*H131 -> 0 | J131: 0 | K131: =E131*J131 -> 0 | O131: 2 | AA131: 1 | AB131: 1 | AC131: 1 | AZ131: 1 | BA131: =IF(AZ131=1,G131,0) -> 0 | BB131: =IF(AZ131=2,G131,0) -> 0 | BC131: =IF(AZ131=3,G131,0) -> 0 | BD131: =IF(AZ131=4,G131,0) -> 0 | BE131: =IF(AZ131=5,G131,0) -> 0 | CA131: 1 | CB131: 1
C132: Položka je určena pro osazení betonových dílců šachet dle DIN 4034, skruže rovné na kroužek, hmotnost přes 0,5 do 1,4 t. | L132: Položka je určena pro osazení betonových dílců šachet dle DIN 4034, skruže rovné na kroužek, hmotnost přes 0,5 do 1,4 t. | O132: 3
C133: V položce nejsou zakalkulovány náklady na dodání betonových dílců; dílce se oceňují ve specifikaci. | L133: V položce nejsou zakalkulovány náklady na dodání betonových dílců; dílce se oceňují ve specifikaci. | O133: 3
C134: Stoka "I" PVC DN250: | E134: 0 | M134: Stoka "I" PVC DN250:
C135: Skruž H1000:2 | E135: 2 | M135: Skruž H1000:2
A136: 27 | B136: 894422111RT1 | C136: Osazení betonových dílců šachet skruže přechodové, na kroužek | D136: kus | E136: 2 | G136: =E136*F136 -> 0 | H136: 0 | I136: =E136*H136 -> 0 | J136: 0 | K136: =E136*J136 -> 0 | O136: 2 | AA136: 1 | AB136: 1 | AC136: 1 | AZ136: 1 | BA136: =IF(AZ136=1,G136,0) -> 0 | BB136: =IF(AZ136=2,G136,0) -> 0 | BC136: =IF(AZ136=3,G136,0) -> 0 | BD136: =IF(AZ136=4,G136,0) -> 0 | BE136: =IF(AZ136=5,G136,0) -> 0 | CA136: 1 | CB136: 1
C137: Položka je určena pro osazení betonových dílců šachet dle DIN 4034, skruže přechodové, zákrytové, kónusy,... na kroužek. | L137: Položka je určena pro osazení betonových dílců šachet dle DIN 4034, skruže přechodové, zákrytové, kónusy,... na kroužek. | O137: 3
C138: Stoka "I" PVC DN250: | E138: 0 | M138: Stoka "I" PVC DN250:
C139: Kónus H580:2 | E139: 2 | M139: Kónus H580:2
A140: 28 | B140: 894423111RT1 | C140: Osazení betonových dílců šachet do 2,0 t šachtová dna, na kroužek, do 2,0 t | D140: kus | E140: 2 | G140: =E140*F140 -> 0 | H140: 0 | I140: =E140*H140 -> 0 | J140: 0 | K140: =E140*J140 -> 0 | O140: 2 | AA140: 1 | AB140: 1 | AC140: 1 | AZ140: 1 | BA140: =IF(AZ140=1,G140,0) -> 0 | BB140: =IF(AZ140=2,G140,0) -> 0 | BC140: =IF(AZ140=3,G140,0) -> 0 | BD140: =IF(AZ140=4,G140,0) -> 0 | BE140: =IF(AZ140=5,G140,0) -> 0 | CA140: 1 | CB140: 1
C141: Položka je určena pro osazení betonových dílců šachet dle DIN 4034, šachtová dna na kroužek, hmotnost do 2,0 t. | L141: Položka je určena pro osazení betonových dílců šachet dle DIN 4034, šachtová dna na kroužek, hmotnost do 2,0 t. | O141: 3
C142: V položce nejsou zakalkulovány náklady na dodání betonových dílců; | L142: V položce nejsou zakalkulovány náklady na dodání betonových dílců; | O142: 3
C143: Součástí položky je i podbetonování šachtového dna betonem C12/15 v min. tl. 10 cm. | L143: Součástí položky je i podbetonování šachtového dna betonem C12/15 v min. tl. 10 cm. | O143: 3
C144: Stoka "I" PVC DN250: | E144: 0 | M144: Stoka "I" PVC DN250:
C145: ŠD H575:2 | E145: 2 | M145: ŠD H575:2
A146: 29 | B146: 896290111RRX | C146: Příplatek za vytvoření spadiště | D146: kus | E146: 1 | G146: =E146*F146 -> 0 | H146: 1.17689 | I146: =E146*H146 -> 1.17689 | J146: 0 | K146: =E146*J146 -> 0 | O146: 2 | AA146: 1 | AB146: 1 | AC146: 1 | AZ146: 1 | BA146: =IF(AZ146=1,G146,0) -> 0 | BB146: =IF(AZ146=2,G146,0) -> 0 | BC146: =IF(AZ146=3,G146,0) -> 0 | BD146: =IF(AZ146=4,G146,0) -> 0 | BE146: =IF(AZ146=5,G146,0) -> 0 | CA146: 1 | CB146: 1
C147: Součástí položky je montáž a dodávka potrubí a tvarovek dle PD včetně obetonování. | L147: Součástí položky je montáž a dodávka potrubí a tvarovek dle PD včetně obetonování. | O147: 3
A148: 30 | B148: 899102111R00 | C148: Osazení poklopu s rámem do 100 kg | D148: kus | E148: 2 | G148: =E148*F148 -> 0 | H148: 0.00702 | I148: =E148*H148 -> 0.01404 | J148: 0 | K148: =E148*J148 -> 0 | O148: 2 | AA148: 1 | AB148: 1 | AC148: 1 | AZ148: 1 | BA148: =IF(AZ148=1,G148,0) -> 0 | BB148: =IF(AZ148=2,G148,0) -> 0 | BC148: =IF(AZ148=3,G148,0) -> 0 | BD148: =IF(AZ148=4,G148,0) -> 0 | BE148: =IF(AZ148=5,G148,0) -> 0 | CA148: 1 | CB148: 1
C149: Osazení provizorních poklopů během realizace stavby (nefakturovaný materiál zhotovitele) | L149: Osazení provizorních poklopů během realizace stavby (nefakturovaný materiál zhotovitele) | O149: 3
A150: 31 | B150: 899711122R00 | C150: Fólie výstražná z PVC šedá, šířka 30 cm | D150: m | E150: 27.8 | G150: =E150*F150 -> 0 | H150: 0 | I150: =E150*H150 -> 0 | J150: 0 | K150: =E150*J150 -> 0 | O150: 2 | AA150: 1 | AB150: 1 | AC150: 1 | AZ150: 1 | BA150: =IF(AZ150=1,G150,0) -> 0 | BB150: =IF(AZ150=2,G150,0) -> 0 | BC150: =IF(AZ150=3,G150,0) -> 0 | BD150: =IF(AZ150=4,G150,0) -> 0 | BE150: =IF(AZ150=5,G150,0) -> 0 | CA150: 1 | CB150: 1
C151: Stoka "I" PVC DN250:27,80 | E151: 27.8 | M151: Stoka "I" PVC DN250:27,80
A152: 32 | B152: 286111923.A.R | C152: Trubka kanalizační PVC QUANTUM SN 12 DN 250 | D152: kus | E152: 28.634 | G152: =E152*F152 -> 0 | H152: 0.0082 | I152: =E152*H152 -> 0.2347988 | K152: =E152*J152 -> 0 | O152: 2 | AA152: 3 | AB152: 1 | AC152: 286111923.A.R | AZ152: 1 | BA152: =IF(AZ152=1,G152,0) -> 0 | BB152: =IF(AZ152=2,G152,0) -> 0 | BC152: =IF(AZ152=3,G152,0) -> 0 | BD152: =IF(AZ152=4,G152,0) -> 0 | BE152: =IF(AZ152=5,G152,0) -> 0 | CA152: 3 | CB152: 1
C153: Jedná se o plnostěnné kanalizační trubky DN 150 – DN 400, SN 12 kN/m2 , zvenčí i zevnitř hladké. Jsou opatřeny hrdlem, v němž je vložen vysoce elastický jazýčkový kroužek. konce trubek (dříků) jsou opatřeny zkosením pod úhlem 15°. Způsob použití trubek je „U“ dle normy ČSN EN 1401-1, tj. mimo budovy. Spolehlivá funkce těsnění je jištěna výztužným kroužkem z elastomeru. Je tak zamezeno vypad-nutí nebo vytlačení kroužku při manipulaci a montáži. Tento systém zaručuje při správné montáži | L153: Jedná se o plnostěnné kanalizační trubky DN 150 – DN 400, SN 12 kN/m2 , zvenčí i zevnitř hladké. Jsou opatřeny hrdlem, v němž je vložen vysoce elastický jazýčkový kroužek. konce trubek (dříků) jsou opatřeny zkosením pod úhlem 15°. Způsob použití trubek je „U“ dle normy ČSN EN 1401-1, tj. mimo budovy. Spolehlivá funkce těsnění je jištěna výztužným kroužkem z elastomeru. Je tak zamezeno vypad-nutí nebo vytlačení kroužku při manipulaci a montáži. Tento systém zaručuje při správné montáži | O153: 3
C154: dokonalou těsnost do výšky vodního sloupce 5 metrů. | L154: dokonalou těsnost do výšky vodního sloupce 5 metrů. | O154: 3
C155: Stoka "I" PVC DN250:27,80*1,03 | E155: 28.634 | M155: Stoka "I" PVC DN250:27,80*1,03
A156: 33 | B156: 592243543.R | C156: Kónus šachetní TBR-Q.1 100x63/58/12 KPS | D156: kus | E156: 2.02 | G156: =E156*F156 -> 0 | H156: 0.585 | I156: =E156*H156 -> 1.1817 | K156: =E156*J156 -> 0 | O156: 2 | AA156: 3 | AB156: 1 | AC156: 592243543.R | AZ156: 1 | BA156: =IF(AZ156=1,G156,0) -> 0 | BB156: =IF(AZ156=2,G156,0) -> 0 | BC156: =IF(AZ156=3,G156,0) -> 0 | BD156: =IF(AZ156=4,G156,0) -> 0 | BE156: =IF(AZ156=5,G156,0) -> 0 | CA156: 3 | CB156: 1
C157: Stoka "I" PVC DN250: | E157: 0 | M157: Stoka "I" PVC DN250:
C158: Kónus H580:2*1,01 | E158: 2.02 | M158: Kónus H580:2*1,01
A159: 34 | B159: 59224358.A.R | C159: Skruž šachetní TBS-Q.1 100/25/12 PS | D159: kus | E159: 1.01 | G159: =E159*F159 -> 0 | H159: 0.25 | I159: =E159*H159 -> 0.2525 | K159: =E159*J159 -> 0 | O159: 2 | AA159: 3 | AB159: 1 | AC159: 59224358.A.R | AZ159: 1 | BA159: =IF(AZ159=1,G159,0) -> 0 | BB159: =IF(AZ159=2,G159,0) -> 0 | BC159: =IF(AZ159=3,G159,0) -> 0 | BD159: =IF(AZ159=4,G159,0) -> 0 | BE159: =IF(AZ159=5,G159,0) -> 0 | CA159: 3 | CB159: 1
C160: Stoka "I" PVC DN250: | E160: 0 | M160: Stoka "I" PVC DN250:
C161: Skruž H250:1*1,01 | E161: 1.01 | M161: Skruž H250:1*1,01
A162: 35 | B162: 59224364.A.R | C162: Skruž šachetní TBS-Q.1 100/100/12 PS | D162: kus | E162: 2.02 | G162: =E162*F162 -> 0 | H162: 1 | I162: =E162*H162 -> 2.02 | K162: =E162*J162 -> 0 | O162: 2 | AA162: 3 | AB162: 1 | AC162: 59224364.A.R | AZ162: 1 | BA162: =IF(AZ162=1,G162,0) -> 0 | BB162: =IF(AZ162=2,G162,0) -> 0 | BC162: =IF(AZ162=3,G162,0) -> 0 | BD162: =IF(AZ162=4,G162,0) -> 0 | BE162: =IF(AZ162=5,G162,0) -> 0 | CA162: 3 | CB162: 1
C163: Stoka "I" PVC DN250: | E163: 0 | M163: Stoka "I" PVC DN250:
C164: Skruž H1000:2*1,01 | E164: 2.02 | M164: Skruž H1000:2*1,01
A165: 36 | B165: 59224371.A.R | C165: Dno šachetní TBZ-Q.1 100/58 KOM V20 včetně kynety dle PD | D165: kus | E165: 2.02 | G165: =E165*F165 -> 0 | H165: 1.27 | I165: =E165*H165 -> 2.5654 | K165: =E165*J165 -> 0 | O165: 2 | AA165: 3 | AB165: 1 | AC165: 59224371.A.R | AZ165: 1 | BA165: =IF(AZ165=1,G165,0) -> 0 | BB165: =IF(AZ165=2,G165,0) -> 0 | BC165: =IF(AZ165=3,G165,0) -> 0 | BD165: =IF(AZ165=4,G165,0) -> 0 | BE165: =IF(AZ165=5,G165,0) -> 0 | CA165: 3 | CB165: 1
C166: Stoka "I" PVC DN250: | E166: 0 | M166: Stoka "I" PVC DN250:
C167: ŠD H575:2*1,01 | E167: 2.02 | M167: ŠD H575:2*1,01
A168: 37 | B168: 59224380.R | C168: Těsnění elastom pro šach díly EMT 100/1.7 - DN1000 | D168: kus | E168: 5.05 | G168: =E168*F168 -> 0 | H168: 0.002 | I168: =E168*H168 -> 0.0101 | K168: =E168*J168 -> 0 | O168: 2 | AA168: 3 | AB168: 1 | AC168: 59224380.R | AZ168: 1 | BA168: =IF(AZ168=1,G168,0) -> 0 | BB168: =IF(AZ168=2,G168,0) -> 0 | BC168: =IF(AZ168=3,G168,0) -> 0 | BD168: =IF(AZ168=4,G168,0) -> 0 | BE168: =IF(AZ168=5,G168,0) -> 0 | CA168: 3 | CB168: 1
C169: Stoka "I" PVC DN250: | E169: 0 | M169: Stoka "I" PVC DN250:
C170: Těsnění DN1000:5*1,01 | E170: 5.05 | M170: Těsnění DN1000:5*1,01
B171: Celkem za | C171: 8 Trubní vedení | G171: =SUM(G114:G170) -> 0 | I171: =SUM(I114:I170) -> 7.4557068 | K171: =SUM(K114:K170) -> 0 | O171: 4 | BA171: =SUM(BA114:BA170) -> 0 | BB171: =SUM(BB114:BB170) -> 0 | BC171: =SUM(BC114:BC170) -> 0 | BD171: =SUM(BD114:BD170) -> 0 | BE171: =SUM(BE114:BE170) -> 0
A172: Díl: | B172: 93 | C172: Dokončovací práce inženýrských staveb | O172: 1
A173: 38 | B173: 939421111RT1 | C173: Osazení samonivelač.kanalizač.poklopu za finišerem bez dodávky poklopu | D173: kus | E173: 2 | G173: =E173*F173 -> 0 | H173: 0.15425 | I173: =E173*H173 -> 0.3085 | J173: 0 | K173: =E173*J173 -> 0 | O173: 2 | AA173: 1 | AB173: 0 | AC173: 0 | AZ173: 1 | BA173: =IF(AZ173=1,G173,0) -> 0 | BB173: =IF(AZ173=2,G173,0) -> 0 | BC173: =IF(AZ173=3,G173,0) -> 0 | BD173: =IF(AZ173=4,G173,0) -> 0 | BE173: =IF(AZ173=5,G173,0) -> 0 | CA173: 1 | CB173: 0
C174: Položka obsahuje: | L174: Položka obsahuje: | O174: 3
C175: osazení prefabrikovaného betonového prstence do rychletuhnoucí vysokopevnostní malty (s dodávkou hmot) | L175: - osazení prefabrikovaného betonového prstence do rychletuhnoucí malty (s dodávkou hmot) | O175: 3
C176: - zalití prstence rychletuhnoucí zálivkou do výše prstence (s dodávkou hmoty) | L176: - zalití prstence rychletuhnoucí zálivkou do výše prstence (s dodávkou hmoty) | O176: 3
C177: - vložení kruhového bednění | L177: - vložení kruhového bednění | O177: 3
C178: - doplnění mezikruží asfaltovou směsí do výšky současné podkladní vrstvy, zhutnění | L178: - doplnění mezikruží asfaltovou směsí do výšky současné podkladní vrstvy, zhutnění | O178: 3
C179: - vyjmutí kruhového bednění | L179: - vyjmutí kruhového bednění | O179: 3
C180: - osazení poklopu a zatlačení | L180: - osazení poklopu a zatlačení | O180: 3
C181: (následuje pokládka finální vrstvy vozovky - není součástí položky) | L181: (následuje pokládka finální vrstvy vozovky - není součástí položky) | O181: 3
C182: - povytažení poklopu | L182: - povytažení poklopu | O182: 3
C183: - podsyp asfaltovou směsí, spuštění poklopu a zhutnění směsi | L183: - podsyp asfaltovou směsí, spuštění poklopu a zhutnění směsi | O183: 3
A184: 39 | B184: 55244414.R | C184: Poklop celolitinový v samonivelační rámu KDM65 D400 SN600 | D184: kus | E184: 2 | G184: =E184*F184 -> 0 | H184: 0.113 | I184: =E184*H184 -> 0.226 | K184: =E184*J184 -> 0 | O184: 2 | AA184: 3 | AB184: 1 | AC184: 55244414.R | AZ184: 1 | BA184: =IF(AZ184=1,G184,0) -> 0 | BB184: =IF(AZ184=2,G184,0) -> 0 | BC184: =IF(AZ184=3,G184,0) -> 0 | BD184: =IF(AZ184=4,G184,0) -> 0 | BE184: =IF(AZ184=5,G184,0) -> 0 | CA184: 3 | CB184: 1
C185: Kanalizační kruhový celolitinový samonivelační poklop bez pantu, horizontální PUR tlumící vložka na rámu, horizontální a vertikální PUR tlumící vložka na víku, bez pružinového zajištění víka v rámu | L185: Kanalizační kruhový celolitinový samonivelační poklop bez pantu, horizontální PUR tlumící vložka na rámu, horizontální a vertikální PUR tlumící vložka na víku, bez pružinového zajištění víka v rámu | O185: 3
C186: KDM65 bez ventilace nebo s ventilací dle TS VHS Turnov | L186: KDM65 bez ventilace nebo s ventilací dle TS VHS Turnov | O186: 3
C187: Víko se znakem Města | L187: Víko se znakem Města | O187: 3
B188: Celkem za | C188: 93 Dokončovací práce inženýrských staveb | G188: =SUM(G172:G187) -> 0 | I188: =SUM(I172:I187) -> 0.5345 | K188: =SUM(K172:K187) -> 0 | O188: 4 | BA188: =SUM(BA172:BA187) -> 0 | BB188: =SUM(BB172:BB187) -> 0 | BC188: =SUM(BC172:BC187) -> 0 | BD188: =SUM(BD172:BD187) -> 0 | BE188: =SUM(BE172:BE187) -> 0
A189: Díl: | B189: 99 | C189: Staveništní přesun hmot | O189: 1
A190: 40 | B190: 998276101RXX | C190: Přesun hmot, trubní vedení plastová, otevř. výkop pro celý rozsah objektu | D190: t | E190: 46.83873684 | G190: =E190*F190 -> 0 | H190: 0 | I190: =E190*H190 -> 0 | K190: =E190*J190 -> 0 | O190: 2 | AA190: 7 | AB190: 1 | AC190: 2 | AZ190: 1 | BA190: =IF(AZ190=1,G190,0) -> 0 | BB190: =IF(AZ190=2,G190,0) -> 0 | BC190: =IF(AZ190=3,G190,0) -> 0 | BD190: =IF(AZ190=4,G190,0) -> 0 | BE190: =IF(AZ190=5,G190,0) -> 0 | CA190: 7 | CB190: 1
C191: Staveništní doprava pro celý rozsah objektu - doprava zmeziskládek vybudovaného zařízení staveniště zhotovitele na jednotlivé části staveniště. | L191: Staveništní doprava pro celý rozsah objektu - doprava zmeziskládek vybudovaného zařízení staveniště zhotovitele na jednotlivé části staveniště. | O191: 3
B192: Celkem za | C192: 99 Staveništní přesun hmot | G192: =SUM(G189:G191) -> 0 | I192: =SUM(I189:I191) -> 0 | K192: =SUM(K189:K191) -> 0 | O192: 4 | BA192: =SUM(BA189:BA191) -> 0 | BB192: =SUM(BB189:BB191) -> 0 | BC192: =SUM(BC189:BC191) -> 0 | BD192: =SUM(BD189:BD191) -> 0 | BE192: =SUM(BE189:BE191) -> 0

Sheet 01 01.34 KL
A1: POLOŽKOVÝ ROZPOČET
A2: Rozpočet | C2: 01.34 | D2: Stoka "J" km 0,000 - 0,085.5 | F2: JKSO | G2: 827.21.A3
A4: Objekt | F4: SKP
A5: 01 | C5: Kanalizace | F5: Měrná jednotka | G5: m
A6: Stavba | F6: Počet jednotek | G6: 0
A7: 3395 | C7: Kanalizace a ČOV Benešov u Semil | F7: Náklady na m.j. | G7: =IF(G6=0,,ROUND((F30+F32)/G6,1)) -> 0
A8: Projektant | C8: Vodohospodářský rozvoj a výstavba a.s. | F8: Typ rozpočtu
A9: Zpracovatel projektu
A10: Objednatel | C10: Vodohospodářské sdružení Turnov
A11: Dodavatel | C11: . | F11: Zakázkové číslo
A12: Rozpočtoval | F12: Počet listů
A13: ROZPOČTOVÉ NÁKLADY
A14: Základní rozpočtové náklady
B15: HSV celkem | C15: ='01 01.34 Rek'!E14 -> 0
A16: Z | B16: PSV celkem | C16: ='01 01.34 Rek'!F14 -> 0
A17: R | B17: M práce celkem | C17: ='01 01.34 Rek'!H14 -> 0
A18: N | B18: M dodávky celkem | C18: ='01 01.34 Rek'!G14 -> 0
A19: ZRN celkem | C19: =SUM(C15:C18) -> 0
A21: HZS | C21: ='01 01.34 Rek'!I14 -> 0
A22: ZRN+HZS | C22: =C19+C21 -> 0
A23: ZRN+ost.náklady+HZS | C23: =C22+G23 -> 0
A24: Vypracoval | D24: Za zhotovitele | F24: Za objednatele
A25: Jméno : | D25: Jméno : | F25: Jméno :
A26: Datum : | D26: Datum : | F26: Datum :
A28: Podpis : | D28: Podpis: | F28: Podpis:
A30: Základ pro DPH | C30: 21 | D30: % | F30: =C23-F32 -> 0
A31: DPH | C31: =C30 -> 21 | D31: % | F31: =ROUND(PRODUCT(F30,C31/100),0) -> 0
A32: Základ pro DPH | C32: 0 | D32: % | F32: 0
A33: DPH | C33: =C32 -> 0 | D33: % | F33: =ROUND(PRODUCT(F32,C33/100),0) -> 0
A34: CENA ZA OBJEKT CELKEM | F34: =ROUND(SUM(F30:F33),0) -> 0
A36: Poznámka :

Sheet 01 01.34 Rek
A1: Stavba : | C1: 3395 Kanalizace a ČOV Benešov u Semil | G1: Rozpočet : | H1: 01.34
A2: Objekt : | C2: 01 Kanalizace | G2: Stoka "J" km 0,000 - 0,085.5
A4: REKAPITULACE STAVEBNÍCH DÍLŮ
B6: Stavební díl | E6: HSV | F6: PSV | G6: Dodávka | H6: Montáž | I6: HZS
A7: ='01 01.34 Pol'!B7 -> 1 | B7: ='01 01.34 Pol'!C7 -> Zemní práce | E7: ='01 01.34 Pol'!BA116 -> 0 | F7: ='01 01.34 Pol'!BB116 -> 0 | G7: ='01 01.34 Pol'!BC116 -> 0 | H7: ='01 01.34 Pol'!BD116 -> 0 | I7: ='01 01.34 Pol'!BE116 -> 0
A8: ='01 01.34 Pol'!B117 -> 21 | B8: ='01 01.34 Pol'!C117 -> Úprava podloží a základ.spáry | E8: ='01 01.34 Pol'!BA121 -> 0 | F8: ='01 01.34 Pol'!BB121 -> 0 | G8: ='01 01.34 Pol'!BC121 -> 0 | H8: ='01 01.34 Pol'!BD121 -> 0 | I8: ='01 01.34 Pol'!BE121 -> 0
A9: ='01 01.34 Pol'!B122 -> 45 | B9: ='01 01.34 Pol'!C122 -> Podkladní a vedlejší konstrukce | E9: ='01 01.34 Pol'!BA140 -> 0 | F9: ='01 01.34 Pol'!BB140 -> 0 | G9: ='01 01.34 Pol'!BC140 -> 0 | H9: ='01 01.34 Pol'!BD140 -> 0 | I9: ='01 01.34 Pol'!BE140 -> 0
A10: ='01 01.34 Pol'!B141 -> 5 | B10: ='01 01.34 Pol'!C141 -> Komunikace | E10: ='01 01.34 Pol'!BA145 -> 0 | F10: ='01 01.34 Pol'!BB145 -> 0 | G10: ='01 01.34 Pol'!BC145 -> 0 | H10: ='01 01.34 Pol'!BD145 -> 0 | I10: ='01 01.34 Pol'!BE145 -> 0
A11: ='01 01.34 Pol'!B146 -> 8 | B11: ='01 01.34 Pol'!C146 -> Trubní vedení | E11: ='01 01.34 Pol'!BA206 -> 0 | F11: ='01 01.34 Pol'!BB206 -> 0 | G11: ='01 01.34 Pol'!BC206 -> 0 | H11: ='01 01.34 Pol'!BD206 -> 0 | I11: ='01 01.34 Pol'!BE206 -> 0
A12: ='01 01.34 Pol'!B207 -> 93 | B12: ='01 01.34 Pol'!C207 -> Dokončovací práce inženýrských staveb | E12: ='01 01.34 Pol'!BA223 -> 0 | F12: ='01 01.34 Pol'!BB223 -> 0 | G12: ='01 01.34 Pol'!BC223 -> 0 | H12: ='01 01.34 Pol'!BD223 -> 0 | I12: ='01 01.34 Pol'!BE223 -> 0
A13: ='01 01.34 Pol'!B224 -> 99 | B13: ='01 01.34 Pol'!C224 -> Staveništní přesun hmot | E13: ='01 01.34 Pol'!BA227 -> 0 | F13: ='01 01.34 Pol'!BB227 -> 0 | G13: ='01 01.34 Pol'!BC227 -> 0 | H13: ='01 01.34 Pol'!BD227 -> 0 | I13: ='01 01.34 Pol'!BE227 -> 0
B14: CELKEM OBJEKT | E14: =SUM(E7:E13) -> 0 | F14: =SUM(F7:F13) -> 0 | G14: =SUM(G7:G13) -> 0 | H14: =SUM(H7:H13) -> 0 | I14: =SUM(I7:I13) -> 0

Sheet 01 01.34 Pol
A1: Položkový rozpočet
A3: Stavba : | C3: 3395 Kanalizace a ČOV Benešov u Semil | E3: Rozpočet: | F3: ='01 01.34 Rek'!H1 -> 01.34
A4: Objekt : | C4: 01 Kanalizace | E4: ='01 01.34 Rek'!G2 -> Stoka "J" km 0,000 - 0,085.5
A6: P.č. | B6: Číslo položky | C6: Název položky | D6: MJ | E6: množství | F6: cena / MJ | G6: celkem (Kč) | H6: Jednotková hmotnost | I6: Celková hmotnost | J6: Jednotková dem.hmot. | K6: Celková dem.hmot.
A7: Díl: | B7: 1 | C7: Zemní práce | O7: 1
A8: 1 | B8: 115101201RRX | C8: Přečerpávání nebo převedení splašků a dešť. vod | D8: h | E8: 60 | G8: =E8*F8 -> 0 | H8: 0 | I8: =E8*H8 -> 0 | J8: 0 | K8: =E8*J8 -> 0 | O8: 2 | AA8: 1 | AB8: 1 | AC8: 1 | AZ8: 1 | BA8: =IF(AZ8=1,G8,0) -> 0 | BB8: =IF(AZ8=2,G8,0) -> 0 | BC8: =IF(AZ8=3,G8,0) -> 0 | BD8: =IF(AZ8=4,G8,0) -> 0 | BE8: =IF(AZ8=5,G8,0) -> 0 | CA8: 1 | CB8: 1
C9: Převedení a čerpání splašků nebo dešťových vod dle zvolené technologie zhotovitele stavby. | L9: Převedení a čerpání splašků nebo dešťových vod dle zvolené technologie zhotovitele stavby. | O9: 3
C10: (Množství bude určeno na stavbě dle skutečnosti) | L10: (Množství bude určeno na stavbě dle skutečnosti) | O10: 3
A11: 2 | B11: 121100002RAA | C11: Sejmutí ornice a uložení na deponii zpětný přesun, rozprostření v tl. 20 cm | D11: m3 | E11: 22.44 | G11: =E11*F11 -> 0 | H11: 0 | I11: =E11*H11 -> 0 | J11: 0 | K11: =E11*J11 -> 0 | O11: 2 | AA11: 1 | AB11: 1 | AC11: 1 | AZ11: 1 | BA11: =IF(AZ11=1,G11,0) -> 0 | BB11: =IF(AZ11=2,G11,0) -> 0 | BC11: =IF(AZ11=3,G11,0) -> 0 | BD11: =IF(AZ11=4,G11,0) -> 0 | BE11: =IF(AZ11=5,G11,0) -> 0 | CA11: 1 | CB11: 1
C12: Stoka "H" PVC DN250: | E12: 0 | M12: Stoka "H" PVC DN250:
C13: Objem ornice v pracovním prostoru:37,40*3,00*0,20 | E13: 22.44 | M13: Objem ornice v pracovním prostoru:37,40*3,00*0,20
A14: 3 | B14: 130001101RRX | C14: Příplatek za ztížené hloubení v blízkosti vedení | D14: m3 | E14: 11.469 | G14: =E14*F14 -> 0 | H14: 0 | I14: =E14*H14 -> 0 | J14: 0 | K14: =E14*J14 -> 0 | O14: 2 | AA14: 1 | AB14: 1 | AC14: 1 | AZ14: 1 | BA14: =IF(AZ14=1,G14,0) -> 0 | BB14: =IF(AZ14=2,G14,0) -> 0 | BC14: =IF(AZ14=3,G14,0) -> 0 | BD14: =IF(AZ14=4,G14,0) -> 0 | BE14: =IF(AZ14=5,G14,0) -> 0 | CA14: 1 | CB14: 1
C15: Včetně případných nutných dokopávem a ručního výkopu podél sousedících inženýrských sítí. | L15: Včetně případných nutných dokopávem a ručního výkopu podél sousedících inženýrských sítí. | O15: 3
C16: Součástí položky je i dočasné zajištění inženýrských sítí v prostoru výkopů (potrubí, kabely a pod.) | L16: Součástí položky je i dočasné zajištění inženýrských sítí v prostoru výkopů (potrubí, kabely a pod.) | O16: 3
C17: Stoka "H" PVC DN250: | E17: 0 | M17: Stoka "H" PVC DN250:
C18: Výkopy: | E18: 0 | M18: Výkopy:
C19: V hornině tř. 3 - 5 - 15%:76,4600*0,15 | E19: 11.469 | M19: V hornině tř. 3 - 5 - 15%:76,4600*0,15
A20: 4 | B20: 132201212R00 | C20: Hloubení rýh š.do 200 cm hor.3 do 1000m3,STROJNĚ | D20: m3 | E20: 45.876 | G20: =E20*F20 -> 0 | H20: 0 | I20: =E20*H20 -> 0 | J20: 0 | K20: =E20*J20 -> 0 | O20: 2 | AA20: 1 | AB20: 1 | AC20: 1 | AZ20: 1 | BA20: =IF(AZ20=1,G20,0) -> 0 | BB20: =IF(AZ20=2,G20,0) -> 0 | BC20: =IF(AZ20=3,G20,0) -> 0 | BD20: =IF(AZ20=4,G20,0) -> 0 | BE20: =IF(AZ20=5,G20,0) -> 0 | CA20: 1 | CB20: 1
C21: Položka obsahuje hloubení rýh traktorbagrem, naložení výkopku na dopravní prostředek pro svislé, nebo vodorovné přemístění, popř. přemístění výkopku do 3 m (po povrchu území), případné zajištění rypadel polštáři, udržování pracoviště a ochranu výkopiště proti stékání srážkové vody z okolního terénu i s jejím odvodněním, nebo odvedením, přesekání a odstranění kořenů ve výkopišti, odstranění napadávek, urovnání dna výkopu. | L21: Položka obsahuje hloubení rýh traktorbagrem, naložení výkopku na dopravní prostředek pro svislé, nebo vodorovné přemístění, popř. přemístění výkopku do 3 m (po povrchu území), případné zajištění rypadel polštáři, udržování pracoviště a ochranu výkopiště proti stékání srážkové vody z okolního terénu i s jejím odvodněním, nebo odvedením, přesekání a odstranění kořenů ve výkopišti, odstranění napadávek, urovnání dna výkopu. | O21: 3
C22: Stoka "H" PVC DN250: | E22: 0 | M22: Stoka "H" PVC DN250:
C23: Výkopy: | E23: 0 | M23: Výkopy:
C24: Začátek provozního součtu | E24: 0 | M24: Začátek provozního součtu
C25: ŠB.1-4 - ŠJ-1:13,20*0,90*(1,40+1,70)/2 | E25: 18.414 | M25: ŠB.1-4 - ŠJ-1:13,20*0,90*(1,40+1,70)/2
C26: ŠJ-1 - ŠJ-2:(32,90-13,20)*0,90*(1,70+1,50)/2 | E26: 28.368 | M26: ŠJ-1 - ŠJ-2:(32,90-13,20)*0,90*(1,70+1,50)/2
C27: ŠJ-2 - Potok:(67,50-32,90)*0,90*(1,50+1,00)/2 | E27: 38.925 | M27: ŠJ-2 - Potok:(67,50-32,90)*0,90*(1,50+1,00)/2
C28: Potok - ŠJ-4:(85,50-82,70)*0,90*(1,50+1,50)/2 | E28: 3.78 | M28: Potok - ŠJ-4:(85,50-82,70)*0,90*(1,50+1,50)/2
C29: Prohloubení pro RŠ:1,60*1,60*0,20*4 | E29: 2.048 | M29: Prohloubení pro RŠ:1,60*1,60*0,20*4
C30: Rozšíření pro RŠ:1,60*(1,60-0,90)*4,60 | E30: 5.152 | M30: Rozšíření pro RŠ:1,60*(1,60-0,90)*4,60
C31: Odpočet objemu konstrukce komunikace:-(32,90+1,60*(1,60-0,90)*2)*0,35 | E31: -12.299 | M31: Odpočet objemu konstrukce komunikace:-(32,90+1,60*(1,60-0,90)*2)*0,35
C32: Odpočet objemu ornice:-(37,40+(1,60*(1,60-0,90)*2))*0,20 | E32: -7.928 | M32: Odpočet objemu ornice:-(37,40+(1,60*(1,60-0,90)*2))*0,20
C33: Konec provozního součtu | E33: 76.46 | M33: Konec provozního součtu
C34: V hornině tř. 3 - 60%:76,4600*0,6 | E34: 45.876 | M34: V hornině tř. 3 - 60%:76,4600*0,6
A35: 5 | B35: 132201219R00 | C35: Přípl.za lepivost,hloubení rýh 200cm,hor.3,STROJNĚ | D35: m3 | E35: 22.938 | G35: =E35*F35 -> 0 | H35: 0 | I35: =E35*H35 -> 0 | J35: 0 | K35: =E35*J35 -> 0 | O35: 2 | AA35: 1 | AB35: 1 | AC35: 1 | AZ35: 1 | BA35: =IF(AZ35=1,G35,0) -> 0 | BB35: =IF(AZ35=2,G35,0) -> 0 | BC35: =IF(AZ35=3,G35,0) -> 0 | BD35: =IF(AZ35=4,G35,0) -> 0 | BE35: =IF(AZ35=5,G35,0) -> 0 | CA35: 1 | CB35: 1
C36: Stoka "H" PVC DN250: | E36: 0 | M36: Stoka "H" PVC DN250:
